Workbook

Sheet Sheet1 (hidden)
A1: Il finanziamento verrebbe impostato per un importo di 40.000 euro durata 84
A2: mesi e tasso 7% (ovviamente come scritto anche dal consulente il tasso è
A3: ipotetico cme spiegato anche ieri ai clienti in quanto basato sul rating che
A4: potrò avere solo dopo aver lavorato la pratica).
A6: Cordiali saluti.
A9: Ciao Antonio,
A11: (metto in copia anche Gianluca che è il mio collaboratore) i dati che mi servono sono per una start-up che non ha bilanci consolidati:
A13: - Importo del finanziamento che deve prendere; euro 40.000
A15: - Tasso presunto applicato; 5 o 6% attendo conferma da banca
A17: - Durata finanziamento; 84 rate (presunto)
A19: - Canone di locazione dei locali euro 30.7000 primi due anni il terzo e quarto 33.200 dal 5° euro 35.400 spese incluse. | M19: 30
A21: - Costi del Personale ci lavorano i due titolari della società (ti allego certificato costituzione e attribuzione iva)
A23: - Capienza del locale (posti a sedere / posti in piedi); posti a sedere 35 + posti in piedi 15 / 18
A25: - Incidenza media costo materie prime (se non lo ha stimato facciamo noi) non lo sappiamo direi che dovrebbe essere per la tipologia di attività dal 25 al 20%

Sheet output

Sheet Pannello
B2: Commercio
B6: Inserisci | I6: Consulta | M6: Verifica | S6: Analizza | Z6: Redigi

Sheet Documento
B5: DOCUMENTO DI BUSINNES PLAN
B8: 1 - La parte Introduttiva
B10: 1.1. L’Idea Imprenditoriale
B11: Il Business Plan deve iniziare con la presentazione sintetica della nostra offerta.
B23: 1.2. I Soggetti Promotori
B24: Inserire un elenco dei Soggetti Promotori , con una breve descrizione delle competenze
B36: 1.3. La Mission
B37: E’ l’obiettivo a cui l’impresa tende nel lungo periodo e che ne rappresenta il suo scopo.
B50: 2 - La parte Tecnico Operativa
B52: 2.1. L'analisi del mercato di riferimento
B53: Il punto di partenza è l'analisi del mercato, attraverso una ricerca sull'ambiente in cui si va a operare.L'analisi di mercato è volta a raccogliere, classificare e analizzare le informazioni sul contesto nel quale si svolge l'attività dell'impresa, per valutarne le dimensioni e i soggetti he vi operano e fornire previsioni attendibili sul suo sviluppo.
B66: 2.2. La segmentazione del mercato
B67: Dopo aver identificato e misurato il nostro mercato, concentriamo l’attenzione sui clienti e in particolare sulle motivazioni all'acquisto e le abitudini di consumo. È innanzitutto necessario definire quale sia il target di riferimento dell'azienda, ovvero il gruppo (o più gruppi di cllienti) di clienti i cui bisogni si intendono soddisfare, identificando un raggruppamento che abbia caratteristiche comuni e facilmente distinguibili. Gli acquirenti o consumatori, sono analizzati attraverso la tecnica della segmentazione. La segmentazione è la divisione di mercati ampi ed eterogenei in gruppi omogenei più piccoli (segmenti), realizzata per rispondere in modo più efficace alla domanda. Questi gruppi di consumatori condividono gusti e preferenze simili e di conseguenza possono essere soddisfatti adeguatamente da uno stesso prodotto, se poi tale gruppo di consumatori o di organizzazioni può essere servito con profitto, esso costituisce un attraente segmento di mercato.Per segmentare un mercato si fa riferimento a una serie di variabili • la dislocazione geografica – suddivisione del territorio in aree distinte, in base alle proprie esigenze; • i parametri demografici - l’età, il sesso, la consistenza del nucleo familiare, il livello di reddito, il livello di istruzione, ecc. Questo criterio è uno dei più efficaci; • la segmentazione psicografica - gli acquirenti potenziali sono suddivisi in gruppi in base alle classi sociali di appartenenza, allo stile di vita adottato e alla personalità; • la segmentazione comportamentale - si esprime con la scelta dell’auto, dell’abbigliamento, dell’arredamento, dell’uso del tempo, della lettura, del tipo di negozi che frequentano ecc.
B84: 2.3. Individuazione del Segmento
B85: Sulla base dei parametri sopra riportati si vanno a delineare la segmentazione, che può essere : o Segmentazione a priori: viene effettuata sulla base di ipotesi formulate a tavolino in base all’esperienza e al buon senso senza effettuare ricerche di mercato. o Segmentazione a posteriori: si propone come obiettivo quello di raggruppare la popolazione in segmenti omogenei sulla base di ricerche effettuate utilizzando tecniche di analisi che non richiedono di predeterminare rigidamente i criteri di segmentazione Gli acquirenti o consumatori, sono analizzati attraverso la tecnica della segmentazione. La segmentazione è la divisione di mercati ampi ed eterogenei in gruppi omogenei più piccoli (segmenti), realizzata per rispondere in modo più efficace alla domanda. Questi gruppi di consumatori condividono gusti e preferenze simili e di conseguenza possono essere soddisfatti adeguatamente da uno stesso prodotto, se poi tale gruppo di consumatori o di organizzazioni può essere servito con profitto, esso costituisce un attraente segmento di mercato.Per segmentare un mercato si fa riferimento a una serie di variabili • la dislocazione geografica – suddivisione del territorio in aree distinte, in base alle proprie esigenze; • i parametri demografici - l’età, il sesso, la consistenza del nucleo familiare, il livello di reddito, il livello di istruzione, ecc. Questo criterio è uno dei più efficaci; • la segmentazione psicografica - gli acquirenti potenziali sono suddivisi in gruppi in base alle classi sociali di appartenenza, allo stile di vita adottato e alla personalità; • la segmentazione comportamentale - si esprime con la scelta dell’auto, dell’abbigliamento, dell’arredamento, dell’uso del tempo, della lettura, del tipo di negozi che frequentano ecc.
B102: 2.4. La Strategia di Mercato
B103: Una volta effettuata la valutazione dei segmenti di mercato più attrattivi, occorre determinare le strategie di intervento su di essi. Le tipologie di approccio sul mercato da parte dell’impresa sono di tre tipi: o La strategia indifferenziata: si attacca tutto il mercato con un’unica strategia perché non si riesce ad effettuare una segmentazione oppure perché non si ritiene che esistano sostanziali differenze al suo interno; o La strategia differenziata: si agisce su più segmenti di uno stesso mercato predisponendo un prodotto particolare o una versione di quest’ultimo per ogni segmento; o La strategia concentrata: si indirizza l’offerta dell’impresa su un solo segmento del mercato: cio’ comporta un’elevata specializzazione.
B120: 2.5. L'Analisi della Concorrenza
B121: Definito il nostro segmento (o i nostri segmenti), si procede con l’analisi della concorrenza presente sul segmento (o segmenti). La prima cosa da fare è l'identificazione di questi concorrenti, siano essi diretti o indiretti, evidenziandone le caratteristiche principali in maniera tale da costruiire strategie adeguate e in grado di garantire il successo nel tempo. Occorre rispondere a queste domande: • chi sono i concorrenti più importanti? • che prodotti offrono? • quali sono i potenziali futuri concorrenti? • Quali sono i Punti di Forza e Debolezza?
B138: 2.6. Piano di Marketing
B139: Una volta definito il mercato di riferimento dell’azienda, si può strutturare il Piano di Marketing attraverso la definizione di strategie appropriate. Obiettivo è quello di convincere i clienti che il nostro prodotto/servizio soddisfa il loro bisogno. Nella formulazione della strategia di marketing vengono prese decisioni soprattutto in merito alle 4 variabili fondamentali che costituiscono il marketing mix, note come le 4 P, nello specifico: • il prodotto (product): cosa offro; • il prezzo (price): a quanto lo offro e quanto rende; • la distribuzione (place): dove lo offro; • la comunicazione (promotion): come lo faccio conoscere. Occorre rispondere a queste domande: • chi sono i concorrenti più importanti? • che prodotti offrono? • quali sono i potenziali futuri concorrenti? • Quali sono i Punti di Forza e Debolezza?
B157: 3 - La parte Quantitativo Monetaria
B158: Dopo la parte introduttiva e quella tecnico-operativa, abbiamo detto, segue la terza ed ultima parte del business plan, quella quantitativo-monetaria. Essa comporta la redazione di tre preventivi (o piani): • preventivo economico; • preventivo finanziario; • preventivo patrimoniale. Nella redazione ci aiutiamo con il nostro modello di Business Plan, nella sezione Elaborazione Piano Economico Finanziario
B165: 3.1. Il Piano delle Vendite
B166: Qui possiamo inserire e commentare il Prospetto Vendite del nostro Business Plan, dove è riportato il previsionale economico (fatturato), finanziario (incassi) e Patrimoniale (iva a debito e crediti commerciali). Potete inserire nel documento la tabella riepilogative, riportante nell'Elaborato Vendite/Acquisti (Tabelle 1,2,3,4)
B172: Inerire Tabelle 1,2,3,4 | M172: Tabella 1
M173: Tabella 2
M174: Tabella 3
M175: Tabella 4
B183: 3.2. Il Piano degli Acquisti
B184: Qui possiamo inserire e commentare il Prospetto Acquisti del nostro Business Plan, dove è riportato il previsionale economico (Consumi e Acquisti), finanziario (incassi) e Patrimoniale (iva a debito e debiti commerciali). Potete inserire nel documento la tabella riepilogative, riportante nell'Elaborato Vendite/Acquisti (Tabelle 5,6,7,8)
B190: Inserire Tabelle 5,6,7,8 | M190: Tabella 5
M191: Tabella 6
M192: Tabella 7
M193: Tabella 8
B201: 3.3. Costi di Gestione
B202: Nello stesso modo riportiamo le tabella dal nostro modello relativo ai costi di gestione , (Tabella 9,10,11,12)
B208: Inserire Tabelle 9,10,11,12 | M208: Tabella 9
M209: Tabella 10
M210: Tabella 11
M211: Tabella 12
B219: 3.4. Costi del Personale
B220: Nel modello è possibile simulare il costo Azienda del Personale, sulla base del costo del lavoro partendo dalla retribuzione lorda media annua, la % Inps , Inail e TFR. (Tabella 13)
B226: Inserire Tabelle 13 | M226: Tabella 13
B237: 3.5. Investimenti
B238: Nella Tabelle 14/15/16/17 sono riportati gli Investimenti e realtivi ammortamenti, credito iva, e uscite, calcolati nostro Modello Excel, è molto importante la pianificazione degli investimenti e le modalità di pagamento in quanto impattano sul fabbisogno finanziario di cui necessità l’impresa.
B244: Inserire Tabelle 14,15,16,17 | M244: Tabella 14
M245: Tabella 15
M246: Tabella 16
M247: Tabella 17
B255: 3.6. Fonti di Finanziamento
B256: Possiamo distinguere le fonti di Finanziamento sulla base della loro provenienza in: a) fonti finanziarie interne («capitale proprio»): I finanziamenti con capitale proprio (detto anche «capitale a pieno rischio») provengono dall’imprenditore stesso: sono cioè «conferiti» (ovvero versati) direttamente dal titolare o dai titolari all’atto della costituzione (capitale di conferimento iniziale) e/o in momenti successivi (aumenti di capitale proprio). Nel Modello è possibile inserire l’apporto di capitale proprio e Finaziamento Soci, possiamo riportare sotto la tabella 18 estratta sempre dal modello
B262: Inserire Tabella 18 | M262: Tabella 18
B273: b) fonti finanziarie esterne («capitale di terzi» o di credito): I finanziamenti con capitale di terzi (o «di credito») provengono invece da soggetti estranei all’impresa: si tratta di prestiti concessi da banche, società finanziarie in senso lato o privati.Nel nostro caso si tratta del Finanziamento concesso tramite garanzia Microcredito, per il quale il modello calcola in automatico il prospetto riepilogativo di un finanziamento a tasso costante e rata capitale costante mensile. Possiamo riportare sotto il Prospetto riepilogativo del Finanziamento riportato in Tabella 21
B279: Inserire Tabella 20 | M279: Tabella 20
B290: 3.7. Aspetti Fiscali
B291: Da un punto di vista di impatto fiscale , possiamo distinguere tra Imposte Dirette e Indirette a) Imposte Dirette: sono quelle che colpiscono direttamente la ricchezza, già esistente (il patrimonio) o nel momento in cui si produce (il reddito). Le principale Imposte dirette sono: - l’Irpef – Imposta sul Reddito delle Persone Fisiche: è un’imposta progressiva, cioè al crescere del reddito imponibile aumenta il valore delle aliquote da applicare sulle ulteriori quote di reddito; - l’Ires – Imposta sul Reddito delle Società : è un’imposta proporzionale: cioè, a differenza dell’Irpef, l’aliquota è fissa e non muta al variare del reddito imponibile; - l’Irap – Imposta Regionale sulle Attività Produttive: è anch’essa un’imposta proporzionale, gravante sui «redditi» (da intendersi in una accezione particolare) prodotti nell’esercizio di imprese, arti e professioni: ha un’aliquota fissa. Nel caso di Persona Fisica o Società di persone si applicherà Irap a livello di Società e tassazione Irpef , direttamente in testa ai soci. Nel caso di Persone Giuridiche (s.r.l.,S.p.A, ecc…) la tassazione sarà l’Ires e l’Irap e per entrambe le Imposte avverrà a livello societario. Il nostro modello calcola Ires e Irap per le Srl. , solo Irap per le altre società in quanto la Tassazione Irpef avviene poi in testa al socio . Sotto nel documento potete riportare le Tabelle 19 e 20
B297: Tabelle 19 e 20 | M297: Tabella 19
M298: Tabella 20
B308: b) Imposte Indirette: sono quelle che colpiscono indirettamente la ricchezza, nel momento in cui viene spesa (es. l’Iva che colpisce i consumi) o trasferita (es. l’imposta di registro che grava sui passaggi di proprietà).Tra tutte la più importante è l’Iva - Imposta sul Valore Aggiunto, con aliquote diverse secondo la natura dei prodotti o dei servizi venduti (al momento è del 22%). Nel modello è riportato il Prospetto del Calcolo dell’Iva,Tabella 24, che possiamo sempre inserire in questa Sezione.
B314: Tabelle 24 | M314: Tabella 24
B325: 3.8. Previsionale Economico
B326: Siamo ora in grado, sulla base degli elaborati precedenti, di rappresentare il Previsionale Economico della nostra Start UP. La redazione del preventivo economico avviene sostanzialmente in due fasi: 1) prima si stima il reddito operativo (cioè quello prodotto dalla «gestione caratteristica»), contrapponendo ai ricavi di vendita previsti i costi operativi (strettamente legati al processo produttivo); 2) poi si individua il reddito netto di esercizio, considerando i costi e ricavi derivanti dalle altre operazioni di gestione. Riportiamo nella sezione sotto la Tabella 21 , ovvero il il Previsioanle Economico dal modello Excel annuale.
B332: Tabella 21 | M332: Tabella 21
B343: 3.9. Previsionale Patrimoniale
B344: Passiamo alla redazione del nostro previsionale Patrimoniale, riportando nel nostro prospetto i dettaglii delle voci patrimoniali calcolati in precedenza. In dettaglio, lo stato patrimoniale raccoglie, tecnicamente: • le attività; • le passività; • il capitale netto. Le attività esprimono investimenti o «impieghi di risorse» e sono rappresentate da: • valori finanziari attivi (crediti verso clienti, cassa, conti correnti bancari attivi, ecc.); • valori economici relativi a beni acquistati (costi) ma non ancora interamente utilizzati (impianti, rimanenze di prodotti, ecc.). Le passività esprimono finanziamenti o «fonti di risorse» esterne e consistono in: • valori finanziari passivi (debiti verso fornitori, finanziamenti bancari, ecc.); • valori economici relativi a ricavi già conseguiti ma che interessano anche gli anni futuri. Riportiamo il Previsionale Patrimoniale elaborato nel nostro modello inserendo sotto la Tabella 22
B350: Tabella 22 | M350: Tabella 22
B361: 3.10. Previsionale Finanziario
B362: Come ultimo prospetto previsionale inseriamo il rendiconto finanziario. Il Rendiconto Finanziario, è il terzo prospetto di bilancio ci racconta appunto le «vicende di gestione finanziaria»,mentre il conto economico ci racconta quello che accade durante l’anno in termini economici il Rendiconto lo esprime in termini finanziari : • quali sono state le uscite finanziarie • quali sono state le entrate finanziarie. Riportiamo in Tabella 23 (sempre preso dal nostro modello excel) il Rendiconto Finanziario annuale, in cui abbiamo i flussi finanziari annuali ed i saldi finali Banca.
B368: Tabella 23 | M368: Tabella 23
B379: 3.11. Indicatori Aziendali
B380: l cruscotto direzionale è un insieme di rapporti o indici, che devono essere sempre tenuti sotto osservazione da parte dell’imprenditore. Un indice è un quoziente, o rapporto, del tipo A/B, dove A e B sono grandezze significative della gestione economica e finanziaria (es. utile netto/capitale proprio). Vediamo ora di individuare gli indici più «importanti» per guidare la nostra azienda. Riportiamo la Tabella 24 dove sono calcolati i principali indicatori di Perfomance Aziendale
B386: Tabella 24 | M386: Tabella 24

Sheet Input->

Sheet Parametri
D9: Parametri
E12: Anno avvio
E14: Numero anni di previsione
DB15: nascondere
E16: Aliquota Iva | F16: 22 | G16: % | DB16: =F16/100 -> 0.22
E18: Aliquota Irap | F18: 3.9 | G18: % | DB18: =F18/100 -> 0.039
E20: Aliquota Ires | F20: 24 | G20: % | DB20: =F20/100 -> 0.24
E22: Importo minimo acconto per rateizzazione | F22: 103

Sheet Budget Vendite
D9: Budget vendite
E11: Prezzo Unitario
F12: Categoria | G12: Incidenza Costo Acquisto % | H12: Aliquota Iva | I12: gg giacenza Magazzino | J12: gg dilazione Clienti | K12: gg dilazione Fornitori | L12: =+SPm!I12 -> 2017-01-01 | M12: =+SPm!J12 -> 2017-02-28 | N12: =+SPm!K12 -> 2017-03-31 | O12: =+SPm!L12 -> 2017-04-30 | P12: =+SPm!M12 -> 2017-05-31 | Q12: =+SPm!N12 -> 2017-06-30 | R12: =+SPm!O12 -> 2017-07-31 | S12: =+SPm!P12 -> 2017-08-31 | T12: =+SPm!Q12 -> 2017-09-30 | U12: =+SPm!R12 -> 2017-10-31 | V12: =+SPm!S12 -> 2017-11-30 | W12: =+SPm!T12 -> 2017-12-31 | X12: =+SPm!U12 -> 2018-01-31 | Y12: =+SPm!V12 -> 2018-02-28 | Z12: =+SPm!W12 -> 2018-03-31 | AA12: =+SPm!X12 -> 2018-04-30 | AB12: =+SPm!Y12 -> 2018-05-31 | AC12: =+SPm!Z12 -> 2018-06-30 | AD12: =+SPm!AA12 -> 2018-07-31 | AE12: =+SPm!AB12 -> 2018-08-31 | AF12: =+SPm!AC12 -> 2018-09-30 | AG12: =+SPm!AD12 -> 2018-10-31 | AH12: =+SPm!AE12 -> 2018-11-30 | AI12: =+SPm!AF12 -> 2018-12-31 | AJ12: =+SPm!AG12 -> 2019-01-31 | AK12: =+SPm!AH12 -> 2019-02-28 | AL12: =+SPm!AI12 -> 2019-03-31 | AM12: =+SPm!AJ12 -> 2019-04-30 | AN12: =+SPm!AK12 -> 2019-05-31 | AO12: =+SPm!AL12 -> 2019-06-30 | AP12: =+SPm!AM12 -> 2019-07-31 | AQ12: =+SPm!AN12 -> 2019-08-31 | AR12: =+SPm!AO12 -> 2019-09-30 | AS12: =+SPm!AP12 -> 2019-10-31 | AT12: =+SPm!AQ12 -> 2019-11-30 | AU12: =+SPm!AR12 -> 2019-12-31 | AV12: =+SPm!AS12 -> 2020-01-31 | AW12: =+SPm!AT12 -> 2020-02-29 | AX12: =+SPm!AU12 -> 2020-03-31 | AY12: =+SPm!AV12 -> 2020-04-30 | AZ12: =+SPm!AW12 -> 2020-05-31 | BA12: =+SPm!AX12 -> 2020-06-30 | BB12: =+SPm!AY12 -> 2020-07-31 | BC12: =+SPm!AZ12 -> 2020-08-31 | BD12: =+SPm!BA12 -> 2020-09-30 | BE12: =+SPm!BB12 -> 2020-10-31 | BF12: =+SPm!BC12 -> 2020-11-30 | BG12: =+SPm!BD12 -> 2020-12-31 | BH12: =+SPm!BE12 -> 2021-01-31 | BI12: =+SPm!BF12 -> 2021-02-28 | BJ12: =+SPm!BG12 -> 2021-03-31 | BK12: =+SPm!BH12 -> 2021-04-30 | BL12: =+SPm!BI12 -> 2021-05-31 | BM12: =+SPm!BJ12 -> 2021-06-30 | BN12: =+SPm!BK12 -> 2021-07-31 | BO12: =+SPm!BL12 -> 2021-08-31 | BP12: =+SPm!BM12 -> 2021-09-30 | BQ12: =+SPm!BN12 -> 2021-10-31 | BR12: =+SPm!BO12 -> 2021-11-30 | BS12: =+SPm!BP12 -> 2021-12-31
F13: Linea 1 | G13: 0.3 | H13: =+Parametri!$DB$16 -> 0.22 | I13: 30 | J13: 0 | K13: 30 | L13: 10 | M13: 10 | N13: 10 | O13: 10 | P13: 10 | Q13: 10 | R13: 10 | S13: 10 | T13: 10 | U13: 10 | V13: 10 | W13: 10 | X13: 10 | Y13: 10 | Z13: 10 | AA13: 10 | AB13: 10 | AC13: 10 | AD13: 10 | AE13: 10 | AF13: 10 | AG13: 10 | AH13: 10 | AI13: 10 | AJ13: 10 | AK13: 10 | AL13: 10 | AM13: 10 | AN13: 10 | AO13: 10 | AP13: 10 | AQ13: 10 | AR13: 10 | AS13: 10 | AT13: 10 | AU13: 10 | AV13: 10 | AW13: 10 | AX13: 10 | AY13: 10 | AZ13: 10 | BA13: 10 | BB13: 10 | BC13: 10 | BD13: 10 | BE13: 10 | BF13: 10 | BG13: 10 | BH13: 10 | BI13: 10 | BJ13: 10 | BK13: 10 | BL13: 10 | BM13: 10 | BN13: 10 | BO13: 10 | BP13: 10 | BQ13: 10 | BR13: 10 | BS13: 10
F14: Linea 2 | G14: 0.25 | H14: =+Parametri!$DB$16 -> 0.22 | I14: 60 | J14: 0 | K14: 30 | L14: 20 | M14: 20 | N14: 20 | O14: 20 | P14: 20 | Q14: 20 | R14: 20 | S14: 20 | T14: 20 | U14: 20 | V14: 20 | W14: 20 | X14: 20 | Y14: 20 | Z14: 20 | AA14: 20 | AB14: 20 | AC14: 20 | AD14: 20 | AE14: 20 | AF14: 20 | AG14: 20 | AH14: 20 | AI14: 20 | AJ14: 20 | AK14: 20 | AL14: 20 | AM14: 20 | AN14: 20 | AO14: 20 | AP14: 20 | AQ14: 20 | AR14: 20 | AS14: 20 | AT14: 20 | AU14: 20 | AV14: 20 | AW14: 20 | AX14: 20 | AY14: 20 | AZ14: 20 | BA14: 20 | BB14: 20 | BC14: 20 | BD14: 20 | BE14: 20 | BF14: 20 | BG14: 20 | BH14: 20 | BI14: 20 | BJ14: 20 | BK14: 20 | BL14: 20 | BM14: 20 | BN14: 20 | BO14: 20 | BP14: 20 | BQ14: 20 | BR14: 20 | BS14: 20
F15: Linea 3 | G15: 0.25 | H15: =+Parametri!$DB$16 -> 0.22 | I15: 30 | J15: 0 | K15: 30 | L15: 30 | M15: 30 | N15: 30 | O15: 30 | P15: 30 | Q15: 30 | R15: 30 | S15: 30 | T15: 30 | U15: 30 | V15: 30 | W15: 30 | X15: 30 | Y15: 30 | Z15: 30 | AA15: 30 | AB15: 30 | AC15: 30 | AD15: 30 | AE15: 30 | AF15: 30 | AG15: 30 | AH15: 30 | AI15: 30 | AJ15: 30 | AK15: 30 | AL15: 30 | AM15: 30 | AN15: 30 | AO15: 30 | AP15: 30 | AQ15: 30 | AR15: 30 | AS15: 30 | AT15: 30 | AU15: 30 | AV15: 30 | AW15: 30 | AX15: 30 | AY15: 30 | AZ15: 30 | BA15: 30 | BB15: 30 | BC15: 30 | BD15: 30 | BE15: 30 | BF15: 30 | BG15: 30 | BH15: 30 | BI15: 30 | BJ15: 30 | BK15: 30 | BL15: 30 | BM15: 30 | BN15: 30 | BO15: 30 | BP15: 30 | BQ15: 30 | BR15: 30 | BS15: 30
F16: Linea 4 | G16: 0.2 | H16: =+Parametri!$DB$16 -> 0.22 | I16: 0 | J16: 0 | K16: 30 | L16: 40 | M16: 40 | N16: 40 | O16: 40 | P16: 40 | Q16: 40 | R16: 40 | S16: 40 | T16: 40 | U16: 40 | V16: 40 | W16: 40 | X16: 40 | Y16: 40 | Z16: 40 | AA16: 40 | AB16: 40 | AC16: 40 | AD16: 40 | AE16: 40 | AF16: 40 | AG16: 40 | AH16: 40 | AI16: 40 | AJ16: 40 | AK16: 40 | AL16: 40 | AM16: 40 | AN16: 40 | AO16: 40 | AP16: 40 | AQ16: 40 | AR16: 40 | AS16: 40 | AT16: 40 | AU16: 40 | AV16: 40 | AW16: 40 | AX16: 40 | AY16: 40 | AZ16: 40 | BA16: 40 | BB16: 40 | BC16: 40 | BD16: 40 | BE16: 40 | BF16: 40 | BG16: 40 | BH16: 40 | BI16: 40 | BJ16: 40 | BK16: 40 | BL16: 40 | BM16: 40 | BN16: 40 | BO16: 40 | BP16: 40 | BQ16: 40 | BR16: 40 | BS16: 40
F17: Linea 5 | G17: 0.14 | H17: =+Parametri!$DB$16 -> 0.22 | I17: 30 | J17: 0 | K17: 30
F18: Linea 6 | G18: 0.16 | H18: =+Parametri!$DB$16 -> 0.22 | I18: 90 | J18: 0 | K18: 30
F19: Linea 7 | G19: 0.5 | H19: =+Parametri!$DB$16 -> 0.22 | I19: 30 | J19: 0 | K19: 30
F20: Linea 8 | G20: 0.2 | H20: =+Parametri!$DB$16 -> 0.22 | I20: 0 | J20: 0 | K20: 30
F21: Linea 9 | G21: 0.2 | H21: =+Parametri!$DB$16 -> 0.22 | I21: 0 | J21: 0 | K21: 30
F22: Linea 10 | G22: 0.2 | H22: =+Parametri!$DB$16 -> 0.22 | I22: 0 | J22: 0 | K22: 30
F23: Linea 11 | G23: 0.25 | H23: =+Parametri!$DB$16 -> 0.22 | I23: 0 | J23: 0 | K23: 30
F24: Linea 12 | G24: 0.25 | H24: =+Parametri!$DB$16 -> 0.22 | I24: 0 | J24: 0 | K24: 30
F25: Linea 13 | G25: 0.25 | H25: =+Parametri!$DB$16 -> 0.22 | I25: 0 | J25: 0 | K25: 30
F26: Linea 14 | G26: 0.25 | H26: =+Parametri!$DB$16 -> 0.22 | I26: 0 | J26: 0 | K26: 30
F27: Linea 15 | G27: 0.25 | H27: =+Parametri!$DB$16 -> 0.22 | I27: 0 | J27: 0 | K27: 30
F28: Linea 16 | G28: 0.25 | H28: =+Parametri!$DB$16 -> 0.22 | I28: 0 | J28: 0 | K28: 30
F29: Linea 17 | G29: 0.25 | H29: =+Parametri!$DB$16 -> 0.22 | I29: 0 | J29: 0 | K29: 30
F30: Linea 18 | G30: 0.2 | H30: =+Parametri!$DB$16 -> 0.22 | I30: 0 | J30: 0 | K30: 30
F31: Linea 19 | G31: 0.15 | H31: =+Parametri!$DB$16 -> 0.22 | I31: 0 | J31: 0 | K31: 30
F32: Linea 20 | G32: 0.15 | H32: =+Parametri!$DB$16 -> 0.22 | I32: 0 | J32: 0 | K32: 30
F33: Linea 21 | G33: 0.1 | H33: =+Parametri!$DB$16 -> 0.22 | I33: 0 | J33: 0 | K33: 30
F34: Linea 22 | H34: =+Parametri!$DB$16 -> 0.22 | I34: 0
F35: Linea 23 | H35: =+Parametri!$DB$16 -> 0.22 | I35: 0
F36: Linea 24 | H36: =+Parametri!$DB$16 -> 0.22 | I36: 0
F37: Linea 25 | H37: =+Parametri!$DB$16 -> 0.22 | I37: 0
F38: Linea 26 | H38: =+Parametri!$DB$16 -> 0.22 | I38: 0
F39: Linea 27 | H39: =+Parametri!$DB$16 -> 0.22 | I39: 0
F40: Linea 28 | H40: =+Parametri!$DB$16 -> 0.22 | I40: 0
F41: Linea 29 | H41: =+Parametri!$DB$16 -> 0.22 | I41: 0
F42: Linea 30 | H42: =+Parametri!$DB$16 -> 0.22 | I42: 0
E44: Quantità
F45: =+F12 -> Categoria | L45: =+L12 -> 2017-01-01 | M45: =+M12 -> 2017-02-28 | N45: 2017-03-31 | O45: 2017-04-30 | P45: 2017-05-31 | Q45: 2017-06-30 | R45: 2017-07-31 | S45: 2017-08-31 | T45: 2017-09-30 | U45: 2017-10-31 | V45: 2017-11-30 | W45: 2017-12-31 | X45: 2018-01-31 | Y45: 2018-02-28 | Z45: 2018-03-31 | AA45: 2018-04-30 | AB45: 2018-05-31 | AC45: 2018-06-30 | AD45: 2018-07-31 | AE45: 2018-08-31 | AF45: 2018-09-30 | AG45: 2018-10-31 | AH45: 2018-11-30 | AI45: 2018-12-31 | AJ45: 2019-01-31 | AK45: 2019-02-28 | AL45: 2019-03-31 | AM45: 2019-04-30 | AN45: 2019-05-31 | AO45: 2019-06-30 | AP45: 2019-07-31 | AQ45: 2019-08-31 | AR45: 2019-09-30 | AS45: 2019-10-31 | AT45: 2019-11-30 | AU45: 2019-12-31 | AV45: 2020-01-31 | AW45: 2020-02-29 | AX45: 2020-03-31 | AY45: 2020-04-30 | AZ45: 2020-05-31 | BA45: 2020-06-30 | BB45: 2020-07-31 | BC45: 2020-08-31 | BD45: 2020-09-30 | BE45: 2020-10-31 | BF45: 2020-11-30 | BG45: 2020-12-31 | BH45: 2021-01-31 | BI45: 2021-02-28 | BJ45: 2021-03-31 | BK45: 2021-04-30 | BL45: 2021-05-31 | BM45: 2021-06-30 | BN45: 2021-07-31 | BO45: 2021-08-31 | BP45: 2021-09-30 | BQ45: 2021-10-31 | BR45: 2021-11-30 | BS45: 2021-12-31
F46: =+F13 -> Linea 1 | L46: 100 | M46: 100 | N46: 100 | O46: 100 | P46: 100 | Q46: 100 | R46: 100 | S46: 100 | T46: 100 | U46: 100 | V46: 100 | W46: 100 | X46: 100 | Y46: 100 | Z46: 100 | AA46: 100 | AB46: 100 | AC46: 100 | AD46: 100 | AE46: 100 | AF46: 100 | AG46: 100 | AH46: 100 | AI46: 100 | AJ46: 100 | AK46: 100 | AL46: 100 | AM46: 100 | AN46: 100 | AO46: 100 | AP46: 100 | AQ46: 100 | AR46: 100 | AS46: 100 | AT46: 100 | AU46: 100 | AV46: 100 | AW46: 100 | AX46: 100 | AY46: 100 | AZ46: 100 | BA46: 100 | BB46: 100 | BC46: 100 | BD46: 100 | BE46: 100 | BF46: 100 | BG46: 100 | BH46: 100 | BI46: 100 | BJ46: 100 | BK46: 100 | BL46: 100 | BM46: 100 | BN46: 100 | BO46: 100 | BP46: 100 | BQ46: 100 | BR46: 100 | BS46: 100
F47: =+F14 -> Linea 2 | L47: 200 | M47: 200 | N47: 200 | O47: 200 | P47: 200 | Q47: 200 | R47: 200 | S47: 200 | T47: 200 | U47: 200 | V47: 200 | W47: 200 | X47: 200 | Y47: 200 | Z47: 200 | AA47: 200 | AB47: 200 | AC47: 200 | AD47: 200 | AE47: 200 | AF47: 200 | AG47: 200 | AH47: 200 | AI47: 200 | AJ47: 200 | AK47: 200 | AL47: 200 | AM47: 200 | AN47: 200 | AO47: 200 | AP47: 200 | AQ47: 200 | AR47: 200 | AS47: 200 | AT47: 200 | AU47: 200 | AV47: 200 | AW47: 200 | AX47: 200 | AY47: 200 | AZ47: 200 | BA47: 200 | BB47: 200 | BC47: 200 | BD47: 200 | BE47: 200 | BF47: 200 | BG47: 200 | BH47: 200 | BI47: 200 | BJ47: 200 | BK47: 200 | BL47: 200 | BM47: 200 | BN47: 200 | BO47: 200 | BP47: 200 | BQ47: 200 | BR47: 200 | BS47: 200
F48: Linea 3 | L48: 50 | M48: 50 | N48: 50 | O48: 50 | P48: 50 | Q48: 50 | R48: 50 | S48: 50 | T48: 50 | U48: 50 | V48: 50 | W48: 50 | X48: 50 | Y48: 50 | Z48: 50 | AA48: 50 | AB48: 50 | AC48: 50 | AD48: 50 | AE48: 50 | AF48: 50 | AG48: 50 | AH48: 50 | AI48: 50 | AJ48: 50 | AK48: 50 | AL48: 50 | AM48: 50 | AN48: 50 | AO48: 50 | AP48: 50 | AQ48: 50 | AR48: 50 | AS48: 50 | AT48: 50 | AU48: 50 | AV48: 50 | AW48: 50 | AX48: 50 | AY48: 50 | AZ48: 50 | BA48: 50 | BB48: 50 | BC48: 50 | BD48: 50 | BE48: 50 | BF48: 50 | BG48: 50 | BH48: 50 | BI48: 50 | BJ48: 50 | BK48: 50 | BL48: 50 | BM48: 50 | BN48: 50 | BO48: 50 | BP48: 50 | BQ48: 50 | BR48: 50 | BS48: 50
F49: Linea 4 | L49: 300 | M49: 300 | N49: 300 | O49: 300 | P49: 300 | Q49: 300 | R49: 300 | S49: 300 | T49: 300 | U49: 300 | V49: 300 | W49: 300 | X49: 300 | Y49: 300 | Z49: 300 | AA49: 300 | AB49: 300 | AC49: 300 | AD49: 300 | AE49: 300 | AF49: 300 | AG49: 300 | AH49: 300 | AI49: 300 | AJ49: 300 | AK49: 300 | AL49: 300 | AM49: 300 | AN49: 300 | AO49: 300 | AP49: 300 | AQ49: 300 | AR49: 300 | AS49: 300 | AT49: 300 | AU49: 300 | AV49: 300 | AW49: 300 | AX49: 300 | AY49: 300 | AZ49: 300 | BA49: 300 | BB49: 300 | BC49: 300 | BD49: 300 | BE49: 300 | BF49: 300 | BG49: 300 | BH49: 300 | BI49: 300 | BJ49: 300 | BK49: 300 | BL49: 300 | BM49: 300 | BN49: 300 | BO49: 300 | BP49: 300 | BQ49: 300 | BR49: 300 | BS49: 300
F50: Linea 5
F51: Linea 6
F52: Linea 7
F53: Linea 8
F54: Linea 9
F55: Linea 10
F56: Linea 11
F57: Linea 12
F58: Linea 13
F59: Linea 14
F60: Linea 15
F61: Linea 16
F62: Linea 17
F63: Linea 18
F64: Linea 19
F65: Linea 20
F66: Linea 21
F67: Linea 22
F68: Linea 23
F69: Linea 24
F70: Linea 25
F71: Linea 26
F72: Linea 27
F73: Linea 28
F74: Linea 29
F75: Linea 30

Sheet Costi Fissi
D10: Costi Fissi
E12: Inserimento costi fissi
G14: Categoria | H14: Aliquota Iva | I14: gg dilazione | J14: =+SPm!I12 -> 2017-01-01 | K14: =+SPm!J12 -> 2017-02-28 | L14: =+SPm!K12 -> 2017-03-31 | M14: =+SPm!L12 -> 2017-04-30 | N14: =+SPm!M12 -> 2017-05-31 | O14: =+SPm!N12 -> 2017-06-30 | P14: =+SPm!O12 -> 2017-07-31 | Q14: =+SPm!P12 -> 2017-08-31 | R14: =+SPm!Q12 -> 2017-09-30 | S14: =+SPm!R12 -> 2017-10-31 | T14: =+SPm!S12 -> 2017-11-30 | U14: =+SPm!T12 -> 2017-12-31 | V14: =+SPm!U12 -> 2018-01-31 | W14: =+SPm!V12 -> 2018-02-28 | X14: =+SPm!W12 -> 2018-03-31 | Y14: =+SPm!X12 -> 2018-04-30 | Z14: =+SPm!Y12 -> 2018-05-31 | AA14: =+SPm!Z12 -> 2018-06-30 | AB14: =+SPm!AA12 -> 2018-07-31 | AC14: =+SPm!AB12 -> 2018-08-31 | AD14: =+SPm!AC12 -> 2018-09-30 | AE14: =+SPm!AD12 -> 2018-10-31 | AF14: =+SPm!AE12 -> 2018-11-30 | AG14: =+SPm!AF12 -> 2018-12-31 | AH14: =+SPm!AG12 -> 2019-01-31 | AI14: =+SPm!AH12 -> 2019-02-28 | AJ14: =+SPm!AI12 -> 2019-03-31 | AK14: =+SPm!AJ12 -> 2019-04-30 | AL14: =+SPm!AK12 -> 2019-05-31 | AM14: =+SPm!AL12 -> 2019-06-30 | AN14: =+SPm!AM12 -> 2019-07-31 | AO14: =+SPm!AN12 -> 2019-08-31 | AP14: =+SPm!AO12 -> 2019-09-30 | AQ14: =+SPm!AP12 -> 2019-10-31 | AR14: =+SPm!AQ12 -> 2019-11-30 | AS14: =+SPm!AR12 -> 2019-12-31 | AT14: =+SPm!AS12 -> 2020-01-31 | AU14: =+SPm!AT12 -> 2020-02-29 | AV14: =+SPm!AU12 -> 2020-03-31 | AW14: =+SPm!AV12 -> 2020-04-30 | AX14: =+SPm!AW12 -> 2020-05-31 | AY14: =+SPm!AX12 -> 2020-06-30 | AZ14: =+SPm!AY12 -> 2020-07-31 | BA14: =+SPm!AZ12 -> 2020-08-31 | BB14: =+SPm!BA12 -> 2020-09-30 | BC14: =+SPm!BB12 -> 2020-10-31 | BD14: =+SPm!BC12 -> 2020-11-30 | BE14: =+SPm!BD12 -> 2020-12-31 | BF14: =+SPm!BE12 -> 2021-01-31 | BG14: =+SPm!BF12 -> 2021-02-28 | BH14: =+SPm!BG12 -> 2021-03-31 | BI14: =+SPm!BH12 -> 2021-04-30 | BJ14: =+SPm!BI12 -> 2021-05-31 | BK14: =+SPm!BJ12 -> 2021-06-30 | BL14: =+SPm!BK12 -> 2021-07-31 | BM14: =+SPm!BL12 -> 2021-08-31 | BN14: =+SPm!BM12 -> 2021-09-30 | BO14: =+SPm!BN12 -> 2021-10-31 | BP14: =+SPm!BO12 -> 2021-11-30 | BQ14: =+SPm!BP12 -> 2021-12-31
G15: 1) spese di rappresentanza | H15: 0.22 | I15: 30 | J15: 100 | K15: 100 | L15: 100 | M15: 100 | N15: 100 | O15: 100 | P15: 100 | Q15: 100 | R15: 100 | S15: 100 | T15: 100 | U15: 100 | V15: 100 | W15: 100 | X15: 100 | Y15: 100 | Z15: 100 | AA15: 100 | AB15: 100 | AC15: 100 | AD15: 100 | AE15: 100 | AF15: 100 | AG15: 100 | AH15: 100 | AI15: 100 | AJ15: 100 | AK15: 100 | AL15: 100 | AM15: 100 | AN15: 100 | AO15: 100 | AP15: 100 | AQ15: 100 | AR15: 100 | AS15: 100 | AT15: 100 | AU15: 100 | AV15: 100 | AW15: 100 | AX15: 100 | AY15: 100 | AZ15: 100 | BA15: 100 | BB15: 100 | BC15: 100 | BD15: 100 | BE15: 100 | BF15: 100 | BG15: 100 | BH15: 100 | BI15: 100 | BJ15: 100 | BK15: 100 | BL15: 100 | BM15: 100 | BN15: 100 | BO15: 100 | BP15: 100 | BQ15: 100
G16: 2) spese di pubblicità e promozioni | H16: 0.22 | I16: 30
G17: 3) Compensi Amministratori | H17: 0.22 | I17: 30
G18: 4) spese di trasporto | H18: 0.22 | I18: 30
G19: 5) lavorazioni presso terzi | H19: 0.22 | I19: 30
G20: 6) consulenze tecnico-produttive | H20: 0.22 | I20: 30
G21: 7) manutenzioni industriali | H21: 0.22 | I21: 30
G22: 8) servizi vari | H22: 0.22 | I22: 30
G23: 9) provvigioni | H23: 0.22 | I23: 30
G24: 10) noleggi | H24: 0.22 | I24: 30
G25: 11) Cancelleria | H25: 0.22 | I25: 30
G26: 12) spese varie | H26: 0.22 | I26: 30
G27: 13) royalties | H27: 0.22 | I27: 30
G28: 14) consulenze legali, fiscali, notarili, ecc… | H28: 0.22 | I28: 30 | J28: 200 | K28: 200 | L28: 200 | M28: 200 | N28: 200 | O28: 200 | P28: 200 | Q28: 200 | R28: 200 | S28: 200 | T28: 200 | U28: 200 | V28: 200 | W28: 200 | X28: 200 | Y28: 200 | Z28: 200 | AA28: 200 | AB28: 200 | AC28: 200 | AD28: 200 | AE28: 200 | AF28: 200 | AG28: 200 | AH28: 200 | AI28: 200 | AJ28: 200 | AK28: 200 | AL28: 200 | AM28: 200 | AN28: 200 | AO28: 200 | AP28: 200 | AQ28: 200 | AR28: 200 | AS28: 200 | AT28: 200 | AU28: 200 | AV28: 200 | AW28: 200 | AX28: 200 | AY28: 200 | AZ28: 200 | BA28: 200 | BB28: 200 | BC28: 200 | BD28: 200 | BE28: 200 | BF28: 200 | BG28: 200 | BH28: 200 | BI28: 200 | BJ28: 200 | BK28: 200 | BL28: 200 | BM28: 200 | BN28: 200 | BO28: 200 | BP28: 200 | BQ28: 200
G29: 15) altre consulenze | H29: 0.22 | I29: 30
G30: 16) Utenze | H30: 0.22 | I30: 30 | J30: 200 | K30: 200 | L30: 200 | M30: 200 | N30: 200 | O30: 200 | P30: 200 | Q30: 200 | R30: 200 | S30: 200 | T30: 200 | U30: 200 | V30: 200 | W30: 200 | X30: 200 | Y30: 200 | Z30: 200 | AA30: 200 | AB30: 200 | AC30: 200 | AD30: 200 | AE30: 200 | AF30: 200 | AG30: 200 | AH30: 200 | AI30: 200 | AJ30: 200 | AK30: 200 | AL30: 200 | AM30: 200 | AN30: 200 | AO30: 200 | AP30: 200 | AQ30: 200 | AR30: 200 | AS30: 200 | AT30: 200 | AU30: 200 | AV30: 200 | AW30: 200 | AX30: 200 | AY30: 200 | AZ30: 200 | BA30: 200 | BB30: 200 | BC30: 200 | BD30: 200 | BE30: 200 | BF30: 200 | BG30: 200 | BH30: 200 | BI30: 200 | BJ30: 200 | BK30: 200 | BL30: 200 | BM30: 200 | BN30: 200 | BO30: 200 | BP30: 200 | BQ30: 200
G31: 17) affitti e locazioni passive | H31: 0 | I31: 30 | J31: 600 | K31: 600 | L31: 600 | M31: 600 | N31: 600 | O31: 600 | P31: 600 | Q31: 600 | R31: 600 | S31: 600 | T31: 600 | U31: 600 | V31: 600 | W31: 600 | X31: 600 | Y31: 600 | Z31: 600 | AA31: 600 | AB31: 600 | AC31: 600 | AD31: 600 | AE31: 600 | AF31: 600 | AG31: 600 | AH31: 600 | AI31: 600 | AJ31: 600 | AK31: 600 | AL31: 600 | AM31: 600 | AN31: 600 | AO31: 600 | AP31: 600 | AQ31: 600 | AR31: 600 | AS31: 600 | AT31: 600 | AU31: 600 | AV31: 600 | AW31: 600 | AX31: 600 | AY31: 600 | AZ31: 600 | BA31: 600 | BB31: 600 | BC31: 600 | BD31: 600 | BE31: 600 | BF31: 600 | BG31: 600 | BH31: 600 | BI31: 600 | BJ31: 600 | BK31: 600 | BL31: 600 | BM31: 600 | BN31: 600 | BO31: 600 | BP31: 600 | BQ31: 600
G32: 18) Spese amministrative | H32: 0.22 | I32: 30 | J32: 100 | K32: 100 | L32: 100 | M32: 100 | N32: 100 | O32: 100 | P32: 100 | Q32: 100 | R32: 100 | S32: 100 | T32: 100 | U32: 100 | V32: 100 | W32: 100 | X32: 100 | Y32: 100 | Z32: 100 | AA32: 100 | AB32: 100 | AC32: 100 | AD32: 100 | AE32: 100 | AF32: 100 | AG32: 100 | AH32: 100 | AI32: 100 | AJ32: 100 | AK32: 100 | AL32: 100 | AM32: 100 | AN32: 100 | AO32: 100 | AP32: 100 | AQ32: 100 | AR32: 100 | AS32: 100 | AT32: 100 | AU32: 100 | AV32: 100 | AW32: 100 | AX32: 100 | AY32: 100 | AZ32: 100 | BA32: 100 | BB32: 100 | BC32: 100 | BD32: 100 | BE32: 100 | BF32: 100 | BG32: 100 | BH32: 100 | BI32: 100 | BJ32: 100 | BK32: 100 | BL32: 100 | BM32: 100 | BN32: 100 | BO32: 100 | BP32: 100 | BQ32: 100
G33: 19) premi assicurativi | H33: 0.22 | I33: 30 | J33: 100 | K33: 100 | L33: 100 | M33: 100 | N33: 100 | O33: 100 | P33: 100 | Q33: 100 | R33: 100 | S33: 100 | T33: 100 | U33: 100 | V33: 100 | W33: 100 | X33: 100 | Y33: 100 | Z33: 100 | AA33: 100 | AB33: 100 | AC33: 100 | AD33: 100 | AE33: 100 | AF33: 100 | AG33: 100 | AH33: 100 | AI33: 100 | AJ33: 100 | AK33: 100 | AL33: 100 | AM33: 100 | AN33: 100 | AO33: 100 | AP33: 100 | AQ33: 100 | AR33: 100 | AS33: 100 | AT33: 100 | AU33: 100 | AV33: 100 | AW33: 100 | AX33: 100 | AY33: 100 | AZ33: 100 | BA33: 100 | BB33: 100 | BC33: 100 | BD33: 100 | BE33: 100 | BF33: 100 | BG33: 100 | BH33: 100 | BI33: 100 | BJ33: 100 | BK33: 100 | BL33: 100 | BM33: 100 | BN33: 100 | BO33: 100 | BP33: 100 | BQ33: 100
D35: v | G35: Totale | J35: =SUM(J15:J33) -> 1300 | K35: =SUM(K15:K33) -> 1300 | L35: 1300 | M35: 1300 | N35: 1300 | O35: 1300 | P35: 1300 | Q35: 1300 | R35: 1300 | S35: 1300 | T35: 1300 | U35: 1300 | V35: 1300 | W35: 1300 | X35: 1300 | Y35: 1300 | Z35: 1300 | AA35: 1300 | AB35: 1300 | AC35: 1300 | AD35: 1300 | AE35: 1300 | AF35: 1300 | AG35: 1300 | AH35: 1300 | AI35: 1300 | AJ35: 1300 | AK35: 1300 | AL35: 1300 | AM35: 1300 | AN35: 1300 | AO35: 1300 | AP35: 1300 | AQ35: 1300 | AR35: 1300 | AS35: 1300 | AT35: =SUM(AT15:AT33) -> 1300 | AU35: 1300 | AV35: 1300 | AW35: 1300 | AX35: 1300 | AY35: 1300 | AZ35: =SUM(AZ15:AZ33) -> 1300 | BA35: 1300 | BB35: 1300 | BC35: 1300 | BD35: 1300 | BE35: 1300 | BF35: 1300 | BG35: 1300 | BH35: 1300 | BI35: 1300 | BJ35: 1300 | BK35: 1300 | BL35: 1300 | BM35: 1300 | BN35: 1300 | BO35: 1300 | BP35: 1300 | BQ35: 1300

Sheet Costi Variabili
D9: Costi Variabili
E11: Fatturato | DB11: nascon
F13: % su Fatturato | H13: 0 | I13: % | DB13: =H13/100 -> 0
F15: Aliquota Iva | H15: 0 | I15: % | DB15: =H15/100 -> 0
H16: gg dilazione | I16: =+SPm!I12 -> 2017-01-01 | J16: =+SPm!J12 -> 2017-02-28 | K16: =+SPm!K12 -> 2017-03-31 | L16: =+SPm!L12 -> 2017-04-30 | M16: =+SPm!M12 -> 2017-05-31 | N16: =+SPm!N12 -> 2017-06-30 | O16: =+SPm!O12 -> 2017-07-31 | P16: =+SPm!P12 -> 2017-08-31 | Q16: =+SPm!Q12 -> 2017-09-30 | R16: =+SPm!R12 -> 2017-10-31 | S16: =+SPm!S12 -> 2017-11-30 | T16: =+SPm!T12 -> 2017-12-31 | U16: =+SPm!U12 -> 2018-01-31 | V16: =+SPm!V12 -> 2018-02-28 | W16: =+SPm!W12 -> 2018-03-31 | X16: =+SPm!X12 -> 2018-04-30 | Y16: =+SPm!Y12 -> 2018-05-31 | Z16: =+SPm!Z12 -> 2018-06-30 | AA16: =+SPm!AA12 -> 2018-07-31 | AB16: =+SPm!AB12 -> 2018-08-31 | AC16: =+SPm!AC12 -> 2018-09-30 | AD16: =+SPm!AD12 -> 2018-10-31 | AE16: =+SPm!AE12 -> 2018-11-30 | AF16: =+SPm!AF12 -> 2018-12-31 | AG16: =+SPm!AG12 -> 2019-01-31 | AH16: =+SPm!AH12 -> 2019-02-28 | AI16: =+SPm!AI12 -> 2019-03-31 | AJ16: =+SPm!AJ12 -> 2019-04-30 | AK16: =+SPm!AK12 -> 2019-05-31 | AL16: =+SPm!AL12 -> 2019-06-30 | AM16: =+SPm!AM12 -> 2019-07-31 | AN16: =+SPm!AN12 -> 2019-08-31 | AO16: =+SPm!AO12 -> 2019-09-30 | AP16: =+SPm!AP12 -> 2019-10-31 | AQ16: =+SPm!AQ12 -> 2019-11-30 | AR16: =+SPm!AR12 -> 2019-12-31 | AS16: =+SPm!AS12 -> 2020-01-31 | AT16: =+SPm!AT12 -> 2020-02-29 | AU16: =+SPm!AU12 -> 2020-03-31 | AV16: =+SPm!AV12 -> 2020-04-30 | AW16: =+SPm!AW12 -> 2020-05-31 | AX16: =+SPm!AX12 -> 2020-06-30 | AY16: =+SPm!AY12 -> 2020-07-31 | AZ16: =+SPm!AZ12 -> 2020-08-31 | BA16: =+SPm!BA12 -> 2020-09-30 | BB16: =+SPm!BB12 -> 2020-10-31 | BC16: =+SPm!BC12 -> 2020-11-30 | BD16: =+SPm!BD12 -> 2020-12-31 | BE16: =+SPm!BE12 -> 2021-01-31 | BF16: =+SPm!BF12 -> 2021-02-28 | BG16: =+SPm!BG12 -> 2021-03-31 | BH16: =+SPm!BH12 -> 2021-04-30 | BI16: =+SPm!BI12 -> 2021-05-31 | BJ16: =+SPm!BJ12 -> 2021-06-30 | BK16: =+SPm!BK12 -> 2021-07-31 | BL16: =+SPm!BL12 -> 2021-08-31 | BM16: =+SPm!BM12 -> 2021-09-30 | BN16: =+SPm!BN12 -> 2021-10-31 | BO16: =+SPm!BO12 -> 2021-11-30 | BP16: =+SPm!BP12 -> 2021-12-31
F17: Acquisti materie prime | H17: 0 | I17: =+$DB13*E_Vendite!I$45 -> 0 | J17: =+$DB13*E_Vendite!J$45 -> 0 | K17: =+$DB13*E_Vendite!K$45 -> 0 | L17: =+$DB13*E_Vendite!L$45 -> 0 | M17: =+$DB13*E_Vendite!M$45 -> 0 | N17: =+$DB13*E_Vendite!N$45 -> 0 | O17: =+$DB13*E_Vendite!O$45 -> 0 | P17: =+$DB13*E_Vendite!P$45 -> 0 | Q17: =+$DB13*E_Vendite!Q$45 -> 0 | R17: =+$DB13*E_Vendite!R$45 -> 0 | S17: =+$DB13*E_Vendite!S$45 -> 0 | T17: =+$DB13*E_Vendite!T$45 -> 0 | U17: =+$DB13*E_Vendite!U$45 -> 0 | V17: =+$DB13*E_Vendite!V$45 -> 0 | W17: =+$DB13*E_Vendite!W$45 -> 0 | X17: =+$DB13*E_Vendite!X$45 -> 0 | Y17: =+$DB13*E_Vendite!Y$45 -> 0 | Z17: =+$DB13*E_Vendite!Z$45 -> 0 | AA17: =+$DB13*E_Vendite!AA$45 -> 0 | AB17: =+$DB13*E_Vendite!AB$45 -> 0 | AC17: =+$DB13*E_Vendite!AC$45 -> 0 | AD17: =+$DB13*E_Vendite!AD$45 -> 0 | AE17: =+$DB13*E_Vendite!AE$45 -> 0 | AF17: =+$DB13*E_Vendite!AF$45 -> 0 | AG17: =+$DB13*E_Vendite!AG$45 -> 0 | AH17: =+$DB13*E_Vendite!AH$45 -> 0 | AI17: =+$DB13*E_Vendite!AI$45 -> 0 | AJ17: =+$DB13*E_Vendite!AJ$45 -> 0 | AK17: =+$DB13*E_Vendite!AK$45 -> 0 | AL17: =+$DB13*E_Vendite!AL$45 -> 0 | AM17: =+$DB13*E_Vendite!AM$45 -> 0 | AN17: =+$DB13*E_Vendite!AN$45 -> 0 | AO17: =+$DB13*E_Vendite!AO$45 -> 0 | AP17: =+$DB13*E_Vendite!AP$45 -> 0 | AQ17: =+$DB13*E_Vendite!AQ$45 -> 0 | AR17: =+$DB13*E_Vendite!AR$45 -> 0 | AS17: =+$DB13*E_Vendite!AS$45 -> 0 | AT17: =+$DB13*E_Vendite!AT$45 -> 0 | AU17: =+$DB13*E_Vendite!AU$45 -> 0 | AV17: =+$DB13*E_Vendite!AV$45 -> 0 | AW17: =+$DB13*E_Vendite!AW$45 -> 0 | AX17: =+$DB13*E_Vendite!AX$45 -> 0 | AY17: =+$DB13*E_Vendite!AY$45 -> 0 | AZ17: =+$DB13*E_Vendite!AZ$45 -> 0 | BA17: =+$DB13*E_Vendite!BA$45 -> 0 | BB17: =+$DB13*E_Vendite!BB$45 -> 0 | BC17: =+$DB13*E_Vendite!BC$45 -> 0 | BD17: =+$DB13*E_Vendite!BD$45 -> 0 | BE17: =+$DB13*E_Vendite!BE$45 -> 0 | BF17: =+$DB13*E_Vendite!BF$45 -> 0 | BG17: =+$DB13*E_Vendite!BG$45 -> 0 | BH17: =+$DB13*E_Vendite!BH$45 -> 0 | BI17: =+$DB13*E_Vendite!BI$45 -> 0 | BJ17: =+$DB13*E_Vendite!BJ$45 -> 0 | BK17: =+$DB13*E_Vendite!BK$45 -> 0 | BL17: =+$DB13*E_Vendite!BL$45 -> 0 | BM17: =+$DB13*E_Vendite!BM$45 -> 0 | BN17: =+$DB13*E_Vendite!BN$45 -> 0 | BO17: =+$DB13*E_Vendite!BO$45 -> 0 | BP17: =+$DB13*E_Vendite!BP$45 -> 0
F19: Totale | I19: =SUM(I17:I17) -> 0 | J19: 0 | K19: 0 | L19: 0 | M19: 0 | N19: 0 | O19: 0 | P19: 0 | Q19: 0 | R19: 0 | S19: 0 | T19: 0 | U19: 0 | V19: 0 | W19: 0 | X19: 0 | Y19: 0 | Z19: 0 | AA19: 0 | AB19: 0 | AC19: 0 | AD19: 0 | AE19: 0 | AF19: 0 | AG19: 0 | AH19: 0 | AI19: 0 | AJ19: 0 | AK19: 0 | AL19: 0 | AM19: 0 | AN19: 0 | AO19: 0 | AP19: 0 | AQ19: 0 | AR19: 0 | AS19: 0 | AT19: 0 | AU19: 0 | AV19: 0 | AW19: 0 | AX19: 0 | AY19: 0 | AZ19: 0 | BA19: 0 | BB19: 0 | BC19: 0 | BD19: 0 | BE19: 0 | BF19: 0 | BG19: 0 | BH19: 0 | BI19: 0 | BJ19: 0 | BK19: 0 | BL19: 0 | BM19: 0 | BN19: 0 | BO19: 0 | BP19: 0

Sheet Personale
D9: Personale
E11: Numero di Tipologie Professionali
E14: Figura Professionale 1 | F14: Nome/Qualifica | G14: Adetto
F16: Retribuzione lorda media mensile | G16: 1500
F17: INPS (in % retr.ne lorda media) | G17: 31 | H17: % | DB17: =G17/100 -> 0.31
F18: INAIL (in % retr.ne lorda media) | G18: 1 | H18: % | DB18: =G18/100 -> 0.01
F19: TFR/Fondo (in % retr.ne lorda media) | G19: 7.5 | H19: % | DB19: =G19/100 -> 0.075
F20: Numero ore Lavorative Giornaliere | G20: 8
F21: Giorni Lavorativi Mensili | G21: 22
F22: Numero mensilita | G22: 14
F23: 13° mensilità | G23: m12
F24: 14° mensilità | G24: m6
F25: Incidenza straordinari | G25: 2 | H25: % | DB25: =G25/100 -> 0.02
F26: Incremento annuo stipendi | G26: 1 | H26: % | DB26: =G26/100 -> 0.01
F27: Dilazione Pagamento Contributi | G27: 15
G29: =+SPm!I12 -> 2017-01-01 | H29: =+SPm!J12 -> 2017-02-28 | I29: =+SPm!K12 -> 2017-03-31 | J29: =+SPm!L12 -> 2017-04-30 | K29: =+SPm!M12 -> 2017-05-31 | L29: =+SPm!N12 -> 2017-06-30 | M29: =+SPm!O12 -> 2017-07-31 | N29: =+SPm!P12 -> 2017-08-31 | O29: =+SPm!Q12 -> 2017-09-30 | P29: =+SPm!R12 -> 2017-10-31 | Q29: =+SPm!S12 -> 2017-11-30 | R29: =+SPm!T12 -> 2017-12-31 | S29: =+SPm!U12 -> 2018-01-31 | T29: =+SPm!V12 -> 2018-02-28 | U29: =+SPm!W12 -> 2018-03-31 | V29: =+SPm!X12 -> 2018-04-30 | W29: =+SPm!Y12 -> 2018-05-31 | X29: =+SPm!Z12 -> 2018-06-30 | Y29: =+SPm!AA12 -> 2018-07-31 | Z29: =+SPm!AB12 -> 2018-08-31 | AA29: =+SPm!AC12 -> 2018-09-30 | AB29: =+SPm!AD12 -> 2018-10-31 | AC29: =+SPm!AE12 -> 2018-11-30 | AD29: =+SPm!AF12 -> 2018-12-31 | AE29: =+SPm!AG12 -> 2019-01-31 | AF29: =+SPm!AH12 -> 2019-02-28 | AG29: =+SPm!AI12 -> 2019-03-31 | AH29: =+SPm!AJ12 -> 2019-04-30 | AI29: =+SPm!AK12 -> 2019-05-31 | AJ29: =+SPm!AL12 -> 2019-06-30 | AK29: =+SPm!AM12 -> 2019-07-31 | AL29: =+SPm!AN12 -> 2019-08-31 | AM29: =+SPm!AO12 -> 2019-09-30 | AN29: =+SPm!AP12 -> 2019-10-31 | AO29: =+SPm!AQ12 -> 2019-11-30 | AP29: =+SPm!AR12 -> 2019-12-31 | AQ29: =+SPm!AS12 -> 2020-01-31 | AR29: =+SPm!AT12 -> 2020-02-29 | AS29: =+SPm!AU12 -> 2020-03-31 | AT29: =+SPm!AV12 -> 2020-04-30 | AU29: =+SPm!AW12 -> 2020-05-31 | AV29: =+SPm!AX12 -> 2020-06-30 | AW29: =+SPm!AY12 -> 2020-07-31 | AX29: =+SPm!AZ12 -> 2020-08-31 | AY29: =+SPm!BA12 -> 2020-09-30 | AZ29: =+SPm!BB12 -> 2020-10-31 | BA29: =+SPm!BC12 -> 2020-11-30 | BB29: =+SPm!BD12 -> 2020-12-31 | BC29: =+SPm!BE12 -> 2021-01-31 | BD29: =+SPm!BF12 -> 2021-02-28 | BE29: =+SPm!BG12 -> 2021-03-31 | BF29: =+SPm!BH12 -> 2021-04-30 | BG29: =+SPm!BI12 -> 2021-05-31 | BH29: =+SPm!BJ12 -> 2021-06-30 | BI29: =+SPm!BK12 -> 2021-07-31 | BJ29: =+SPm!BL12 -> 2021-08-31 | BK29: =+SPm!BM12 -> 2021-09-30 | BL29: =+SPm!BN12 -> 2021-10-31 | BM29: =+SPm!BO12 -> 2021-11-30 | BN29: =+SPm!BP12 -> 2021-12-31
F30: Numero dipendenti | G30: 2 | H30: 2 | I30: 2 | J30: 2 | K30: 2 | L30: 2 | M30: 2 | N30: 2 | O30: 2 | P30: 2 | Q30: 2 | R30: 2 | S30: 2 | T30: 2 | U30: 2 | V30: 2 | W30: 2 | X30: 2 | Y30: 2 | Z30: 2 | AA30: 2 | AB30: 2 | AC30: 2 | AD30: 2 | AE30: 2 | AF30: 2 | AG30: 2 | AH30: 2 | AI30: 2 | AJ30: 2 | AK30: 2 | AL30: 2 | AM30: 2 | AN30: 2 | AO30: 2 | AP30: 2 | AQ30: 2 | AR30: 2 | AS30: 2 | AT30: 2 | AU30: 2 | AV30: 2 | AW30: 2 | AX30: 2 | AY30: 2 | AZ30: 2 | BA30: 2 | BB30: 2 | BC30: 2 | BD30: 2 | BE30: 2 | BF30: 2 | BG30: 2 | BH30: 2 | BI30: 2 | BJ30: 2 | BK30: 2 | BL30: 2 | BM30: 2 | BN30: 2
E33: Figura Professionale 2 | F33: Nome/Qualifica | G33: Magazziniere
F35: Retribuzione lorda media mensile | G35: 1500
F36: INPS (in % retr.ne lorda media) | G36: 33 | H36: % | DB36: =G36/100 -> 0.33
F37: INAIL (in % retr.ne lorda media) | G37: 2 | H37: % | DB37: =G37/100 -> 0.02
F38: TFR/Fondo (in % retr.ne lorda media) | G38: 7.5 | H38: % | DB38: =G38/100 -> 0.075
F39: Numero ore Lavorative Giornaliere | G39: 8
F40: Giorni Lavorativi Mensili | G40: 22
F41: Numero mensilita | G41: 13
F42: 13° mensilità | G42: m12
F43: 14° mensilità
F44: Incidenza straordinari | G44: 2 | H44: % | DB44: =G44/100 -> 0.02
F45: Incremento annuo stipendi | G45: 1 | H45: % | DB45: =G45/100 -> 0.01
F46: Dilazione Pagamento Contributi | G46: 15
G48: =+SPm!I12 -> 2017-01-01 | H48: =+SPm!J12 -> 2017-02-28 | I48: =+SPm!K12 -> 2017-03-31 | J48: =+SPm!L12 -> 2017-04-30 | K48: =+SPm!M12 -> 2017-05-31 | L48: =+SPm!N12 -> 2017-06-30 | M48: =+SPm!O12 -> 2017-07-31 | N48: =+SPm!P12 -> 2017-08-31 | O48: =+SPm!Q12 -> 2017-09-30 | P48: =+SPm!R12 -> 2017-10-31 | Q48: =+SPm!S12 -> 2017-11-30 | R48: =+SPm!T12 -> 2017-12-31 | S48: =+SPm!U12 -> 2018-01-31 | T48: =+SPm!V12 -> 2018-02-28 | U48: =+SPm!W12 -> 2018-03-31 | V48: =+SPm!X12 -> 2018-04-30 | W48: =+SPm!Y12 -> 2018-05-31 | X48: =+SPm!Z12 -> 2018-06-30 | Y48: =+SPm!AA12 -> 2018-07-31 | Z48: =+SPm!AB12 -> 2018-08-31 | AA48: =+SPm!AC12 -> 2018-09-30 | AB48: =+SPm!AD12 -> 2018-10-31 | AC48: =+SPm!AE12 -> 2018-11-30 | AD48: =+SPm!AF12 -> 2018-12-31 | AE48: =+SPm!AG12 -> 2019-01-31 | AF48: =+SPm!AH12 -> 2019-02-28 | AG48: =+SPm!AI12 -> 2019-03-31 | AH48: =+SPm!AJ12 -> 2019-04-30 | AI48: =+SPm!AK12 -> 2019-05-31 | AJ48: =+SPm!AL12 -> 2019-06-30 | AK48: =+SPm!AM12 -> 2019-07-31 | AL48: =+SPm!AN12 -> 2019-08-31 | AM48: =+SPm!AO12 -> 2019-09-30 | AN48: =+SPm!AP12 -> 2019-10-31 | AO48: =+SPm!AQ12 -> 2019-11-30 | AP48: =+SPm!AR12 -> 2019-12-31 | AQ48: =+SPm!AS12 -> 2020-01-31 | AR48: =+SPm!AT12 -> 2020-02-29 | AS48: =+SPm!AU12 -> 2020-03-31 | AT48: =+SPm!AV12 -> 2020-04-30 | AU48: =+SPm!AW12 -> 2020-05-31 | AV48: =+SPm!AX12 -> 2020-06-30 | AW48: =+SPm!AY12 -> 2020-07-31 | AX48: =+SPm!AZ12 -> 2020-08-31 | AY48: =+SPm!BA12 -> 2020-09-30 | AZ48: =+SPm!BB12 -> 2020-10-31 | BA48: =+SPm!BC12 -> 2020-11-30 | BB48: =+SPm!BD12 -> 2020-12-31 | BC48: =+SPm!BE12 -> 2021-01-31 | BD48: =+SPm!BF12 -> 2021-02-28 | BE48: =+SPm!BG12 -> 2021-03-31 | BF48: =+SPm!BH12 -> 2021-04-30 | BG48: =+SPm!BI12 -> 2021-05-31 | BH48: =+SPm!BJ12 -> 2021-06-30 | BI48: =+SPm!BK12 -> 2021-07-31 | BJ48: =+SPm!BL12 -> 2021-08-31 | BK48: =+SPm!BM12 -> 2021-09-30 | BL48: =+SPm!BN12 -> 2021-10-31 | BM48: =+SPm!BO12 -> 2021-11-30 | BN48: =+SPm!BP12 -> 2021-12-31
F49: Numero dipendenti | G49: 1 | H49: 1 | I49: 1 | J49: 1 | K49: 1 | L49: 1 | M49: 1 | N49: 1 | O49: 1 | P49: 1 | Q49: 1 | R49: 1 | S49: 1 | T49: 1 | U49: 1 | V49: 1 | W49: 1 | X49: 1 | Y49: 1 | Z49: 1 | AA49: 1 | AB49: 1 | AC49: 1 | AD49: 1 | AE49: 1 | AF49: 1 | AG49: 1 | AH49: 1 | AI49: 1 | AJ49: 1 | AK49: 1 | AL49: 1 | AM49: 1 | AN49: 1 | AO49: 1 | AP49: 1 | AQ49: 1 | AR49: 1 | AS49: 1 | AT49: 1 | AU49: 1 | AV49: 1 | AW49: 1 | AX49: 1 | AY49: 1 | AZ49: 1 | BA49: 1 | BB49: 1 | BC49: 1 | BD49: 1 | BE49: 1 | BF49: 1 | BG49: 1 | BH49: 1 | BI49: 1 | BJ49: 1 | BK49: 1 | BL49: 1 | BM49: 1 | BN49: 1
E52: Figura Professionale 3 | F52: Nome/Qualifica
F54: Retribuzione lorda media mensile | G54: 0
F55: INPS (in % retr.ne lorda media) | G55: 7 | H55: % | DB55: =G55/100 -> 0.07
F56: INAIL (in % retr.ne lorda media) | G56: 8 | H56: % | DB56: =G56/100 -> 0.08
F57: TFR/Fondo (in % retr.ne lorda media) | G57: 7 | H57: % | DB57: =G57/100 -> 0.07
F58: Numero ore Lavorative Giornaliere | G58: 8
F59: Giorni Lavorativi Mensili | G59: 3
F60: Numero mensilita | G60: 12
F61: 13° mensilità | G61: m6
F62: 14° mensilità | G62: m10
F63: Incidenza straordinari | G63: 5 | H63: % | DB63: =G63/100 -> 0.05
F64: Incremento annuo stipendi | G64: 3 | H64: % | DB64: =G64/100 -> 0.03
F65: Dilazione Pagamento Contributi
G67: =+SPm!I12 -> 2017-01-01 | H67: =+SPm!J12 -> 2017-02-28 | I67: =+SPm!K12 -> 2017-03-31 | J67: =+SPm!L12 -> 2017-04-30 | K67: =+SPm!M12 -> 2017-05-31 | L67: =+SPm!N12 -> 2017-06-30 | M67: =+SPm!O12 -> 2017-07-31 | N67: =+SPm!P12 -> 2017-08-31 | O67: =+SPm!Q12 -> 2017-09-30 | P67: =+SPm!R12 -> 2017-10-31 | Q67: =+SPm!S12 -> 2017-11-30 | R67: =+SPm!T12 -> 2017-12-31 | S67: =+SPm!U12 -> 2018-01-31 | T67: =+SPm!V12 -> 2018-02-28 | U67: =+SPm!W12 -> 2018-03-31 | V67: =+SPm!X12 -> 2018-04-30 | W67: =+SPm!Y12 -> 2018-05-31 | X67: =+SPm!Z12 -> 2018-06-30 | Y67: =+SPm!AA12 -> 2018-07-31 | Z67: =+SPm!AB12 -> 2018-08-31 | AA67: =+SPm!AC12 -> 2018-09-30 | AB67: =+SPm!AD12 -> 2018-10-31 | AC67: =+SPm!AE12 -> 2018-11-30 | AD67: =+SPm!AF12 -> 2018-12-31 | AE67: =+SPm!AG12 -> 2019-01-31 | AF67: =+SPm!AH12 -> 2019-02-28 | AG67: =+SPm!AI12 -> 2019-03-31 | AH67: =+SPm!AJ12 -> 2019-04-30 | AI67: =+SPm!AK12 -> 2019-05-31 | AJ67: =+SPm!AL12 -> 2019-06-30 | AK67: =+SPm!AM12 -> 2019-07-31 | AL67: =+SPm!AN12 -> 2019-08-31 | AM67: =+SPm!AO12 -> 2019-09-30 | AN67: =+SPm!AP12 -> 2019-10-31 | AO67: =+SPm!AQ12 -> 2019-11-30 | AP67: =+SPm!AR12 -> 2019-12-31 | AQ67: =+SPm!AS12 -> 2020-01-31 | AR67: =+SPm!AT12 -> 2020-02-29 | AS67: =+SPm!AU12 -> 2020-03-31 | AT67: =+SPm!AV12 -> 2020-04-30 | AU67: =+SPm!AW12 -> 2020-05-31 | AV67: =+SPm!AX12 -> 2020-06-30 | AW67: =+SPm!AY12 -> 2020-07-31 | AX67: =+SPm!AZ12 -> 2020-08-31 | AY67: =+SPm!BA12 -> 2020-09-30 | AZ67: =+SPm!BB12 -> 2020-10-31 | BA67: =+SPm!BC12 -> 2020-11-30 | BB67: =+SPm!BD12 -> 2020-12-31 | BC67: =+SPm!BE12 -> 2021-01-31 | BD67: =+SPm!BF12 -> 2021-02-28 | BE67: =+SPm!BG12 -> 2021-03-31 | BF67: =+SPm!BH12 -> 2021-04-30 | BG67: =+SPm!BI12 -> 2021-05-31 | BH67: =+SPm!BJ12 -> 2021-06-30 | BI67: =+SPm!BK12 -> 2021-07-31 | BJ67: =+SPm!BL12 -> 2021-08-31 | BK67: =+SPm!BM12 -> 2021-09-30 | BL67: =+SPm!BN12 -> 2021-10-31 | BM67: =+SPm!BO12 -> 2021-11-30 | BN67: =+SPm!BP12 -> 2021-12-31
F68: Numero dipendenti | G68: 1 | H68: 1 | I68: 1 | J68: 1 | K68: 1 | L68: 1 | M68: 1 | N68: 1 | O68: 1 | P68: 1 | Q68: 1 | R68: 1 | S68: 1 | T68: 1 | U68: 1 | V68: 1 | W68: 1 | X68: 1 | Y68: 1 | Z68: 1 | AA68: 1 | AB68: 1 | AC68: 1 | AD68: 1 | AE68: 1 | AF68: 1 | AG68: 1 | AH68: 1 | AI68: 1 | AJ68: 1 | AK68: 1 | AL68: 1 | AM68: 1 | AN68: 1 | AO68: 1 | AP68: 1 | AQ68: 1 | AR68: 1 | AS68: 1 | AT68: 1 | AU68: 1 | AV68: 1 | AW68: 1 | AX68: 1 | AY68: 1 | AZ68: 1 | BA68: 1 | BB68: 1 | BC68: 1 | BD68: 1 | BE68: 1 | BF68: 1 | BG68: 1 | BH68: 1 | BI68: 1 | BJ68: 1 | BK68: 1 | BL68: 1 | BM68: 1 | BN68: 1

Sheet Investimenti
D9: Investimenti
E11: Investimenti svolti
F13: Descrizione | G13: Categoria | H13: Aliquota iva | I13: Anni amm.to | J13: =+SPm!I12 -> 2017-01-01 | K13: =+SPm!J12 -> 2017-02-28 | L13: =+SPm!K12 -> 2017-03-31 | M13: =+SPm!L12 -> 2017-04-30 | N13: =+SPm!M12 -> 2017-05-31 | O13: =+SPm!N12 -> 2017-06-30 | P13: =+SPm!O12 -> 2017-07-31 | Q13: =+SPm!P12 -> 2017-08-31 | R13: =+SPm!Q12 -> 2017-09-30 | S13: =+SPm!R12 -> 2017-10-31 | T13: =+SPm!S12 -> 2017-11-30 | U13: =+SPm!T12 -> 2017-12-31 | V13: =+SPm!U12 -> 2018-01-31 | W13: =+SPm!V12 -> 2018-02-28 | X13: =+SPm!W12 -> 2018-03-31 | Y13: =+SPm!X12 -> 2018-04-30 | Z13: =+SPm!Y12 -> 2018-05-31 | AA13: =+SPm!Z12 -> 2018-06-30 | AB13: =+SPm!AA12 -> 2018-07-31 | AC13: =+SPm!AB12 -> 2018-08-31 | AD13: =+SPm!AC12 -> 2018-09-30 | AE13: =+SPm!AD12 -> 2018-10-31 | AF13: =+SPm!AE12 -> 2018-11-30 | AG13: =+SPm!AF12 -> 2018-12-31 | AH13: =+SPm!AG12 -> 2019-01-31 | AI13: =+SPm!AH12 -> 2019-02-28 | AJ13: =+SPm!AI12 -> 2019-03-31 | AK13: =+SPm!AJ12 -> 2019-04-30 | AL13: =+SPm!AK12 -> 2019-05-31 | AM13: =+SPm!AL12 -> 2019-06-30 | AN13: =+SPm!AM12 -> 2019-07-31 | AO13: =+SPm!AN12 -> 2019-08-31 | AP13: =+SPm!AO12 -> 2019-09-30 | AQ13: =+SPm!AP12 -> 2019-10-31 | AR13: =+SPm!AQ12 -> 2019-11-30 | AS13: =+SPm!AR12 -> 2019-12-31 | AT13: =+SPm!AS12 -> 2020-01-31 | AU13: =+SPm!AT12 -> 2020-02-29 | AV13: =+SPm!AU12 -> 2020-03-31 | AW13: =+SPm!AV12 -> 2020-04-30 | AX13: =+SPm!AW12 -> 2020-05-31 | AY13: =+SPm!AX12 -> 2020-06-30 | AZ13: =+SPm!AY12 -> 2020-07-31 | BA13: =+SPm!AZ12 -> 2020-08-31 | BB13: =+SPm!BA12 -> 2020-09-30 | BC13: =+SPm!BB12 -> 2020-10-31 | BD13: =+SPm!BC12 -> 2020-11-30 | BE13: =+SPm!BD12 -> 2020-12-31 | BF13: =+SPm!BE12 -> 2021-01-31 | BG13: =+SPm!BF12 -> 2021-02-28 | BH13: =+SPm!BG12 -> 2021-03-31 | BI13: =+SPm!BH12 -> 2021-04-30 | BJ13: =+SPm!BI12 -> 2021-05-31 | BK13: =+SPm!BJ12 -> 2021-06-30 | BL13: =+SPm!BK12 -> 2021-07-31 | BM13: =+SPm!BL12 -> 2021-08-31 | BN13: =+SPm!BM12 -> 2021-09-30 | BO13: =+SPm!BN12 -> 2021-10-31 | BP13: =+SPm!BO12 -> 2021-11-30 | BQ13: =+SPm!BP12 -> 2021-12-31
F14: Arredamento | G14: Attrezzature Industriali e commerciali | H14: 0.22 | I14: 10 | J14: 40000 | K14: 0
F15: Ristrutturazione | G15: Costi d'impianto e ampliamento | H15: 0.22 | I15: 10 | J15: 50000 | K15: 0
F16: Investimento 3 | G16: Impianti e macchinari | H16: 0.22 | I16: 10 | J16: 0 | K16: 0
F17: Investimento 4 | G17: Impianti e macchinari | H17: 0.22 | I17: 10 | J17: 0 | K17: 0
F18: Investimento 5 | G18: Impianti e macchinari | H18: 0.22 | I18: 3 | J18: 0 | K18: 0
F19: Investimento 6 | G19: Impianti e macchinari | H19: 0.22 | I19: 10 | J19: 0 | K19: 0
F20: Investimento 7 | G20: Impianti e macchinari | H20: 0.22 | I20: 10 | J20: 0 | K20: 0
F21: Investimento 8 | G21: Impianti e macchinari | H21: 0.22 | I21: 5 | J21: 0 | K21: 0
F22: Investimento 9 | G22: Impianti e macchinari | H22: 0.22 | I22: 5 | J22: 0 | K22: 0
F23: Investimento 10 | G23: Impianti e macchinari | H23: 0.22 | I23: 5 | J23: 0 | K23: 0
F24: Investimento 11 | G24: Impianti e macchinari | H24: 0.22 | I24: 5 | J24: 0 | K24: 0
F25: Investimento 12 | G25: Impianti e macchinari | H25: 0.22 | I25: 5 | J25: 0 | K25: 0
F26: Investimento 13 | G26: Impianti e macchinari | H26: 0.22 | I26: 5 | J26: 0 | K26: 0
F27: Investimento 14 | G27: Impianti e macchinari | H27: 0.22 | I27: 5 | J27: 0 | K27: 0
F28: Investimento 15 | G28: Impianti e macchinari | H28: 0.22 | I28: 5 | J28: 0 | K28: 0
F29: Investimento 16 | G29: Impianti e macchinari | H29: 0.22 | I29: 10 | J29: 0 | K29: 0
F30: Investimento 17 | G30: Impianti e macchinari | H30: 0.22 | I30: 5 | J30: 0 | K30: 0
F31: Investimento 18 | G31: Impianti e macchinari | H31: 0.22 | I31: 10 | J31: 0 | K31: 0
F32: Investimento 19 | G32: Impianti e macchinari | H32: 0.22 | I32: 5 | J32: 0 | K32: 0
F34: Totale | J34: =SUM(J14:J32) -> 90000 | K34: =SUM(K14:K32) -> 0 | L34: 0 | M34: 0 | N34: 0 | O34: 0 | P34: 0 | Q34: 0 | R34: 0 | S34: 0 | T34: 0 | U34: 0 | V34: 0 | W34: 0 | X34: 0 | Y34: 0 | Z34: 0 | AA34: 0 | AB34: 0 | AC34: 0 | AD34: 0 | AE34: 0 | AF34: 0 | AG34: 0 | AH34: 0 | AI34: 0 | AJ34: 0 | AK34: 0 | AL34: 0 | AM34: 0 | AN34: 0 | AO34: 0 | AP34: 0 | AQ34: 0 | AR34: 0 | AS34: 0 | AT34: =SUM(AT14:AT32) -> 0 | AU34: 0 | AV34: 0 | AW34: 0 | AX34: 0 | AY34: 0 | AZ34: 0 | BA34: 0 | BB34: 0 | BC34: =SUM(BC14:BC32) -> 0 | BD34: =SUM(BD14:BD32) -> 0 | BE34: =SUM(BE14:BE32) -> 0 | BF34: =SUM(BF14:BF32) -> 0 | BG34: 0 | BH34: 0 | BI34: 0 | BJ34: 0 | BK34: 0 | BL34: 0 | BM34: 0 | BN34: 0 | BO34: 0 | BP34: 0 | BQ34: 0
C254: Fabbricati
C255: Impianti e macchinari
C256: Attrezzature Industriali e commerciali
C257: Costi d'impianto e ampliamento
C258: Ricerca& Sviluppo
C259: Altre immobilizzazioni immateriali

Sheet Fin Banca
D9: Finanziamenti Bancari
E11: Finanziamento
E14: Finanziamento 1
DB15: nascondere
F16: Parametri
G17: Data Stipula Contratto (mmm-aa) | H17: A1 m1 | DB17: =VLOOKUP($H17,configurazione!A67:B113,2,FALSE) -> 1
G18: Tasso di interesse annuale | H18: 0.1
G19: Finanziamento | H19: 100000
G20: Durata (numero rate totali) | H20: 12
F22: Tasso di interesse effettivo mensile | H22: =((1+H18)^(1/12))-1 -> 0.007974140429
F24: Rata mensile (quota capitale + oneri finanziari) | H24: =(H19)/((1-(1+H22)^(-H20))/H22) -> 8771.554472
H26: =+SPm!I12 -> 2017-01-01 | I26: =+SPm!J12 -> 2017-02-28 | J26: =+SPm!K12 -> 2017-03-31 | K26: =+SPm!L12 -> 2017-04-30 | L26: =+SPm!M12 -> 2017-05-31 | M26: =+SPm!N12 -> 2017-06-30 | N26: =+SPm!O12 -> 2017-07-31 | O26: =+SPm!P12 -> 2017-08-31 | P26: =+SPm!Q12 -> 2017-09-30 | Q26: =+SPm!R12 -> 2017-10-31 | R26: =+SPm!S12 -> 2017-11-30 | S26: =+SPm!T12 -> 2017-12-31 | T26: =+SPm!U12 -> 2018-01-31 | U26: =+SPm!V12 -> 2018-02-28 | V26: =+SPm!W12 -> 2018-03-31 | W26: =+SPm!X12 -> 2018-04-30 | X26: =+SPm!Y12 -> 2018-05-31 | Y26: =+SPm!Z12 -> 2018-06-30 | Z26: =+SPm!AA12 -> 2018-07-31 | AA26: =+SPm!AB12 -> 2018-08-31 | AB26: =+SPm!AC12 -> 2018-09-30 | AC26: =+SPm!AD12 -> 2018-10-31 | AD26: =+SPm!AE12 -> 2018-11-30 | AE26: =+SPm!AF12 -> 2018-12-31 | AF26: =+SPm!AG12 -> 2019-01-31 | AG26: =+SPm!AH12 -> 2019-02-28 | AH26: =+SPm!AI12 -> 2019-03-31 | AI26: =+SPm!AJ12 -> 2019-04-30 | AJ26: =+SPm!AK12 -> 2019-05-31 | AK26: =+SPm!AL12 -> 2019-06-30 | AL26: =+SPm!AM12 -> 2019-07-31 | AM26: =+SPm!AN12 -> 2019-08-31 | AN26: =+SPm!AO12 -> 2019-09-30 | AO26: =+SPm!AP12 -> 2019-10-31 | AP26: =+SPm!AQ12 -> 2019-11-30 | AQ26: =+SPm!AR12 -> 2019-12-31 | AR26: =+SPm!AS12 -> 2020-01-31 | AS26: =+SPm!AT12 -> 2020-02-29 | AT26: =+SPm!AU12 -> 2020-03-31 | AU26: =+SPm!AV12 -> 2020-04-30 | AV26: =+SPm!AW12 -> 2020-05-31 | AW26: =+SPm!AX12 -> 2020-06-30 | AX26: =+SPm!AY12 -> 2020-07-31 | AY26: =+SPm!AZ12 -> 2020-08-31 | AZ26: =+SPm!BA12 -> 2020-09-30 | BA26: =+SPm!BB12 -> 2020-10-31 | BB26: =+SPm!BC12 -> 2020-11-30 | BC26: =+SPm!BD12 -> 2020-12-31 | BD26: =+SPm!BE12 -> 2021-01-31 | BE26: =+SPm!BF12 -> 2021-02-28 | BF26: =+SPm!BG12 -> 2021-03-31 | BG26: =+SPm!BH12 -> 2021-04-30 | BH26: =+SPm!BI12 -> 2021-05-31 | BI26: =+SPm!BJ12 -> 2021-06-30 | BJ26: =+SPm!BK12 -> 2021-07-31 | BK26: =+SPm!BL12 -> 2021-08-31 | BL26: =+SPm!BM12 -> 2021-09-30 | BM26: =+SPm!BN12 -> 2021-10-31 | BN26: =+SPm!BO12 -> 2021-11-30 | BO26: =+SPm!BP12 -> 2021-12-31 | BR26: =+YEAR(H26) -> 2017 | BS26: =+YEAR(T26) -> 2018 | BT26: =+YEAR(AF26) -> 2019 | BU26: =+YEAR(AR26) -> 2020 | BV26: =+YEAR(BD26) -> 2021
H27: 1 | I27: =+H27+1 -> 2 | J27: =+I27+1 -> 3 | K27: 4 | L27: 5 | M27: 6 | N27: 7 | O27: 8 | P27: 9 | Q27: 10 | R27: 11 | S27: 12 | T27: 13 | U27: 14 | V27: 15 | W27: 16 | X27: 17 | Y27: 18 | Z27: 19 | AA27: 20 | AB27: 21 | AC27: 22 | AD27: 23 | AE27: 24 | AF27: 25 | AG27: 26 | AH27: 27 | AI27: 28 | AJ27: 29 | AK27: 30 | AL27: 31 | AM27: 32 | AN27: 33 | AO27: 34 | AP27: 35 | AQ27: 36 | AR27: =+AQ27+1 -> 37 | AS27: 38 | AT27: 39 | AU27: 40 | AV27: 41 | AW27: 42 | AX27: 43 | AY27: 44 | AZ27: 45 | BA27: 46 | BB27: 47 | BC27: 48 | BD27: 49 | BE27: =+BD27+1 -> 50 | BF27: 51 | BG27: 52 | BH27: 53 | BI27: 54 | BJ27: 55 | BK27: 56 | BL27: 57 | BM27: 58 | BN27: 59 | BO27: 60 | DC27: =+BO27+1 -> 61
F28: Finanziamento | H28: A1 m1 | I28: A1 m2 | J28: A1 m3 | K28: A1 m4 | L28: A1 m5 | M28: A1 m6 | N28: A1 m7 | O28: A1 m8 | P28: A1 m9 | Q28: A1 m10 | R28: A1 m11 | S28: A1 m12 | T28: A2 m1 | U28: A2 m2 | V28: A2 m3 | W28: A2 m4 | X28: A2 m5 | Y28: A2 m6 | Z28: A2 m7 | AA28: A2 m8 | AB28: A2 m9 | AC28: A2 m10 | AD28: A2 m11 | AE28: A2 m12 | AF28: A3 m1 | AG28: A3 m2 | AH28: A3 m3 | AI28: A3 m4 | AJ28: A3 m5 | AK28: A3 m6 | AL28: A3 m7 | AM28: A3 m8 | AN28: A3 m9 | AO28: A3 m10 | AP28: A3 m11 | AQ28: A3 m12 | AR28: A4 m1 | AS28: A4 m2 | AT28: A4 m3 | AU28: A4 m4 | AV28: A4 m5 | AW28: A4 m6 | AX28: A4 m7 | AY28: A4 m8 | AZ28: A4 m9 | BA28: A4 m10 | BB28: A4 m11 | BC28: A4 m12 | BD28: A5 m1 | BE28: A5 m2 | BF28: A5 m3 | BG28: A5 m4 | BH28: A5 m5 | BI28: A5 m6 | BJ28: A5 m7 | BK28: A5 m8 | BL28: A5 m9 | BM28: A5 m10 | BN28: A5 m11 | BO28: A5 m12
G29: Rata | I29: =+IF(I27>=$DB17,$H24,0)*IF(H33<1,0,1) -> 8771.554472 | J29: 8771.554472 | K29: 8771.554472 | L29: 8771.554472 | M29: 8771.554472 | N29: 8771.554472 | O29: 8771.554472 | P29: 8771.554472 | Q29: 8771.554472 | R29: 8771.554472 | S29: 8771.554472 | T29: 8771.554472 | U29: 0 | V29: 0 | W29: 0 | X29: 0 | Y29: 0 | Z29: 0 | AA29: 0 | AB29: 0 | AC29: 0 | AD29: 0 | AE29: 0 | AF29: 0 | AG29: 0 | AH29: 0 | AI29: 0 | AJ29: 0 | AK29: 0 | AL29: 0 | AM29: 0 | AN29: 0 | AO29: =+IF(AO27>=$DB17,$H24,0)*IF(AN33<1,0,1) -> 0 | AP29: 0 | AQ29: 0 | AR29: 0 | AS29: 0 | AT29: 0 | AU29: 0 | AV29: 0 | AW29: 0 | AX29: 0 | AY29: 0 | AZ29: 0 | BA29: 0 | BB29: 0 | BC29: 0 | BD29: 0 | BE29: 0 | BF29: 0 | BG29: 0 | BH29: 0 | BI29: 0 | BJ29: 0 | BK29: 0 | BL29: 0 | BM29: 0 | BN29: 0 | BO29: 0 | BR29: =+SUM(H29:S29) -> 96487.09919 | BS29: =+SUM(T29:AE29) -> 8771.554472 | BT29: =+SUM(AF29:AQ29) -> 0 | BU29: =+SUM(AR29:BC29) -> 0 | BV29: =+SUM(BD29:BO29) -> 0
G30: Quota Capitale Rata | I30: =I29-I32 -> 7974.140429 | J30: =J29-J32 -> 8037.727344 | K30: 8101.821311 | L30: 8166.426372 | M30: 8231.546603 | N30: 8297.186111 | O30: 8363.349038 | P30: 8430.039558 | Q30: 8497.261877 | R30: 8565.020237 | S30: 8633.318911 | T30: 8702.162208 | U30: 0 | V30: 0 | W30: 0 | X30: 0 | Y30: 0 | Z30: 0 | AA30: 0 | AB30: 0 | AC30: 0 | AD30: 0 | AE30: 0 | AF30: 0 | AG30: 0 | AH30: 0 | AI30: 0 | AJ30: 0 | AK30: 0 | AL30: 0 | AM30: 0 | AN30: 0 | AO30: 0 | AP30: 0 | AQ30: 0 | AR30: =AR29-AR32 -> 0 | AS30: =AS29-AS32 -> 0 | AT30: =AT29-AT32 -> 0 | AU30: =AU29-AU32 -> 0 | AV30: =AV29-AV32 -> 0 | AW30: =AW29-AW32 -> 0 | AX30: 0 | AY30: 0 | AZ30: 0 | BA30: 0 | BB30: 0 | BC30: 0 | BD30: =BD29-BD32 -> 0 | BE30: 0 | BF30: 0 | BG30: 0 | BH30: 0 | BI30: 0 | BJ30: 0 | BK30: 0 | BL30: 0 | BM30: 0 | BN30: 0 | BO30: 0 | BR30: =+SUM(H30:S30) -> 91297.83779 | BS30: =+SUM(T30:AE30) -> 8702.162208 | BT30: =+SUM(AF30:AQ30) -> 0 | BU30: =+SUM(AR30:BC30) -> 0 | BV30: =+SUM(BD30:BO30) -> 0
G31: Quota Capitale Cumulata | I31: =(I30+H31)*(IF(H33<1,0,1)) -> 7974.140429 | J31: 16011.86777 | K31: 24113.68908 | L31: 32280.11546 | M31: 40511.66206 | N31: 48808.84817 | O31: 57172.19721 | P31: 65602.23677 | Q31: 74099.49864 | R31: 82664.51888 | S31: 91297.83779 | T31: 100000 | U31: 0 | V31: 0 | W31: =(W30+V31)*(IF(V33<1,0,1)) -> 0 | X31: =(X30+W31)*(IF(W33<1,0,1)) -> 0 | Y31: 0 | Z31: 0 | AA31: 0 | AB31: 0 | AC31: 0 | AD31: 0 | AE31: 0 | AF31: 0 | AG31: 0 | AH31: 0 | AI31: 0 | AJ31: 0 | AK31: 0 | AL31: 0 | AM31: 0 | AN31: 0 | AO31: 0 | AP31: 0 | AQ31: 0 | AR31: =(AR30+AQ31)*(IF(AQ33<1,0,1)) -> 0 | AS31: 0 | AT31: 0 | AU31: 0 | AV31: 0 | AW31: 0 | AX31: 0 | AY31: 0 | AZ31: 0 | BA31: 0 | BB31: 0 | BC31: 0 | BD31: =(BD30+BC31)*(IF(BC33<1,0,1)) -> 0 | BE31: 0 | BF31: 0 | BG31: 0 | BH31: 0 | BI31: 0 | BJ31: 0 | BK31: 0 | BL31: 0 | BM31: 0 | BN31: 0 | BO31: 0 | BR31: =+S31 -> 91297.83779 | BS31: =+AE31 -> 0 | BT31: =+AQ31 -> 0 | BU31: =+BC31 -> 0 | BV31: =+BO31 -> 0
G32: Oneri Finanziari Rata | I32: =IF(I29>0,H33*$H$22,0) -> 797.4140429 | J32: 733.8271273 | K32: 669.7331607 | L32: 605.1280999 | M32: 540.0078692 | N32: 474.3683606 | O32: 408.2054334 | P32: 341.5149137 | Q32: 274.2925945 | R32: 206.534235 | S32: 138.2355608 | T32: 69.39226348 | U32: 0 | V32: 0 | W32: 0 | X32: 0 | Y32: 0 | Z32: 0 | AA32: 0 | AB32: 0 | AC32: 0 | AD32: 0 | AE32: 0 | AF32: 0 | AG32: 0 | AH32: 0 | AI32: 0 | AJ32: 0 | AK32: 0 | AL32: 0 | AM32: 0 | AN32: 0 | AO32: 0 | AP32: 0 | AQ32: 0 | AR32: =IF(AR29>0,AQ33*$H$22,0) -> 0 | AS32: 0 | AT32: 0 | AU32: 0 | AV32: 0 | AW32: 0 | AX32: 0 | AY32: 0 | AZ32: 0 | BA32: 0 | BB32: 0 | BC32: 0 | BD32: =IF(BD29>0,BC33*$H$22,0) -> 0 | BE32: 0 | BF32: 0 | BG32: 0 | BH32: 0 | BI32: 0 | BJ32: 0 | BK32: 0 | BL32: 0 | BM32: 0 | BN32: 0 | BO32: 0 | BR32: =+SUM(H32:S32) -> 5189.261398 | BS32: =+SUM(T32:AE32) -> 69.39226348 | BT32: =+SUM(AF32:AQ32) -> 0 | BU32: =+SUM(AR32:BC32) -> 0 | BV32: =+SUM(BD32:BO32) -> 0
G33: Debito Residuo | H33: =IF(H27=$DB17,($H19),IF(I27<$DB17,0,(($H19)-H31)*IF(F33<1,0,1))) -> 100000 | I33: =IF(I27=$DB17,($H19),IF(J27<$DB17,0,(($H19)-I31)*IF(H33<1,0,1))) -> 92025.85957 | J33: 83988.13223 | K33: 75886.31092 | L33: 67719.88454 | M33: 59488.33794 | N33: 51191.15183 | O33: 42827.80279 | P33: 34397.76323 | Q33: 25900.50136 | R33: 17335.48112 | S33: 8702.162208 | T33: -1.455191523e-11 | U33: 0 | V33: 0 | W33: 0 | X33: 0 | Y33: 0 | Z33: 0 | AA33: 0 | AB33: 0 | AC33: 0 | AD33: 0 | AE33: 0 | AF33: 0 | AG33: 0 | AH33: 0 | AI33: 0 | AJ33: 0 | AK33: 0 | AL33: 0 | AM33: 0 | AN33: =IF(AN27=$DB17,($H19),IF(AO27<$DB17,0,(($H19)-AN31)*IF(AM33<1,0,1))) -> 0 | AO33: 0 | AP33: 0 | AQ33: 0 | AR33: 0 | AS33: 0 | AT33: 0 | AU33: 0 | AV33: 0 | AW33: 0 | AX33: 0 | AY33: 0 | AZ33: 0 | BA33: 0 | BB33: 0 | BC33: 0 | BD33: 0 | BE33: 0 | BF33: 0 | BG33: 0 | BH33: 0 | BI33: 0 | BJ33: 0 | BK33: 0 | BL33: 0 | BM33: 0 | BN33: 0 | BO33: =IF(BO27=$DB17,($H19),IF(DC27<$DB17,0,(($H19)-BO31)*IF(BN33<1,0,1))) -> 0 | BR33: =+S33 -> 8702.162208 | BS33: =+AE33 -> 0 | BT33: =+AQ33 -> 0 | BU33: =+BC33 -> 0 | BV33: =+BO33 -> 0
E36: Finanziamento 2
F38: Parametri
G39: Data Stipula Contratto (mmm-aa) | H39: A1 m1 | DB39: =VLOOKUP($H39,configurazione!A67:B113,2,FALSE) -> 1
G40: Tasso di interesse annuale | H40: 0.05
G41: Finanziamento | H41: 100000
G42: Durata (numero rate totali) | H42: 55
F44: Tasso di interesse effettivo mensile | H44: =((1+H40)^(1/12))-1 -> 0.004074123784
F46: Rata mensile (quota capitale + oneri finanziari) | H46: =(H41)/((1-(1+H44)^(-H42))/H44) -> 2033.17511
H48: =+SPm!I12 -> 2017-01-01 | I48: =+SPm!J12 -> 2017-02-28 | J48: =+SPm!K12 -> 2017-03-31 | K48: =+SPm!L12 -> 2017-04-30 | L48: =+SPm!M12 -> 2017-05-31 | M48: =+SPm!N12 -> 2017-06-30 | N48: =+SPm!O12 -> 2017-07-31 | O48: =+SPm!P12 -> 2017-08-31 | P48: =+SPm!Q12 -> 2017-09-30 | Q48: =+SPm!R12 -> 2017-10-31 | R48: =+SPm!S12 -> 2017-11-30 | S48: =+SPm!T12 -> 2017-12-31 | T48: =+SPm!U12 -> 2018-01-31 | U48: =+SPm!V12 -> 2018-02-28 | V48: =+SPm!W12 -> 2018-03-31 | W48: =+SPm!X12 -> 2018-04-30 | X48: =+SPm!Y12 -> 2018-05-31 | Y48: =+SPm!Z12 -> 2018-06-30 | Z48: =+SPm!AA12 -> 2018-07-31 | AA48: =+SPm!AB12 -> 2018-08-31 | AB48: =+SPm!AC12 -> 2018-09-30 | AC48: =+SPm!AD12 -> 2018-10-31 | AD48: =+SPm!AE12 -> 2018-11-30 | AE48: =+SPm!AF12 -> 2018-12-31 | AF48: =+SPm!AG12 -> 2019-01-31 | AG48: =+SPm!AH12 -> 2019-02-28 | AH48: =+SPm!AI12 -> 2019-03-31 | AI48: =+SPm!AJ12 -> 2019-04-30 | AJ48: =+SPm!AK12 -> 2019-05-31 | AK48: =+SPm!AL12 -> 2019-06-30 | AL48: =+SPm!AM12 -> 2019-07-31 | AM48: =+SPm!AN12 -> 2019-08-31 | AN48: =+SPm!AO12 -> 2019-09-30 | AO48: =+SPm!AP12 -> 2019-10-31 | AP48: =+SPm!AQ12 -> 2019-11-30 | AQ48: =+SPm!AR12 -> 2019-12-31 | AR48: =+SPm!AS12 -> 2020-01-31 | AS48: =+SPm!AT12 -> 2020-02-29 | AT48: =+SPm!AU12 -> 2020-03-31 | AU48: =+SPm!AV12 -> 2020-04-30 | AV48: =+SPm!AW12 -> 2020-05-31 | AW48: =+SPm!AX12 -> 2020-06-30 | AX48: =+SPm!AY12 -> 2020-07-31 | AY48: =+SPm!AZ12 -> 2020-08-31 | AZ48: =+SPm!BA12 -> 2020-09-30 | BA48: =+SPm!BB12 -> 2020-10-31 | BB48: =+SPm!BC12 -> 2020-11-30 | BC48: =+SPm!BD12 -> 2020-12-31 | BD48: =+SPm!BE12 -> 2021-01-31 | BE48: =+SPm!BF12 -> 2021-02-28 | BF48: =+SPm!BG12 -> 2021-03-31 | BG48: =+SPm!BH12 -> 2021-04-30 | BH48: =+SPm!BI12 -> 2021-05-31 | BI48: =+SPm!BJ12 -> 2021-06-30 | BJ48: =+SPm!BK12 -> 2021-07-31 | BK48: =+SPm!BL12 -> 2021-08-31 | BL48: =+SPm!BM12 -> 2021-09-30 | BM48: =+SPm!BN12 -> 2021-10-31 | BN48: =+SPm!BO12 -> 2021-11-30 | BO48: =+SPm!BP12 -> 2021-12-31 | BR48: =+YEAR(H48) -> 2017 | BS48: =+YEAR(T48) -> 2018 | BT48: =+YEAR(AF48) -> 2019 | BU48: =+YEAR(AR48) -> 2020 | BV48: =+YEAR(BD48) -> 2021
H49: =H27 -> 1 | I49: =I27 -> 2 | J49: 3 | K49: 4 | L49: 5 | M49: 6 | N49: 7 | O49: 8 | P49: 9 | Q49: 10 | R49: 11 | S49: 12 | T49: 13 | U49: 14 | V49: 15 | W49: 16 | X49: 17 | Y49: 18 | Z49: 19 | AA49: 20 | AB49: 21 | AC49: 22 | AD49: 23 | AE49: 24 | AF49: 25 | AG49: 26 | AH49: 27 | AI49: 28 | AJ49: 29 | AK49: 30 | AL49: 31 | AM49: 32 | AN49: 33 | AO49: 34 | AP49: 35 | AQ49: 36 | AR49: 37 | AS49: 38 | AT49: 39 | AU49: 40 | AV49: 41 | AW49: 42 | AX49: 43 | AY49: 44 | AZ49: 45 | BA49: 46 | BB49: 47 | BC49: 48 | BD49: 49 | BE49: 50 | BF49: 51 | BG49: 52 | BH49: 53 | BI49: 54 | BJ49: 55 | BK49: 56 | BL49: 57 | BM49: 58 | BN49: 59 | BO49: 60 | DC49: =+BO49+1 -> 61
F50: Finanziamento | H50: =H28 -> A1 m1 | I50: =I28 -> A1 m2 | J50: A1 m3 | K50: A1 m4 | L50: A1 m5 | M50: A1 m6 | N50: A1 m7 | O50: A1 m8 | P50: A1 m9 | Q50: A1 m10 | R50: A1 m11 | S50: A1 m12 | T50: A2 m1 | U50: A2 m2 | V50: A2 m3 | W50: A2 m4 | X50: A2 m5 | Y50: A2 m6 | Z50: A2 m7 | AA50: A2 m8 | AB50: A2 m9 | AC50: A2 m10 | AD50: A2 m11 | AE50: A2 m12 | AF50: A3 m1 | AG50: A3 m2 | AH50: A3 m3 | AI50: A3 m4 | AJ50: A3 m5 | AK50: A3 m6 | AL50: A3 m7 | AM50: A3 m8 | AN50: A3 m9 | AO50: A3 m10 | AP50: A3 m11 | AQ50: A3 m12 | AR50: A4 m1 | AS50: A4 m2 | AT50: A4 m3 | AU50: A4 m4 | AV50: A4 m5 | AW50: A4 m6 | AX50: A4 m7 | AY50: A4 m8 | AZ50: A4 m9 | BA50: A4 m10 | BB50: A4 m11 | BC50: A4 m12 | BD50: A5 m1 | BE50: A5 m2 | BF50: A5 m3 | BG50: A5 m4 | BH50: A5 m5 | BI50: A5 m6 | BJ50: A5 m7 | BK50: A5 m8 | BL50: A5 m9 | BM50: A5 m10 | BN50: A5 m11 | BO50: A5 m12
G51: Rata | I51: =+IF(I49>=$DB39,$H46,0)*IF(H55<1,0,1) -> 2033.17511 | J51: 2033.17511 | K51: 2033.17511 | L51: 2033.17511 | M51: 2033.17511 | N51: 2033.17511 | O51: 2033.17511 | P51: 2033.17511 | Q51: 2033.17511 | R51: 2033.17511 | S51: 2033.17511 | T51: 2033.17511 | U51: 2033.17511 | V51: 2033.17511 | W51: 2033.17511 | X51: 2033.17511 | Y51: 2033.17511 | Z51: 2033.17511 | AA51: 2033.17511 | AB51: 2033.17511 | AC51: 2033.17511 | AD51: 2033.17511 | AE51: 2033.17511 | AF51: 2033.17511 | AG51: 2033.17511 | AH51: 2033.17511 | AI51: 2033.17511 | AJ51: 2033.17511 | AK51: 2033.17511 | AL51: 2033.17511 | AM51: 2033.17511 | AN51: 2033.17511 | AO51: 2033.17511 | AP51: 2033.17511 | AQ51: 2033.17511 | AR51: 2033.17511 | AS51: 2033.17511 | AT51: 2033.17511 | AU51: 2033.17511 | AV51: 2033.17511 | AW51: 2033.17511 | AX51: 2033.17511 | AY51: 2033.17511 | AZ51: 2033.17511 | BA51: 2033.17511 | BB51: 2033.17511 | BC51: 2033.17511 | BD51: =+IF(BD49>=$DB39,$H46,0)*IF(BC55<1,0,1) -> 2033.17511 | BE51: 2033.17511 | BF51: 2033.17511 | BG51: 2033.17511 | BH51: 2033.17511 | BI51: 2033.17511 | BJ51: 2033.17511 | BK51: 2033.17511 | BL51: 0 | BM51: 0 | BN51: 0 | BO51: 0 | BR51: =+SUM(H51:S51) -> 22364.92621 | BS51: =+SUM(T51:AE51) -> 24398.10132 | BT51: =+SUM(AF51:AQ51) -> 24398.10132 | BU51: =+SUM(AR51:BC51) -> 24398.10132 | BV51: =+SUM(BD51:BO51) -> 16265.40088
G52: Quota Capitale Rata | I52: =I51-I54 -> 1625.762731 | J52: 1632.38629 | K52: 1639.036834 | L52: 1645.714473 | M52: 1652.419317 | N52: 1659.151478 | O52: 1665.911067 | P52: 1672.698195 | Q52: 1679.512974 | R52: 1686.355518 | S52: 1693.225939 | T52: 1700.124351 | U52: 1707.050868 | V52: 1714.005605 | W52: 1720.988676 | X52: 1728.000196 | Y52: 1735.040283 | Z52: 1742.109052 | AA52: 1749.20662 | AB52: 1756.333104 | AC52: 1763.488623 | AD52: 1770.673294 | AE52: 1777.887236 | AF52: 1785.130569 | AG52: 1792.403411 | AH52: 1799.705885 | AI52: 1807.038109 | AJ52: 1814.400206 | AK52: 1821.792297 | AL52: 1829.214505 | AM52: 1836.666951 | AN52: 1844.149759 | AO52: 1851.663054 | AP52: 1859.206958 | AQ52: =AQ51-AQ54 -> 1866.781598 | AR52: =AR51-AR54 -> 1874.387097 | AS52: 1882.023582 | AT52: 1889.691179 | AU52: 1897.390015 | AV52: 1905.120217 | AW52: 1912.881912 | AX52: 1920.67523 | AY52: 1928.500299 | AZ52: =AZ51-AZ54 -> 1936.357247 | BA52: =BA51-BA54 -> 1944.246207 | BB52: =BB51-BB54 -> 1952.167306 | BC52: =BC51-BC54 -> 1960.120678 | BD52: =BD51-BD54 -> 1968.106452 | BE52: 1976.124761 | BF52: 1984.175738 | BG52: 1992.259516 | BH52: 2000.376227 | BI52: 2008.526008 | BJ52: 2016.708991 | BK52: 2024.925313 | BL52: 0 | BM52: 0 | BN52: 0 | BO52: 0 | BR52: =+SUM(H52:S52) -> 18252.17482 | BS52: =+SUM(T52:AE52) -> 20864.90791 | BT52: =+SUM(AF52:AQ52) -> 21908.1533 | BU52: =+SUM(AR52:BC52) -> 23003.56097 | BV52: =+SUM(BD52:BO52) -> 15971.20301
G53: Quota Capitale Cumulata | I53: =(I52+H53)*(IF(H55<1,0,1)) -> 1625.762731 | J53: 3258.149022 | K53: 4897.185855 | L53: 6542.900328 | M53: 8195.319646 | N53: 9854.471124 | O53: 11520.38219 | P53: 13193.08038 | Q53: 14872.59336 | R53: 16558.94888 | S53: 18252.17482 | T53: 19952.29917 | U53: 21659.35003 | V53: 23373.35564 | W53: =(W52+V53)*(IF(V55<1,0,1)) -> 25094.34431 | X53: =(X52+W53)*(IF(W55<1,0,1)) -> 26822.34451 | Y53: 28557.38479 | Z53: 30299.49385 | AA53: 32048.70047 | AB53: 33805.03357 | AC53: 35568.52219 | AD53: 37339.19549 | AE53: 39117.08272 | AF53: 40902.21329 | AG53: 42694.6167 | AH53: 44494.32259 | AI53: 46301.3607 | AJ53: 48115.7609 | AK53: 49937.5532 | AL53: 51766.76771 | AM53: 53603.43466 | AN53: 55447.58442 | AO53: 57299.24747 | AP53: 59158.45443 | AQ53: =(AQ52+AP53)*(IF(AP55<1,0,1)) -> 61025.23603 | AR53: 62899.62312 | AS53: 64781.6467 | AT53: 66671.33788 | AU53: 68568.7279 | AV53: 70473.84812 | AW53: 72386.73003 | AX53: 74307.40526 | AY53: 76235.90556 | AZ53: 78172.2628 | BA53: 80116.50901 | BB53: 82068.67632 | BC53: 84028.79699 | BD53: =(BD52+BC53)*(IF(BC55<1,0,1)) -> 85996.90345 | BE53: 87973.02821 | BF53: 89957.20394 | BG53: 91949.46346 | BH53: 93949.83969 | BI53: 95958.3657 | BJ53: 97975.07469 | BK53: 100000 | BL53: 0 | BM53: 0 | BN53: 0 | BO53: 0 | BR53: =+S53 -> 18252.17482 | BS53: =+AE53 -> 39117.08272 | BT53: =+AQ53 -> 61025.23603 | BU53: =+BC53 -> 84028.79699 | BV53: =+BO53 -> 0
G54: Oneri Finanziari Rata | I54: =IF(I51>0,H55*$H44,0) -> 407.4123784 | J54: =IF(J51>0,I55*$H$44,0) -> 400.7888198 | K54: =IF(K51>0,J55*$H$44,0) -> 394.1382759 | L54: 387.460637 | M54: 380.7557925 | N54: 374.0236317 | O54: 367.2640432 | P54: 360.4769153 | Q54: 353.6621358 | R54: 346.819592 | S54: 339.9491709 | T54: 333.0507588 | U54: 326.1242418 | V54: 319.1695053 | W54: 312.1864343 | X54: 305.1749134 | Y54: 298.1348267 | Z54: 291.0660578 | AA54: 283.9684899 | AB54: 276.8420056 | AC54: 269.6864871 | AD54: 262.5018161 | AE54: 255.287874 | AF54: 248.0445413 | AG54: 240.7716984 | AH54: 233.469225 | AI54: 226.1370005 | AJ54: 218.7749035 | AK54: 211.3828125 | AL54: 203.9606052 | AM54: 196.5081589 | AN54: 189.0253503 | AO54: 181.512056 | AP54: 173.9681515 | AQ54: 166.3935122 | AR54: 158.7880129 | AS54: 151.1515278 | AT54: 143.4839308 | AU54: 135.785095 | AV54: 128.0548932 | AW54: 120.2931976 | AX54: 112.4998799 | AY54: 104.6748113 | AZ54: 96.81786237 | BA54: 88.92890326 | BB54: 81.00780355 | BC54: 73.05443229 | BD54: =IF(BD51>0,BC55*$H$44,0) -> 65.06865802 | BE54: 57.05034872 | BF54: 48.99937183 | BG54: 40.91559426 | BH54: 32.79888239 | BI54: 24.64910202 | BJ54: 16.46611845 | BK54: 8.24979638 | BL54: 0 | BM54: 0 | BN54: 0 | BO54: 0 | BR54: =+SUM(H54:S54) -> 4112.751392 | BS54: =+SUM(T54:AE54) -> 3533.193411 | BT54: =+SUM(AF54:AQ54) -> 2489.948015 | BU54: =+SUM(AR54:BC54) -> 1394.54035 | BV54: =+SUM(BD54:BO54) -> 294.1978721
G55: Debito Residuo | H55: =IF(H49=$DB39,($H41),IF(I49<$DB39,0,(($H41)-H53)*IF(F55<1,0,1))) -> 100000 | I55: =IF(I49=$DB39,($H41),IF(J49<$DB39,0,(($H41)-I53)*IF(H55<1,0,1))) -> 98374.23727 | J55: 96741.85098 | K55: 95102.81414 | L55: 93457.09967 | M55: 91804.68035 | N55: 90145.52888 | O55: 88479.61781 | P55: 86806.91962 | Q55: 85127.40664 | R55: 83441.05112 | S55: 81747.82518 | T55: 80047.70083 | U55: 78340.64997 | V55: 76626.64436 | W55: 74905.65569 | X55: 73177.65549 | Y55: 71442.61521 | Z55: 69700.50615 | AA55: 67951.29953 | AB55: 66194.96643 | AC55: 64431.47781 | AD55: 62660.80451 | AE55: 60882.91728 | AF55: 59097.78671 | AG55: 57305.3833 | AH55: 55505.67741 | AI55: 53698.6393 | AJ55: 51884.2391 | AK55: 50062.4468 | AL55: 48233.23229 | AM55: 46396.56534 | AN55: 44552.41558 | AO55: 42700.75253 | AP55: 40841.54557 | AQ55: 38974.76397 | AR55: 37100.37688 | AS55: 35218.3533 | AT55: 33328.66212 | AU55: 31431.2721 | AV55: 29526.15188 | AW55: 27613.26997 | AX55: 25692.59474 | AY55: 23764.09444 | AZ55: 21827.7372 | BA55: 19883.49099 | BB55: 17931.32368 | BC55: 15971.20301 | BD55: =IF(BD49=$DB39,($H41),IF(BE49<$DB39,0,(($H41)-BD53)*IF(BC55<1,0,1))) -> 14003.09655 | BE55: 12026.97179 | BF55: 10042.79606 | BG55: 8050.53654 | BH55: 6050.160313 | BI55: 4041.634305 | BJ55: 2024.925313 | BK55: 1.062289812e-09 | BL55: 0 | BM55: 0 | BN55: 0 | BO55: 0 | BR55: =+S55 -> 81747.82518 | BS55: =+AE55 -> 60882.91728 | BT55: =+AQ55 -> 38974.76397 | BU55: =+BC55 -> 15971.20301 | BV55: =+BO55 -> 0
E58: Finanziamento 3
F60: Parametri
G61: Data Stipula Contratto (mmm-aa) | H61: A1 m1 | DB61: =VLOOKUP($H61,configurazione!A67:B113,2,FALSE) -> 1
G62: Tasso di interesse annuale | H62: 0.05
G63: Finanziamento | H63: 30000
G64: Durata (numero rate totali) | H64: 12
F66: Tasso di interesse effettivo mensile | H66: =((1+H62)^(1/12))-1 -> 0.004074123784
M67: =+M74+M76 -> 2566.697984 | N67: =+N74+N76 -> 2566.697984 | O67: =+O74+O76 -> 2566.697984 | P67: =+P74+P76 -> 2566.697984
F68: Rata mensile (quota capitale + oneri finanziari) | H68: =(H63)/((1-(1+H66)^(-H64))/H66) -> 2566.697984
H70: =+SPm!I12 -> 2017-01-01 | I70: =+SPm!J12 -> 2017-02-28 | J70: =+SPm!K12 -> 2017-03-31 | K70: =+SPm!L12 -> 2017-04-30 | L70: =+SPm!M12 -> 2017-05-31 | M70: =+SPm!N12 -> 2017-06-30 | N70: =+SPm!O12 -> 2017-07-31 | O70: =+SPm!P12 -> 2017-08-31 | P70: =+SPm!Q12 -> 2017-09-30 | Q70: =+SPm!R12 -> 2017-10-31 | R70: =+SPm!S12 -> 2017-11-30 | S70: =+SPm!T12 -> 2017-12-31 | T70: =+SPm!U12 -> 2018-01-31 | U70: =+SPm!V12 -> 2018-02-28 | V70: =+SPm!W12 -> 2018-03-31 | W70: =+SPm!X12 -> 2018-04-30 | X70: =+SPm!Y12 -> 2018-05-31 | Y70: =+SPm!Z12 -> 2018-06-30 | Z70: =+SPm!AA12 -> 2018-07-31 | AA70: =+SPm!AB12 -> 2018-08-31 | AB70: =+SPm!AC12 -> 2018-09-30 | AC70: =+SPm!AD12 -> 2018-10-31 | AD70: =+SPm!AE12 -> 2018-11-30 | AE70: =+SPm!AF12 -> 2018-12-31 | AF70: =+SPm!AG12 -> 2019-01-31 | AG70: =+SPm!AH12 -> 2019-02-28 | AH70: =+SPm!AI12 -> 2019-03-31 | AI70: =+SPm!AJ12 -> 2019-04-30 | AJ70: =+SPm!AK12 -> 2019-05-31 | AK70: =+SPm!AL12 -> 2019-06-30 | AL70: =+SPm!AM12 -> 2019-07-31 | AM70: =+SPm!AN12 -> 2019-08-31 | AN70: =+SPm!AO12 -> 2019-09-30 | AO70: =+SPm!AP12 -> 2019-10-31 | AP70: =+SPm!AQ12 -> 2019-11-30 | AQ70: =+SPm!AR12 -> 2019-12-31 | AR70: =+SPm!AS12 -> 2020-01-31 | AS70: =+SPm!AT12 -> 2020-02-29 | AT70: =+SPm!AU12 -> 2020-03-31 | AU70: =+SPm!AV12 -> 2020-04-30 | AV70: =+SPm!AW12 -> 2020-05-31 | AW70: =+SPm!AX12 -> 2020-06-30 | AX70: =+SPm!AY12 -> 2020-07-31 | AY70: =+SPm!AZ12 -> 2020-08-31 | AZ70: =+SPm!BA12 -> 2020-09-30 | BA70: =+SPm!BB12 -> 2020-10-31 | BB70: =+SPm!BC12 -> 2020-11-30 | BC70: =+SPm!BD12 -> 2020-12-31 | BD70: =+SPm!BE12 -> 2021-01-31 | BE70: =+SPm!BF12 -> 2021-02-28 | BF70: =+SPm!BG12 -> 2021-03-31 | BG70: =+SPm!BH12 -> 2021-04-30 | BH70: =+SPm!BI12 -> 2021-05-31 | BI70: =+SPm!BJ12 -> 2021-06-30 | BJ70: =+SPm!BK12 -> 2021-07-31 | BK70: =+SPm!BL12 -> 2021-08-31 | BL70: =+SPm!BM12 -> 2021-09-30 | BM70: =+SPm!BN12 -> 2021-10-31 | BN70: =+SPm!BO12 -> 2021-11-30 | BO70: =+SPm!BP12 -> 2021-12-31 | BR70: =+YEAR(H70) -> 2017 | BS70: =+YEAR(T70) -> 2018 | BT70: =+YEAR(AF70) -> 2019 | BU70: =+YEAR(AR70) -> 2020 | BV70: =+YEAR(BD70) -> 2021
H71: =H27 -> 1 | I71: =I27 -> 2 | J71: 3 | K71: 4 | L71: 5 | M71: 6 | N71: 7 | O71: 8 | P71: 9 | Q71: 10 | R71: 11 | S71: 12 | T71: 13 | U71: 14 | V71: 15 | W71: 16 | X71: 17 | Y71: 18 | Z71: 19 | AA71: 20 | AB71: 21 | AC71: 22 | AD71: 23 | AE71: 24 | AF71: 25 | AG71: 26 | AH71: 27 | AI71: 28 | AJ71: 29 | AK71: 30 | AL71: 31 | AM71: 32 | AN71: 33 | AO71: 34 | AP71: 35 | AQ71: 36 | AR71: 37 | AS71: 38 | AT71: 39 | AU71: 40 | AV71: 41 | AW71: 42 | AX71: 43 | AY71: 44 | AZ71: 45 | BA71: 46 | BB71: 47 | BC71: 48 | BD71: 49 | BE71: 50 | BF71: 51 | BG71: 52 | BH71: 53 | BI71: 54 | BJ71: 55 | BK71: 56 | BL71: 57 | BM71: 58 | BN71: 59 | BO71: 60 | DC71: =+BO71+1 -> 61
F72: Finanziamento | H72: =H28 -> A1 m1 | I72: =I28 -> A1 m2 | J72: A1 m3 | K72: A1 m4 | L72: A1 m5 | M72: A1 m6 | N72: A1 m7 | O72: A1 m8 | P72: A1 m9 | Q72: A1 m10 | R72: A1 m11 | S72: A1 m12 | T72: A2 m1 | U72: A2 m2 | V72: A2 m3 | W72: A2 m4 | X72: A2 m5 | Y72: A2 m6 | Z72: A2 m7 | AA72: A2 m8 | AB72: A2 m9 | AC72: A2 m10 | AD72: A2 m11 | AE72: A2 m12 | AF72: A3 m1 | AG72: A3 m2 | AH72: A3 m3 | AI72: A3 m4 | AJ72: A3 m5 | AK72: A3 m6 | AL72: A3 m7 | AM72: A3 m8 | AN72: A3 m9 | AO72: A3 m10 | AP72: A3 m11 | AQ72: A3 m12 | AR72: A4 m1 | AS72: A4 m2 | AT72: A4 m3 | AU72: A4 m4 | AV72: A4 m5 | AW72: A4 m6 | AX72: A4 m7 | AY72: A4 m8 | AZ72: A4 m9 | BA72: A4 m10 | BB72: A4 m11 | BC72: A4 m12 | BD72: A5 m1 | BE72: A5 m2 | BF72: A5 m3 | BG72: A5 m4 | BH72: A5 m5 | BI72: A5 m6 | BJ72: A5 m7 | BK72: A5 m8 | BL72: A5 m9 | BM72: A5 m10 | BN72: A5 m11 | BO72: A5 m12
G73: Rata | I73: =+IF(I71>=$DB61,$H68,0)*IF(H77<1,0,1) -> 2566.697984 | J73: 2566.697984 | K73: 2566.697984 | L73: 2566.697984 | M73: 2566.697984 | N73: 2566.697984 | O73: 2566.697984 | P73: 2566.697984 | Q73: 2566.697984 | R73: 2566.697984 | S73: 2566.697984 | T73: 2566.697984 | U73: 0 | V73: 0 | W73: 0 | X73: 0 | Y73: 0 | Z73: 0 | AA73: 0 | AB73: 0 | AC73: 0 | AD73: 0 | AE73: 0 | AF73: 0 | AG73: 0 | AH73: 0 | AI73: 0 | AJ73: 0 | AK73: 0 | AL73: 0 | AM73: 0 | AN73: 0 | AO73: 0 | AP73: 0 | AQ73: 0 | AR73: 0 | AS73: 0 | AT73: 0 | AU73: 0 | AV73: 0 | AW73: 0 | AX73: 0 | AY73: 0 | AZ73: 0 | BA73: 0 | BB73: 0 | BC73: 0 | BD73: =+IF(BD71>=$DB61,$H68,0)*IF(BC77<1,0,1) -> 0 | BE73: 0 | BF73: 0 | BG73: 0 | BH73: 0 | BI73: 0 | BJ73: 0 | BK73: 0 | BL73: 0 | BM73: 0 | BN73: 0 | BO73: 0 | BR73: =+SUM(H73:S73) -> 28233.67782 | BS73: =+SUM(T73:AE73) -> 2566.697984 | BT73: =+SUM(AF73:AQ73) -> 0 | BU73: =+SUM(AR73:BC73) -> 0 | BV73: =+SUM(BD73:BO73) -> 0
G74: Quota Capitale Rata | I74: =I73-I76 -> 2444.47427 | J74: 2454.433361 | K74: 2464.433026 | L74: 2474.473431 | M74: 2484.554743 | N74: 2494.677126 | O74: 2504.84075 | P74: 2515.045781 | Q74: 2525.292389 | R74: 2535.580742 | S74: 2545.911012 | T74: 2556.283369 | U74: 0 | V74: 0 | W74: 0 | X74: 0 | Y74: 0 | Z74: 0 | AA74: 0 | AB74: 0 | AC74: 0 | AD74: 0 | AE74: 0 | AF74: 0 | AG74: 0 | AH74: 0 | AI74: 0 | AJ74: 0 | AK74: 0 | AL74: 0 | AM74: 0 | AN74: 0 | AO74: 0 | AP74: 0 | AQ74: =AQ73-AQ76 -> 0 | AR74: =AR73-AR76 -> 0 | AS74: 0 | AT74: 0 | AU74: 0 | AV74: 0 | AW74: 0 | AX74: 0 | AY74: 0 | AZ74: =AZ73-AZ76 -> 0 | BA74: =BA73-BA76 -> 0 | BB74: =BB73-BB76 -> 0 | BC74: =BC73-BC76 -> 0 | BD74: =BD73-BD76 -> 0 | BE74: 0 | BF74: 0 | BG74: 0 | BH74: 0 | BI74: 0 | BJ74: 0 | BK74: 0 | BL74: 0 | BM74: 0 | BN74: 0 | BO74: 0 | BR74: =+SUM(H74:S74) -> 27443.71663 | BS74: =+SUM(T74:AE74) -> 2556.283369 | BT74: =+SUM(AF74:AQ74) -> 0 | BU74: =+SUM(AR74:BC74) -> 0 | BV74: =+SUM(BD74:BO74) -> 0
G75: Quota Capitale Cumulata | I75: =(I74+H75)*(IF(H77<1,0,1)) -> 2444.47427 | J75: 4898.907631 | K75: 7363.340657 | L75: 9837.814089 | M75: 12322.36883 | N75: 14817.04596 | O75: 17321.88671 | P75: 19836.93249 | Q75: 22362.22488 | R75: 24897.80562 | S75: 27443.71663 | T75: 30000 | U75: 0 | V75: 0 | W75: =(W74+V75)*(IF(V77<1,0,1)) -> 0 | X75: =(X74+W75)*(IF(W77<1,0,1)) -> 0 | Y75: 0 | Z75: 0 | AA75: 0 | AB75: 0 | AC75: 0 | AD75: 0 | AE75: 0 | AF75: 0 | AG75: 0 | AH75: 0 | AI75: 0 | AJ75: 0 | AK75: 0 | AL75: 0 | AM75: 0 | AN75: 0 | AO75: 0 | AP75: 0 | AQ75: =(AQ74+AP75)*(IF(AP77<1,0,1)) -> 0 | AR75: 0 | AS75: 0 | AT75: 0 | AU75: 0 | AV75: 0 | AW75: 0 | AX75: 0 | AY75: 0 | AZ75: 0 | BA75: 0 | BB75: 0 | BC75: 0 | BD75: =(BD74+BC75)*(IF(BC77<1,0,1)) -> 0 | BE75: 0 | BF75: 0 | BG75: 0 | BH75: 0 | BI75: 0 | BJ75: 0 | BK75: 0 | BL75: 0 | BM75: 0 | BN75: 0 | BO75: 0 | BR75: =+S75 -> 27443.71663 | BS75: =+AE75 -> 0 | BT75: =+AQ75 -> 0 | BU75: =+BC75 -> 0 | BV75: =+BO75 -> 0
G76: Oneri Finanziari Rata | I76: =IF(I73>0,H77*$H66,0) -> 122.2237135 | J76: =IF(J73>0,I77*$H$66,0) -> 112.2646227 | K76: =IF(K73>0,J77*$H$66,0) -> 102.2649574 | L76: 92.22455221 | M76: 82.14324115 | N76: 72.02085758 | O76: 61.85723417 | P76: 51.6522029 | Q76: 41.40559507 | R76: 31.11724128 | S76: 20.78697148 | T76: 10.41461487 | U76: 0 | V76: 0 | W76: 0 | X76: 0 | Y76: 0 | Z76: 0 | AA76: 0 | AB76: 0 | AC76: 0 | AD76: 0 | AE76: 0 | AF76: 0 | AG76: 0 | AH76: 0 | AI76: 0 | AJ76: 0 | AK76: 0 | AL76: 0 | AM76: 0 | AN76: 0 | AO76: 0 | AP76: 0 | AQ76: 0 | AR76: 0 | AS76: 0 | AT76: 0 | AU76: 0 | AV76: 0 | AW76: 0 | AX76: 0 | AY76: 0 | AZ76: 0 | BA76: 0 | BB76: 0 | BC76: 0 | BD76: =IF(BD73>0,BC77*$H$66,0) -> 0 | BE76: 0 | BF76: 0 | BG76: 0 | BH76: 0 | BI76: 0 | BJ76: 0 | BK76: 0 | BL76: 0 | BM76: 0 | BN76: 0 | BO76: 0 | BR76: =+SUM(H76:S76) -> 789.9611895 | BS76: =+SUM(T76:AE76) -> 10.41461487 | BT76: =+SUM(AF76:AQ76) -> 0 | BU76: =+SUM(AR76:BC76) -> 0 | BV76: =+SUM(BD76:BO76) -> 0
G77: Debito Residuo | H77: =IF(H71=$DB61,($H63),IF(I71<$DB61,0,(($H63)-H75)*IF(F77<1,0,1))) -> 30000 | I77: =IF(I71=$DB61,($H63),IF(J71<$DB61,0,(($H63)-I75)*IF(H77<1,0,1))) -> 27555.52573 | J77: 25101.09237 | K77: 22636.65934 | L77: 20162.18591 | M77: 17677.63117 | N77: 15182.95404 | O77: 12678.11329 | P77: 10163.06751 | Q77: 7637.775123 | R77: 5102.194381 | S77: 2556.283369 | T77: 3.01952241e-10 | U77: 0 | V77: 0 | W77: 0 | X77: 0 | Y77: 0 | Z77: 0 | AA77: 0 | AB77: 0 | AC77: 0 | AD77: 0 | AE77: 0 | AF77: 0 | AG77: 0 | AH77: 0 | AI77: 0 | AJ77: 0 | AK77: 0 | AL77: 0 | AM77: 0 | AN77: 0 | AO77: 0 | AP77: 0 | AQ77: 0 | AR77: 0 | AS77: 0 | AT77: 0 | AU77: 0 | AV77: 0 | AW77: 0 | AX77: 0 | AY77: 0 | AZ77: 0 | BA77: 0 | BB77: 0 | BC77: 0 | BD77: =IF(BD71=$DB61,($H63),IF(BE71<$DB61,0,(($H63)-BD75)*IF(BC77<1,0,1))) -> 0 | BE77: 0 | BF77: 0 | BG77: 0 | BH77: 0 | BI77: 0 | BJ77: 0 | BK77: 0 | BL77: 0 | BM77: 0 | BN77: 0 | BO77: 0 | BR77: =+S77 -> 2556.283369 | BS77: =+AE77 -> 0 | BT77: =+AQ77 -> 0 | BU77: =+BC77 -> 0 | BV77: =+BO77 -> 0
E80: Finanziamento 4
F82: Parametri
G83: Data Stipula Contratto (mmm-aa) | H83: A1 m1 | DB83: =VLOOKUP($H83,configurazione!A67:B113,2,FALSE) -> 1
G84: Tasso di interesse annuale | H84: 0.05
G85: Finanziamento | H85: 30000
G86: Durata (numero rate totali) | H86: 12
F88: Tasso di interesse effettivo mensile | H88: =((1+H84)^(1/12))-1 -> 0.004074123784
F90: Rata mensile (quota capitale + oneri finanziari) | H90: =(H85)/((1-(1+H88)^(-H86))/H88) -> 2566.697984
H92: =+SPm!I12 -> 2017-01-01 | I92: =+SPm!J12 -> 2017-02-28 | J92: =+SPm!K12 -> 2017-03-31 | K92: =+SPm!L12 -> 2017-04-30 | L92: =+SPm!M12 -> 2017-05-31 | M92: =+SPm!N12 -> 2017-06-30 | N92: =+SPm!O12 -> 2017-07-31 | O92: =+SPm!P12 -> 2017-08-31 | P92: =+SPm!Q12 -> 2017-09-30 | Q92: =+SPm!R12 -> 2017-10-31 | R92: =+SPm!S12 -> 2017-11-30 | S92: =+SPm!T12 -> 2017-12-31 | T92: =+SPm!U12 -> 2018-01-31 | U92: =+SPm!V12 -> 2018-02-28 | V92: =+SPm!W12 -> 2018-03-31 | W92: =+SPm!X12 -> 2018-04-30 | X92: =+SPm!Y12 -> 2018-05-31 | Y92: =+SPm!Z12 -> 2018-06-30 | Z92: =+SPm!AA12 -> 2018-07-31 | AA92: =+SPm!AB12 -> 2018-08-31 | AB92: =+SPm!AC12 -> 2018-09-30 | AC92: =+SPm!AD12 -> 2018-10-31 | AD92: =+SPm!AE12 -> 2018-11-30 | AE92: =+SPm!AF12 -> 2018-12-31 | AF92: =+SPm!AG12 -> 2019-01-31 | AG92: =+SPm!AH12 -> 2019-02-28 | AH92: =+SPm!AI12 -> 2019-03-31 | AI92: =+SPm!AJ12 -> 2019-04-30 | AJ92: =+SPm!AK12 -> 2019-05-31 | AK92: =+SPm!AL12 -> 2019-06-30 | AL92: =+SPm!AM12 -> 2019-07-31 | AM92: =+SPm!AN12 -> 2019-08-31 | AN92: =+SPm!AO12 -> 2019-09-30 | AO92: =+SPm!AP12 -> 2019-10-31 | AP92: =+SPm!AQ12 -> 2019-11-30 | AQ92: =+SPm!AR12 -> 2019-12-31 | AR92: =+SPm!AS12 -> 2020-01-31 | AS92: =+SPm!AT12 -> 2020-02-29 | AT92: =+SPm!AU12 -> 2020-03-31 | AU92: =+SPm!AV12 -> 2020-04-30 | AV92: =+SPm!AW12 -> 2020-05-31 | AW92: =+SPm!AX12 -> 2020-06-30 | AX92: =+SPm!AY12 -> 2020-07-31 | AY92: =+SPm!AZ12 -> 2020-08-31 | AZ92: =+SPm!BA12 -> 2020-09-30 | BA92: =+SPm!BB12 -> 2020-10-31 | BB92: =+SPm!BC12 -> 2020-11-30 | BC92: =+SPm!BD12 -> 2020-12-31 | BD92: =+SPm!BE12 -> 2021-01-31 | BE92: =+SPm!BF12 -> 2021-02-28 | BF92: =+SPm!BG12 -> 2021-03-31 | BG92: =+SPm!BH12 -> 2021-04-30 | BH92: =+SPm!BI12 -> 2021-05-31 | BI92: =+SPm!BJ12 -> 2021-06-30 | BJ92: =+SPm!BK12 -> 2021-07-31 | BK92: =+SPm!BL12 -> 2021-08-31 | BL92: =+SPm!BM12 -> 2021-09-30 | BM92: =+SPm!BN12 -> 2021-10-31 | BN92: =+SPm!BO12 -> 2021-11-30 | BO92: =+SPm!BP12 -> 2021-12-31 | BR92: =+YEAR(H92) -> 2017 | BS92: =+YEAR(T92) -> 2018 | BT92: =+YEAR(AF92) -> 2019 | BU92: =+YEAR(AR92) -> 2020 | BV92: =+YEAR(BD92) -> 2021
H93: =H27 -> 1 | I93: 2 | J93: 3 | K93: 4 | L93: 5 | M93: 6 | N93: 7 | O93: 8 | P93: 9 | Q93: 10 | R93: 11 | S93: 12 | T93: 13 | U93: 14 | V93: 15 | W93: 16 | X93: 17 | Y93: 18 | Z93: 19 | AA93: 20 | AB93: 21 | AC93: 22 | AD93: 23 | AE93: 24 | AF93: 25 | AG93: 26 | AH93: 27 | AI93: 28 | AJ93: 29 | AK93: 30 | AL93: 31 | AM93: 32 | AN93: =AN27 -> 33 | AO93: 34 | AP93: 35 | AQ93: 36 | AR93: 37 | AS93: 38 | AT93: 39 | AU93: 40 | AV93: 41 | AW93: 42 | AX93: 43 | AY93: 44 | AZ93: 45 | BA93: 46 | BB93: 47 | BC93: 48 | BD93: 49 | BE93: 50 | BF93: 51 | BG93: 52 | BH93: 53 | BI93: 54 | BJ93: 55 | BK93: 56 | BL93: 57 | BM93: 58 | BN93: 59 | BO93: 60 | DC93: =+BO93+1 -> 61
F94: Finanziamento | H94: =H28 -> A1 m1 | I94: A1 m2 | J94: A1 m3 | K94: A1 m4 | L94: A1 m5 | M94: A1 m6 | N94: A1 m7 | O94: A1 m8 | P94: A1 m9 | Q94: A1 m10 | R94: A1 m11 | S94: A1 m12 | T94: A2 m1 | U94: A2 m2 | V94: A2 m3 | W94: A2 m4 | X94: A2 m5 | Y94: A2 m6 | Z94: A2 m7 | AA94: A2 m8 | AB94: A2 m9 | AC94: A2 m10 | AD94: A2 m11 | AE94: A2 m12 | AF94: A3 m1 | AG94: A3 m2 | AH94: A3 m3 | AI94: A3 m4 | AJ94: A3 m5 | AK94: A3 m6 | AL94: A3 m7 | AM94: A3 m8 | AN94: =AN28 -> A3 m9 | AO94: A3 m10 | AP94: A3 m11 | AQ94: A3 m12 | AR94: A4 m1 | AS94: A4 m2 | AT94: A4 m3 | AU94: A4 m4 | AV94: A4 m5 | AW94: A4 m6 | AX94: A4 m7 | AY94: A4 m8 | AZ94: A4 m9 | BA94: A4 m10 | BB94: A4 m11 | BC94: A4 m12 | BD94: A5 m1 | BE94: A5 m2 | BF94: A5 m3 | BG94: A5 m4 | BH94: A5 m5 | BI94: A5 m6 | BJ94: A5 m7 | BK94: A5 m8 | BL94: A5 m9 | BM94: A5 m10 | BN94: A5 m11 | BO94: A5 m12
G95: Rata | I95: =+IF(I93>=$DB83,$H90,0)*IF(H99<1,0,1) -> 2566.697984 | J95: 2566.697984 | K95: 2566.697984 | L95: 2566.697984 | M95: 2566.697984 | N95: 2566.697984 | O95: 2566.697984 | P95: 2566.697984 | Q95: 2566.697984 | R95: 2566.697984 | S95: 2566.697984 | T95: 2566.697984 | U95: 0 | V95: 0 | W95: 0 | X95: 0 | Y95: 0 | Z95: 0 | AA95: 0 | AB95: 0 | AC95: 0 | AD95: 0 | AE95: 0 | AF95: 0 | AG95: 0 | AH95: 0 | AI95: 0 | AJ95: 0 | AK95: 0 | AL95: 0 | AM95: 0 | AN95: 0 | AO95: 0 | AP95: 0 | AQ95: 0 | AR95: 0 | AS95: 0 | AT95: 0 | AU95: 0 | AV95: 0 | AW95: 0 | AX95: 0 | AY95: 0 | AZ95: 0 | BA95: 0 | BB95: 0 | BC95: 0 | BD95: =+IF(BD93>=$DB83,$H90,0)*IF(BC99<1,0,1) -> 0 | BE95: 0 | BF95: 0 | BG95: 0 | BH95: 0 | BI95: 0 | BJ95: 0 | BK95: 0 | BL95: 0 | BM95: 0 | BN95: 0 | BO95: 0 | BR95: =+SUM(H95:S95) -> 28233.67782 | BS95: =+SUM(T95:AE95) -> 2566.697984 | BT95: =+SUM(AF95:AQ95) -> 0 | BU95: =+SUM(AR95:BC95) -> 0 | BV95: =+SUM(BD95:BO95) -> 0
G96: Quota Capitale Rata | I96: =I95-I98 -> 2444.47427 | J96: 2454.433361 | K96: 2464.433026 | L96: 2474.473431 | M96: 2484.554743 | N96: 2494.677126 | O96: 2504.84075 | P96: 2515.045781 | Q96: 2525.292389 | R96: 2535.580742 | S96: 2545.911012 | T96: 2556.283369 | U96: 0 | V96: 0 | W96: 0 | X96: 0 | Y96: 0 | Z96: 0 | AA96: 0 | AB96: 0 | AC96: 0 | AD96: 0 | AE96: 0 | AF96: 0 | AG96: 0 | AH96: 0 | AI96: 0 | AJ96: 0 | AK96: 0 | AL96: 0 | AM96: 0 | AN96: 0 | AO96: 0 | AP96: 0 | AQ96: 0 | AR96: 0 | AS96: 0 | AT96: 0 | AU96: 0 | AV96: 0 | AW96: 0 | AX96: 0 | AY96: 0 | AZ96: 0 | BA96: 0 | BB96: 0 | BC96: 0 | BD96: =BD95-BD98 -> 0 | BE96: 0 | BF96: 0 | BG96: 0 | BH96: 0 | BI96: 0 | BJ96: 0 | BK96: 0 | BL96: 0 | BM96: 0 | BN96: 0 | BO96: 0 | BR96: =+SUM(H96:S96) -> 27443.71663 | BS96: =+SUM(T96:AE96) -> 2556.283369 | BT96: =+SUM(AF96:AQ96) -> 0 | BU96: =+SUM(AR96:BC96) -> 0 | BV96: =+SUM(BD96:BO96) -> 0
G97: Quota Capitale Cumulata | I97: =(I96+H97)*(IF(H99<1,0,1)) -> 2444.47427 | J97: 4898.907631 | K97: 7363.340657 | L97: 9837.814089 | M97: 12322.36883 | N97: 14817.04596 | O97: 17321.88671 | P97: 19836.93249 | Q97: 22362.22488 | R97: 24897.80562 | S97: 27443.71663 | T97: 30000 | U97: 0 | V97: 0 | W97: 0 | X97: 0 | Y97: 0 | Z97: 0 | AA97: 0 | AB97: 0 | AC97: 0 | AD97: 0 | AE97: 0 | AF97: 0 | AG97: 0 | AH97: 0 | AI97: 0 | AJ97: 0 | AK97: 0 | AL97: 0 | AM97: 0 | AN97: 0 | AO97: 0 | AP97: 0 | AQ97: 0 | AR97: 0 | AS97: 0 | AT97: 0 | AU97: 0 | AV97: 0 | AW97: 0 | AX97: 0 | AY97: 0 | AZ97: 0 | BA97: 0 | BB97: 0 | BC97: 0 | BD97: =(BD96+BC97)*(IF(BC99<1,0,1)) -> 0 | BE97: 0 | BF97: 0 | BG97: 0 | BH97: 0 | BI97: 0 | BJ97: 0 | BK97: 0 | BL97: 0 | BM97: 0 | BN97: 0 | BO97: 0 | BR97: =+S97 -> 27443.71663 | BS97: =+AE97 -> 0 | BT97: =+AQ97 -> 0 | BU97: =+BC97 -> 0 | BV97: =+BO97 -> 0
G98: Oneri Finanziari Rata | I98: =IF(I95>0,H99*$H88,0) -> 122.2237135 | J98: =IF(J95>0,I99*$H$88,0) -> 112.2646227 | K98: =IF(K95>0,J99*$H$88,0) -> 102.2649574 | L98: 92.22455221 | M98: 82.14324115 | N98: 72.02085758 | O98: 61.85723417 | P98: 51.6522029 | Q98: 41.40559507 | R98: 31.11724128 | S98: 20.78697148 | T98: 10.41461487 | U98: 0 | V98: 0 | W98: 0 | X98: 0 | Y98: 0 | Z98: 0 | AA98: 0 | AB98: 0 | AC98: 0 | AD98: 0 | AE98: 0 | AF98: 0 | AG98: 0 | AH98: 0 | AI98: 0 | AJ98: 0 | AK98: 0 | AL98: 0 | AM98: 0 | AN98: 0 | AO98: 0 | AP98: 0 | AQ98: 0 | AR98: 0 | AS98: 0 | AT98: 0 | AU98: 0 | AV98: 0 | AW98: 0 | AX98: 0 | AY98: 0 | AZ98: 0 | BA98: 0 | BB98: 0 | BC98: 0 | BD98: =IF(BD95>0,BC99*$H$88,0) -> 0 | BE98: 0 | BF98: 0 | BG98: 0 | BH98: 0 | BI98: 0 | BJ98: 0 | BK98: 0 | BL98: 0 | BM98: 0 | BN98: 0 | BO98: 0 | BR98: =+SUM(H98:S98) -> 789.9611895 | BS98: =+SUM(T98:AE98) -> 10.41461487 | BT98: =+SUM(AF98:AQ98) -> 0 | BU98: =+SUM(AR98:BC98) -> 0 | BV98: =+SUM(BD98:BO98) -> 0
G99: Debito Residuo | H99: =IF(H93=$DB83,($H85),IF(I93<$DB83,0,(($H85)-H97)*IF(F99<1,0,1))) -> 30000 | I99: =IF(I93=$DB83,($H85),IF(J93<$DB83,0,(($H85)-I97)*IF(H99<1,0,1))) -> 27555.52573 | J99: 25101.09237 | K99: 22636.65934 | L99: 20162.18591 | M99: 17677.63117 | N99: 15182.95404 | O99: 12678.11329 | P99: 10163.06751 | Q99: 7637.775123 | R99: 5102.194381 | S99: 2556.283369 | T99: 3.01952241e-10 | U99: 0 | V99: 0 | W99: 0 | X99: 0 | Y99: 0 | Z99: 0 | AA99: 0 | AB99: 0 | AC99: 0 | AD99: 0 | AE99: 0 | AF99: 0 | AG99: 0 | AH99: 0 | AI99: 0 | AJ99: 0 | AK99: 0 | AL99: 0 | AM99: 0 | AN99: 0 | AO99: 0 | AP99: 0 | AQ99: 0 | AR99: 0 | AS99: 0 | AT99: 0 | AU99: 0 | AV99: 0 | AW99: 0 | AX99: 0 | AY99: 0 | AZ99: 0 | BA99: 0 | BB99: 0 | BC99: 0 | BD99: =IF(BD93=$DB83,($H85),IF(BE93<$DB83,0,(($H85)-BD97)*IF(BC99<1,0,1))) -> 0 | BE99: 0 | BF99: 0 | BG99: 0 | BH99: 0 | BI99: 0 | BJ99: 0 | BK99: 0 | BL99: 0 | BM99: 0 | BN99: 0 | BO99: 0 | BR99: =+S99 -> 2556.283369 | BS99: =+AE99 -> 0 | BT99: =+AQ99 -> 0 | BU99: =+BC99 -> 0 | BV99: =+BO99 -> 0
E102: Finanziamento 5
F104: Parametri
G105: Data Stipula Contratto (mmm-aa) | H105: A1 m1 | DB105: =VLOOKUP($H105,configurazione!A67:B113,2,FALSE) -> 1
G106: Tasso di interesse annuale | H106: 0.09
G107: Finanziamento | H107: 0
G108: Durata (numero rate totali) | H108: 12
F110: Tasso di interesse effettivo mensile | H110: =((1+H106)^(1/12))-1 -> 0.007207323316
F112: Rata mensile (quota capitale + oneri finanziari) | H112: =(H107)/((1-(1+H110)^(-H108))/H110) -> 0
H114: =+H92 -> 2017-01-01 | I114: 2017-02-28 | J114: 2017-03-31 | K114: 2017-04-30 | L114: 2017-05-31 | M114: 2017-06-30 | N114: 2017-07-31 | O114: 2017-08-31 | P114: 2017-09-30 | Q114: 2017-10-31 | R114: 2017-11-30 | S114: 2017-12-31 | T114: 2018-01-31 | U114: 2018-02-28 | V114: 2018-03-31 | W114: 2018-04-30 | X114: 2018-05-31 | Y114: 2018-06-30 | Z114: 2018-07-31 | AA114: 2018-08-31 | AB114: 2018-09-30 | AC114: 2018-10-31 | AD114: 2018-11-30 | AE114: 2018-12-31 | AF114: 2019-01-31 | AG114: 2019-02-28 | AH114: 2019-03-31 | AI114: 2019-04-30 | AJ114: 2019-05-31 | AK114: 2019-06-30 | AL114: 2019-07-31 | AM114: 2019-08-31 | AN114: =+AN92 -> 2019-09-30 | AO114: 2019-10-31 | AP114: 2019-11-30 | AQ114: 2019-12-31 | AR114: 2020-01-31 | AS114: 2020-02-29 | AT114: 2020-03-31 | AU114: 2020-04-30 | AV114: 2020-05-31 | AW114: 2020-06-30 | AX114: 2020-07-31 | AY114: 2020-08-31 | AZ114: 2020-09-30 | BA114: 2020-10-31 | BB114: 2020-11-30 | BC114: 2020-12-31 | BD114: 2021-01-31 | BE114: 2021-02-28 | BF114: 2021-03-31 | BG114: 2021-04-30 | BH114: 2021-05-31 | BI114: 2021-06-30 | BJ114: 2021-07-31 | BK114: 2021-08-31 | BL114: 2021-09-30 | BM114: 2021-10-31 | BN114: 2021-11-30 | BO114: 2021-12-31 | BR114: =+YEAR(H114) -> 2017 | BS114: =+YEAR(T114) -> 2018 | BT114: =+YEAR(AF114) -> 2019 | BU114: =+YEAR(AR114) -> 2020 | BV114: =+YEAR(BD114) -> 2021
H115: =H27 -> 1 | I115: =I27 -> 2 | J115: 3 | K115: 4 | L115: 5 | M115: 6 | N115: 7 | O115: 8 | P115: 9 | Q115: 10 | R115: 11 | S115: 12 | T115: 13 | U115: 14 | V115: 15 | W115: 16 | X115: 17 | Y115: 18 | Z115: 19 | AA115: 20 | AB115: 21 | AC115: 22 | AD115: 23 | AE115: 24 | AF115: 25 | AG115: 26 | AH115: 27 | AI115: 28 | AJ115: 29 | AK115: 30 | AL115: 31 | AM115: 32 | AN115: 33 | AO115: 34 | AP115: 35 | AQ115: 36 | AR115: 37 | AS115: 38 | AT115: 39 | AU115: 40 | AV115: 41 | AW115: 42 | AX115: 43 | AY115: 44 | AZ115: 45 | BA115: 46 | BB115: 47 | BC115: 48 | BD115: 49 | BE115: 50 | BF115: 51 | BG115: 52 | BH115: 53 | BI115: 54 | BJ115: 55 | BK115: 56 | BL115: 57 | BM115: 58 | BN115: 59 | BO115: 60 | DC115: =+BO115+1 -> 61
F116: Finanziamento | H116: =H28 -> A1 m1 | I116: =I28 -> A1 m2 | J116: A1 m3 | K116: A1 m4 | L116: A1 m5 | M116: A1 m6 | N116: A1 m7 | O116: A1 m8 | P116: A1 m9 | Q116: A1 m10 | R116: A1 m11 | S116: A1 m12 | T116: A2 m1 | U116: A2 m2 | V116: A2 m3 | W116: A2 m4 | X116: A2 m5 | Y116: A2 m6 | Z116: A2 m7 | AA116: A2 m8 | AB116: A2 m9 | AC116: A2 m10 | AD116: A2 m11 | AE116: A2 m12 | AF116: A3 m1 | AG116: A3 m2 | AH116: A3 m3 | AI116: A3 m4 | AJ116: A3 m5 | AK116: A3 m6 | AL116: A3 m7 | AM116: A3 m8 | AN116: A3 m9 | AO116: A3 m10 | AP116: A3 m11 | AQ116: A3 m12 | AR116: A4 m1 | AS116: A4 m2 | AT116: A4 m3 | AU116: A4 m4 | AV116: A4 m5 | AW116: A4 m6 | AX116: A4 m7 | AY116: A4 m8 | AZ116: A4 m9 | BA116: A4 m10 | BB116: A4 m11 | BC116: A4 m12 | BD116: A5 m1 | BE116: A5 m2 | BF116: A5 m3 | BG116: A5 m4 | BH116: A5 m5 | BI116: A5 m6 | BJ116: A5 m7 | BK116: A5 m8 | BL116: A5 m9 | BM116: A5 m10 | BN116: A5 m11 | BO116: A5 m12
G117: Rata | I117: =+IF(I115>=$DB105,$H112,0)*IF(H121<1,0,1) -> 0 | J117: 0 | K117: 0 | L117: 0 | M117: 0 | N117: 0 | O117: 0 | P117: 0 | Q117: 0 | R117: 0 | S117: 0 | T117: 0 | U117: 0 | V117: 0 | W117: 0 | X117: 0 | Y117: 0 | Z117: 0 | AA117: 0 | AB117: 0 | AC117: 0 | AD117: 0 | AE117: 0 | AF117: 0 | AG117: 0 | AH117: 0 | AI117: 0 | AJ117: 0 | AK117: 0 | AL117: 0 | AM117: 0 | AN117: 0 | AO117: 0 | AP117: 0 | AQ117: 0 | AR117: 0 | AS117: 0 | AT117: 0 | AU117: 0 | AV117: 0 | AW117: 0 | AX117: 0 | AY117: 0 | AZ117: 0 | BA117: 0 | BB117: 0 | BC117: 0 | BD117: =+IF(BD115>=$DB105,$H112,0)*IF(BC121<1,0,1) -> 0 | BE117: 0 | BF117: 0 | BG117: 0 | BH117: 0 | BI117: 0 | BJ117: 0 | BK117: 0 | BL117: 0 | BM117: 0 | BN117: 0 | BO117: 0 | BR117: =+SUM(H117:S117) -> 0 | BS117: =+SUM(T117:AE117) -> 0 | BT117: =+SUM(AF117:AQ117) -> 0 | BU117: =+SUM(AR117:BC117) -> 0 | BV117: =+SUM(BD117:BO117) -> 0
G118: Quota Capitale Rata | I118: =I117-I120 -> 0 | J118: 0 | K118: 0 | L118: 0 | M118: 0 | N118: 0 | O118: 0 | P118: 0 | Q118: 0 | R118: 0 | S118: 0 | T118: 0 | U118: 0 | V118: 0 | W118: 0 | X118: 0 | Y118: 0 | Z118: 0 | AA118: 0 | AB118: 0 | AC118: 0 | AD118: 0 | AE118: 0 | AF118: 0 | AG118: 0 | AH118: 0 | AI118: 0 | AJ118: 0 | AK118: 0 | AL118: 0 | AM118: 0 | AN118: 0 | AO118: 0 | AP118: 0 | AQ118: =AQ117-AQ120 -> 0 | AR118: =AR117-AR120 -> 0 | AS118: 0 | AT118: 0 | AU118: 0 | AV118: 0 | AW118: 0 | AX118: 0 | AY118: 0 | AZ118: =AZ117-AZ120 -> 0 | BA118: =BA117-BA120 -> 0 | BB118: =BB117-BB120 -> 0 | BC118: =BC117-BC120 -> 0 | BD118: =BD117-BD120 -> 0 | BE118: 0 | BF118: 0 | BG118: 0 | BH118: 0 | BI118: 0 | BJ118: 0 | BK118: 0 | BL118: 0 | BM118: 0 | BN118: 0 | BO118: 0 | BR118: =+SUM(H118:S118) -> 0 | BS118: =+SUM(T118:AE118) -> 0 | BT118: =+SUM(AF118:AQ118) -> 0 | BU118: =+SUM(AR118:BC118) -> 0 | BV118: =+SUM(BD118:BO118) -> 0
G119: Quota Capitale Cumulata | I119: =(I118+H119)*(IF(H121<1,0,1)) -> 0 | J119: 0 | K119: 0 | L119: 0 | M119: 0 | N119: 0 | O119: 0 | P119: 0 | Q119: 0 | R119: 0 | S119: 0 | T119: 0 | U119: 0 | V119: 0 | W119: =(W118+V119)*(IF(V121<1,0,1)) -> 0 | X119: =(X118+W119)*(IF(W121<1,0,1)) -> 0 | Y119: 0 | Z119: 0 | AA119: 0 | AB119: 0 | AC119: 0 | AD119: 0 | AE119: 0 | AF119: 0 | AG119: 0 | AH119: 0 | AI119: 0 | AJ119: 0 | AK119: 0 | AL119: 0 | AM119: 0 | AN119: 0 | AO119: 0 | AP119: 0 | AQ119: =(AQ118+AP119)*(IF(AP121<1,0,1)) -> 0 | AR119: 0 | AS119: 0 | AT119: 0 | AU119: 0 | AV119: 0 | AW119: 0 | AX119: 0 | AY119: 0 | AZ119: 0 | BA119: 0 | BB119: 0 | BC119: 0 | BD119: =(BD118+BC119)*(IF(BC121<1,0,1)) -> 0 | BE119: 0 | BF119: 0 | BG119: 0 | BH119: 0 | BI119: 0 | BJ119: 0 | BK119: 0 | BL119: 0 | BM119: 0 | BN119: 0 | BO119: 0 | BR119: =+S119 -> 0 | BS119: =+AE119 -> 0 | BT119: =+AQ119 -> 0 | BU119: =+BC119 -> 0 | BV119: =+BO119 -> 0
G120: Oneri Finanziari Rata | I120: =IF(I117>0,H121*$H110,0) -> 0 | J120: =IF(J117>0,I121*$H$110,0) -> 0 | K120: =IF(K117>0,J121*$H$110,0) -> 0 | L120: 0 | M120: 0 | N120: 0 | O120: 0 | P120: 0 | Q120: 0 | R120: 0 | S120: 0 | T120: 0 | U120: 0 | V120: 0 | W120: 0 | X120: 0 | Y120: 0 | Z120: 0 | AA120: 0 | AB120: 0 | AC120: 0 | AD120: 0 | AE120: 0 | AF120: 0 | AG120: 0 | AH120: 0 | AI120: 0 | AJ120: 0 | AK120: 0 | AL120: 0 | AM120: 0 | AN120: 0 | AO120: 0 | AP120: 0 | AQ120: 0 | AR120: 0 | AS120: 0 | AT120: 0 | AU120: 0 | AV120: 0 | AW120: 0 | AX120: 0 | AY120: 0 | AZ120: 0 | BA120: 0 | BB120: 0 | BC120: 0 | BD120: =IF(BD117>0,BC121*$H$110,0) -> 0 | BE120: 0 | BF120: 0 | BG120: 0 | BH120: 0 | BI120: 0 | BJ120: 0 | BK120: 0 | BL120: 0 | BM120: 0 | BN120: 0 | BO120: 0 | BR120: =+SUM(H120:S120) -> 0 | BS120: =+SUM(T120:AE120) -> 0 | BT120: =+SUM(AF120:AQ120) -> 0 | BU120: =+SUM(AR120:BC120) -> 0 | BV120: =+SUM(BD120:BO120) -> 0
G121: Debito Residuo | H121: =IF(H115=$DB105,($H107),IF(I115<$DB105,0,(($H107)-H119)*IF(F121<1,0,1))) -> 0 | I121: =IF(I115=$DB105,($H107),IF(J115<$DB105,0,(($H107)-I119)*IF(H121<1,0,1))) -> 0 | J121: 0 | K121: 0 | L121: 0 | M121: 0 | N121: 0 | O121: 0 | P121: 0 | Q121: 0 | R121: 0 | S121: 0 | T121: 0 | U121: 0 | V121: 0 | W121: 0 | X121: 0 | Y121: 0 | Z121: 0 | AA121: 0 | AB121: 0 | AC121: 0 | AD121: 0 | AE121: 0 | AF121: 0 | AG121: 0 | AH121: 0 | AI121: 0 | AJ121: 0 | AK121: 0 | AL121: 0 | AM121: 0 | AN121: 0 | AO121: 0 | AP121: 0 | AQ121: 0 | AR121: 0 | AS121: 0 | AT121: 0 | AU121: 0 | AV121: 0 | AW121: 0 | AX121: 0 | AY121: 0 | AZ121: 0 | BA121: 0 | BB121: 0 | BC121: 0 | BD121: =IF(BD115=$DB105,($H107),IF(BE115<$DB105,0,(($H107)-BD119)*IF(BC121<1,0,1))) -> 0 | BE121: 0 | BF121: 0 | BG121: 0 | BH121: 0 | BI121: 0 | BJ121: 0 | BK121: 0 | BL121: 0 | BM121: 0 | BN121: 0 | BO121: 0 | BR121: =+S121 -> 0 | BS121: =+AE121 -> 0 | BT121: =+AQ121 -> 0 | BU121: =+BC121 -> 0 | BV121: =+BO121 -> 0
E124: Finanziamento 6
F126: Parametri
G127: Data Stipula Contratto (mmm-aa) | H127: A1 m1 | DB127: =VLOOKUP($H127,configurazione!A67:B113,2,FALSE) -> 1
G128: Tasso di interesse annuale | H128: 0.09
G129: Finanziamento | H129: 0
G130: Durata (numero rate totali) | H130: 12
F132: Tasso di interesse effettivo mensile | H132: =((1+H128)^(1/12))-1 -> 0.007207323316
F134: Rata mensile (quota capitale + oneri finanziari) | H134: =(H129)/((1-(1+H132)^(-H130))/H132) -> 0
H136: =+SPm!I12 -> 2017-01-01 | I136: =+SPm!J12 -> 2017-02-28 | J136: =+SPm!K12 -> 2017-03-31 | K136: =+SPm!L12 -> 2017-04-30 | L136: =+SPm!M12 -> 2017-05-31 | M136: =+SPm!N12 -> 2017-06-30 | N136: =+SPm!O12 -> 2017-07-31 | O136: =+SPm!P12 -> 2017-08-31 | P136: =+SPm!Q12 -> 2017-09-30 | Q136: =+SPm!R12 -> 2017-10-31 | R136: =+SPm!S12 -> 2017-11-30 | S136: =+SPm!T12 -> 2017-12-31 | T136: =+SPm!U12 -> 2018-01-31 | U136: =+SPm!V12 -> 2018-02-28 | V136: =+SPm!W12 -> 2018-03-31 | W136: =+SPm!X12 -> 2018-04-30 | X136: =+SPm!Y12 -> 2018-05-31 | Y136: =+SPm!Z12 -> 2018-06-30 | Z136: =+SPm!AA12 -> 2018-07-31 | AA136: =+SPm!AB12 -> 2018-08-31 | AB136: =+SPm!AC12 -> 2018-09-30 | AC136: =+SPm!AD12 -> 2018-10-31 | AD136: =+SPm!AE12 -> 2018-11-30 | AE136: =+SPm!AF12 -> 2018-12-31 | AF136: =+SPm!AG12 -> 2019-01-31 | AG136: =+SPm!AH12 -> 2019-02-28 | AH136: =+SPm!AI12 -> 2019-03-31 | AI136: =+SPm!AJ12 -> 2019-04-30 | AJ136: =+SPm!AK12 -> 2019-05-31 | AK136: =+SPm!AL12 -> 2019-06-30 | AL136: =+SPm!AM12 -> 2019-07-31 | AM136: =+SPm!AN12 -> 2019-08-31 | AN136: =+SPm!AO12 -> 2019-09-30 | AO136: =+SPm!AP12 -> 2019-10-31 | AP136: =+SPm!AQ12 -> 2019-11-30 | AQ136: =+SPm!AR12 -> 2019-12-31 | AR136: =+SPm!AS12 -> 2020-01-31 | AS136: =+SPm!AT12 -> 2020-02-29 | AT136: =+SPm!AU12 -> 2020-03-31 | AU136: =+SPm!AV12 -> 2020-04-30 | AV136: =+SPm!AW12 -> 2020-05-31 | AW136: =+SPm!AX12 -> 2020-06-30 | AX136: =+SPm!AY12 -> 2020-07-31 | AY136: =+SPm!AZ12 -> 2020-08-31 | AZ136: =+SPm!BA12 -> 2020-09-30 | BA136: =+SPm!BB12 -> 2020-10-31 | BB136: =+SPm!BC12 -> 2020-11-30 | BC136: =+SPm!BD12 -> 2020-12-31 | BD136: =+SPm!BE12 -> 2021-01-31 | BE136: =+SPm!BF12 -> 2021-02-28 | BF136: =+SPm!BG12 -> 2021-03-31 | BG136: =+SPm!BH12 -> 2021-04-30 | BH136: =+SPm!BI12 -> 2021-05-31 | BI136: =+SPm!BJ12 -> 2021-06-30 | BJ136: =+SPm!BK12 -> 2021-07-31 | BK136: =+SPm!BL12 -> 2021-08-31 | BL136: =+SPm!BM12 -> 2021-09-30 | BM136: =+SPm!BN12 -> 2021-10-31 | BN136: =+SPm!BO12 -> 2021-11-30 | BO136: =+SPm!BP12 -> 2021-12-31 | BR136: =+YEAR(H136) -> 2017 | BS136: =+YEAR(T136) -> 2018 | BT136: =+YEAR(AF136) -> 2019 | BU136: =+YEAR(AR136) -> 2020 | BV136: =+YEAR(BD136) -> 2021
H137: =H27 -> 1 | I137: =I27 -> 2 | J137: 3 | K137: 4 | L137: 5 | M137: 6 | N137: 7 | O137: 8 | P137: 9 | Q137: 10 | R137: 11 | S137: 12 | T137: 13 | U137: 14 | V137: 15 | W137: 16 | X137: 17 | Y137: 18 | Z137: 19 | AA137: 20 | AB137: 21 | AC137: 22 | AD137: 23 | AE137: 24 | AF137: 25 | AG137: 26 | AH137: 27 | AI137: 28 | AJ137: 29 | AK137: 30 | AL137: 31 | AM137: 32 | AN137: 33 | AO137: 34 | AP137: 35 | AQ137: 36 | AR137: 37 | AS137: 38 | AT137: 39 | AU137: 40 | AV137: 41 | AW137: 42 | AX137: 43 | AY137: 44 | AZ137: 45 | BA137: 46 | BB137: 47 | BC137: 48 | BD137: 49 | BE137: 50 | BF137: 51 | BG137: 52 | BH137: 53 | BI137: 54 | BJ137: 55 | BK137: 56 | BL137: 57 | BM137: 58 | BN137: 59 | BO137: 60 | DC137: =+BO137+1 -> 61
F138: Finanziamento | H138: =H28 -> A1 m1 | I138: =I28 -> A1 m2 | J138: A1 m3 | K138: A1 m4 | L138: A1 m5 | M138: A1 m6 | N138: A1 m7 | O138: A1 m8 | P138: A1 m9 | Q138: A1 m10 | R138: A1 m11 | S138: A1 m12 | T138: A2 m1 | U138: A2 m2 | V138: A2 m3 | W138: A2 m4 | X138: A2 m5 | Y138: A2 m6 | Z138: A2 m7 | AA138: A2 m8 | AB138: A2 m9 | AC138: A2 m10 | AD138: A2 m11 | AE138: A2 m12 | AF138: A3 m1 | AG138: A3 m2 | AH138: A3 m3 | AI138: A3 m4 | AJ138: A3 m5 | AK138: A3 m6 | AL138: A3 m7 | AM138: A3 m8 | AN138: A3 m9 | AO138: A3 m10 | AP138: A3 m11 | AQ138: A3 m12 | AR138: A4 m1 | AS138: A4 m2 | AT138: A4 m3 | AU138: A4 m4 | AV138: A4 m5 | AW138: A4 m6 | AX138: A4 m7 | AY138: A4 m8 | AZ138: A4 m9 | BA138: A4 m10 | BB138: A4 m11 | BC138: A4 m12 | BD138: A5 m1 | BE138: A5 m2 | BF138: A5 m3 | BG138: A5 m4 | BH138: A5 m5 | BI138: A5 m6 | BJ138: A5 m7 | BK138: A5 m8 | BL138: A5 m9 | BM138: A5 m10 | BN138: A5 m11 | BO138: A5 m12
G139: Rata | I139: =+IF(I137>=$DB127,$H134,0)*IF(H143<1,0,1) -> 0 | J139: 0 | K139: 0 | L139: 0 | M139: 0 | N139: 0 | O139: 0 | P139: 0 | Q139: 0 | R139: 0 | S139: 0 | T139: 0 | U139: 0 | V139: 0 | W139: 0 | X139: 0 | Y139: 0 | Z139: 0 | AA139: 0 | AB139: 0 | AC139: 0 | AD139: 0 | AE139: 0 | AF139: 0 | AG139: 0 | AH139: 0 | AI139: 0 | AJ139: 0 | AK139: 0 | AL139: 0 | AM139: 0 | AN139: 0 | AO139: 0 | AP139: 0 | AQ139: 0 | AR139: 0 | AS139: 0 | AT139: 0 | AU139: 0 | AV139: 0 | AW139: 0 | AX139: 0 | AY139: 0 | AZ139: 0 | BA139: 0 | BB139: 0 | BC139: 0 | BD139: =+IF(BD137>=$DB127,$H134,0)*IF(BC143<1,0,1) -> 0 | BE139: 0 | BF139: 0 | BG139: 0 | BH139: 0 | BI139: 0 | BJ139: 0 | BK139: 0 | BL139: 0 | BM139: 0 | BN139: 0 | BO139: 0 | BR139: =+SUM(H139:S139) -> 0 | BS139: =+SUM(T139:AE139) -> 0 | BT139: =+SUM(AF139:AQ139) -> 0 | BU139: =+SUM(AR139:BC139) -> 0 | BV139: =+SUM(BD139:BO139) -> 0
G140: Quota Capitale Rata | I140: =I139-I142 -> 0 | J140: 0 | K140: 0 | L140: 0 | M140: 0 | N140: 0 | O140: 0 | P140: 0 | Q140: 0 | R140: 0 | S140: 0 | T140: 0 | U140: 0 | V140: 0 | W140: 0 | X140: 0 | Y140: 0 | Z140: 0 | AA140: 0 | AB140: 0 | AC140: 0 | AD140: 0 | AE140: 0 | AF140: 0 | AG140: 0 | AH140: 0 | AI140: 0 | AJ140: 0 | AK140: 0 | AL140: 0 | AM140: 0 | AN140: 0 | AO140: 0 | AP140: 0 | AQ140: =AQ139-AQ142 -> 0 | AR140: =AR139-AR142 -> 0 | AS140: 0 | AT140: 0 | AU140: 0 | AV140: 0 | AW140: 0 | AX140: 0 | AY140: 0 | AZ140: =AZ139-AZ142 -> 0 | BA140: =BA139-BA142 -> 0 | BB140: =BB139-BB142 -> 0 | BC140: =BC139-BC142 -> 0 | BD140: =BD139-BD142 -> 0 | BE140: 0 | BF140: 0 | BG140: 0 | BH140: 0 | BI140: 0 | BJ140: 0 | BK140: 0 | BL140: 0 | BM140: 0 | BN140: 0 | BO140: 0 | BR140: =+SUM(H140:S140) -> 0 | BS140: =+SUM(T140:AE140) -> 0 | BT140: =+SUM(AF140:AQ140) -> 0 | BU140: =+SUM(AR140:BC140) -> 0 | BV140: =+SUM(BD140:BO140) -> 0
G141: Quota Capitale Cumulata | I141: =(I140+H141)*(IF(H143<1,0,1)) -> 0 | J141: 0 | K141: 0 | L141: 0 | M141: 0 | N141: 0 | O141: 0 | P141: 0 | Q141: 0 | R141: 0 | S141: 0 | T141: 0 | U141: 0 | V141: 0 | W141: =(W140+V141)*(IF(V143<1,0,1)) -> 0 | X141: =(X140+W141)*(IF(W143<1,0,1)) -> 0 | Y141: 0 | Z141: 0 | AA141: 0 | AB141: 0 | AC141: 0 | AD141: 0 | AE141: 0 | AF141: 0 | AG141: 0 | AH141: 0 | AI141: 0 | AJ141: 0 | AK141: 0 | AL141: 0 | AM141: 0 | AN141: 0 | AO141: 0 | AP141: 0 | AQ141: =(AQ140+AP141)*(IF(AP143<1,0,1)) -> 0 | AR141: 0 | AS141: 0 | AT141: 0 | AU141: 0 | AV141: 0 | AW141: 0 | AX141: 0 | AY141: 0 | AZ141: 0 | BA141: 0 | BB141: 0 | BC141: 0 | BD141: =(BD140+BC141)*(IF(BC143<1,0,1)) -> 0 | BE141: 0 | BF141: 0 | BG141: 0 | BH141: 0 | BI141: 0 | BJ141: 0 | BK141: 0 | BL141: 0 | BM141: 0 | BN141: 0 | BO141: 0 | BR141: =+S141 -> 0 | BS141: =+AE141 -> 0 | BT141: =+AQ141 -> 0 | BU141: =+BC141 -> 0 | BV141: =+BO141 -> 0
G142: Oneri Finanziari Rata | I142: =IF(I139>0,H143*$H132,0) -> 0 | J142: =IF(J139>0,I143*$H132,0) -> 0 | K142: 0 | L142: 0 | M142: 0 | N142: 0 | O142: 0 | P142: 0 | Q142: 0 | R142: 0 | S142: 0 | T142: 0 | U142: 0 | V142: 0 | W142: 0 | X142: 0 | Y142: 0 | Z142: 0 | AA142: 0 | AB142: 0 | AC142: 0 | AD142: 0 | AE142: 0 | AF142: 0 | AG142: 0 | AH142: 0 | AI142: 0 | AJ142: 0 | AK142: 0 | AL142: 0 | AM142: 0 | AN142: 0 | AO142: 0 | AP142: 0 | AQ142: 0 | AR142: 0 | AS142: 0 | AT142: 0 | AU142: 0 | AV142: 0 | AW142: 0 | AX142: 0 | AY142: 0 | AZ142: 0 | BA142: 0 | BB142: 0 | BC142: 0 | BD142: =IF(BD139>0,BC143*$H132,0) -> 0 | BE142: 0 | BF142: 0 | BG142: 0 | BH142: 0 | BI142: 0 | BJ142: 0 | BK142: 0 | BL142: 0 | BM142: 0 | BN142: 0 | BO142: 0 | BR142: =+SUM(H142:S142) -> 0 | BS142: =+SUM(T142:AE142) -> 0 | BT142: =+SUM(AF142:AQ142) -> 0 | BU142: =+SUM(AR142:BC142) -> 0 | BV142: =+SUM(BD142:BO142) -> 0
G143: Debito Residuo | H143: =IF(H137=$DB127,($H129),IF(I137<$DB127,0,(($H129)-H141)*IF(F143<1,0,1))) -> 0 | I143: =IF(I137=$DB127,($H129),IF(J137<$DB127,0,(($H129)-I141)*IF(H143<1,0,1))) -> 0 | J143: 0 | K143: 0 | L143: 0 | M143: 0 | N143: 0 | O143: 0 | P143: 0 | Q143: 0 | R143: 0 | S143: 0 | T143: 0 | U143: 0 | V143: 0 | W143: 0 | X143: 0 | Y143: 0 | Z143: 0 | AA143: 0 | AB143: 0 | AC143: 0 | AD143: 0 | AE143: 0 | AF143: 0 | AG143: 0 | AH143: 0 | AI143: 0 | AJ143: 0 | AK143: 0 | AL143: 0 | AM143: 0 | AN143: 0 | AO143: 0 | AP143: 0 | AQ143: 0 | AR143: 0 | AS143: 0 | AT143: 0 | AU143: 0 | AV143: 0 | AW143: 0 | AX143: 0 | AY143: 0 | AZ143: 0 | BA143: 0 | BB143: 0 | BC143: 0 | BD143: =IF(BD137=$DB127,($H129),IF(BE137<$DB127,0,(($H129)-BD141)*IF(BC143<1,0,1))) -> 0 | BE143: 0 | BF143: 0 | BG143: 0 | BH143: 0 | BI143: 0 | BJ143: 0 | BK143: 0 | BL143: 0 | BM143: 0 | BN143: 0 | BO143: 0 | BR143: =+S143 -> 0 | BS143: =+AE143 -> 0 | BT143: =+AQ143 -> 0 | BU143: =+BC143 -> 0 | BV143: =+BO143 -> 0
E146: Finanziamento 7
F148: Parametri
G149: Data Stipula Contratto (mmm-aa) | H149: A1 m1 | DB149: =VLOOKUP($H149,configurazione!A67:B113,2,FALSE) -> 1
G150: Tasso di interesse annuale | H150: 0.09
G151: Finanziamento | H151: 0
G152: Durata (numero rate totali) | H152: 12
F154: Tasso di interesse effettivo mensile | H154: =((1+H150)^(1/12))-1 -> 0.007207323316
F156: Rata mensile (quota capitale + oneri finanziari) | H156: =(H151)/((1-(1+H154)^(-H152))/H154) -> 0
H158: =+SPm!I12 -> 2017-01-01 | I158: =+SPm!J12 -> 2017-02-28 | J158: =+SPm!K12 -> 2017-03-31 | K158: =+SPm!L12 -> 2017-04-30 | L158: =+SPm!M12 -> 2017-05-31 | M158: =+SPm!N12 -> 2017-06-30 | N158: =+SPm!O12 -> 2017-07-31 | O158: =+SPm!P12 -> 2017-08-31 | P158: =+SPm!Q12 -> 2017-09-30 | Q158: =+SPm!R12 -> 2017-10-31 | R158: =+SPm!S12 -> 2017-11-30 | S158: =+SPm!T12 -> 2017-12-31 | T158: =+SPm!U12 -> 2018-01-31 | U158: =+SPm!V12 -> 2018-02-28 | V158: =+SPm!W12 -> 2018-03-31 | W158: =+SPm!X12 -> 2018-04-30 | X158: =+SPm!Y12 -> 2018-05-31 | Y158: =+SPm!Z12 -> 2018-06-30 | Z158: =+SPm!AA12 -> 2018-07-31 | AA158: =+SPm!AB12 -> 2018-08-31 | AB158: =+SPm!AC12 -> 2018-09-30 | AC158: =+SPm!AD12 -> 2018-10-31 | AD158: =+SPm!AE12 -> 2018-11-30 | AE158: =+SPm!AF12 -> 2018-12-31 | AF158: =+SPm!AG12 -> 2019-01-31 | AG158: =+SPm!AH12 -> 2019-02-28 | AH158: =+SPm!AI12 -> 2019-03-31 | AI158: =+SPm!AJ12 -> 2019-04-30 | AJ158: =+SPm!AK12 -> 2019-05-31 | AK158: =+SPm!AL12 -> 2019-06-30 | AL158: =+SPm!AM12 -> 2019-07-31 | AM158: =+SPm!AN12 -> 2019-08-31 | AN158: =+SPm!AO12 -> 2019-09-30 | AO158: =+SPm!AP12 -> 2019-10-31 | AP158: =+SPm!AQ12 -> 2019-11-30 | AQ158: =+SPm!AR12 -> 2019-12-31 | AR158: =+SPm!AS12 -> 2020-01-31 | AS158: =+SPm!AT12 -> 2020-02-29 | AT158: =+SPm!AU12 -> 2020-03-31 | AU158: =+SPm!AV12 -> 2020-04-30 | AV158: =+SPm!AW12 -> 2020-05-31 | AW158: =+SPm!AX12 -> 2020-06-30 | AX158: =+SPm!AY12 -> 2020-07-31 | AY158: =+SPm!AZ12 -> 2020-08-31 | AZ158: =+SPm!BA12 -> 2020-09-30 | BA158: =+SPm!BB12 -> 2020-10-31 | BB158: =+SPm!BC12 -> 2020-11-30 | BC158: =+SPm!BD12 -> 2020-12-31 | BD158: =+SPm!BE12 -> 2021-01-31 | BE158: =+SPm!BF12 -> 2021-02-28 | BF158: =+SPm!BG12 -> 2021-03-31 | BG158: =+SPm!BH12 -> 2021-04-30 | BH158: =+SPm!BI12 -> 2021-05-31 | BI158: =+SPm!BJ12 -> 2021-06-30 | BJ158: =+SPm!BK12 -> 2021-07-31 | BK158: =+SPm!BL12 -> 2021-08-31 | BL158: =+SPm!BM12 -> 2021-09-30 | BM158: =+SPm!BN12 -> 2021-10-31 | BN158: =+SPm!BO12 -> 2021-11-30 | BO158: =+SPm!BP12 -> 2021-12-31 | BR158: =+YEAR(H158) -> 2017 | BS158: =+YEAR(T158) -> 2018 | BT158: =+YEAR(AF158) -> 2019 | BU158: =+YEAR(AR158) -> 2020 | BV158: =+YEAR(BD158) -> 2021
H159: =H27 -> 1 | I159: =I27 -> 2 | J159: 3 | K159: 4 | L159: 5 | M159: 6 | N159: 7 | O159: 8 | P159: 9 | Q159: 10 | R159: 11 | S159: 12 | T159: 13 | U159: 14 | V159: 15 | W159: 16 | X159: 17 | Y159: 18 | Z159: 19 | AA159: 20 | AB159: 21 | AC159: 22 | AD159: 23 | AE159: 24 | AF159: 25 | AG159: 26 | AH159: 27 | AI159: 28 | AJ159: 29 | AK159: 30 | AL159: 31 | AM159: 32 | AN159: 33 | AO159: 34 | AP159: 35 | AQ159: 36 | AR159: 37 | AS159: 38 | AT159: 39 | AU159: 40 | AV159: 41 | AW159: 42 | AX159: 43 | AY159: 44 | AZ159: 45 | BA159: 46 | BB159: 47 | BC159: 48 | BD159: 49 | BE159: 50 | BF159: 51 | BG159: 52 | BH159: 53 | BI159: 54 | BJ159: 55 | BK159: 56 | BL159: 57 | BM159: 58 | BN159: 59 | BO159: 60 | DC159: =+BO159+1 -> 61
F160: Finanziamento | H160: =H28 -> A1 m1 | I160: =I28 -> A1 m2 | J160: A1 m3 | K160: A1 m4 | L160: A1 m5 | M160: A1 m6 | N160: A1 m7 | O160: A1 m8 | P160: A1 m9 | Q160: A1 m10 | R160: A1 m11 | S160: A1 m12 | T160: A2 m1 | U160: A2 m2 | V160: A2 m3 | W160: A2 m4 | X160: A2 m5 | Y160: A2 m6 | Z160: A2 m7 | AA160: A2 m8 | AB160: A2 m9 | AC160: A2 m10 | AD160: A2 m11 | AE160: A2 m12 | AF160: A3 m1 | AG160: A3 m2 | AH160: A3 m3 | AI160: A3 m4 | AJ160: A3 m5 | AK160: A3 m6 | AL160: A3 m7 | AM160: A3 m8 | AN160: A3 m9 | AO160: A3 m10 | AP160: A3 m11 | AQ160: A3 m12 | AR160: A4 m1 | AS160: A4 m2 | AT160: A4 m3 | AU160: A4 m4 | AV160: A4 m5 | AW160: A4 m6 | AX160: A4 m7 | AY160: A4 m8 | AZ160: A4 m9 | BA160: A4 m10 | BB160: A4 m11 | BC160: A4 m12 | BD160: A5 m1 | BE160: A5 m2 | BF160: A5 m3 | BG160: A5 m4 | BH160: A5 m5 | BI160: A5 m6 | BJ160: A5 m7 | BK160: A5 m8 | BL160: A5 m9 | BM160: A5 m10 | BN160: A5 m11 | BO160: A5 m12
G161: Rata | I161: =+IF(I159>=$DB149,$H156,0)*IF(H165<1,0,1) -> 0 | J161: =+IF(J159>=$DB149,$H156,0)*IF(I165<1,0,1) -> 0 | K161: =+IF(K159>=$DB149,$H156,0)*IF(J165<1,0,1) -> 0 | L161: 0 | M161: 0 | N161: 0 | O161: 0 | P161: 0 | Q161: 0 | R161: 0 | S161: 0 | T161: 0 | U161: 0 | V161: 0 | W161: 0 | X161: 0 | Y161: 0 | Z161: 0 | AA161: 0 | AB161: 0 | AC161: 0 | AD161: 0 | AE161: 0 | AF161: 0 | AG161: 0 | AH161: 0 | AI161: 0 | AJ161: 0 | AK161: 0 | AL161: 0 | AM161: 0 | AN161: 0 | AO161: 0 | AP161: 0 | AQ161: =+IF(AQ159>=$DB149,$H156,0)*IF(AP165<1,0,1) -> 0 | AR161: 0 | AS161: 0 | AT161: 0 | AU161: 0 | AV161: 0 | AW161: 0 | AX161: 0 | AY161: 0 | AZ161: 0 | BA161: 0 | BB161: 0 | BC161: 0 | BD161: 0 | BE161: 0 | BF161: 0 | BG161: 0 | BH161: 0 | BI161: 0 | BJ161: 0 | BK161: 0 | BL161: 0 | BM161: 0 | BN161: 0 | BO161: 0 | BR161: =+SUM(H161:S161) -> 0 | BS161: =+SUM(T161:AE161) -> 0 | BT161: =+SUM(AF161:AQ161) -> 0 | BU161: =+SUM(AR161:BC161) -> 0 | BV161: =+SUM(BD161:BO161) -> 0
G162: Quota Capitale Rata | I162: =I161-I164 -> 0 | J162: =J161-J164 -> 0 | K162: =K161-K164 -> 0 | L162: 0 | M162: 0 | N162: 0 | O162: 0 | P162: 0 | Q162: 0 | R162: 0 | S162: 0 | T162: 0 | U162: 0 | V162: 0 | W162: 0 | X162: 0 | Y162: 0 | Z162: 0 | AA162: 0 | AB162: 0 | AC162: 0 | AD162: 0 | AE162: 0 | AF162: 0 | AG162: 0 | AH162: 0 | AI162: 0 | AJ162: 0 | AK162: 0 | AL162: 0 | AM162: 0 | AN162: 0 | AO162: 0 | AP162: 0 | AQ162: 0 | AR162: 0 | AS162: 0 | AT162: 0 | AU162: 0 | AV162: 0 | AW162: 0 | AX162: 0 | AY162: 0 | AZ162: 0 | BA162: 0 | BB162: 0 | BC162: 0 | BD162: 0 | BE162: 0 | BF162: 0 | BG162: 0 | BH162: 0 | BI162: 0 | BJ162: 0 | BK162: 0 | BL162: 0 | BM162: 0 | BN162: 0 | BO162: 0 | BR162: =+SUM(H162:S162) -> 0 | BS162: =+SUM(T162:AE162) -> 0 | BT162: =+SUM(AF162:AQ162) -> 0 | BU162: =+SUM(AR162:BC162) -> 0 | BV162: =+SUM(BD162:BO162) -> 0
G163: Quota Capitale Cumulata | I163: =(I162+H163)*(IF(H165<1,0,1)) -> 0 | J163: =(J162+I163)*(IF(I165<1,0,1)) -> 0 | K163: =(K162+J163)*(IF(J165<1,0,1)) -> 0 | L163: 0 | M163: 0 | N163: 0 | O163: 0 | P163: 0 | Q163: 0 | R163: 0 | S163: 0 | T163: 0 | U163: 0 | V163: 0 | W163: 0 | X163: 0 | Y163: 0 | Z163: 0 | AA163: 0 | AB163: 0 | AC163: 0 | AD163: 0 | AE163: 0 | AF163: 0 | AG163: 0 | AH163: 0 | AI163: 0 | AJ163: 0 | AK163: 0 | AL163: 0 | AM163: 0 | AN163: 0 | AO163: 0 | AP163: 0 | AQ163: =(AQ162+AP163)*(IF(AP165<1,0,1)) -> 0 | AR163: 0 | AS163: 0 | AT163: 0 | AU163: 0 | AV163: 0 | AW163: 0 | AX163: 0 | AY163: 0 | AZ163: 0 | BA163: 0 | BB163: 0 | BC163: 0 | BD163: 0 | BE163: 0 | BF163: 0 | BG163: 0 | BH163: 0 | BI163: 0 | BJ163: 0 | BK163: 0 | BL163: 0 | BM163: 0 | BN163: 0 | BO163: 0 | BR163: =+S163 -> 0 | BS163: =+AE163 -> 0 | BT163: =+AQ163 -> 0 | BU163: =+BC163 -> 0 | BV163: =+BO163 -> 0
G164: Oneri Finanziari Rata | I164: =IF(I161>0,H165*$H154,0) -> 0 | J164: =IF(J161>0,I165*$H$154,0) -> 0 | K164: =IF(K161>0,J165*$H$154,0) -> 0 | L164: 0 | M164: 0 | N164: 0 | O164: 0 | P164: 0 | Q164: 0 | R164: 0 | S164: 0 | T164: 0 | U164: 0 | V164: 0 | W164: 0 | X164: 0 | Y164: 0 | Z164: 0 | AA164: 0 | AB164: 0 | AC164: 0 | AD164: 0 | AE164: 0 | AF164: 0 | AG164: 0 | AH164: 0 | AI164: 0 | AJ164: 0 | AK164: 0 | AL164: 0 | AM164: 0 | AN164: 0 | AO164: 0 | AP164: 0 | AQ164: 0 | AR164: 0 | AS164: 0 | AT164: 0 | AU164: 0 | AV164: 0 | AW164: 0 | AX164: 0 | AY164: 0 | AZ164: 0 | BA164: 0 | BB164: 0 | BC164: 0 | BD164: 0 | BE164: 0 | BF164: 0 | BG164: 0 | BH164: 0 | BI164: 0 | BJ164: 0 | BK164: 0 | BL164: 0 | BM164: 0 | BN164: 0 | BO164: 0 | BR164: =+SUM(H164:S164) -> 0 | BS164: =+SUM(T164:AE164) -> 0 | BT164: =+SUM(AF164:AQ164) -> 0 | BU164: =+SUM(AR164:BC164) -> 0 | BV164: =+SUM(BD164:BO164) -> 0
G165: Debito Residuo | H165: =IF(H159=$DB149,($H151),IF(I159<$DB149,0,(($H151)-H163)*IF(F165<1,0,1))) -> 0 | I165: =IF(I159=$DB149,($H151),IF(J159<$DB149,0,(($H151)-I163)*IF(H165<1,0,1))) -> 0 | J165: =IF(J159=$DB149,($H151),IF(K159<$DB149,0,(($H151)-J163)*IF(I165<1,0,1))) -> 0 | K165: =IF(K159=$DB149,($H151),IF(L159<$DB149,0,(($H151)-K163)*IF(J165<1,0,1))) -> 0 | L165: 0 | M165: 0 | N165: 0 | O165: 0 | P165: 0 | Q165: 0 | R165: 0 | S165: 0 | T165: 0 | U165: 0 | V165: 0 | W165: 0 | X165: 0 | Y165: 0 | Z165: 0 | AA165: 0 | AB165: 0 | AC165: 0 | AD165: 0 | AE165: 0 | AF165: 0 | AG165: 0 | AH165: 0 | AI165: 0 | AJ165: 0 | AK165: 0 | AL165: 0 | AM165: 0 | AN165: 0 | AO165: 0 | AP165: 0 | AQ165: =IF(AQ159=$DB149,($H151),IF(AR159<$DB149,0,(($H151)-AQ163)*IF(AP165<1,0,1))) -> 0 | AR165: 0 | AS165: 0 | AT165: 0 | AU165: 0 | AV165: 0 | AW165: 0 | AX165: 0 | AY165: 0 | AZ165: 0 | BA165: 0 | BB165: 0 | BC165: 0 | BD165: 0 | BE165: 0 | BF165: 0 | BG165: 0 | BH165: 0 | BI165: 0 | BJ165: 0 | BK165: 0 | BL165: 0 | BM165: 0 | BN165: 0 | BO165: 0 | BR165: =+S165 -> 0 | BS165: =+AE165 -> 0 | BT165: =+AQ165 -> 0 | BU165: =+BC165 -> 0 | BV165: =+BO165 -> 0
E168: Finanziamento 8
F170: Parametri
G171: Data Stipula Contratto (mmm-aa) | H171: A1 m1 | DB171: =VLOOKUP($H171,configurazione!A67:B113,2,FALSE) -> 1
G172: Tasso di interesse annuale | H172: 0.09
G173: Finanziamento | H173: 0
G174: Durata (numero rate totali) | H174: 12
F176: Tasso di interesse effettivo mensile | H176: =((1+H172)^(1/12))-1 -> 0.007207323316
F178: Rata mensile (quota capitale + oneri finanziari) | H178: =(H173)/((1-(1+H176)^(-H174))/H176) -> 0
H180: =+SPm!I12 -> 2017-01-01 | I180: =+SPm!J12 -> 2017-02-28 | J180: =+SPm!K12 -> 2017-03-31 | K180: =+SPm!L12 -> 2017-04-30 | L180: =+SPm!M12 -> 2017-05-31 | M180: =+SPm!N12 -> 2017-06-30 | N180: =+SPm!O12 -> 2017-07-31 | O180: =+SPm!P12 -> 2017-08-31 | P180: =+SPm!Q12 -> 2017-09-30 | Q180: =+SPm!R12 -> 2017-10-31 | R180: =+SPm!S12 -> 2017-11-30 | S180: =+SPm!T12 -> 2017-12-31 | T180: =+SPm!U12 -> 2018-01-31 | U180: =+SPm!V12 -> 2018-02-28 | V180: =+SPm!W12 -> 2018-03-31 | W180: =+SPm!X12 -> 2018-04-30 | X180: =+SPm!Y12 -> 2018-05-31 | Y180: =+SPm!Z12 -> 2018-06-30 | Z180: =+SPm!AA12 -> 2018-07-31 | AA180: =+SPm!AB12 -> 2018-08-31 | AB180: =+SPm!AC12 -> 2018-09-30 | AC180: =+SPm!AD12 -> 2018-10-31 | AD180: =+SPm!AE12 -> 2018-11-30 | AE180: =+SPm!AF12 -> 2018-12-31 | AF180: =+SPm!AG12 -> 2019-01-31 | AG180: =+SPm!AH12 -> 2019-02-28 | AH180: =+SPm!AI12 -> 2019-03-31 | AI180: =+SPm!AJ12 -> 2019-04-30 | AJ180: =+SPm!AK12 -> 2019-05-31 | AK180: =+SPm!AL12 -> 2019-06-30 | AL180: =+SPm!AM12 -> 2019-07-31 | AM180: =+SPm!AN12 -> 2019-08-31 | AN180: =+SPm!AO12 -> 2019-09-30 | AO180: =+SPm!AP12 -> 2019-10-31 | AP180: =+SPm!AQ12 -> 2019-11-30 | AQ180: =+SPm!AR12 -> 2019-12-31 | AR180: =+SPm!AS12 -> 2020-01-31 | AS180: =+SPm!AT12 -> 2020-02-29 | AT180: =+SPm!AU12 -> 2020-03-31 | AU180: =+SPm!AV12 -> 2020-04-30 | AV180: =+SPm!AW12 -> 2020-05-31 | AW180: =+SPm!AX12 -> 2020-06-30 | AX180: =+SPm!AY12 -> 2020-07-31 | AY180: =+SPm!AZ12 -> 2020-08-31 | AZ180: =+SPm!BA12 -> 2020-09-30 | BA180: =+SPm!BB12 -> 2020-10-31 | BB180: =+SPm!BC12 -> 2020-11-30 | BC180: =+SPm!BD12 -> 2020-12-31 | BD180: =+SPm!BE12 -> 2021-01-31 | BE180: =+SPm!BF12 -> 2021-02-28 | BF180: =+SPm!BG12 -> 2021-03-31 | BG180: =+SPm!BH12 -> 2021-04-30 | BH180: =+SPm!BI12 -> 2021-05-31 | BI180: =+SPm!BJ12 -> 2021-06-30 | BJ180: =+SPm!BK12 -> 2021-07-31 | BK180: =+SPm!BL12 -> 2021-08-31 | BL180: =+SPm!BM12 -> 2021-09-30 | BM180: =+SPm!BN12 -> 2021-10-31 | BN180: =+SPm!BO12 -> 2021-11-30 | BO180: =+SPm!BP12 -> 2021-12-31 | BR180: =+YEAR(H180) -> 2017 | BS180: =+YEAR(T180) -> 2018 | BT180: =+YEAR(AF180) -> 2019 | BU180: =+YEAR(AR180) -> 2020 | BV180: =+YEAR(BD180) -> 2021
H181: =H27 -> 1 | I181: =I27 -> 2 | J181: 3 | K181: 4 | L181: 5 | M181: 6 | N181: 7 | O181: 8 | P181: 9 | Q181: 10 | R181: 11 | S181: 12 | T181: 13 | U181: 14 | V181: 15 | W181: 16 | X181: 17 | Y181: 18 | Z181: 19 | AA181: 20 | AB181: 21 | AC181: 22 | AD181: 23 | AE181: 24 | AF181: 25 | AG181: 26 | AH181: 27 | AI181: 28 | AJ181: 29 | AK181: 30 | AL181: 31 | AM181: 32 | AN181: 33 | AO181: 34 | AP181: 35 | AQ181: 36 | AR181: 37 | AS181: 38 | AT181: 39 | AU181: 40 | AV181: 41 | AW181: 42 | AX181: 43 | AY181: 44 | AZ181: 45 | BA181: 46 | BB181: 47 | BC181: 48 | BD181: 49 | BE181: 50 | BF181: 51 | BG181: 52 | BH181: 53 | BI181: 54 | BJ181: 55 | BK181: 56 | BL181: 57 | BM181: 58 | BN181: 59 | BO181: 60 | DC181: =+BO181+1 -> 61
F182: Finanziamento | H182: =H28 -> A1 m1 | I182: =I28 -> A1 m2 | J182: A1 m3 | K182: A1 m4 | L182: A1 m5 | M182: A1 m6 | N182: A1 m7 | O182: A1 m8 | P182: A1 m9 | Q182: A1 m10 | R182: A1 m11 | S182: A1 m12 | T182: A2 m1 | U182: A2 m2 | V182: A2 m3 | W182: A2 m4 | X182: A2 m5 | Y182: A2 m6 | Z182: A2 m7 | AA182: A2 m8 | AB182: A2 m9 | AC182: A2 m10 | AD182: A2 m11 | AE182: A2 m12 | AF182: A3 m1 | AG182: A3 m2 | AH182: A3 m3 | AI182: A3 m4 | AJ182: A3 m5 | AK182: A3 m6 | AL182: A3 m7 | AM182: A3 m8 | AN182: A3 m9 | AO182: A3 m10 | AP182: A3 m11 | AQ182: A3 m12 | AR182: A4 m1 | AS182: A4 m2 | AT182: A4 m3 | AU182: A4 m4 | AV182: A4 m5 | AW182: A4 m6 | AX182: A4 m7 | AY182: A4 m8 | AZ182: A4 m9 | BA182: A4 m10 | BB182: A4 m11 | BC182: A4 m12 | BD182: A5 m1 | BE182: A5 m2 | BF182: A5 m3 | BG182: A5 m4 | BH182: A5 m5 | BI182: A5 m6 | BJ182: A5 m7 | BK182: A5 m8 | BL182: A5 m9 | BM182: A5 m10 | BN182: A5 m11 | BO182: A5 m12
G183: Rata | I183: =+IF(I181>=$DB171,$H178,0)*IF(H187<1,0,1) -> 0 | J183: =+IF(J181>=$DB171,$H178,0)*IF(I187<1,0,1) -> 0 | K183: =+IF(K181>=$DB171,$H178,0)*IF(J187<1,0,1) -> 0 | L183: 0 | M183: 0 | N183: 0 | O183: 0 | P183: 0 | Q183: 0 | R183: 0 | S183: 0 | T183: 0 | U183: 0 | V183: 0 | W183: 0 | X183: 0 | Y183: 0 | Z183: 0 | AA183: 0 | AB183: 0 | AC183: 0 | AD183: 0 | AE183: 0 | AF183: 0 | AG183: 0 | AH183: 0 | AI183: 0 | AJ183: 0 | AK183: 0 | AL183: 0 | AM183: 0 | AN183: 0 | AO183: 0 | AP183: 0 | AQ183: =+IF(AQ181>=$DB171,$H178,0)*IF(AP187<1,0,1) -> 0 | AR183: 0 | AS183: 0 | AT183: 0 | AU183: 0 | AV183: 0 | AW183: 0 | AX183: 0 | AY183: 0 | AZ183: 0 | BA183: 0 | BB183: 0 | BC183: 0 | BD183: 0 | BE183: 0 | BF183: 0 | BG183: 0 | BH183: 0 | BI183: 0 | BJ183: 0 | BK183: 0 | BL183: 0 | BM183: 0 | BN183: 0 | BO183: 0 | BR183: =+SUM(H183:S183) -> 0 | BS183: =+SUM(T183:AE183) -> 0 | BT183: =+SUM(AF183:AQ183) -> 0 | BU183: =+SUM(AR183:BC183) -> 0 | BV183: =+SUM(BD183:BO183) -> 0
G184: Quota Capitale Rata | I184: =I183-I186 -> 0 | J184: =J183-J186 -> 0 | K184: =K183-K186 -> 0 | L184: 0 | M184: 0 | N184: 0 | O184: 0 | P184: 0 | Q184: 0 | R184: 0 | S184: 0 | T184: 0 | U184: 0 | V184: 0 | W184: 0 | X184: 0 | Y184: 0 | Z184: 0 | AA184: 0 | AB184: 0 | AC184: 0 | AD184: 0 | AE184: 0 | AF184: 0 | AG184: 0 | AH184: 0 | AI184: 0 | AJ184: 0 | AK184: 0 | AL184: 0 | AM184: 0 | AN184: 0 | AO184: 0 | AP184: 0 | AQ184: 0 | AR184: 0 | AS184: 0 | AT184: 0 | AU184: 0 | AV184: 0 | AW184: 0 | AX184: 0 | AY184: 0 | AZ184: 0 | BA184: 0 | BB184: 0 | BC184: 0 | BD184: 0 | BE184: 0 | BF184: 0 | BG184: 0 | BH184: 0 | BI184: 0 | BJ184: 0 | BK184: 0 | BL184: 0 | BM184: 0 | BN184: 0 | BO184: 0 | BR184: =+SUM(H184:S184) -> 0 | BS184: =+SUM(T184:AE184) -> 0 | BT184: =+SUM(AF184:AQ184) -> 0 | BU184: =+SUM(AR184:BC184) -> 0 | BV184: =+SUM(BD184:BO184) -> 0
G185: Quota Capitale Cumulata | I185: =(I184+H185)*(IF(H187<1,0,1)) -> 0 | J185: =(J184+I185)*(IF(I187<1,0,1)) -> 0 | K185: =(K184+J185)*(IF(J187<1,0,1)) -> 0 | L185: 0 | M185: 0 | N185: 0 | O185: 0 | P185: 0 | Q185: 0 | R185: 0 | S185: 0 | T185: 0 | U185: 0 | V185: 0 | W185: 0 | X185: 0 | Y185: 0 | Z185: 0 | AA185: 0 | AB185: 0 | AC185: 0 | AD185: 0 | AE185: 0 | AF185: 0 | AG185: 0 | AH185: 0 | AI185: 0 | AJ185: 0 | AK185: 0 | AL185: 0 | AM185: 0 | AN185: 0 | AO185: 0 | AP185: 0 | AQ185: =(AQ184+AP185)*(IF(AP187<1,0,1)) -> 0 | AR185: 0 | AS185: 0 | AT185: 0 | AU185: 0 | AV185: 0 | AW185: 0 | AX185: 0 | AY185: 0 | AZ185: 0 | BA185: 0 | BB185: 0 | BC185: 0 | BD185: 0 | BE185: 0 | BF185: 0 | BG185: 0 | BH185: 0 | BI185: 0 | BJ185: 0 | BK185: 0 | BL185: 0 | BM185: 0 | BN185: 0 | BO185: 0 | BR185: =+S185 -> 0 | BS185: =+AE185 -> 0 | BT185: =+AQ185 -> 0 | BU185: =+BC185 -> 0 | BV185: =+BO185 -> 0
G186: Oneri Finanziari Rata | I186: =IF(I183>0,H187*$H176,0) -> 0 | J186: =IF(J183>0,I187*$H$176,0) -> 0 | K186: =IF(K183>0,J187*$H$176,0) -> 0 | L186: 0 | M186: 0 | N186: 0 | O186: 0 | P186: 0 | Q186: 0 | R186: 0 | S186: 0 | T186: 0 | U186: 0 | V186: 0 | W186: 0 | X186: 0 | Y186: 0 | Z186: 0 | AA186: 0 | AB186: 0 | AC186: 0 | AD186: 0 | AE186: 0 | AF186: 0 | AG186: 0 | AH186: 0 | AI186: 0 | AJ186: 0 | AK186: 0 | AL186: 0 | AM186: 0 | AN186: 0 | AO186: 0 | AP186: 0 | AQ186: 0 | AR186: 0 | AS186: 0 | AT186: 0 | AU186: 0 | AV186: 0 | AW186: 0 | AX186: 0 | AY186: 0 | AZ186: 0 | BA186: 0 | BB186: 0 | BC186: 0 | BD186: 0 | BE186: 0 | BF186: 0 | BG186: 0 | BH186: 0 | BI186: 0 | BJ186: 0 | BK186: 0 | BL186: 0 | BM186: 0 | BN186: 0 | BO186: 0 | BR186: =+SUM(H186:S186) -> 0 | BS186: =+SUM(T186:AE186) -> 0 | BT186: =+SUM(AF186:AQ186) -> 0 | BU186: =+SUM(AR186:BC186) -> 0 | BV186: =+SUM(BD186:BO186) -> 0
G187: Debito Residuo | H187: =IF(H181=$DB171,($H173),IF(I181<$DB171,0,(($H173)-H185)*IF(F187<1,0,1))) -> 0 | I187: =IF(I181=$DB171,($H173),IF(J181<$DB171,0,(($H173)-I185)*IF(H187<1,0,1))) -> 0 | J187: =IF(J181=$DB171,($H173),IF(K181<$DB171,0,(($H173)-J185)*IF(I187<1,0,1))) -> 0 | K187: =IF(K181=$DB171,($H173),IF(L181<$DB171,0,(($H173)-K185)*IF(J187<1,0,1))) -> 0 | L187: 0 | M187: 0 | N187: 0 | O187: 0 | P187: 0 | Q187: 0 | R187: 0 | S187: 0 | T187: 0 | U187: 0 | V187: 0 | W187: 0 | X187: 0 | Y187: 0 | Z187: 0 | AA187: 0 | AB187: 0 | AC187: 0 | AD187: 0 | AE187: 0 | AF187: 0 | AG187: 0 | AH187: 0 | AI187: 0 | AJ187: 0 | AK187: 0 | AL187: 0 | AM187: 0 | AN187: 0 | AO187: 0 | AP187: 0 | AQ187: =IF(AQ181=$DB171,($H173),IF(AR181<$DB171,0,(($H173)-AQ185)*IF(AP187<1,0,1))) -> 0 | AR187: 0 | AS187: 0 | AT187: 0 | AU187: 0 | AV187: 0 | AW187: 0 | AX187: 0 | AY187: 0 | AZ187: 0 | BA187: 0 | BB187: 0 | BC187: 0 | BD187: 0 | BE187: 0 | BF187: 0 | BG187: 0 | BH187: 0 | BI187: 0 | BJ187: 0 | BK187: 0 | BL187: 0 | BM187: 0 | BN187: 0 | BO187: 0 | BR187: =+S187 -> 0 | BS187: =+AE187 -> 0 | BT187: =+AQ187 -> 0 | BU187: =+BC187 -> 0 | BV187: =+BO187 -> 0
E190: Finanziamento 9
F192: Parametri
G193: Data Stipula Contratto (mmm-aa) | H193: A1 m1 | DB193: =VLOOKUP($H193,configurazione!A67:B113,2,FALSE) -> 1
G194: Tasso di interesse annuale | H194: 0.09
G195: Finanziamento | H195: 0
G196: Durata (numero rate totali) | H196: 12
F198: Tasso di interesse effettivo mensile | H198: =((1+H194)^(1/12))-1 -> 0.007207323316
F200: Rata mensile (quota capitale + oneri finanziari) | H200: =(H195)/((1-(1+H198)^(-H196))/H198) -> 0
H202: =+SPm!I12 -> 2017-01-01 | I202: =+SPm!J12 -> 2017-02-28 | J202: =+SPm!K12 -> 2017-03-31 | K202: =+SPm!L12 -> 2017-04-30 | L202: =+SPm!M12 -> 2017-05-31 | M202: =+SPm!N12 -> 2017-06-30 | N202: =+SPm!O12 -> 2017-07-31 | O202: =+SPm!P12 -> 2017-08-31 | P202: =+SPm!Q12 -> 2017-09-30 | Q202: =+SPm!R12 -> 2017-10-31 | R202: =+SPm!S12 -> 2017-11-30 | S202: =+SPm!T12 -> 2017-12-31 | T202: =+SPm!U12 -> 2018-01-31 | U202: =+SPm!V12 -> 2018-02-28 | V202: =+SPm!W12 -> 2018-03-31 | W202: =+SPm!X12 -> 2018-04-30 | X202: =+SPm!Y12 -> 2018-05-31 | Y202: =+SPm!Z12 -> 2018-06-30 | Z202: =+SPm!AA12 -> 2018-07-31 | AA202: =+SPm!AB12 -> 2018-08-31 | AB202: =+SPm!AC12 -> 2018-09-30 | AC202: =+SPm!AD12 -> 2018-10-31 | AD202: =+SPm!AE12 -> 2018-11-30 | AE202: =+SPm!AF12 -> 2018-12-31 | AF202: =+SPm!AG12 -> 2019-01-31 | AG202: =+SPm!AH12 -> 2019-02-28 | AH202: =+SPm!AI12 -> 2019-03-31 | AI202: =+SPm!AJ12 -> 2019-04-30 | AJ202: =+SPm!AK12 -> 2019-05-31 | AK202: =+SPm!AL12 -> 2019-06-30 | AL202: =+SPm!AM12 -> 2019-07-31 | AM202: =+SPm!AN12 -> 2019-08-31 | AN202: =+SPm!AO12 -> 2019-09-30 | AO202: =+SPm!AP12 -> 2019-10-31 | AP202: =+SPm!AQ12 -> 2019-11-30 | AQ202: =+SPm!AR12 -> 2019-12-31 | AR202: =+SPm!AS12 -> 2020-01-31 | AS202: =+SPm!AT12 -> 2020-02-29 | AT202: =+SPm!AU12 -> 2020-03-31 | AU202: =+SPm!AV12 -> 2020-04-30 | AV202: =+SPm!AW12 -> 2020-05-31 | AW202: =+SPm!AX12 -> 2020-06-30 | AX202: =+SPm!AY12 -> 2020-07-31 | AY202: =+SPm!AZ12 -> 2020-08-31 | AZ202: =+SPm!BA12 -> 2020-09-30 | BA202: =+SPm!BB12 -> 2020-10-31 | BB202: =+SPm!BC12 -> 2020-11-30 | BC202: =+SPm!BD12 -> 2020-12-31 | BD202: =+SPm!BE12 -> 2021-01-31 | BE202: =+SPm!BF12 -> 2021-02-28 | BF202: =+SPm!BG12 -> 2021-03-31 | BG202: =+SPm!BH12 -> 2021-04-30 | BH202: =+SPm!BI12 -> 2021-05-31 | BI202: =+SPm!BJ12 -> 2021-06-30 | BJ202: =+SPm!BK12 -> 2021-07-31 | BK202: =+SPm!BL12 -> 2021-08-31 | BL202: =+SPm!BM12 -> 2021-09-30 | BM202: =+SPm!BN12 -> 2021-10-31 | BN202: =+SPm!BO12 -> 2021-11-30 | BO202: =+SPm!BP12 -> 2021-12-31 | BR202: =+YEAR(H202) -> 2017 | BS202: =+YEAR(T202) -> 2018 | BT202: =+YEAR(AF202) -> 2019 | BU202: =+YEAR(AR202) -> 2020 | BV202: =+YEAR(BD202) -> 2021
H203: =H27 -> 1 | I203: =I27 -> 2 | J203: 3 | K203: 4 | L203: 5 | M203: 6 | N203: 7 | O203: 8 | P203: 9 | Q203: 10 | R203: 11 | S203: 12 | T203: 13 | U203: 14 | V203: 15 | W203: 16 | X203: 17 | Y203: 18 | Z203: 19 | AA203: 20 | AB203: 21 | AC203: 22 | AD203: 23 | AE203: 24 | AF203: 25 | AG203: 26 | AH203: 27 | AI203: 28 | AJ203: 29 | AK203: 30 | AL203: 31 | AM203: 32 | AN203: 33 | AO203: 34 | AP203: 35 | AQ203: 36 | AR203: 37 | AS203: 38 | AT203: 39 | AU203: 40 | AV203: 41 | AW203: 42 | AX203: 43 | AY203: 44 | AZ203: 45 | BA203: 46 | BB203: 47 | BC203: 48 | BD203: 49 | BE203: 50 | BF203: 51 | BG203: 52 | BH203: 53 | BI203: 54 | BJ203: 55 | BK203: 56 | BL203: 57 | BM203: 58 | BN203: 59 | BO203: 60 | DC203: =+BO203+1 -> 61
F204: Finanziamento | H204: =H28 -> A1 m1 | I204: =I28 -> A1 m2 | J204: A1 m3 | K204: A1 m4 | L204: A1 m5 | M204: A1 m6 | N204: A1 m7 | O204: A1 m8 | P204: A1 m9 | Q204: A1 m10 | R204: A1 m11 | S204: A1 m12 | T204: A2 m1 | U204: A2 m2 | V204: A2 m3 | W204: A2 m4 | X204: A2 m5 | Y204: A2 m6 | Z204: A2 m7 | AA204: A2 m8 | AB204: A2 m9 | AC204: A2 m10 | AD204: A2 m11 | AE204: A2 m12 | AF204: A3 m1 | AG204: A3 m2 | AH204: A3 m3 | AI204: A3 m4 | AJ204: A3 m5 | AK204: A3 m6 | AL204: A3 m7 | AM204: A3 m8 | AN204: A3 m9 | AO204: A3 m10 | AP204: A3 m11 | AQ204: A3 m12 | AR204: A4 m1 | AS204: A4 m2 | AT204: A4 m3 | AU204: A4 m4 | AV204: A4 m5 | AW204: A4 m6 | AX204: A4 m7 | AY204: A4 m8 | AZ204: A4 m9 | BA204: A4 m10 | BB204: A4 m11 | BC204: A4 m12 | BD204: A5 m1 | BE204: A5 m2 | BF204: A5 m3 | BG204: A5 m4 | BH204: A5 m5 | BI204: A5 m6 | BJ204: A5 m7 | BK204: A5 m8 | BL204: A5 m9 | BM204: A5 m10 | BN204: A5 m11 | BO204: A5 m12
G205: Rata | I205: =+IF(I203>=$DB193,$H200,0)*IF(H209<1,0,1) -> 0 | J205: =+IF(J203>=$DB193,$H200,0)*IF(I209<1,0,1) -> 0 | K205: =+IF(K203>=$DB193,$H200,0)*IF(J209<1,0,1) -> 0 | L205: 0 | M205: 0 | N205: 0 | O205: 0 | P205: 0 | Q205: 0 | R205: 0 | S205: 0 | T205: 0 | U205: 0 | V205: 0 | W205: 0 | X205: 0 | Y205: 0 | Z205: 0 | AA205: 0 | AB205: 0 | AC205: 0 | AD205: 0 | AE205: 0 | AF205: 0 | AG205: 0 | AH205: 0 | AI205: 0 | AJ205: 0 | AK205: 0 | AL205: 0 | AM205: 0 | AN205: 0 | AO205: 0 | AP205: 0 | AQ205: =+IF(AQ203>=$DB193,$H200,0)*IF(AP209<1,0,1) -> 0 | AR205: 0 | AS205: 0 | AT205: 0 | AU205: 0 | AV205: 0 | AW205: 0 | AX205: 0 | AY205: 0 | AZ205: 0 | BA205: 0 | BB205: 0 | BC205: 0 | BD205: 0 | BE205: 0 | BF205: 0 | BG205: 0 | BH205: 0 | BI205: 0 | BJ205: 0 | BK205: 0 | BL205: 0 | BM205: 0 | BN205: 0 | BO205: 0 | BR205: =+SUM(H205:S205) -> 0 | BS205: =+SUM(T205:AE205) -> 0 | BT205: =+SUM(AF205:AQ205) -> 0 | BU205: =+SUM(AR205:BC205) -> 0 | BV205: =+SUM(BD205:BO205) -> 0
G206: Quota Capitale Rata | I206: =I205-I208 -> 0 | J206: =J205-J208 -> 0 | K206: =K205-K208 -> 0 | L206: 0 | M206: 0 | N206: 0 | O206: 0 | P206: 0 | Q206: 0 | R206: 0 | S206: 0 | T206: 0 | U206: 0 | V206: 0 | W206: 0 | X206: 0 | Y206: 0 | Z206: 0 | AA206: 0 | AB206: 0 | AC206: 0 | AD206: 0 | AE206: 0 | AF206: 0 | AG206: 0 | AH206: 0 | AI206: 0 | AJ206: 0 | AK206: 0 | AL206: 0 | AM206: 0 | AN206: 0 | AO206: 0 | AP206: 0 | AQ206: 0 | AR206: 0 | AS206: 0 | AT206: 0 | AU206: 0 | AV206: 0 | AW206: 0 | AX206: 0 | AY206: 0 | AZ206: 0 | BA206: 0 | BB206: 0 | BC206: 0 | BD206: 0 | BE206: 0 | BF206: 0 | BG206: 0 | BH206: 0 | BI206: 0 | BJ206: 0 | BK206: 0 | BL206: 0 | BM206: 0 | BN206: 0 | BO206: 0 | BR206: =+SUM(H206:S206) -> 0 | BS206: =+SUM(T206:AE206) -> 0 | BT206: =+SUM(AF206:AQ206) -> 0 | BU206: =+SUM(AR206:BC206) -> 0 | BV206: =+SUM(BD206:BO206) -> 0
G207: Quota Capitale Cumulata | I207: =(I206+H207)*(IF(H209<1,0,1)) -> 0 | J207: =(J206+I207)*(IF(I209<1,0,1)) -> 0 | K207: =(K206+J207)*(IF(J209<1,0,1)) -> 0 | L207: 0 | M207: 0 | N207: 0 | O207: 0 | P207: 0 | Q207: 0 | R207: 0 | S207: 0 | T207: 0 | U207: 0 | V207: 0 | W207: 0 | X207: 0 | Y207: 0 | Z207: 0 | AA207: 0 | AB207: 0 | AC207: 0 | AD207: 0 | AE207: 0 | AF207: 0 | AG207: 0 | AH207: 0 | AI207: 0 | AJ207: 0 | AK207: 0 | AL207: 0 | AM207: 0 | AN207: 0 | AO207: 0 | AP207: 0 | AQ207: =(AQ206+AP207)*(IF(AP209<1,0,1)) -> 0 | AR207: 0 | AS207: 0 | AT207: 0 | AU207: 0 | AV207: 0 | AW207: 0 | AX207: 0 | AY207: 0 | AZ207: 0 | BA207: 0 | BB207: 0 | BC207: 0 | BD207: 0 | BE207: 0 | BF207: 0 | BG207: 0 | BH207: 0 | BI207: 0 | BJ207: 0 | BK207: 0 | BL207: 0 | BM207: 0 | BN207: 0 | BO207: 0 | BR207: =+S207 -> 0 | BS207: =+AE207 -> 0 | BT207: =+AQ207 -> 0 | BU207: =+BC207 -> 0 | BV207: =+BO207 -> 0
G208: Oneri Finanziari Rata | I208: =IF(I205>0,H209*$H198,0) -> 0 | J208: =IF(J205>0,I209*$H$198,0) -> 0 | K208: =IF(K205>0,J209*$H$198,0) -> 0 | L208: 0 | M208: 0 | N208: 0 | O208: 0 | P208: 0 | Q208: 0 | R208: 0 | S208: 0 | T208: 0 | U208: 0 | V208: 0 | W208: 0 | X208: 0 | Y208: 0 | Z208: 0 | AA208: 0 | AB208: 0 | AC208: 0 | AD208: 0 | AE208: 0 | AF208: 0 | AG208: 0 | AH208: 0 | AI208: 0 | AJ208: 0 | AK208: 0 | AL208: 0 | AM208: 0 | AN208: 0 | AO208: 0 | AP208: 0 | AQ208: 0 | AR208: 0 | AS208: 0 | AT208: 0 | AU208: 0 | AV208: 0 | AW208: 0 | AX208: 0 | AY208: 0 | AZ208: 0 | BA208: 0 | BB208: 0 | BC208: 0 | BD208: 0 | BE208: 0 | BF208: 0 | BG208: 0 | BH208: 0 | BI208: 0 | BJ208: 0 | BK208: 0 | BL208: 0 | BM208: 0 | BN208: 0 | BO208: 0 | BR208: =+SUM(H208:S208) -> 0 | BS208: =+SUM(T208:AE208) -> 0 | BT208: =+SUM(AF208:AQ208) -> 0 | BU208: =+SUM(AR208:BC208) -> 0 | BV208: =+SUM(BD208:BO208) -> 0
G209: Debito Residuo | H209: =IF(H203=$DB193,($H195),IF(I203<$DB193,0,(($H195)-H207)*IF(F209<1,0,1))) -> 0 | I209: =IF(I203=$DB193,($H195),IF(J203<$DB193,0,(($H195)-I207)*IF(H209<1,0,1))) -> 0 | J209: =IF(J203=$DB193,($H195),IF(K203<$DB193,0,(($H195)-J207)*IF(I209<1,0,1))) -> 0 | K209: =IF(K203=$DB193,($H195),IF(L203<$DB193,0,(($H195)-K207)*IF(J209<1,0,1))) -> 0 | L209: 0 | M209: 0 | N209: 0 | O209: 0 | P209: 0 | Q209: 0 | R209: 0 | S209: 0 | T209: 0 | U209: 0 | V209: 0 | W209: 0 | X209: 0 | Y209: 0 | Z209: 0 | AA209: 0 | AB209: 0 | AC209: 0 | AD209: 0 | AE209: 0 | AF209: 0 | AG209: 0 | AH209: 0 | AI209: 0 | AJ209: 0 | AK209: 0 | AL209: 0 | AM209: 0 | AN209: 0 | AO209: 0 | AP209: 0 | AQ209: =IF(AQ203=$DB193,($H195),IF(AR203<$DB193,0,(($H195)-AQ207)*IF(AP209<1,0,1))) -> 0 | AR209: 0 | AS209: 0 | AT209: 0 | AU209: 0 | AV209: 0 | AW209: 0 | AX209: 0 | AY209: 0 | AZ209: 0 | BA209: 0 | BB209: 0 | BC209: 0 | BD209: 0 | BE209: 0 | BF209: 0 | BG209: 0 | BH209: 0 | BI209: 0 | BJ209: 0 | BK209: 0 | BL209: 0 | BM209: 0 | BN209: 0 | BO209: 0 | BR209: =+S209 -> 0 | BS209: =+AE209 -> 0 | BT209: =+AQ209 -> 0 | BU209: =+BC209 -> 0 | BV209: =+BO209 -> 0
E212: Finanziamento 10
F214: Parametri
G215: Data Stipula Contratto (mmm-aa) | H215: A1 m1 | DB215: =VLOOKUP($H215,configurazione!A67:B113,2,FALSE) -> 1
G216: Tasso di interesse annuale | H216: 0.09
G217: Finanziamento | H217: 0
G218: Durata (numero rate totali) | H218: 12
F220: Tasso di interesse effettivo mensile | H220: =((1+H216)^(1/12))-1 -> 0.007207323316
F222: Rata mensile (quota capitale + oneri finanziari) | H222: =(H217)/((1-(1+H220)^(-H218))/H220) -> 0
H224: =+SPm!I12 -> 2017-01-01 | I224: =+SPm!J12 -> 2017-02-28 | J224: =+SPm!K12 -> 2017-03-31 | K224: =+SPm!L12 -> 2017-04-30 | L224: =+SPm!M12 -> 2017-05-31 | M224: =+SPm!N12 -> 2017-06-30 | N224: =+SPm!O12 -> 2017-07-31 | O224: =+SPm!P12 -> 2017-08-31 | P224: =+SPm!Q12 -> 2017-09-30 | Q224: =+SPm!R12 -> 2017-10-31 | R224: =+SPm!S12 -> 2017-11-30 | S224: =+SPm!T12 -> 2017-12-31 | T224: =+SPm!U12 -> 2018-01-31 | U224: =+SPm!V12 -> 2018-02-28 | V224: =+SPm!W12 -> 2018-03-31 | W224: =+SPm!X12 -> 2018-04-30 | X224: =+SPm!Y12 -> 2018-05-31 | Y224: =+SPm!Z12 -> 2018-06-30 | Z224: =+SPm!AA12 -> 2018-07-31 | AA224: =+SPm!AB12 -> 2018-08-31 | AB224: =+SPm!AC12 -> 2018-09-30 | AC224: =+SPm!AD12 -> 2018-10-31 | AD224: =+SPm!AE12 -> 2018-11-30 | AE224: =+SPm!AF12 -> 2018-12-31 | AF224: =+SPm!AG12 -> 2019-01-31 | AG224: =+SPm!AH12 -> 2019-02-28 | AH224: =+SPm!AI12 -> 2019-03-31 | AI224: =+SPm!AJ12 -> 2019-04-30 | AJ224: =+SPm!AK12 -> 2019-05-31 | AK224: =+SPm!AL12 -> 2019-06-30 | AL224: =+SPm!AM12 -> 2019-07-31 | AM224: =+SPm!AN12 -> 2019-08-31 | AN224: =+SPm!AO12 -> 2019-09-30 | AO224: =+SPm!AP12 -> 2019-10-31 | AP224: =+SPm!AQ12 -> 2019-11-30 | AQ224: =+SPm!AR12 -> 2019-12-31 | AR224: =+SPm!AS12 -> 2020-01-31 | AS224: =+SPm!AT12 -> 2020-02-29 | AT224: =+SPm!AU12 -> 2020-03-31 | AU224: =+SPm!AV12 -> 2020-04-30 | AV224: =+SPm!AW12 -> 2020-05-31 | AW224: =+SPm!AX12 -> 2020-06-30 | AX224: =+SPm!AY12 -> 2020-07-31 | AY224: =+SPm!AZ12 -> 2020-08-31 | AZ224: =+SPm!BA12 -> 2020-09-30 | BA224: =+SPm!BB12 -> 2020-10-31 | BB224: =+SPm!BC12 -> 2020-11-30 | BC224: =+SPm!BD12 -> 2020-12-31 | BD224: =+SPm!BE12 -> 2021-01-31 | BE224: =+SPm!BF12 -> 2021-02-28 | BF224: =+SPm!BG12 -> 2021-03-31 | BG224: =+SPm!BH12 -> 2021-04-30 | BH224: =+SPm!BI12 -> 2021-05-31 | BI224: =+SPm!BJ12 -> 2021-06-30 | BJ224: =+SPm!BK12 -> 2021-07-31 | BK224: =+SPm!BL12 -> 2021-08-31 | BL224: =+SPm!BM12 -> 2021-09-30 | BM224: =+SPm!BN12 -> 2021-10-31 | BN224: =+SPm!BO12 -> 2021-11-30 | BO224: =+SPm!BP12 -> 2021-12-31 | BR224: =+YEAR(H224) -> 2017 | BS224: =+YEAR(T224) -> 2018 | BT224: =+YEAR(AF224) -> 2019 | BU224: =+YEAR(AR224) -> 2020 | BV224: =+YEAR(BD224) -> 2021
H225: =H27 -> 1 | I225: =I27 -> 2 | J225: 3 | K225: 4 | L225: 5 | M225: 6 | N225: 7 | O225: 8 | P225: 9 | Q225: 10 | R225: 11 | S225: 12 | T225: 13 | U225: 14 | V225: 15 | W225: 16 | X225: 17 | Y225: 18 | Z225: 19 | AA225: 20 | AB225: 21 | AC225: 22 | AD225: 23 | AE225: 24 | AF225: 25 | AG225: 26 | AH225: 27 | AI225: 28 | AJ225: 29 | AK225: 30 | AL225: 31 | AM225: 32 | AN225: 33 | AO225: 34 | AP225: 35 | AQ225: 36 | AR225: 37 | AS225: 38 | AT225: 39 | AU225: 40 | AV225: 41 | AW225: 42 | AX225: 43 | AY225: 44 | AZ225: 45 | BA225: 46 | BB225: 47 | BC225: 48 | BD225: 49 | BE225: 50 | BF225: 51 | BG225: 52 | BH225: 53 | BI225: 54 | BJ225: 55 | BK225: 56 | BL225: 57 | BM225: 58 | BN225: 59 | BO225: 60 | DC225: =+BO225+1 -> 61
F226: Finanziamento | H226: =H28 -> A1 m1 | I226: =I28 -> A1 m2 | J226: A1 m3 | K226: A1 m4 | L226: A1 m5 | M226: A1 m6 | N226: A1 m7 | O226: A1 m8 | P226: A1 m9 | Q226: A1 m10 | R226: A1 m11 | S226: A1 m12 | T226: A2 m1 | U226: A2 m2 | V226: A2 m3 | W226: A2 m4 | X226: A2 m5 | Y226: A2 m6 | Z226: A2 m7 | AA226: A2 m8 | AB226: A2 m9 | AC226: A2 m10 | AD226: A2 m11 | AE226: A2 m12 | AF226: A3 m1 | AG226: A3 m2 | AH226: A3 m3 | AI226: A3 m4 | AJ226: A3 m5 | AK226: A3 m6 | AL226: A3 m7 | AM226: A3 m8 | AN226: A3 m9 | AO226: A3 m10 | AP226: A3 m11 | AQ226: A3 m12 | AR226: A4 m1 | AS226: A4 m2 | AT226: A4 m3 | AU226: A4 m4 | AV226: A4 m5 | AW226: A4 m6 | AX226: A4 m7 | AY226: A4 m8 | AZ226: A4 m9 | BA226: A4 m10 | BB226: A4 m11 | BC226: A4 m12 | BD226: A5 m1 | BE226: A5 m2 | BF226: A5 m3 | BG226: A5 m4 | BH226: A5 m5 | BI226: A5 m6 | BJ226: A5 m7 | BK226: A5 m8 | BL226: A5 m9 | BM226: A5 m10 | BN226: A5 m11 | BO226: A5 m12
G227: Rata | I227: =+IF(I225>=$DB215,$H222,0)*IF(H231<1,0,1) -> 0 | J227: =+IF(J225>=$DB215,$H222,0)*IF(I231<1,0,1) -> 0 | K227: =+IF(K225>=$DB215,$H222,0)*IF(J231<1,0,1) -> 0 | L227: 0 | M227: 0 | N227: 0 | O227: 0 | P227: 0 | Q227: 0 | R227: 0 | S227: 0 | T227: 0 | U227: 0 | V227: 0 | W227: 0 | X227: 0 | Y227: 0 | Z227: 0 | AA227: 0 | AB227: 0 | AC227: 0 | AD227: 0 | AE227: 0 | AF227: 0 | AG227: 0 | AH227: 0 | AI227: 0 | AJ227: 0 | AK227: 0 | AL227: 0 | AM227: 0 | AN227: 0 | AO227: 0 | AP227: 0 | AQ227: =+IF(AQ225>=$DB215,$H222,0)*IF(AP231<1,0,1) -> 0 | AR227: 0 | AS227: 0 | AT227: 0 | AU227: 0 | AV227: 0 | AW227: 0 | AX227: 0 | AY227: 0 | AZ227: 0 | BA227: 0 | BB227: 0 | BC227: 0 | BD227: 0 | BE227: 0 | BF227: 0 | BG227: 0 | BH227: 0 | BI227: 0 | BJ227: 0 | BK227: 0 | BL227: 0 | BM227: 0 | BN227: 0 | BO227: 0 | BR227: =+SUM(H227:S227) -> 0 | BS227: =+SUM(T227:AE227) -> 0 | BT227: =+SUM(AF227:AQ227) -> 0 | BU227: =+SUM(AR227:BC227) -> 0 | BV227: =+SUM(BD227:BO227) -> 0
G228: Quota Capitale Rata | I228: =I227-I230 -> 0 | J228: =J227-J230 -> 0 | K228: =K227-K230 -> 0 | L228: 0 | M228: 0 | N228: 0 | O228: 0 | P228: 0 | Q228: 0 | R228: 0 | S228: 0 | T228: 0 | U228: 0 | V228: 0 | W228: 0 | X228: 0 | Y228: 0 | Z228: 0 | AA228: 0 | AB228: 0 | AC228: 0 | AD228: 0 | AE228: 0 | AF228: 0 | AG228: 0 | AH228: 0 | AI228: 0 | AJ228: 0 | AK228: 0 | AL228: 0 | AM228: 0 | AN228: 0 | AO228: 0 | AP228: 0 | AQ228: 0 | AR228: 0 | AS228: 0 | AT228: 0 | AU228: 0 | AV228: 0 | AW228: 0 | AX228: 0 | AY228: 0 | AZ228: 0 | BA228: 0 | BB228: 0 | BC228: 0 | BD228: 0 | BE228: 0 | BF228: 0 | BG228: 0 | BH228: 0 | BI228: 0 | BJ228: 0 | BK228: 0 | BL228: 0 | BM228: 0 | BN228: 0 | BO228: 0 | BR228: =+SUM(H228:S228) -> 0 | BS228: =+SUM(T228:AE228) -> 0 | BT228: =+SUM(AF228:AQ228) -> 0 | BU228: =+SUM(AR228:BC228) -> 0 | BV228: =+SUM(BD228:BO228) -> 0
G229: Quota Capitale Cumulata | I229: =(I228+H229)*(IF(H231<1,0,1)) -> 0 | J229: =(J228+I229)*(IF(I231<1,0,1)) -> 0 | K229: =(K228+J229)*(IF(J231<1,0,1)) -> 0 | L229: 0 | M229: 0 | N229: 0 | O229: 0 | P229: 0 | Q229: 0 | R229: 0 | S229: 0 | T229: 0 | U229: 0 | V229: 0 | W229: 0 | X229: 0 | Y229: 0 | Z229: 0 | AA229: 0 | AB229: 0 | AC229: 0 | AD229: 0 | AE229: 0 | AF229: 0 | AG229: 0 | AH229: 0 | AI229: 0 | AJ229: 0 | AK229: 0 | AL229: 0 | AM229: 0 | AN229: 0 | AO229: 0 | AP229: 0 | AQ229: =(AQ228+AP229)*(IF(AP231<1,0,1)) -> 0 | AR229: 0 | AS229: 0 | AT229: 0 | AU229: 0 | AV229: 0 | AW229: 0 | AX229: 0 | AY229: 0 | AZ229: 0 | BA229: 0 | BB229: 0 | BC229: 0 | BD229: 0 | BE229: 0 | BF229: 0 | BG229: 0 | BH229: 0 | BI229: 0 | BJ229: 0 | BK229: 0 | BL229: 0 | BM229: 0 | BN229: 0 | BO229: 0 | BR229: =+S229 -> 0 | BS229: =+AE229 -> 0 | BT229: =+AQ229 -> 0 | BU229: =+BC229 -> 0 | BV229: =+BO229 -> 0
G230: Oneri Finanziari Rata | I230: =IF(I227>0,H231*$H220,0) -> 0 | J230: =IF(J227>0,I231*$H$220,0) -> 0 | K230: =IF(K227>0,J231*$H$220,0) -> 0 | L230: 0 | M230: 0 | N230: 0 | O230: 0 | P230: 0 | Q230: 0 | R230: 0 | S230: 0 | T230: 0 | U230: 0 | V230: 0 | W230: 0 | X230: 0 | Y230: 0 | Z230: 0 | AA230: 0 | AB230: 0 | AC230: 0 | AD230: 0 | AE230: 0 | AF230: 0 | AG230: 0 | AH230: 0 | AI230: 0 | AJ230: 0 | AK230: 0 | AL230: 0 | AM230: 0 | AN230: 0 | AO230: 0 | AP230: 0 | AQ230: 0 | AR230: 0 | AS230: 0 | AT230: 0 | AU230: 0 | AV230: 0 | AW230: 0 | AX230: 0 | AY230: 0 | AZ230: 0 | BA230: 0 | BB230: 0 | BC230: 0 | BD230: 0 | BE230: 0 | BF230: 0 | BG230: 0 | BH230: 0 | BI230: 0 | BJ230: 0 | BK230: 0 | BL230: 0 | BM230: 0 | BN230: 0 | BO230: 0 | BR230: =+SUM(H230:S230) -> 0 | BS230: =+SUM(T230:AE230) -> 0 | BT230: =+SUM(AF230:AQ230) -> 0 | BU230: =+SUM(AR230:BC230) -> 0 | BV230: =+SUM(BD230:BO230) -> 0
G231: Debito Residuo | H231: =IF(H225=$DB215,($H217),IF(I225<$DB215,0,(($H217)-H229)*IF(F231<1,0,1))) -> 0 | I231: =IF(I225=$DB215,($H217),IF(J225<$DB215,0,(($H217)-I229)*IF(H231<1,0,1))) -> 0 | J231: =IF(J225=$DB215,($H217),IF(K225<$DB215,0,(($H217)-J229)*IF(I231<1,0,1))) -> 0 | K231: =IF(K225=$DB215,($H217),IF(L225<$DB215,0,(($H217)-K229)*IF(J231<1,0,1))) -> 0 | L231: 0 | M231: 0 | N231: 0 | O231: 0 | P231: 0 | Q231: 0 | R231: 0 | S231: 0 | T231: 0 | U231: 0 | V231: 0 | W231: 0 | X231: 0 | Y231: 0 | Z231: 0 | AA231: 0 | AB231: 0 | AC231: 0 | AD231: 0 | AE231: 0 | AF231: 0 | AG231: 0 | AH231: 0 | AI231: 0 | AJ231: 0 | AK231: 0 | AL231: 0 | AM231: 0 | AN231: 0 | AO231: 0 | AP231: 0 | AQ231: =IF(AQ225=$DB215,($H217),IF(AR225<$DB215,0,(($H217)-AQ229)*IF(AP231<1,0,1))) -> 0 | AR231: 0 | AS231: 0 | AT231: 0 | AU231: 0 | AV231: 0 | AW231: 0 | AX231: 0 | AY231: 0 | AZ231: 0 | BA231: 0 | BB231: 0 | BC231: 0 | BD231: 0 | BE231: 0 | BF231: 0 | BG231: 0 | BH231: 0 | BI231: 0 | BJ231: 0 | BK231: 0 | BL231: 0 | BM231: 0 | BN231: 0 | BO231: 0 | BR231: =+S231 -> 0 | BS231: =+AE231 -> 0 | BT231: =+AQ231 -> 0 | BU231: =+BC231 -> 0 | BV231: =+BO231 -> 0
E234: Riepilogo totale
H236: =+SPm!I12 -> 2017-01-01 | I236: =+SPm!J12 -> 2017-02-28 | J236: =+SPm!K12 -> 2017-03-31 | K236: =+SPm!L12 -> 2017-04-30 | L236: =+SPm!M12 -> 2017-05-31 | M236: =+SPm!N12 -> 2017-06-30 | N236: =+SPm!O12 -> 2017-07-31 | O236: =+SPm!P12 -> 2017-08-31 | P236: =+SPm!Q12 -> 2017-09-30 | Q236: =+SPm!R12 -> 2017-10-31 | R236: =+SPm!S12 -> 2017-11-30 | S236: =+SPm!T12 -> 2017-12-31 | T236: =+SPm!U12 -> 2018-01-31 | U236: =+SPm!V12 -> 2018-02-28 | V236: =+SPm!W12 -> 2018-03-31 | W236: =+SPm!X12 -> 2018-04-30 | X236: =+SPm!Y12 -> 2018-05-31 | Y236: =+SPm!Z12 -> 2018-06-30 | Z236: =+SPm!AA12 -> 2018-07-31 | AA236: =+SPm!AB12 -> 2018-08-31 | AB236: =+SPm!AC12 -> 2018-09-30 | AC236: =+SPm!AD12 -> 2018-10-31 | AD236: =+SPm!AE12 -> 2018-11-30 | AE236: =+SPm!AF12 -> 2018-12-31 | AF236: =+SPm!AG12 -> 2019-01-31 | AG236: =+SPm!AH12 -> 2019-02-28 | AH236: =+SPm!AI12 -> 2019-03-31 | AI236: =+SPm!AJ12 -> 2019-04-30 | AJ236: =+SPm!AK12 -> 2019-05-31 | AK236: =+SPm!AL12 -> 2019-06-30 | AL236: =+SPm!AM12 -> 2019-07-31 | AM236: =+SPm!AN12 -> 2019-08-31 | AN236: =+SPm!AO12 -> 2019-09-30 | AO236: =+SPm!AP12 -> 2019-10-31 | AP236: =+SPm!AQ12 -> 2019-11-30 | AQ236: =+SPm!AR12 -> 2019-12-31 | AR236: =+SPm!AS12 -> 2020-01-31 | AS236: =+SPm!AT12 -> 2020-02-29 | AT236: =+SPm!AU12 -> 2020-03-31 | AU236: =+SPm!AV12 -> 2020-04-30 | AV236: =+SPm!AW12 -> 2020-05-31 | AW236: =+SPm!AX12 -> 2020-06-30 | AX236: =+SPm!AY12 -> 2020-07-31 | AY236: =+SPm!AZ12 -> 2020-08-31 | AZ236: =+SPm!BA12 -> 2020-09-30 | BA236: =+SPm!BB12 -> 2020-10-31 | BB236: =+SPm!BC12 -> 2020-11-30 | BC236: =+SPm!BD12 -> 2020-12-31 | BD236: =+SPm!BE12 -> 2021-01-31 | BE236: =+SPm!BF12 -> 2021-02-28 | BF236: =+SPm!BG12 -> 2021-03-31 | BG236: =+SPm!BH12 -> 2021-04-30 | BH236: =+SPm!BI12 -> 2021-05-31 | BI236: =+SPm!BJ12 -> 2021-06-30 | BJ236: =+SPm!BK12 -> 2021-07-31 | BK236: =+SPm!BL12 -> 2021-08-31 | BL236: =+SPm!BM12 -> 2021-09-30 | BM236: =+SPm!BN12 -> 2021-10-31 | BN236: =+SPm!BO12 -> 2021-11-30 | BO236: =+SPm!BP12 -> 2021-12-31 | BR236: =+YEAR(H236) -> 2017 | BS236: =+YEAR(T236) -> 2018 | BT236: =+YEAR(AF236) -> 2019 | BU236: =+YEAR(AR236) -> 2020 | BV236: =+YEAR(BD236) -> 2021
H237: =+H27 -> 1 | I237: =+I27 -> 2 | J237: 3 | K237: 4 | L237: 5 | M237: 6 | N237: 7 | O237: 8 | P237: 9 | Q237: 10 | R237: 11 | S237: 12 | T237: 13 | U237: 14 | V237: 15 | W237: 16 | X237: 17 | Y237: 18 | Z237: 19 | AA237: 20 | AB237: 21 | AC237: 22 | AD237: 23 | AE237: 24 | AF237: 25 | AG237: 26 | AH237: 27 | AI237: 28 | AJ237: 29 | AK237: 30 | AL237: 31 | AM237: 32 | AN237: 33 | AO237: 34 | AP237: 35 | AQ237: 36 | AR237: 37 | AS237: 38 | AT237: 39 | AU237: 40 | AV237: 41 | AW237: 42 | AX237: 43 | AY237: 44 | AZ237: 45 | BA237: 46 | BB237: 47 | BC237: 48 | BD237: 49 | BE237: 50 | BF237: 51 | BG237: 52 | BH237: 53 | BI237: 54 | BJ237: 55 | BK237: 56 | BL237: 57 | BM237: 58 | BN237: 59 | BO237: 60
H238: =+H28 -> A1 m1 | I238: =+I28 -> A1 m2 | J238: A1 m3 | K238: A1 m4 | L238: A1 m5 | M238: A1 m6 | N238: A1 m7 | O238: A1 m8 | P238: A1 m9 | Q238: A1 m10 | R238: A1 m11 | S238: A1 m12 | T238: A2 m1 | U238: A2 m2 | V238: A2 m3 | W238: A2 m4 | X238: A2 m5 | Y238: A2 m6 | Z238: A2 m7 | AA238: A2 m8 | AB238: A2 m9 | AC238: A2 m10 | AD238: A2 m11 | AE238: A2 m12 | AF238: A3 m1 | AG238: A3 m2 | AH238: A3 m3 | AI238: A3 m4 | AJ238: A3 m5 | AK238: A3 m6 | AL238: A3 m7 | AM238: A3 m8 | AN238: A3 m9 | AO238: A3 m10 | AP238: A3 m11 | AQ238: A3 m12 | AR238: A4 m1 | AS238: A4 m2 | AT238: A4 m3 | AU238: A4 m4 | AV238: A4 m5 | AW238: A4 m6 | AX238: A4 m7 | AY238: A4 m8 | AZ238: A4 m9 | BA238: A4 m10 | BB238: A4 m11 | BC238: A4 m12 | BD238: A5 m1 | BE238: A5 m2 | BF238: A5 m3 | BG238: A5 m4 | BH238: A5 m5 | BI238: A5 m6 | BJ238: A5 m7 | BK238: A5 m8 | BL238: A5 m9 | BM238: A5 m10 | BN238: A5 m11 | BO238: A5 m12
F239: Rata | H239: =+H29+H51+H73+H95+H117+H139+H161+H183+H205+H227 -> 0 | I239: 15938.12555 | J239: 15938.12555 | K239: 15938.12555 | L239: 15938.12555 | M239: 15938.12555 | N239: 15938.12555 | O239: 15938.12555 | P239: 15938.12555 | Q239: 15938.12555 | R239: 15938.12555 | S239: 15938.12555 | T239: 15938.12555 | U239: 2033.17511 | V239: 2033.17511 | W239: 2033.17511 | X239: 2033.17511 | Y239: 2033.17511 | Z239: 2033.17511 | AA239: 2033.17511 | AB239: 2033.17511 | AC239: 2033.17511 | AD239: 2033.17511 | AE239: 2033.17511 | AF239: 2033.17511 | AG239: 2033.17511 | AH239: 2033.17511 | AI239: 2033.17511 | AJ239: 2033.17511 | AK239: 2033.17511 | AL239: 2033.17511 | AM239: 2033.17511 | AN239: =+AN29+AN51+AN73+AN95+AN117+AN139+AN161+AN183+AN205+AN227 -> 2033.17511 | AO239: 2033.17511 | AP239: 2033.17511 | AQ239: 2033.17511 | AR239: 2033.17511 | AS239: 2033.17511 | AT239: 2033.17511 | AU239: 2033.17511 | AV239: 2033.17511 | AW239: 2033.17511 | AX239: 2033.17511 | AY239: 2033.17511 | AZ239: 2033.17511 | BA239: 2033.17511 | BB239: 2033.17511 | BC239: 2033.17511 | BD239: 2033.17511 | BE239: 2033.17511 | BF239: 2033.17511 | BG239: 2033.17511 | BH239: 2033.17511 | BI239: 2033.17511 | BJ239: 2033.17511 | BK239: 2033.17511 | BL239: 0 | BM239: 0 | BN239: 0 | BO239: 0 | BR239: =+SUM(H239:S239) -> 175319.381 | BS239: =+SUM(T239:AE239) -> 38303.05176 | BT239: =+SUM(AF239:AQ239) -> 24398.10132 | BU239: =+SUM(AR239:BC239) -> 24398.10132 | BV239: =+SUM(BD239:BO239) -> 16265.40088
F240: Quota capitale rata | H240: =+H30+H52+H74+H96+H118+H140+H162+H184+H206+H228 -> 0 | I240: 14488.8517 | J240: 14578.98036 | K240: 14669.7242 | L240: 14761.08771 | M240: 14853.07541 | N240: 14945.69184 | O240: 15038.9416 | P240: 15132.82931 | Q240: 15227.35963 | R240: 15322.53724 | S240: 15418.36687 | T240: 15514.8533 | U240: 1707.050868 | V240: 1714.005605 | W240: 1720.988676 | X240: 1728.000196 | Y240: 1735.040283 | Z240: 1742.109052 | AA240: 1749.20662 | AB240: 1756.333104 | AC240: 1763.488623 | AD240: 1770.673294 | AE240: 1777.887236 | AF240: 1785.130569 | AG240: 1792.403411 | AH240: 1799.705885 | AI240: 1807.038109 | AJ240: 1814.400206 | AK240: 1821.792297 | AL240: 1829.214505 | AM240: 1836.666951 | AN240: =+AN30+AN52+AN74+AN96+AN118+AN140+AN162+AN184+AN206+AN228 -> 1844.149759 | AO240: 1851.663054 | AP240: 1859.206958 | AQ240: 1866.781598 | AR240: 1874.387097 | AS240: 1882.023582 | AT240: 1889.691179 | AU240: 1897.390015 | AV240: 1905.120217 | AW240: 1912.881912 | AX240: 1920.67523 | AY240: 1928.500299 | AZ240: 1936.357247 | BA240: 1944.246207 | BB240: 1952.167306 | BC240: 1960.120678 | BD240: 1968.106452 | BE240: 1976.124761 | BF240: 1984.175738 | BG240: 1992.259516 | BH240: 2000.376227 | BI240: 2008.526008 | BJ240: 2016.708991 | BK240: 2024.925313 | BL240: 0 | BM240: 0 | BN240: 0 | BO240: 0 | BR240: =+SUM(H240:S240) -> 164437.4459 | BS240: =+SUM(T240:AE240) -> 34679.63685 | BT240: =+SUM(AF240:AQ240) -> 21908.1533 | BU240: =+SUM(AR240:BC240) -> 23003.56097 | BV240: =+SUM(BD240:BO240) -> 15971.20301
F241: Quota capitale cumulata rata | H241: =+H31+H53+H75+H97+H119+H141+H163+H185+H207+H229 -> 0 | I241: 14488.8517 | J241: 29067.83206 | K241: 43737.55625 | L241: 58498.64396 | M241: 73351.71937 | N241: 88297.41121 | O241: 103336.3528 | P241: 118469.1821 | Q241: 133696.5418 | R241: 149019.079 | S241: 164437.4459 | T241: 179952.2992 | U241: 21659.35003 | V241: 23373.35564 | W241: 25094.34431 | X241: 26822.34451 | Y241: 28557.38479 | Z241: 30299.49385 | AA241: 32048.70047 | AB241: 33805.03357 | AC241: 35568.52219 | AD241: 37339.19549 | AE241: 39117.08272 | AF241: 40902.21329 | AG241: 42694.6167 | AH241: 44494.32259 | AI241: 46301.3607 | AJ241: 48115.7609 | AK241: 49937.5532 | AL241: 51766.76771 | AM241: 53603.43466 | AN241: =+AN31+AN53+AN75+AN97+AN119+AN141+AN163+AN185+AN207+AN229 -> 55447.58442 | AO241: 57299.24747 | AP241: 59158.45443 | AQ241: 61025.23603 | AR241: 62899.62312 | AS241: 64781.6467 | AT241: 66671.33788 | AU241: 68568.7279 | AV241: 70473.84812 | AW241: 72386.73003 | AX241: 74307.40526 | AY241: 76235.90556 | AZ241: 78172.2628 | BA241: 80116.50901 | BB241: 82068.67632 | BC241: 84028.79699 | BD241: 85996.90345 | BE241: 87973.02821 | BF241: 89957.20394 | BG241: 91949.46346 | BH241: 93949.83969 | BI241: 95958.3657 | BJ241: 97975.07469 | BK241: 100000 | BL241: 0 | BM241: 0 | BN241: 0 | BO241: 0 | BR241: =+S241 -> 164437.4459 | BS241: =+AE241 -> 39117.08272 | BT241: =+AQ241 -> 61025.23603 | BU241: =+BC241 -> 84028.79699 | BV241: =+BO241 -> 0
F242: Oneri finanziari rata | H242: =+H32+H54+H76+H98+H120+H142+H164+H186+H208+H230 -> 0 | I242: 1449.273848 | J242: 1359.145193 | K242: 1268.401352 | L242: 1177.037841 | M242: 1085.050144 | N242: 992.4337075 | O242: 899.1839449 | P242: 805.2962348 | Q242: 710.7659204 | R242: 615.5883096 | S242: 519.7586747 | T242: 423.2722521 | U242: 326.1242418 | V242: 319.1695053 | W242: 312.1864343 | X242: 305.1749134 | Y242: 298.1348267 | Z242: 291.0660578 | AA242: 283.9684899 | AB242: 276.8420056 | AC242: 269.6864871 | AD242: 262.5018161 | AE242: 255.287874 | AF242: 248.0445413 | AG242: 240.7716984 | AH242: 233.469225 | AI242: 226.1370005 | AJ242: 218.7749035 | AK242: 211.3828125 | AL242: 203.9606052 | AM242: 196.5081589 | AN242: =+AN32+AN54+AN76+AN98+AN120+AN142+AN164+AN186+AN208+AN230 -> 189.0253503 | AO242: 181.512056 | AP242: 173.9681515 | AQ242: 166.3935122 | AR242: 158.7880129 | AS242: 151.1515278 | AT242: 143.4839308 | AU242: 135.785095 | AV242: 128.0548932 | AW242: 120.2931976 | AX242: 112.4998799 | AY242: 104.6748113 | AZ242: 96.81786237 | BA242: 88.92890326 | BB242: 81.00780355 | BC242: 73.05443229 | BD242: 65.06865802 | BE242: 57.05034872 | BF242: 48.99937183 | BG242: 40.91559426 | BH242: 32.79888239 | BI242: 24.64910202 | BJ242: 16.46611845 | BK242: 8.24979638 | BL242: 0 | BM242: 0 | BN242: 0 | BO242: 0 | BR242: =+SUM(H242:S242) -> 10881.93517 | BS242: =+SUM(T242:AE242) -> 3623.414904 | BT242: =+SUM(AF242:AQ242) -> 2489.948015 | BU242: =+SUM(AR242:BC242) -> 1394.54035 | BV242: =+SUM(BD242:BO242) -> 294.1978721
F243: Debito residuo | H243: =+H33+H55+H77+H99+H121+H143+H165+H187+H209+H231 -> 260000 | I243: 245511.1483 | J243: 230932.1679 | K243: 216262.4437 | L243: 201501.356 | M243: 186648.2806 | N243: 171702.5888 | O243: 156663.6472 | P243: 141530.8179 | Q243: 126303.4582 | R243: 110980.921 | S243: 95562.55413 | T243: 80047.70083 | U243: 78340.64997 | V243: 76626.64436 | W243: 74905.65569 | X243: 73177.65549 | Y243: 71442.61521 | Z243: 69700.50615 | AA243: 67951.29953 | AB243: 66194.96643 | AC243: 64431.47781 | AD243: 62660.80451 | AE243: 60882.91728 | AF243: 59097.78671 | AG243: 57305.3833 | AH243: 55505.67741 | AI243: 53698.6393 | AJ243: 51884.2391 | AK243: 50062.4468 | AL243: 48233.23229 | AM243: 46396.56534 | AN243: =+AN33+AN55+AN77+AN99+AN121+AN143+AN165+AN187+AN209+AN231 -> 44552.41558 | AO243: 42700.75253 | AP243: 40841.54557 | AQ243: 38974.76397 | AR243: 37100.37688 | AS243: 35218.3533 | AT243: 33328.66212 | AU243: 31431.2721 | AV243: 29526.15188 | AW243: 27613.26997 | AX243: 25692.59474 | AY243: 23764.09444 | AZ243: 21827.7372 | BA243: 19883.49099 | BB243: 17931.32368 | BC243: 15971.20301 | BD243: 14003.09655 | BE243: 12026.97179 | BF243: 10042.79606 | BG243: 8050.53654 | BH243: 6050.160313 | BI243: 4041.634305 | BJ243: 2024.925313 | BK243: 1.062289812e-09 | BL243: 0 | BM243: 0 | BN243: 0 | BO243: 0 | BR243: =+S243 -> 95562.55413 | BS243: =+AE243 -> 60882.91728 | BT243: =+AQ243 -> 38974.76397 | BU243: =+BC243 -> 15971.20301 | BV243: =+BO243 -> 0

Sheet Leasing
D9: Leasing
E11: Leasing
E14: Leasing 1
DB15: nascondere
F16: Parametri
G17: Data Stipula Contratto (mmm-aa) | H17: A1 m1 | DB17: =VLOOKUP($H17,configurazione!A67:B113,2,FALSE) -> 1
G18: Tasso di interesse annuale | H18: 0.09
G19: Valore del Bene | H19: 200000
G20: Valore di Riscatto (% Valorre del Bene) | H20: 0.1
G21: MaxiCanone Iniziale (% Valore del Bene) | H21: 0.1
G22: Durata (numero rate totali) | H22: 24
F24: Tasso di interesse effettivo mensile | H24: =((1+H18)^(1/12))-1 -> 0.007207323316
F26: Rata mesile (quota capitale + oneri finanziari) | H26: =(H19-(H19*H20)-(H19*H21))/((1-(1+H24)^(-H22))/H24) -> 7283.80294
H28: =+SPm!I12 -> 2017-01-01 | I28: =+SPm!J12 -> 2017-02-28 | J28: =+SPm!K12 -> 2017-03-31 | K28: =+SPm!L12 -> 2017-04-30 | L28: =+SPm!M12 -> 2017-05-31 | M28: =+SPm!N12 -> 2017-06-30 | N28: =+SPm!O12 -> 2017-07-31 | O28: =+SPm!P12 -> 2017-08-31 | P28: =+SPm!Q12 -> 2017-09-30 | Q28: =+SPm!R12 -> 2017-10-31 | R28: =+SPm!S12 -> 2017-11-30 | S28: =+SPm!T12 -> 2017-12-31 | T28: =+SPm!U12 -> 2018-01-31 | U28: =+SPm!V12 -> 2018-02-28 | V28: =+SPm!W12 -> 2018-03-31 | W28: =+SPm!X12 -> 2018-04-30 | X28: =+SPm!Y12 -> 2018-05-31 | Y28: =+SPm!Z12 -> 2018-06-30 | Z28: =+SPm!AA12 -> 2018-07-31 | AA28: =+SPm!AB12 -> 2018-08-31 | AB28: =+SPm!AC12 -> 2018-09-30 | AC28: =+SPm!AD12 -> 2018-10-31 | AD28: =+SPm!AE12 -> 2018-11-30 | AE28: =+SPm!AF12 -> 2018-12-31 | AF28: =+SPm!AG12 -> 2019-01-31 | AG28: =+SPm!AH12 -> 2019-02-28 | AH28: =+SPm!AI12 -> 2019-03-31 | AI28: =+SPm!AJ12 -> 2019-04-30 | AJ28: =+SPm!AK12 -> 2019-05-31 | AK28: =+SPm!AL12 -> 2019-06-30 | AL28: =+SPm!AM12 -> 2019-07-31 | AM28: =+SPm!AN12 -> 2019-08-31 | AN28: =+SPm!AO12 -> 2019-09-30 | AO28: =+SPm!AP12 -> 2019-10-31 | AP28: =+SPm!AQ12 -> 2019-11-30 | AQ28: =+SPm!AR12 -> 2019-12-31 | AR28: =+SPm!AS12 -> 2020-01-31 | AS28: =+SPm!AT12 -> 2020-02-29 | AT28: =+SPm!AU12 -> 2020-03-31 | AU28: =+SPm!AV12 -> 2020-04-30 | AV28: =+SPm!AW12 -> 2020-05-31 | AW28: =+SPm!AX12 -> 2020-06-30 | AX28: =+SPm!AY12 -> 2020-07-31 | AY28: =+SPm!AZ12 -> 2020-08-31 | AZ28: =+SPm!BA12 -> 2020-09-30 | BA28: =+SPm!BB12 -> 2020-10-31 | BB28: =+SPm!BC12 -> 2020-11-30 | BC28: =+SPm!BD12 -> 2020-12-31 | BD28: =+SPm!BE12 -> 2021-01-31 | BE28: =+SPm!BF12 -> 2021-02-28 | BF28: =+SPm!BG12 -> 2021-03-31 | BG28: =+SPm!BH12 -> 2021-04-30 | BH28: =+SPm!BI12 -> 2021-05-31 | BI28: =+SPm!BJ12 -> 2021-06-30 | BJ28: =+SPm!BK12 -> 2021-07-31 | BK28: =+SPm!BL12 -> 2021-08-31 | BL28: =+SPm!BM12 -> 2021-09-30 | BM28: =+SPm!BN12 -> 2021-10-31 | BN28: =+SPm!BO12 -> 2021-11-30 | BO28: =+SPm!BP12 -> 2021-12-31
H29: 1 | I29: =+H29+1 -> 2 | J29: =+I29+1 -> 3 | K29: 4 | L29: 5 | M29: 6 | N29: 7 | O29: 8 | P29: 9 | Q29: 10 | R29: 11 | S29: 12 | T29: 13 | U29: 14 | V29: 15 | W29: 16 | X29: 17 | Y29: 18 | Z29: 19 | AA29: 20 | AB29: 21 | AC29: 22 | AD29: 23 | AE29: 24 | AF29: 25 | AG29: 26 | AH29: 27 | AI29: 28 | AJ29: 29 | AK29: 30 | AL29: 31 | AM29: 32 | AN29: 33 | AO29: 34 | AP29: 35 | AQ29: 36 | AR29: =+AQ29+1 -> 37 | AS29: 38 | AT29: 39 | AU29: 40 | AV29: 41 | AW29: 42 | AX29: 43 | AY29: 44 | AZ29: 45 | BA29: 46 | BB29: 47 | BC29: 48 | BD29: =+BC29+1 -> 49 | BE29: 50 | BF29: 51 | BG29: 52 | BH29: 53 | BI29: 54 | BJ29: 55 | BK29: 56 | BL29: 57 | BM29: 58 | BN29: 59 | BO29: 60
F30: Costo Leasing | H30: A1 m1 | I30: A1 m2 | J30: A1 m3 | K30: A1 m4 | L30: A1 m5 | M30: A1 m6 | N30: A1 m7 | O30: A1 m8 | P30: A1 m9 | Q30: A1 m10 | R30: A1 m11 | S30: A1 m12 | T30: A2 m1 | U30: A2 m2 | V30: A2 m3 | W30: A2 m4 | X30: A2 m5 | Y30: A2 m6 | Z30: A2 m7 | AA30: A2 m8 | AB30: A2 m9 | AC30: A2 m10 | AD30: A2 m11 | AE30: A2 m12 | AF30: A3 m1 | AG30: A3 m2 | AH30: A3 m3 | AI30: A3 m4 | AJ30: A3 m5 | AK30: A3 m6 | AL30: A3 m7 | AM30: A3 m8 | AN30: A3 m9 | AO30: A3 m10 | AP30: A3 m11 | AQ30: A3 m12 | AR30: A4 m1 | AS30: A4 m2 | AT30: A4 m3 | AU30: A4 m4 | AV30: A4 m5 | AW30: A4 m6 | AX30: A4 m7 | AY30: A4 m8 | AZ30: A4 m9 | BA30: A4 m10 | BB30: A4 m11 | BC30: A4 m12 | BD30: A5 m1 | BE30: A5 m2 | BF30: A5 m3 | BG30: A5 m4 | BH30: A5 m5 | BI30: A5 m6 | BJ30: A5 m7 | BK30: A5 m8 | BL30: A5 m9 | BM30: A5 m10 | BN30: A5 m11 | BO30: A5 m12
G31: MaxiCanone Iniziale | H31: =IF(H30=$H17,$H19*$H21,0) -> 20000 | I31: 0 | J31: 0 | K31: 0 | L31: 0 | M31: 0 | N31: 0 | O31: 0 | P31: 0 | Q31: 0 | R31: 0 | S31: 0 | T31: 0 | U31: 0 | V31: 0 | W31: 0 | X31: 0 | Y31: 0 | Z31: 0 | AA31: 0 | AB31: 0 | AC31: 0 | AD31: 0 | AE31: 0 | AF31: 0 | AG31: 0 | AH31: 0 | AI31: 0 | AJ31: 0 | AK31: 0 | AL31: 0 | AM31: 0 | AN31: 0 | AO31: 0 | AP31: 0 | AQ31: 0 | AR31: =IF(AR30=$H17,$H19*$H21,0) -> 0 | AS31: 0 | AT31: 0 | AU31: 0 | AV31: 0 | AW31: 0 | AX31: =IF(AX30=$H17,$H19*$H21,0) -> 0 | AY31: 0 | AZ31: 0 | BA31: 0 | BB31: 0 | BC31: 0 | BD31: =IF(BD30=$H17,$H19*$H21,0) -> 0 | BE31: 0 | BF31: 0 | BG31: 0 | BH31: 0 | BI31: 0 | BJ31: 0 | BK31: 0 | BL31: 0 | BM31: 0 | BN31: 0 | BO31: 0
G32: Rata | I32: =+IF(I29>=$DB17,$H26,0)*IF(H36<1,0,1) -> 7283.80294 | J32: 7283.80294 | K32: 7283.80294 | L32: 7283.80294 | M32: 7283.80294 | N32: 7283.80294 | O32: 7283.80294 | P32: 7283.80294 | Q32: 7283.80294 | R32: 7283.80294 | S32: 7283.80294 | T32: 7283.80294 | U32: 7283.80294 | V32: 7283.80294 | W32: 7283.80294 | X32: 7283.80294 | Y32: 7283.80294 | Z32: 7283.80294 | AA32: 7283.80294 | AB32: 7283.80294 | AC32: 7283.80294 | AD32: 7283.80294 | AE32: 7283.80294 | AF32: 7283.80294 | AG32: 0 | AH32: 0 | AI32: 0 | AJ32: 0 | AK32: 0 | AL32: 0 | AM32: 0 | AN32: 0 | AO32: =+IF(AO29>=$DB17,$H26,0)*IF(AN36<1,0,1) -> 0 | AP32: 0 | AQ32: 0 | AR32: 0 | AS32: 0 | AT32: 0 | AU32: 0 | AV32: 0 | AW32: 0 | AX32: 0 | AY32: 0 | AZ32: 0 | BA32: 0 | BB32: 0 | BC32: 0 | BD32: 0 | BE32: 0 | BF32: 0 | BG32: 0 | BH32: 0 | BI32: 0 | BJ32: 0 | BK32: 0 | BL32: 0 | BM32: 0 | BN32: 0 | BO32: 0
G33: Quota Capitale Rata | I33: =I32-I35 -> 6130.63121 | J33: 6174.816651 | K33: 6219.320551 | L33: 6264.145205 | M33: 6309.292925 | N33: 6354.766039 | O33: 6400.566892 | P33: 6446.697847 | Q33: 6493.161283 | R33: 6539.959596 | S33: 6587.095199 | T33: 6634.570524 | U33: 6682.388019 | V33: 6730.55015 | W33: 6779.059401 | X33: 6827.918274 | Y33: 6877.129288 | Z33: 6926.694983 | AA33: 6976.617913 | AB33: 7026.900654 | AC33: 7077.545799 | AD33: 7128.555959 | AE33: 7179.933767 | AF33: 7231.681871 | AG33: 0 | AH33: 0 | AI33: 0 | AJ33: 0 | AK33: 0 | AL33: 0 | AM33: 0 | AN33: 0 | AO33: 0 | AP33: 0 | AQ33: 0 | AR33: =AR32-AR35 -> 0 | AS33: 0 | AT33: 0 | AU33: 0 | AV33: 0 | AW33: 0 | AX33: =AX32-AX35 -> 0 | AY33: 0 | AZ33: 0 | BA33: 0 | BB33: 0 | BC33: 0 | BD33: =BD32-BD35 -> 0 | BE33: 0 | BF33: 0 | BG33: 0 | BH33: 0 | BI33: 0 | BJ33: 0 | BK33: 0 | BL33: 0 | BM33: 0 | BN33: 0 | BO33: 0
G34: Quota Capitale Cumulata | I34: =(I33+H34)*(IF(H36<1,0,1)) -> 6130.63121 | J34: 12305.44786 | K34: 18524.76841 | L34: 24788.91362 | M34: 31098.20654 | N34: 37452.97258 | O34: 43853.53947 | P34: 50300.23732 | Q34: 56793.3986 | R34: 63333.3582 | S34: 69920.4534 | T34: 76555.02392 | U34: 83237.41194 | V34: 89967.96209 | W34: =(W33+V34)*(IF(V36<1,0,1)) -> 96747.02149 | X34: =(X33+W34)*(IF(W36<1,0,1)) -> 103574.9398 | Y34: 110452.0691 | Z34: 117378.764 | AA34: 124355.3819 | AB34: 131382.2826 | AC34: 138459.8284 | AD34: 145588.3844 | AE34: 152768.3181 | AF34: 160000 | AG34: 0 | AH34: 0 | AI34: 0 | AJ34: 0 | AK34: 0 | AL34: 0 | AM34: 0 | AN34: 0 | AO34: 0 | AP34: 0 | AQ34: 0 | AR34: =(AR33+AQ34)*(IF(AQ36<1,0,1)) -> 0 | AS34: 0 | AT34: 0 | AU34: 0 | AV34: 0 | AW34: 0 | AX34: 0 | AY34: 0 | AZ34: 0 | BA34: 0 | BB34: 0 | BC34: 0 | BD34: =(BD33+BC34)*(IF(BC36<1,0,1)) -> 0 | BE34: 0 | BF34: 0 | BG34: 0 | BH34: 0 | BI34: 0 | BJ34: 0 | BK34: 0 | BL34: 0 | BM34: 0 | BN34: 0 | BO34: 0
G35: Oneri Finanziari Rata | I35: =IF(I32>0,H36*$H24,0) -> 1153.171731 | J35: =IF(J32>0,I36*$H$24,0) -> 1108.986289 | K35: 1064.482389 | L35: 1019.657735 | M35: 974.5100155 | N35: 929.0369015 | O35: 883.236048 | P35: 837.105093 | Q35: 790.6416573 | R35: 743.8433446 | S35: 696.7077413 | T35: 649.2324165 | U35: 601.4149217 | V35: 553.2527907 | W35: 504.7435397 | X35: 455.8846668 | Y35: 406.6736522 | Z35: 357.107958 | AA35: 307.1850277 | AB35: 256.9022868 | AC35: 206.2571418 | AD35: 155.246981 | AE35: 103.8691734 | AF35: 52.12106936 | AG35: 0 | AH35: 0 | AI35: 0 | AJ35: 0 | AK35: 0 | AL35: 0 | AM35: 0 | AN35: 0 | AO35: 0 | AP35: 0 | AQ35: 0 | AR35: =IF(AR32>0,AQ36*$H$24,0) -> 0 | AS35: 0 | AT35: 0 | AU35: 0 | AV35: 0 | AW35: 0 | AX35: 0 | AY35: 0 | AZ35: 0 | BA35: 0 | BB35: 0 | BC35: 0 | BD35: =IF(BD32>0,BC36*$H$24,0) -> 0 | BE35: 0 | BF35: 0 | BG35: 0 | BH35: 0 | BI35: 0 | BJ35: 0 | BK35: 0 | BL35: 0 | BM35: 0 | BN35: 0 | BO35: 0
G36: Debito Residuo | H36: =IF(I30=$H17,($H19-($H19*$H21)-($H19*$H20)),(($H19-($H19*$H21)-($H19*$H20))-H34)*IF(H30=H17,1,0)) -> 160000 | I36: =IF(J30=$H17,($H19-($H19*$H21)-($H19*$H20)),(($H19-($H19*$H21)-($H19*$H20))-I34)*IF(H36<1,0,1)) -> 153869.3688 | J36: =IF(K30=$H17,($H19-($H19*$H21)-($H19*$H20)),(($H19-($H19*$H21)-($H19*$H20))-J34)*IF(I36<1,0,1)) -> 147694.5521 | K36: =IF(L30=$H17,($H19-($H19*$H21)-($H19*$H20)),(($H19-($H19*$H21)-($H19*$H20))-K34)*IF(J36<1,0,1)) -> 141475.2316 | L36: =IF(M30=$H17,($H19-($H19*$H21)-($H19*$H20)),(($H19-($H19*$H21)-($H19*$H20))-L34)*IF(K36<1,0,1)) -> 135211.0864 | M36: 128901.7935 | N36: 122547.0274 | O36: 116146.4605 | P36: 109699.7627 | Q36: 103206.6014 | R36: 96666.6418 | S36: 90079.5466 | T36: 83444.97608 | U36: 76762.58806 | V36: 70032.03791 | W36: 63252.97851 | X36: 56425.06023 | Y36: 49547.93095 | Z36: 42621.23596 | AA36: 35644.61805 | AB36: 28617.7174 | AC36: 21540.1716 | AD36: 14411.61564 | AE36: 7231.681871 | AF36: -1.804437488e-09 | AG36: 0 | AH36: 0 | AI36: 0 | AJ36: 0 | AK36: 0 | AL36: 0 | AM36: 0 | AN36: 0 | AO36: 0 | AP36: 0 | AQ36: 0 | AR36: =IF(AS30=$H17,($H19-($H19*$H21)-($H19*$H20)),(($H19-($H19*$H21)-($H19*$H20))-AR34)*IF(AQ36<1,0,1)) -> 0 | AS36: 0 | AT36: 0 | AU36: 0 | AV36: 0 | AW36: 0 | AX36: 0 | AY36: 0 | AZ36: 0 | BA36: 0 | BB36: 0 | BC36: 0 | BD36: =IF(BE30=$H17,($H19-($H19*$H21)-($H19*$H20)),(($H19-($H19*$H21)-($H19*$H20))-BD34)*IF(BC36<1,0,1)) -> 0 | BE36: 0 | BF36: 0 | BG36: 0 | BH36: 0 | BI36: 0 | BJ36: 0 | BK36: 0 | BL36: 0 | BM36: 0 | BN36: 0 | BO36: 0
G37: Valore di riscatto | I37: =IF(I36<1,$H19*$H20,0)*IF(H36<1,0,1) -> 0 | J37: 0 | K37: 0 | L37: 0 | M37: 0 | N37: 0 | O37: 0 | P37: 0 | Q37: 0 | R37: 0 | S37: 0 | T37: 0 | U37: 0 | V37: 0 | W37: 0 | X37: 0 | Y37: 0 | Z37: 0 | AA37: 0 | AB37: 0 | AC37: 0 | AD37: 0 | AE37: =IF(AE36<1,$H$19*$H$20,0)*IF(AD36<1,0,1) -> 0 | AF37: 20000 | AG37: 0 | AH37: 0 | AI37: 0 | AJ37: 0 | AK37: 0 | AL37: 0 | AM37: 0 | AN37: 0 | AO37: 0 | AP37: 0 | AQ37: 0 | AR37: =IF(AR36<1,$H$19*$H$20,0)*IF(AQ36<1,0,1) -> 0 | AS37: 0 | AT37: 0 | AU37: 0 | AV37: 0 | AW37: 0 | AX37: 0 | AY37: 0 | AZ37: 0 | BA37: 0 | BB37: 0 | BC37: 0 | BD37: =IF(BD36<1,$H$19*$H$20,0)*IF(BC36<1,0,1) -> 0 | BE37: 0 | BF37: 0 | BG37: 0 | BH37: 0 | BI37: 0 | BJ37: 0 | BK37: 0 | BL37: 0 | BM37: 0 | BN37: 0 | BO37: 0
G38: Totale Rata di Leasing | H38: =H31+H32+H37 -> 20000 | I38: =I31+I32+I37 -> 7283.80294 | J38: =J31+J32+J37 -> 7283.80294 | K38: 7283.80294 | L38: 7283.80294 | M38: 7283.80294 | N38: 7283.80294 | O38: 7283.80294 | P38: 7283.80294 | Q38: 7283.80294 | R38: 7283.80294 | S38: 7283.80294 | T38: 7283.80294 | U38: 7283.80294 | V38: 7283.80294 | W38: 7283.80294 | X38: 7283.80294 | Y38: 7283.80294 | Z38: 7283.80294 | AA38: 7283.80294 | AB38: 7283.80294 | AC38: 7283.80294 | AD38: 7283.80294 | AE38: 7283.80294 | AF38: 27283.80294 | AG38: 0 | AH38: 0 | AI38: 0 | AJ38: 0 | AK38: 0 | AL38: 0 | AM38: 0 | AN38: 0 | AO38: 0 | AP38: 0 | AQ38: 0 | AR38: =AR31+AR32+AR37 -> 0 | AS38: 0 | AT38: 0 | AU38: 0 | AV38: 0 | AW38: 0 | AX38: =AX31+AX32+AX37 -> 0 | AY38: 0 | AZ38: 0 | BA38: 0 | BB38: 0 | BC38: 0 | BD38: =BD31+BD32+BD37 -> 0 | BE38: 0 | BF38: 0 | BG38: 0 | BH38: 0 | BI38: 0 | BJ38: 0 | BK38: 0 | BL38: 0 | BM38: 0 | BN38: 0 | BO38: 0
E41: Leasing 2
F43: Parametri
G44: Data Stipula Contratto (mmm-aa) | H44: A1 m1 | DB44: =VLOOKUP($H44,configurazione!A67:B113,2,FALSE) -> 1
G45: Tasso di interesse annuale | H45: 0.09
G46: Valore del Bene | H46: 0
G47: Valore di Riscatto (% Valorre del Bene) | H47: 0.01
G48: MaxiCanone Iniziale (% Valore del Bene) | H48: 0.1
G49: Durata (numero rate totali) | H49: 48
F51: Tasso di interesse effettivo mensile | H51: =((1+H45)^(1/12))-1 -> 0.007207323316
F53: Rata mesile (quota capitale + oneri finanziari) | H53: =(H46-(H46*H47)-(H46*H48))/((1-(1+H51)^(-H49))/H51) -> 0
H55: =+SPm!I12 -> 2017-01-01 | I55: =+SPm!J12 -> 2017-02-28 | J55: =+SPm!K12 -> 2017-03-31 | K55: =+SPm!L12 -> 2017-04-30 | L55: =+SPm!M12 -> 2017-05-31 | M55: =+SPm!N12 -> 2017-06-30 | N55: =+SPm!O12 -> 2017-07-31 | O55: =+SPm!P12 -> 2017-08-31 | P55: =+SPm!Q12 -> 2017-09-30 | Q55: =+SPm!R12 -> 2017-10-31 | R55: =+SPm!S12 -> 2017-11-30 | S55: =+SPm!T12 -> 2017-12-31 | T55: =+SPm!U12 -> 2018-01-31 | U55: =+SPm!V12 -> 2018-02-28 | V55: =+SPm!W12 -> 2018-03-31 | W55: =+SPm!X12 -> 2018-04-30 | X55: =+SPm!Y12 -> 2018-05-31 | Y55: =+SPm!Z12 -> 2018-06-30 | Z55: =+SPm!AA12 -> 2018-07-31 | AA55: =+SPm!AB12 -> 2018-08-31 | AB55: =+SPm!AC12 -> 2018-09-30 | AC55: =+SPm!AD12 -> 2018-10-31 | AD55: =+SPm!AE12 -> 2018-11-30 | AE55: =+SPm!AF12 -> 2018-12-31 | AF55: =+SPm!AG12 -> 2019-01-31 | AG55: =+SPm!AH12 -> 2019-02-28 | AH55: =+SPm!AI12 -> 2019-03-31 | AI55: =+SPm!AJ12 -> 2019-04-30 | AJ55: =+SPm!AK12 -> 2019-05-31 | AK55: =+SPm!AL12 -> 2019-06-30 | AL55: =+SPm!AM12 -> 2019-07-31 | AM55: =+SPm!AN12 -> 2019-08-31 | AN55: =+SPm!AO12 -> 2019-09-30 | AO55: =+SPm!AP12 -> 2019-10-31 | AP55: =+SPm!AQ12 -> 2019-11-30 | AQ55: =+SPm!AR12 -> 2019-12-31 | AR55: =+SPm!AS12 -> 2020-01-31 | AS55: =+SPm!AT12 -> 2020-02-29 | AT55: =+SPm!AU12 -> 2020-03-31 | AU55: =+SPm!AV12 -> 2020-04-30 | AV55: =+SPm!AW12 -> 2020-05-31 | AW55: =+SPm!AX12 -> 2020-06-30 | AX55: =+SPm!AY12 -> 2020-07-31 | AY55: =+SPm!AZ12 -> 2020-08-31 | AZ55: =+SPm!BA12 -> 2020-09-30 | BA55: =+SPm!BB12 -> 2020-10-31 | BB55: =+SPm!BC12 -> 2020-11-30 | BC55: =+SPm!BD12 -> 2020-12-31 | BD55: =+SPm!BE12 -> 2021-01-31 | BE55: =+SPm!BF12 -> 2021-02-28 | BF55: =+SPm!BG12 -> 2021-03-31 | BG55: =+SPm!BH12 -> 2021-04-30 | BH55: =+SPm!BI12 -> 2021-05-31 | BI55: =+SPm!BJ12 -> 2021-06-30 | BJ55: =+SPm!BK12 -> 2021-07-31 | BK55: =+SPm!BL12 -> 2021-08-31 | BL55: =+SPm!BM12 -> 2021-09-30 | BM55: =+SPm!BN12 -> 2021-10-31 | BN55: =+SPm!BO12 -> 2021-11-30 | BO55: =+SPm!BP12 -> 2021-12-31
H56: =H29 -> 1 | I56: 2 | J56: 3 | K56: 4 | L56: 5 | M56: =M29 -> 6 | N56: 7 | O56: 8 | P56: 9 | Q56: 10 | R56: 11 | S56: 12 | T56: 13 | U56: 14 | V56: 15 | W56: 16 | X56: 17 | Y56: 18 | Z56: 19 | AA56: 20 | AB56: 21 | AC56: 22 | AD56: 23 | AE56: 24 | AF56: 25 | AG56: 26 | AH56: 27 | AI56: 28 | AJ56: 29 | AK56: 30 | AL56: 31 | AM56: 32 | AN56: 33 | AO56: 34 | AP56: 35 | AQ56: 36 | AR56: 37 | AS56: 38 | AT56: 39 | AU56: 40 | AV56: 41 | AW56: 42 | AX56: 43 | AY56: 44 | AZ56: 45 | BA56: 46 | BB56: 47 | BC56: 48 | BD56: 49 | BE56: 50 | BF56: 51 | BG56: 52 | BH56: 53 | BI56: 54 | BJ56: 55 | BK56: 56 | BL56: 57 | BM56: 58 | BN56: 59 | BO56: 60
F57: Costo Leasing | H57: A1 m1 | I57: A1 m2 | J57: A1 m3 | K57: A1 m4 | L57: A1 m5 | M57: =M30 -> A1 m6 | N57: A1 m7 | O57: A1 m8 | P57: A1 m9 | Q57: A1 m10 | R57: A1 m11 | S57: A1 m12 | T57: A2 m1 | U57: A2 m2 | V57: A2 m3 | W57: A2 m4 | X57: A2 m5 | Y57: A2 m6 | Z57: A2 m7 | AA57: A2 m8 | AB57: A2 m9 | AC57: A2 m10 | AD57: A2 m11 | AE57: A2 m12 | AF57: A3 m1 | AG57: A3 m2 | AH57: A3 m3 | AI57: A3 m4 | AJ57: A3 m5 | AK57: A3 m6 | AL57: A3 m7 | AM57: A3 m8 | AN57: A3 m9 | AO57: A3 m10 | AP57: A3 m11 | AQ57: A3 m12 | AR57: A4 m1 | AS57: A4 m2 | AT57: A4 m3 | AU57: A4 m4 | AV57: A4 m5 | AW57: A4 m6 | AX57: A4 m7 | AY57: A4 m8 | AZ57: A4 m9 | BA57: A4 m10 | BB57: A4 m11 | BC57: A4 m12 | BD57: A5 m1 | BE57: A5 m2 | BF57: A5 m3 | BG57: A5 m4 | BH57: A5 m5 | BI57: A5 m6 | BJ57: A5 m7 | BK57: A5 m8 | BL57: A5 m9 | BM57: A5 m10 | BN57: A5 m11 | BO57: A5 m12
G58: MaxiCanone Iniziale | H58: =IF(H57=$H44,$H46*$H48,0) -> 0 | I58: 0 | J58: 0 | K58: 0 | L58: 0 | M58: 0 | N58: 0 | O58: 0 | P58: 0 | Q58: 0 | R58: 0 | S58: 0 | T58: 0 | U58: 0 | V58: 0 | W58: 0 | X58: 0 | Y58: 0 | Z58: 0 | AA58: 0 | AB58: 0 | AC58: 0 | AD58: 0 | AE58: 0 | AF58: 0 | AG58: 0 | AH58: 0 | AI58: 0 | AJ58: 0 | AK58: 0 | AL58: 0 | AM58: 0 | AN58: 0 | AO58: 0 | AP58: 0 | AQ58: 0 | AR58: =IF(AR57=$H44,$H46*$H48,0) -> 0 | AS58: 0 | AT58: 0 | AU58: 0 | AV58: 0 | AW58: 0 | AX58: =IF(AX57=$H44,$H46*$H48,0) -> 0 | AY58: 0 | AZ58: 0 | BA58: 0 | BB58: 0 | BC58: 0 | BD58: =IF(BD57=$H44,$H46*$H48,0) -> 0 | BE58: 0 | BF58: 0 | BG58: 0 | BH58: 0 | BI58: 0 | BJ58: 0 | BK58: 0 | BL58: 0 | BM58: 0 | BN58: 0 | BO58: 0
G59: Rata | I59: =+IF(I56>=$DB44,$H53,0)*IF(H63<1,0,1) -> 0 | J59: 0 | K59: 0 | L59: 0 | M59: 0 | N59: 0 | O59: 0 | P59: 0 | Q59: 0 | R59: 0 | S59: 0 | T59: 0 | U59: 0 | V59: 0 | W59: 0 | X59: 0 | Y59: 0 | Z59: 0 | AA59: 0 | AB59: 0 | AC59: 0 | AD59: 0 | AE59: 0 | AF59: 0 | AG59: 0 | AH59: 0 | AI59: 0 | AJ59: 0 | AK59: 0 | AL59: 0 | AM59: 0 | AN59: 0 | AO59: =+IF(AO56>=$DB44,$H53,0)*IF(AN63<1,0,1) -> 0 | AP59: 0 | AQ59: 0 | AR59: 0 | AS59: 0 | AT59: 0 | AU59: 0 | AV59: 0 | AW59: 0 | AX59: 0 | AY59: 0 | AZ59: 0 | BA59: 0 | BB59: 0 | BC59: 0 | BD59: 0 | BE59: 0 | BF59: 0 | BG59: 0 | BH59: 0 | BI59: 0 | BJ59: 0 | BK59: 0 | BL59: 0 | BM59: 0 | BN59: 0 | BO59: 0
G60: Quota Capitale Rata | I60: =I59-I62 -> 0 | J60: 0 | K60: 0 | L60: 0 | M60: 0 | N60: 0 | O60: 0 | P60: 0 | Q60: 0 | R60: 0 | S60: 0 | T60: 0 | U60: 0 | V60: 0 | W60: 0 | X60: 0 | Y60: 0 | Z60: 0 | AA60: 0 | AB60: 0 | AC60: 0 | AD60: 0 | AE60: 0 | AF60: 0 | AG60: 0 | AH60: 0 | AI60: 0 | AJ60: 0 | AK60: 0 | AL60: 0 | AM60: 0 | AN60: 0 | AO60: 0 | AP60: 0 | AQ60: 0 | AR60: =AR59-AR62 -> 0 | AS60: 0 | AT60: 0 | AU60: 0 | AV60: 0 | AW60: 0 | AX60: =AX59-AX62 -> 0 | AY60: 0 | AZ60: 0 | BA60: 0 | BB60: 0 | BC60: 0 | BD60: =BD59-BD62 -> 0 | BE60: 0 | BF60: 0 | BG60: 0 | BH60: 0 | BI60: 0 | BJ60: 0 | BK60: 0 | BL60: 0 | BM60: 0 | BN60: 0 | BO60: 0
G61: Quota Capitale Cumulata | I61: =(I60+H61)*(IF(H63<1,0,1)) -> 0 | J61: 0 | K61: 0 | L61: 0 | M61: 0 | N61: 0 | O61: 0 | P61: 0 | Q61: 0 | R61: 0 | S61: 0 | T61: 0 | U61: 0 | V61: 0 | W61: =(W60+V61)*(IF(V63<1,0,1)) -> 0 | X61: =(X60+W61)*(IF(W63<1,0,1)) -> 0 | Y61: 0 | Z61: 0 | AA61: 0 | AB61: 0 | AC61: 0 | AD61: 0 | AE61: 0 | AF61: 0 | AG61: 0 | AH61: 0 | AI61: 0 | AJ61: 0 | AK61: 0 | AL61: 0 | AM61: 0 | AN61: 0 | AO61: 0 | AP61: 0 | AQ61: 0 | AR61: =(AR60+AQ61)*(IF(AQ63<1,0,1)) -> 0 | AS61: 0 | AT61: 0 | AU61: 0 | AV61: 0 | AW61: 0 | AX61: 0 | AY61: 0 | AZ61: 0 | BA61: 0 | BB61: 0 | BC61: 0 | BD61: =(BD60+BC61)*(IF(BC63<1,0,1)) -> 0 | BE61: 0 | BF61: 0 | BG61: 0 | BH61: 0 | BI61: 0 | BJ61: 0 | BK61: 0 | BL61: 0 | BM61: 0 | BN61: 0 | BO61: 0
G62: Oneri Finanziari Rata | I62: =IF(I59>0,H63*$H51,0) -> 0 | J62: =IF(J59>0,I63*$H$24,0) -> 0 | K62: 0 | L62: 0 | M62: 0 | N62: 0 | O62: 0 | P62: 0 | Q62: 0 | R62: 0 | S62: 0 | T62: 0 | U62: 0 | V62: 0 | W62: 0 | X62: 0 | Y62: 0 | Z62: 0 | AA62: 0 | AB62: 0 | AC62: 0 | AD62: 0 | AE62: 0 | AF62: 0 | AG62: 0 | AH62: 0 | AI62: 0 | AJ62: 0 | AK62: 0 | AL62: 0 | AM62: 0 | AN62: 0 | AO62: 0 | AP62: 0 | AQ62: 0 | AR62: =IF(AR59>0,AQ63*$H$24,0) -> 0 | AS62: 0 | AT62: 0 | AU62: 0 | AV62: 0 | AW62: 0 | AX62: 0 | AY62: 0 | AZ62: 0 | BA62: 0 | BB62: 0 | BC62: 0 | BD62: =IF(BD59>0,BC63*$H$24,0) -> 0 | BE62: 0 | BF62: 0 | BG62: 0 | BH62: 0 | BI62: 0 | BJ62: 0 | BK62: 0 | BL62: 0 | BM62: 0 | BN62: 0 | BO62: 0
G63: Debito Residuo | H63: =IF(I57=$H44,($H46-($H46*$H48)-($H46*$H47)),(($H46-($H46*$H48)-($H46*$H47))-H61)*IF(H57=H44,1,0)) -> 0 | I63: =IF(J57=$H44,($H46-($H46*$H48)-($H46*$H47)),(($H46-($H46*$H48)-($H46*$H47))-I61)*IF(H63<1,0,1)) -> 0 | J63: =IF(K57=$H44,($H46-($H46*$H48)-($H46*$H47)),(($H46-($H46*$H48)-($H46*$H47))-J61)*IF(I63<1,0,1)) -> 0 | K63: =IF(L57=$H44,($H46-($H46*$H48)-($H46*$H47)),(($H46-($H46*$H48)-($H46*$H47))-K61)*IF(J63<1,0,1)) -> 0 | L63: =IF(M57=$H44,($H46-($H46*$H48)-($H46*$H47)),(($H46-($H46*$H48)-($H46*$H47))-L61)*IF(K63<1,0,1)) -> 0 | M63: 0 | N63: 0 | O63: 0 | P63: 0 | Q63: 0 | R63: 0 | S63: 0 | T63: 0 | U63: 0 | V63: 0 | W63: 0 | X63: 0 | Y63: 0 | Z63: 0 | AA63: 0 | AB63: 0 | AC63: 0 | AD63: 0 | AE63: 0 | AF63: 0 | AG63: 0 | AH63: 0 | AI63: 0 | AJ63: 0 | AK63: 0 | AL63: 0 | AM63: 0 | AN63: 0 | AO63: 0 | AP63: 0 | AQ63: 0 | AR63: =IF(AS57=$H44,($H46-($H46*$H48)-($H46*$H47)),(($H46-($H46*$H48)-($H46*$H47))-AR61)*IF(AQ63<1,0,1)) -> 0 | AS63: 0 | AT63: 0 | AU63: 0 | AV63: 0 | AW63: 0 | AX63: 0 | AY63: 0 | AZ63: 0 | BA63: 0 | BB63: 0 | BC63: 0 | BD63: =IF(BE57=$H44,($H46-($H46*$H48)-($H46*$H47)),(($H46-($H46*$H48)-($H46*$H47))-BD61)*IF(BC63<1,0,1)) -> 0 | BE63: 0 | BF63: 0 | BG63: 0 | BH63: 0 | BI63: 0 | BJ63: 0 | BK63: 0 | BL63: 0 | BM63: 0 | BN63: 0 | BO63: 0
G64: Valore di riscatto | I64: =IF(I63<1,$H46*$H47,0)*IF(H63<1,0,1) -> 0 | J64: 0 | K64: 0 | L64: 0 | M64: 0 | N64: 0 | O64: 0 | P64: 0 | Q64: 0 | R64: 0 | S64: 0 | T64: 0 | U64: 0 | V64: 0 | W64: 0 | X64: 0 | Y64: 0 | Z64: 0 | AA64: 0 | AB64: 0 | AC64: 0 | AD64: 0 | AE64: =IF(AE63<1,$H$19*$H$20,0)*IF(AD63<1,0,1) -> 0 | AF64: 0 | AG64: 0 | AH64: 0 | AI64: 0 | AJ64: 0 | AK64: 0 | AL64: 0 | AM64: 0 | AN64: 0 | AO64: 0 | AP64: 0 | AQ64: 0 | AR64: =IF(AR63<1,$H$19*$H$20,0)*IF(AQ63<1,0,1) -> 0 | AS64: 0 | AT64: 0 | AU64: 0 | AV64: 0 | AW64: 0 | AX64: 0 | AY64: 0 | AZ64: 0 | BA64: 0 | BB64: 0 | BC64: 0 | BD64: =IF(BD63<1,$H$19*$H$20,0)*IF(BC63<1,0,1) -> 0 | BE64: 0 | BF64: 0 | BG64: 0 | BH64: 0 | BI64: 0 | BJ64: 0 | BK64: 0 | BL64: 0 | BM64: 0 | BN64: 0 | BO64: 0
G65: Totale Rata di Leasing | H65: =H58+H59+H64 -> 0 | I65: =I58+I59+I64 -> 0 | J65: =J58+J59+J64 -> 0 | K65: 0 | L65: 0 | M65: 0 | N65: 0 | O65: 0 | P65: 0 | Q65: 0 | R65: 0 | S65: 0 | T65: 0 | U65: 0 | V65: 0 | W65: 0 | X65: 0 | Y65: 0 | Z65: 0 | AA65: 0 | AB65: 0 | AC65: 0 | AD65: 0 | AE65: 0 | AF65: 0 | AG65: 0 | AH65: 0 | AI65: 0 | AJ65: 0 | AK65: 0 | AL65: 0 | AM65: 0 | AN65: 0 | AO65: 0 | AP65: 0 | AQ65: 0 | AR65: =AR58+AR59+AR64 -> 0 | AS65: 0 | AT65: 0 | AU65: 0 | AV65: 0 | AW65: 0 | AX65: =AX58+AX59+AX64 -> 0 | AY65: 0 | AZ65: 0 | BA65: 0 | BB65: 0 | BC65: 0 | BD65: =BD58+BD59+BD64 -> 0 | BE65: 0 | BF65: 0 | BG65: 0 | BH65: 0 | BI65: 0 | BJ65: 0 | BK65: 0 | BL65: 0 | BM65: 0 | BN65: 0 | BO65: 0
E68: Leasing 3
F70: Parametri
G71: Data Stipula Contratto (mmm-aa) | H71: A1 m1 | DB71: =VLOOKUP($H71,configurazione!A67:B113,2,FALSE) -> 1
G72: Tasso di interesse annuale | H72: 0.05
G73: Valore del Bene
G74: Valore di Riscatto (% Valorre del Bene) | H74: 0.1
G75: MaxiCanone Iniziale (% Valore del Bene) | H75: 0.1
G76: Durata (numero rate totali) | H76: 12
F78: Tasso di interesse effettivo mensile | H78: =((1+H72)^(1/12))-1 -> 0.004074123784
F80: Rata mesile (quota capitale + oneri finanziari) | H80: =(H73-(H73*H74)-(H73*H75))/((1-(1+H78)^(-H76))/H78) -> 0
H82: =+SPm!I12 -> 2017-01-01 | I82: =+SPm!J12 -> 2017-02-28 | J82: =+SPm!K12 -> 2017-03-31 | K82: =+SPm!L12 -> 2017-04-30 | L82: =+SPm!M12 -> 2017-05-31 | M82: =+SPm!N12 -> 2017-06-30 | N82: =+SPm!O12 -> 2017-07-31 | O82: =+SPm!P12 -> 2017-08-31 | P82: =+SPm!Q12 -> 2017-09-30 | Q82: =+SPm!R12 -> 2017-10-31 | R82: =+SPm!S12 -> 2017-11-30 | S82: =+SPm!T12 -> 2017-12-31 | T82: =+SPm!U12 -> 2018-01-31 | U82: =+SPm!V12 -> 2018-02-28 | V82: =+SPm!W12 -> 2018-03-31 | W82: =+SPm!X12 -> 2018-04-30 | X82: =+SPm!Y12 -> 2018-05-31 | Y82: =+SPm!Z12 -> 2018-06-30 | Z82: =+SPm!AA12 -> 2018-07-31 | AA82: =+SPm!AB12 -> 2018-08-31 | AB82: =+SPm!AC12 -> 2018-09-30 | AC82: =+SPm!AD12 -> 2018-10-31 | AD82: =+SPm!AE12 -> 2018-11-30 | AE82: =+SPm!AF12 -> 2018-12-31 | AF82: =+SPm!AG12 -> 2019-01-31 | AG82: =+SPm!AH12 -> 2019-02-28 | AH82: =+SPm!AI12 -> 2019-03-31 | AI82: =+SPm!AJ12 -> 2019-04-30 | AJ82: =+SPm!AK12 -> 2019-05-31 | AK82: =+SPm!AL12 -> 2019-06-30 | AL82: =+SPm!AM12 -> 2019-07-31 | AM82: =+SPm!AN12 -> 2019-08-31 | AN82: =+SPm!AO12 -> 2019-09-30 | AO82: =+SPm!AP12 -> 2019-10-31 | AP82: =+SPm!AQ12 -> 2019-11-30 | AQ82: =+SPm!AR12 -> 2019-12-31 | AR82: =+SPm!AS12 -> 2020-01-31 | AS82: =+SPm!AT12 -> 2020-02-29 | AT82: =+SPm!AU12 -> 2020-03-31 | AU82: =+SPm!AV12 -> 2020-04-30 | AV82: =+SPm!AW12 -> 2020-05-31 | AW82: =+SPm!AX12 -> 2020-06-30 | AX82: =+SPm!AY12 -> 2020-07-31 | AY82: =+SPm!AZ12 -> 2020-08-31 | AZ82: =+SPm!BA12 -> 2020-09-30 | BA82: =+SPm!BB12 -> 2020-10-31 | BB82: =+SPm!BC12 -> 2020-11-30 | BC82: =+SPm!BD12 -> 2020-12-31 | BD82: =+SPm!BE12 -> 2021-01-31 | BE82: =+SPm!BF12 -> 2021-02-28 | BF82: =+SPm!BG12 -> 2021-03-31 | BG82: =+SPm!BH12 -> 2021-04-30 | BH82: =+SPm!BI12 -> 2021-05-31 | BI82: =+SPm!BJ12 -> 2021-06-30 | BJ82: =+SPm!BK12 -> 2021-07-31 | BK82: =+SPm!BL12 -> 2021-08-31 | BL82: =+SPm!BM12 -> 2021-09-30 | BM82: =+SPm!BN12 -> 2021-10-31 | BN82: =+SPm!BO12 -> 2021-11-30 | BO82: =+SPm!BP12 -> 2021-12-31
H83: =H29 -> 1 | I83: =I29 -> 2 | J83: 3 | K83: 4 | L83: 5 | M83: 6 | N83: 7 | O83: 8 | P83: 9 | Q83: 10 | R83: 11 | S83: 12 | T83: 13 | U83: 14 | V83: 15 | W83: 16 | X83: 17 | Y83: 18 | Z83: 19 | AA83: 20 | AB83: 21 | AC83: 22 | AD83: 23 | AE83: 24 | AF83: 25 | AG83: 26 | AH83: 27 | AI83: 28 | AJ83: 29 | AK83: 30 | AL83: 31 | AM83: 32 | AN83: 33 | AO83: 34 | AP83: 35 | AQ83: 36 | AR83: 37 | AS83: 38 | AT83: 39 | AU83: 40 | AV83: 41 | AW83: 42 | AX83: 43 | AY83: 44 | AZ83: 45 | BA83: 46 | BB83: 47 | BC83: 48 | BD83: 49 | BE83: 50 | BF83: 51 | BG83: 52 | BH83: 53 | BI83: 54 | BJ83: 55 | BK83: 56 | BL83: 57 | BM83: 58 | BN83: 59 | BO83: 60
F84: Costo Leasing | H84: =H30 -> A1 m1 | I84: =I30 -> A1 m2 | J84: A1 m3 | K84: A1 m4 | L84: A1 m5 | M84: A1 m6 | N84: A1 m7 | O84: A1 m8 | P84: A1 m9 | Q84: A1 m10 | R84: A1 m11 | S84: A1 m12 | T84: A2 m1 | U84: A2 m2 | V84: A2 m3 | W84: A2 m4 | X84: A2 m5 | Y84: A2 m6 | Z84: A2 m7 | AA84: A2 m8 | AB84: A2 m9 | AC84: A2 m10 | AD84: A2 m11 | AE84: A2 m12 | AF84: A3 m1 | AG84: A3 m2 | AH84: A3 m3 | AI84: A3 m4 | AJ84: A3 m5 | AK84: A3 m6 | AL84: A3 m7 | AM84: A3 m8 | AN84: A3 m9 | AO84: A3 m10 | AP84: A3 m11 | AQ84: A3 m12 | AR84: A4 m1 | AS84: A4 m2 | AT84: A4 m3 | AU84: A4 m4 | AV84: A4 m5 | AW84: A4 m6 | AX84: A4 m7 | AY84: A4 m8 | AZ84: A4 m9 | BA84: A4 m10 | BB84: A4 m11 | BC84: A4 m12 | BD84: A5 m1 | BE84: A5 m2 | BF84: A5 m3 | BG84: A5 m4 | BH84: A5 m5 | BI84: A5 m6 | BJ84: A5 m7 | BK84: A5 m8 | BL84: A5 m9 | BM84: A5 m10 | BN84: A5 m11 | BO84: A5 m12
G85: MaxiCanone Iniziale | H85: =IF(H84=$H71,$H73*$H75,0) -> 0 | I85: 0 | J85: 0 | K85: 0 | L85: 0 | M85: 0 | N85: 0 | O85: 0 | P85: 0 | Q85: 0 | R85: 0 | S85: 0 | T85: 0 | U85: 0 | V85: 0 | W85: 0 | X85: 0 | Y85: 0 | Z85: 0 | AA85: 0 | AB85: 0 | AC85: 0 | AD85: 0 | AE85: 0 | AF85: 0 | AG85: 0 | AH85: 0 | AI85: 0 | AJ85: 0 | AK85: 0 | AL85: 0 | AM85: 0 | AN85: 0 | AO85: 0 | AP85: 0 | AQ85: 0 | AR85: =IF(AR84=$H71,$H73*$H75,0) -> 0 | AS85: 0 | AT85: 0 | AU85: 0 | AV85: 0 | AW85: 0 | AX85: =IF(AX84=$H71,$H73*$H75,0) -> 0 | AY85: 0 | AZ85: 0 | BA85: 0 | BB85: 0 | BC85: 0 | BD85: =IF(BD84=$H71,$H73*$H75,0) -> 0 | BE85: 0 | BF85: 0 | BG85: 0 | BH85: 0 | BI85: 0 | BJ85: 0 | BK85: 0 | BL85: 0 | BM85: 0 | BN85: 0 | BO85: 0
G86: Rata | I86: =+IF(I83>=$DB71,$H80,0)*IF(H90<1,0,1) -> 0 | J86: 0 | K86: 0 | L86: 0 | M86: 0 | N86: 0 | O86: 0 | P86: 0 | Q86: 0 | R86: 0 | S86: 0 | T86: 0 | U86: 0 | V86: 0 | W86: 0 | X86: 0 | Y86: 0 | Z86: 0 | AA86: 0 | AB86: 0 | AC86: 0 | AD86: 0 | AE86: 0 | AF86: 0 | AG86: 0 | AH86: 0 | AI86: 0 | AJ86: 0 | AK86: 0 | AL86: 0 | AM86: 0 | AN86: 0 | AO86: =+IF(AO83>=$DB71,$H80,0)*IF(AN90<1,0,1) -> 0 | AP86: 0 | AQ86: 0 | AR86: 0 | AS86: 0 | AT86: 0 | AU86: 0 | AV86: 0 | AW86: 0 | AX86: 0 | AY86: 0 | AZ86: 0 | BA86: 0 | BB86: 0 | BC86: 0 | BD86: 0 | BE86: 0 | BF86: 0 | BG86: 0 | BH86: 0 | BI86: 0 | BJ86: 0 | BK86: 0 | BL86: 0 | BM86: 0 | BN86: 0 | BO86: 0
G87: Quota Capitale Rata | I87: =I86-I89 -> 0 | J87: 0 | K87: 0 | L87: 0 | M87: 0 | N87: 0 | O87: 0 | P87: 0 | Q87: 0 | R87: 0 | S87: 0 | T87: 0 | U87: 0 | V87: 0 | W87: 0 | X87: 0 | Y87: 0 | Z87: 0 | AA87: 0 | AB87: 0 | AC87: 0 | AD87: 0 | AE87: 0 | AF87: 0 | AG87: 0 | AH87: 0 | AI87: 0 | AJ87: 0 | AK87: 0 | AL87: 0 | AM87: 0 | AN87: 0 | AO87: 0 | AP87: 0 | AQ87: 0 | AR87: =AR86-AR89 -> 0 | AS87: 0 | AT87: 0 | AU87: 0 | AV87: 0 | AW87: 0 | AX87: =AX86-AX89 -> 0 | AY87: 0 | AZ87: 0 | BA87: 0 | BB87: 0 | BC87: 0 | BD87: =BD86-BD89 -> 0 | BE87: 0 | BF87: 0 | BG87: 0 | BH87: 0 | BI87: 0 | BJ87: 0 | BK87: 0 | BL87: 0 | BM87: 0 | BN87: 0 | BO87: 0
G88: Quota Capitale Cumulata | I88: =(I87+H88)*(IF(H90<1,0,1)) -> 0 | J88: 0 | K88: 0 | L88: 0 | M88: 0 | N88: 0 | O88: 0 | P88: 0 | Q88: 0 | R88: 0 | S88: 0 | T88: 0 | U88: 0 | V88: 0 | W88: =(W87+V88)*(IF(V90<1,0,1)) -> 0 | X88: =(X87+W88)*(IF(W90<1,0,1)) -> 0 | Y88: 0 | Z88: 0 | AA88: 0 | AB88: 0 | AC88: 0 | AD88: 0 | AE88: 0 | AF88: 0 | AG88: 0 | AH88: 0 | AI88: 0 | AJ88: 0 | AK88: 0 | AL88: 0 | AM88: 0 | AN88: 0 | AO88: 0 | AP88: 0 | AQ88: 0 | AR88: =(AR87+AQ88)*(IF(AQ90<1,0,1)) -> 0 | AS88: 0 | AT88: 0 | AU88: 0 | AV88: 0 | AW88: 0 | AX88: 0 | AY88: 0 | AZ88: 0 | BA88: 0 | BB88: 0 | BC88: 0 | BD88: =(BD87+BC88)*(IF(BC90<1,0,1)) -> 0 | BE88: 0 | BF88: 0 | BG88: 0 | BH88: 0 | BI88: 0 | BJ88: 0 | BK88: 0 | BL88: 0 | BM88: 0 | BN88: 0 | BO88: 0
G89: Oneri Finanziari Rata | I89: =IF(I86>0,H90*$H78,0) -> 0 | J89: =IF(J86>0,I90*$H$24,0) -> 0 | K89: 0 | L89: 0 | M89: 0 | N89: 0 | O89: 0 | P89: 0 | Q89: 0 | R89: 0 | S89: 0 | T89: 0 | U89: 0 | V89: 0 | W89: 0 | X89: 0 | Y89: 0 | Z89: 0 | AA89: 0 | AB89: 0 | AC89: 0 | AD89: 0 | AE89: 0 | AF89: 0 | AG89: 0 | AH89: 0 | AI89: 0 | AJ89: 0 | AK89: 0 | AL89: 0 | AM89: 0 | AN89: 0 | AO89: 0 | AP89: 0 | AQ89: 0 | AR89: =IF(AR86>0,AQ90*$H$24,0) -> 0 | AS89: 0 | AT89: 0 | AU89: 0 | AV89: 0 | AW89: 0 | AX89: 0 | AY89: 0 | AZ89: 0 | BA89: 0 | BB89: 0 | BC89: 0 | BD89: =IF(BD86>0,BC90*$H$24,0) -> 0 | BE89: 0 | BF89: 0 | BG89: 0 | BH89: 0 | BI89: 0 | BJ89: 0 | BK89: 0 | BL89: 0 | BM89: 0 | BN89: 0 | BO89: 0
G90: Debito Residuo | H90: =IF(I84=$H71,($H73-($H73*$H75)-($H73*$H74)),(($H73-($H73*$H75)-($H73*$H74))-H88)*IF(H84=H71,1,0)) -> 0 | I90: =IF(J84=$H71,($H73-($H73*$H75)-($H73*$H74)),(($H73-($H73*$H75)-($H73*$H74))-I88)*IF(H90<1,0,1)) -> 0 | J90: =IF(K84=$H71,($H73-($H73*$H75)-($H73*$H74)),(($H73-($H73*$H75)-($H73*$H74))-J88)*IF(I90<1,0,1)) -> 0 | K90: =IF(L84=$H71,($H73-($H73*$H75)-($H73*$H74)),(($H73-($H73*$H75)-($H73*$H74))-K88)*IF(J90<1,0,1)) -> 0 | L90: =IF(M84=$H71,($H73-($H73*$H75)-($H73*$H74)),(($H73-($H73*$H75)-($H73*$H74))-L88)*IF(K90<1,0,1)) -> 0 | M90: 0 | N90: 0 | O90: 0 | P90: 0 | Q90: 0 | R90: 0 | S90: 0 | T90: 0 | U90: 0 | V90: 0 | W90: 0 | X90: 0 | Y90: 0 | Z90: 0 | AA90: 0 | AB90: 0 | AC90: 0 | AD90: 0 | AE90: 0 | AF90: 0 | AG90: 0 | AH90: 0 | AI90: 0 | AJ90: 0 | AK90: 0 | AL90: 0 | AM90: 0 | AN90: 0 | AO90: 0 | AP90: 0 | AQ90: 0 | AR90: =IF(AS84=$H71,($H73-($H73*$H75)-($H73*$H74)),(($H73-($H73*$H75)-($H73*$H74))-AR88)*IF(AQ90<1,0,1)) -> 0 | AS90: 0 | AT90: 0 | AU90: 0 | AV90: 0 | AW90: 0 | AX90: 0 | AY90: 0 | AZ90: 0 | BA90: 0 | BB90: 0 | BC90: 0 | BD90: =IF(BE84=$H71,($H73-($H73*$H75)-($H73*$H74)),(($H73-($H73*$H75)-($H73*$H74))-BD88)*IF(BC90<1,0,1)) -> 0 | BE90: 0 | BF90: 0 | BG90: 0 | BH90: 0 | BI90: 0 | BJ90: 0 | BK90: 0 | BL90: 0 | BM90: 0 | BN90: 0 | BO90: 0
G91: Valore di riscatto | I91: =IF(I90<1,$H73*$H74,0)*IF(H90<1,0,1) -> 0 | J91: 0 | K91: 0 | L91: 0 | M91: 0 | N91: 0 | O91: 0 | P91: 0 | Q91: 0 | R91: 0 | S91: 0 | T91: 0 | U91: 0 | V91: 0 | W91: 0 | X91: 0 | Y91: 0 | Z91: 0 | AA91: 0 | AB91: 0 | AC91: 0 | AD91: 0 | AE91: =IF(AE90<1,$H$19*$H$20,0)*IF(AD90<1,0,1) -> 0 | AF91: 0 | AG91: 0 | AH91: 0 | AI91: 0 | AJ91: 0 | AK91: 0 | AL91: 0 | AM91: 0 | AN91: 0 | AO91: 0 | AP91: 0 | AQ91: 0 | AR91: =IF(AR90<1,$H$19*$H$20,0)*IF(AQ90<1,0,1) -> 0 | AS91: 0 | AT91: 0 | AU91: 0 | AV91: 0 | AW91: 0 | AX91: 0 | AY91: 0 | AZ91: 0 | BA91: 0 | BB91: 0 | BC91: 0 | BD91: =IF(BD90<1,$H$19*$H$20,0)*IF(BC90<1,0,1) -> 0 | BE91: 0 | BF91: 0 | BG91: 0 | BH91: 0 | BI91: 0 | BJ91: 0 | BK91: 0 | BL91: 0 | BM91: 0 | BN91: 0 | BO91: 0
G92: Totale Rata di Leasing | H92: =H85+H86+H91 -> 0 | I92: =I85+I86+I91 -> 0 | J92: =J85+J86+J91 -> 0 | K92: 0 | L92: 0 | M92: 0 | N92: 0 | O92: 0 | P92: 0 | Q92: 0 | R92: 0 | S92: 0 | T92: 0 | U92: 0 | V92: 0 | W92: 0 | X92: 0 | Y92: 0 | Z92: 0 | AA92: 0 | AB92: 0 | AC92: 0 | AD92: 0 | AE92: 0 | AF92: 0 | AG92: 0 | AH92: 0 | AI92: 0 | AJ92: 0 | AK92: 0 | AL92: 0 | AM92: 0 | AN92: 0 | AO92: 0 | AP92: 0 | AQ92: 0 | AR92: =AR85+AR86+AR91 -> 0 | AS92: 0 | AT92: 0 | AU92: 0 | AV92: 0 | AW92: 0 | AX92: =AX85+AX86+AX91 -> 0 | AY92: 0 | AZ92: 0 | BA92: 0 | BB92: 0 | BC92: 0 | BD92: =BD85+BD86+BD91 -> 0 | BE92: 0 | BF92: 0 | BG92: 0 | BH92: 0 | BI92: 0 | BJ92: 0 | BK92: 0 | BL92: 0 | BM92: 0 | BN92: 0 | BO92: 0
E95: Leasing 4
F97: Parametri
G98: Data Stipula Contratto (mmm-aa) | H98: A1 m1 | DB98: =VLOOKUP($H98,configurazione!A67:B113,2,FALSE) -> 1
G99: Tasso di interesse annuale | H99: 0.05
G100: Valore del Bene
G101: Valore di Riscatto (% Valorre del Bene) | H101: 0.1
G102: MaxiCanone Iniziale (% Valore del Bene) | H102: 0.1
G103: Durata (numero rate totali) | H103: 12
F105: Tasso di interesse effettivo mensile | H105: =((1+H99)^(1/12))-1 -> 0.004074123784
F107: Rata mesile (quota capitale + oneri finanziari) | H107: =(H100-(H100*H101)-(H100*H102))/((1-(1+H105)^(-H103))/H105) -> 0
H109: =+SPm!I12 -> 2017-01-01 | I109: =+SPm!J12 -> 2017-02-28 | J109: =+SPm!K12 -> 2017-03-31 | K109: =+SPm!L12 -> 2017-04-30 | L109: =+SPm!M12 -> 2017-05-31 | M109: =+SPm!N12 -> 2017-06-30 | N109: =+SPm!O12 -> 2017-07-31 | O109: =+SPm!P12 -> 2017-08-31 | P109: =+SPm!Q12 -> 2017-09-30 | Q109: =+SPm!R12 -> 2017-10-31 | R109: =+SPm!S12 -> 2017-11-30 | S109: =+SPm!T12 -> 2017-12-31 | T109: =+SPm!U12 -> 2018-01-31 | U109: =+SPm!V12 -> 2018-02-28 | V109: =+SPm!W12 -> 2018-03-31 | W109: =+SPm!X12 -> 2018-04-30 | X109: =+SPm!Y12 -> 2018-05-31 | Y109: =+SPm!Z12 -> 2018-06-30 | Z109: =+SPm!AA12 -> 2018-07-31 | AA109: =+SPm!AB12 -> 2018-08-31 | AB109: =+SPm!AC12 -> 2018-09-30 | AC109: =+SPm!AD12 -> 2018-10-31 | AD109: =+SPm!AE12 -> 2018-11-30 | AE109: =+SPm!AF12 -> 2018-12-31 | AF109: =+SPm!AG12 -> 2019-01-31 | AG109: =+SPm!AH12 -> 2019-02-28 | AH109: =+SPm!AI12 -> 2019-03-31 | AI109: =+SPm!AJ12 -> 2019-04-30 | AJ109: =+SPm!AK12 -> 2019-05-31 | AK109: =+SPm!AL12 -> 2019-06-30 | AL109: =+SPm!AM12 -> 2019-07-31 | AM109: =+SPm!AN12 -> 2019-08-31 | AN109: =+SPm!AO12 -> 2019-09-30 | AO109: =+SPm!AP12 -> 2019-10-31 | AP109: =+SPm!AQ12 -> 2019-11-30 | AQ109: =+SPm!AR12 -> 2019-12-31 | AR109: =+SPm!AS12 -> 2020-01-31 | AS109: =+SPm!AT12 -> 2020-02-29 | AT109: =+SPm!AU12 -> 2020-03-31 | AU109: =+SPm!AV12 -> 2020-04-30 | AV109: =+SPm!AW12 -> 2020-05-31 | AW109: =+SPm!AX12 -> 2020-06-30 | AX109: =+SPm!AY12 -> 2020-07-31 | AY109: =+SPm!AZ12 -> 2020-08-31 | AZ109: =+SPm!BA12 -> 2020-09-30 | BA109: =+SPm!BB12 -> 2020-10-31 | BB109: =+SPm!BC12 -> 2020-11-30 | BC109: =+SPm!BD12 -> 2020-12-31 | BD109: =+SPm!BE12 -> 2021-01-31 | BE109: =+SPm!BF12 -> 2021-02-28 | BF109: =+SPm!BG12 -> 2021-03-31 | BG109: =+SPm!BH12 -> 2021-04-30 | BH109: =+SPm!BI12 -> 2021-05-31 | BI109: =+SPm!BJ12 -> 2021-06-30 | BJ109: =+SPm!BK12 -> 2021-07-31 | BK109: =+SPm!BL12 -> 2021-08-31 | BL109: =+SPm!BM12 -> 2021-09-30 | BM109: =+SPm!BN12 -> 2021-10-31 | BN109: =+SPm!BO12 -> 2021-11-30 | BO109: =+SPm!BP12 -> 2021-12-31
H110: =H29 -> 1 | I110: =I29 -> 2 | J110: 3 | K110: 4 | L110: 5 | M110: 6 | N110: 7 | O110: 8 | P110: 9 | Q110: 10 | R110: 11 | S110: 12 | T110: 13 | U110: 14 | V110: 15 | W110: 16 | X110: 17 | Y110: 18 | Z110: 19 | AA110: 20 | AB110: 21 | AC110: 22 | AD110: 23 | AE110: 24 | AF110: 25 | AG110: 26 | AH110: 27 | AI110: 28 | AJ110: 29 | AK110: 30 | AL110: 31 | AM110: 32 | AN110: 33 | AO110: 34 | AP110: 35 | AQ110: 36 | AR110: 37 | AS110: 38 | AT110: 39 | AU110: 40 | AV110: 41 | AW110: 42 | AX110: 43 | AY110: 44 | AZ110: 45 | BA110: 46 | BB110: 47 | BC110: 48 | BD110: 49 | BE110: 50 | BF110: 51 | BG110: 52 | BH110: 53 | BI110: 54 | BJ110: 55 | BK110: 56 | BL110: 57 | BM110: 58 | BN110: 59 | BO110: 60
F111: Costo Leasing | H111: =H30 -> A1 m1 | I111: =I30 -> A1 m2 | J111: A1 m3 | K111: A1 m4 | L111: A1 m5 | M111: A1 m6 | N111: A1 m7 | O111: A1 m8 | P111: A1 m9 | Q111: A1 m10 | R111: A1 m11 | S111: A1 m12 | T111: A2 m1 | U111: A2 m2 | V111: A2 m3 | W111: A2 m4 | X111: A2 m5 | Y111: A2 m6 | Z111: A2 m7 | AA111: A2 m8 | AB111: A2 m9 | AC111: A2 m10 | AD111: A2 m11 | AE111: A2 m12 | AF111: A3 m1 | AG111: A3 m2 | AH111: A3 m3 | AI111: A3 m4 | AJ111: A3 m5 | AK111: A3 m6 | AL111: A3 m7 | AM111: A3 m8 | AN111: A3 m9 | AO111: A3 m10 | AP111: A3 m11 | AQ111: A3 m12 | AR111: A4 m1 | AS111: A4 m2 | AT111: A4 m3 | AU111: A4 m4 | AV111: A4 m5 | AW111: A4 m6 | AX111: A4 m7 | AY111: A4 m8 | AZ111: A4 m9 | BA111: A4 m10 | BB111: A4 m11 | BC111: A4 m12 | BD111: A5 m1 | BE111: A5 m2 | BF111: A5 m3 | BG111: A5 m4 | BH111: A5 m5 | BI111: A5 m6 | BJ111: A5 m7 | BK111: A5 m8 | BL111: A5 m9 | BM111: A5 m10 | BN111: A5 m11 | BO111: A5 m12
G112: MaxiCanone Iniziale | H112: =IF(H111=$H98,$H100*$H102,0) -> 0 | I112: 0 | J112: 0 | K112: 0 | L112: 0 | M112: 0 | N112: 0 | O112: 0 | P112: 0 | Q112: 0 | R112: 0 | S112: 0 | T112: 0 | U112: 0 | V112: 0 | W112: 0 | X112: 0 | Y112: 0 | Z112: 0 | AA112: 0 | AB112: 0 | AC112: 0 | AD112: 0 | AE112: 0 | AF112: 0 | AG112: 0 | AH112: 0 | AI112: 0 | AJ112: 0 | AK112: 0 | AL112: 0 | AM112: 0 | AN112: 0 | AO112: 0 | AP112: 0 | AQ112: 0 | AR112: =IF(AR111=$H98,$H100*$H102,0) -> 0 | AS112: 0 | AT112: 0 | AU112: 0 | AV112: 0 | AW112: 0 | AX112: =IF(AX111=$H98,$H100*$H102,0) -> 0 | AY112: 0 | AZ112: 0 | BA112: 0 | BB112: 0 | BC112: 0 | BD112: =IF(BD111=$H98,$H100*$H102,0) -> 0 | BE112: 0 | BF112: 0 | BG112: 0 | BH112: 0 | BI112: 0 | BJ112: 0 | BK112: 0 | BL112: 0 | BM112: 0 | BN112: 0 | BO112: 0
G113: Rata | I113: =+IF(I110>=$DB98,$H107,0)*IF(H117<1,0,1) -> 0 | J113: 0 | K113: 0 | L113: 0 | M113: 0 | N113: 0 | O113: 0 | P113: 0 | Q113: 0 | R113: 0 | S113: 0 | T113: 0 | U113: 0 | V113: 0 | W113: 0 | X113: 0 | Y113: 0 | Z113: 0 | AA113: 0 | AB113: 0 | AC113: 0 | AD113: 0 | AE113: 0 | AF113: 0 | AG113: 0 | AH113: 0 | AI113: 0 | AJ113: 0 | AK113: 0 | AL113: 0 | AM113: 0 | AN113: 0 | AO113: =+IF(AO110>=$DB98,$H107,0)*IF(AN117<1,0,1) -> 0 | AP113: 0 | AQ113: 0 | AR113: 0 | AS113: 0 | AT113: 0 | AU113: 0 | AV113: 0 | AW113: 0 | AX113: 0 | AY113: 0 | AZ113: 0 | BA113: 0 | BB113: 0 | BC113: 0 | BD113: 0 | BE113: 0 | BF113: 0 | BG113: 0 | BH113: 0 | BI113: 0 | BJ113: 0 | BK113: 0 | BL113: 0 | BM113: 0 | BN113: 0 | BO113: 0
G114: Quota Capitale Rata | I114: =I113-I116 -> 0 | J114: 0 | K114: 0 | L114: 0 | M114: 0 | N114: 0 | O114: 0 | P114: 0 | Q114: 0 | R114: 0 | S114: 0 | T114: 0 | U114: 0 | V114: 0 | W114: 0 | X114: 0 | Y114: 0 | Z114: 0 | AA114: 0 | AB114: 0 | AC114: 0 | AD114: 0 | AE114: 0 | AF114: 0 | AG114: 0 | AH114: 0 | AI114: 0 | AJ114: 0 | AK114: 0 | AL114: 0 | AM114: 0 | AN114: 0 | AO114: 0 | AP114: 0 | AQ114: 0 | AR114: =AR113-AR116 -> 0 | AS114: 0 | AT114: 0 | AU114: 0 | AV114: 0 | AW114: 0 | AX114: =AX113-AX116 -> 0 | AY114: 0 | AZ114: 0 | BA114: 0 | BB114: 0 | BC114: 0 | BD114: =BD113-BD116 -> 0 | BE114: 0 | BF114: 0 | BG114: 0 | BH114: 0 | BI114: 0 | BJ114: 0 | BK114: 0 | BL114: 0 | BM114: 0 | BN114: 0 | BO114: 0
G115: Quota Capitale Cumulata | I115: =(I114+H115)*(IF(H117<1,0,1)) -> 0 | J115: 0 | K115: 0 | L115: 0 | M115: 0 | N115: 0 | O115: 0 | P115: 0 | Q115: 0 | R115: 0 | S115: 0 | T115: 0 | U115: 0 | V115: 0 | W115: =(W114+V115)*(IF(V117<1,0,1)) -> 0 | X115: =(X114+W115)*(IF(W117<1,0,1)) -> 0 | Y115: 0 | Z115: 0 | AA115: 0 | AB115: 0 | AC115: 0 | AD115: 0 | AE115: 0 | AF115: 0 | AG115: 0 | AH115: 0 | AI115: 0 | AJ115: 0 | AK115: 0 | AL115: 0 | AM115: 0 | AN115: 0 | AO115: 0 | AP115: 0 | AQ115: 0 | AR115: =(AR114+AQ115)*(IF(AQ117<1,0,1)) -> 0 | AS115: 0 | AT115: 0 | AU115: 0 | AV115: 0 | AW115: 0 | AX115: 0 | AY115: 0 | AZ115: 0 | BA115: 0 | BB115: 0 | BC115: 0 | BD115: =(BD114+BC115)*(IF(BC117<1,0,1)) -> 0 | BE115: 0 | BF115: 0 | BG115: 0 | BH115: 0 | BI115: 0 | BJ115: 0 | BK115: 0 | BL115: 0 | BM115: 0 | BN115: 0 | BO115: 0
G116: Oneri Finanziari Rata | I116: =IF(I113>0,H117*$H105,0) -> 0 | J116: =IF(J113>0,I117*$H$24,0) -> 0 | K116: 0 | L116: 0 | M116: 0 | N116: 0 | O116: 0 | P116: 0 | Q116: 0 | R116: 0 | S116: 0 | T116: 0 | U116: 0 | V116: 0 | W116: 0 | X116: 0 | Y116: 0 | Z116: 0 | AA116: 0 | AB116: 0 | AC116: 0 | AD116: 0 | AE116: 0 | AF116: 0 | AG116: 0 | AH116: 0 | AI116: 0 | AJ116: 0 | AK116: 0 | AL116: 0 | AM116: 0 | AN116: 0 | AO116: 0 | AP116: 0 | AQ116: 0 | AR116: =IF(AR113>0,AQ117*$H$24,0) -> 0 | AS116: 0 | AT116: 0 | AU116: 0 | AV116: 0 | AW116: 0 | AX116: 0 | AY116: 0 | AZ116: 0 | BA116: 0 | BB116: 0 | BC116: 0 | BD116: =IF(BD113>0,BC117*$H$24,0) -> 0 | BE116: 0 | BF116: 0 | BG116: 0 | BH116: 0 | BI116: 0 | BJ116: 0 | BK116: 0 | BL116: 0 | BM116: 0 | BN116: 0 | BO116: 0
G117: Debito Residuo | H117: =IF(I111=$H98,($H100-($H100*$H102)-($H100*$H101)),(($H100-($H100*$H102)-($H100*$H101))-H115)*IF(H111=H98,1,0)) -> 0 | I117: =IF(J111=$H98,($H100-($H100*$H102)-($H100*$H101)),(($H100-($H100*$H102)-($H100*$H101))-I115)*IF(H117<1,0,1)) -> 0 | J117: =IF(K111=$H98,($H100-($H100*$H102)-($H100*$H101)),(($H100-($H100*$H102)-($H100*$H101))-J115)*IF(I117<1,0,1)) -> 0 | K117: =IF(L111=$H98,($H100-($H100*$H102)-($H100*$H101)),(($H100-($H100*$H102)-($H100*$H101))-K115)*IF(J117<1,0,1)) -> 0 | L117: =IF(M111=$H98,($H100-($H100*$H102)-($H100*$H101)),(($H100-($H100*$H102)-($H100*$H101))-L115)*IF(K117<1,0,1)) -> 0 | M117: 0 | N117: 0 | O117: 0 | P117: 0 | Q117: 0 | R117: 0 | S117: 0 | T117: 0 | U117: 0 | V117: 0 | W117: 0 | X117: 0 | Y117: 0 | Z117: 0 | AA117: 0 | AB117: 0 | AC117: 0 | AD117: 0 | AE117: 0 | AF117: 0 | AG117: 0 | AH117: 0 | AI117: 0 | AJ117: 0 | AK117: 0 | AL117: 0 | AM117: 0 | AN117: 0 | AO117: 0 | AP117: 0 | AQ117: 0 | AR117: =IF(AS111=$H98,($H100-($H100*$H102)-($H100*$H101)),(($H100-($H100*$H102)-($H100*$H101))-AR115)*IF(AQ117<1,0,1)) -> 0 | AS117: 0 | AT117: 0 | AU117: 0 | AV117: 0 | AW117: 0 | AX117: 0 | AY117: 0 | AZ117: 0 | BA117: 0 | BB117: 0 | BC117: 0 | BD117: =IF(BE111=$H98,($H100-($H100*$H102)-($H100*$H101)),(($H100-($H100*$H102)-($H100*$H101))-BD115)*IF(BC117<1,0,1)) -> 0 | BE117: 0 | BF117: 0 | BG117: 0 | BH117: 0 | BI117: 0 | BJ117: 0 | BK117: 0 | BL117: 0 | BM117: 0 | BN117: 0 | BO117: 0
G118: Valore di riscatto | I118: =IF(I117<1,$H100*$H101,0)*IF(H117<1,0,1) -> 0 | J118: 0 | K118: 0 | L118: 0 | M118: 0 | N118: 0 | O118: 0 | P118: 0 | Q118: 0 | R118: 0 | S118: 0 | T118: 0 | U118: 0 | V118: 0 | W118: 0 | X118: 0 | Y118: 0 | Z118: 0 | AA118: 0 | AB118: 0 | AC118: 0 | AD118: 0 | AE118: =IF(AE117<1,$H$19*$H$20,0)*IF(AD117<1,0,1) -> 0 | AF118: 0 | AG118: 0 | AH118: 0 | AI118: 0 | AJ118: 0 | AK118: 0 | AL118: 0 | AM118: 0 | AN118: 0 | AO118: 0 | AP118: 0 | AQ118: 0 | AR118: =IF(AR117<1,$H$19*$H$20,0)*IF(AQ117<1,0,1) -> 0 | AS118: 0 | AT118: 0 | AU118: 0 | AV118: 0 | AW118: 0 | AX118: 0 | AY118: 0 | AZ118: 0 | BA118: 0 | BB118: 0 | BC118: 0 | BD118: =IF(BD117<1,$H$19*$H$20,0)*IF(BC117<1,0,1) -> 0 | BE118: 0 | BF118: 0 | BG118: 0 | BH118: 0 | BI118: 0 | BJ118: 0 | BK118: 0 | BL118: 0 | BM118: 0 | BN118: 0 | BO118: 0
G119: Totale Rata di Leasing | H119: =H112+H113+H118 -> 0 | I119: =I112+I113+I118 -> 0 | J119: =J112+J113+J118 -> 0 | K119: 0 | L119: 0 | M119: 0 | N119: 0 | O119: 0 | P119: 0 | Q119: 0 | R119: 0 | S119: 0 | T119: 0 | U119: 0 | V119: 0 | W119: 0 | X119: 0 | Y119: 0 | Z119: 0 | AA119: 0 | AB119: 0 | AC119: 0 | AD119: 0 | AE119: 0 | AF119: 0 | AG119: 0 | AH119: 0 | AI119: 0 | AJ119: 0 | AK119: 0 | AL119: 0 | AM119: 0 | AN119: 0 | AO119: 0 | AP119: 0 | AQ119: 0 | AR119: =AR112+AR113+AR118 -> 0 | AS119: 0 | AT119: 0 | AU119: 0 | AV119: 0 | AW119: 0 | AX119: =AX112+AX113+AX118 -> 0 | AY119: 0 | AZ119: 0 | BA119: 0 | BB119: 0 | BC119: 0 | BD119: =BD112+BD113+BD118 -> 0 | BE119: 0 | BF119: 0 | BG119: 0 | BH119: 0 | BI119: 0 | BJ119: 0 | BK119: 0 | BL119: 0 | BM119: 0 | BN119: 0 | BO119: 0
E122: Leasing 5
F124: Parametri
G125: Data Stipula Contratto (mmm-aa) | H125: A1 m1 | DB125: =VLOOKUP($H125,configurazione!A67:B113,2,FALSE) -> 1
G126: Tasso di interesse annuale | H126: 0.05
G127: Valore del Bene | H127: 1
G128: Valore di Riscatto (% Valorre del Bene) | H128: 0.1
G129: MaxiCanone Iniziale (% Valore del Bene) | H129: 0.1
G130: Durata (numero rate totali) | H130: 12
F132: Tasso di interesse effettivo mensile | H132: =((1+H126)^(1/12))-1 -> 0.004074123784
F134: Rata mesile (quota capitale + oneri finanziari) | H134: =(H127-(H127*H128)-(H127*H129))/((1-(1+H132)^(-H130))/H132) -> 0.06844527957
H136: =+SPm!I12 -> 2017-01-01 | I136: =+SPm!J12 -> 2017-02-28 | J136: =+SPm!K12 -> 2017-03-31 | K136: =+SPm!L12 -> 2017-04-30 | L136: =+SPm!M12 -> 2017-05-31 | M136: =+SPm!N12 -> 2017-06-30 | N136: =+SPm!O12 -> 2017-07-31 | O136: =+SPm!P12 -> 2017-08-31 | P136: =+SPm!Q12 -> 2017-09-30 | Q136: =+SPm!R12 -> 2017-10-31 | R136: =+SPm!S12 -> 2017-11-30 | S136: =+SPm!T12 -> 2017-12-31 | T136: =+SPm!U12 -> 2018-01-31 | U136: =+SPm!V12 -> 2018-02-28 | V136: =+SPm!W12 -> 2018-03-31 | W136: =+SPm!X12 -> 2018-04-30 | X136: =+SPm!Y12 -> 2018-05-31 | Y136: =+SPm!Z12 -> 2018-06-30 | Z136: =+SPm!AA12 -> 2018-07-31 | AA136: =+SPm!AB12 -> 2018-08-31 | AB136: =+SPm!AC12 -> 2018-09-30 | AC136: =+SPm!AD12 -> 2018-10-31 | AD136: =+SPm!AE12 -> 2018-11-30 | AE136: =+SPm!AF12 -> 2018-12-31 | AF136: =+SPm!AG12 -> 2019-01-31 | AG136: =+SPm!AH12 -> 2019-02-28 | AH136: =+SPm!AI12 -> 2019-03-31 | AI136: =+SPm!AJ12 -> 2019-04-30 | AJ136: =+SPm!AK12 -> 2019-05-31 | AK136: =+SPm!AL12 -> 2019-06-30 | AL136: =+SPm!AM12 -> 2019-07-31 | AM136: =+SPm!AN12 -> 2019-08-31 | AN136: =+SPm!AO12 -> 2019-09-30 | AO136: =+SPm!AP12 -> 2019-10-31 | AP136: =+SPm!AQ12 -> 2019-11-30 | AQ136: =+SPm!AR12 -> 2019-12-31 | AR136: =+SPm!AS12 -> 2020-01-31 | AS136: =+SPm!AT12 -> 2020-02-29 | AT136: =+SPm!AU12 -> 2020-03-31 | AU136: =+SPm!AV12 -> 2020-04-30 | AV136: =+SPm!AW12 -> 2020-05-31 | AW136: =+SPm!AX12 -> 2020-06-30 | AX136: =+SPm!AY12 -> 2020-07-31 | AY136: =+SPm!AZ12 -> 2020-08-31 | AZ136: =+SPm!BA12 -> 2020-09-30 | BA136: =+SPm!BB12 -> 2020-10-31 | BB136: =+SPm!BC12 -> 2020-11-30 | BC136: =+SPm!BD12 -> 2020-12-31 | BD136: =+SPm!BE12 -> 2021-01-31 | BE136: =+SPm!BF12 -> 2021-02-28 | BF136: =+SPm!BG12 -> 2021-03-31 | BG136: =+SPm!BH12 -> 2021-04-30 | BH136: =+SPm!BI12 -> 2021-05-31 | BI136: =+SPm!BJ12 -> 2021-06-30 | BJ136: =+SPm!BK12 -> 2021-07-31 | BK136: =+SPm!BL12 -> 2021-08-31 | BL136: =+SPm!BM12 -> 2021-09-30 | BM136: =+SPm!BN12 -> 2021-10-31 | BN136: =+SPm!BO12 -> 2021-11-30 | BO136: =+SPm!BP12 -> 2021-12-31
H137: =H29 -> 1 | I137: =I29 -> 2 | J137: 3 | K137: 4 | L137: 5 | M137: 6 | N137: 7 | O137: 8 | P137: 9 | Q137: 10 | R137: 11 | S137: 12 | T137: 13 | U137: 14 | V137: 15 | W137: 16 | X137: 17 | Y137: 18 | Z137: 19 | AA137: 20 | AB137: 21 | AC137: 22 | AD137: 23 | AE137: 24 | AF137: 25 | AG137: 26 | AH137: 27 | AI137: 28 | AJ137: 29 | AK137: 30 | AL137: 31 | AM137: 32 | AN137: 33 | AO137: 34 | AP137: 35 | AQ137: 36 | AR137: 37 | AS137: 38 | AT137: 39 | AU137: 40 | AV137: 41 | AW137: 42 | AX137: 43 | AY137: 44 | AZ137: 45 | BA137: 46 | BB137: 47 | BC137: 48 | BD137: 49 | BE137: 50 | BF137: 51 | BG137: 52 | BH137: 53 | BI137: 54 | BJ137: 55 | BK137: 56 | BL137: 57 | BM137: 58 | BN137: 59 | BO137: 60
F138: Costo Leasing | H138: =H30 -> A1 m1 | I138: =I30 -> A1 m2 | J138: A1 m3 | K138: A1 m4 | L138: A1 m5 | M138: A1 m6 | N138: A1 m7 | O138: A1 m8 | P138: A1 m9 | Q138: A1 m10 | R138: A1 m11 | S138: A1 m12 | T138: A2 m1 | U138: A2 m2 | V138: A2 m3 | W138: A2 m4 | X138: A2 m5 | Y138: A2 m6 | Z138: A2 m7 | AA138: A2 m8 | AB138: A2 m9 | AC138: A2 m10 | AD138: A2 m11 | AE138: A2 m12 | AF138: A3 m1 | AG138: A3 m2 | AH138: A3 m3 | AI138: A3 m4 | AJ138: A3 m5 | AK138: A3 m6 | AL138: A3 m7 | AM138: A3 m8 | AN138: A3 m9 | AO138: A3 m10 | AP138: A3 m11 | AQ138: A3 m12 | AR138: A4 m1 | AS138: A4 m2 | AT138: A4 m3 | AU138: A4 m4 | AV138: A4 m5 | AW138: A4 m6 | AX138: A4 m7 | AY138: A4 m8 | AZ138: A4 m9 | BA138: A4 m10 | BB138: A4 m11 | BC138: A4 m12 | BD138: A5 m1 | BE138: A5 m2 | BF138: A5 m3 | BG138: A5 m4 | BH138: A5 m5 | BI138: A5 m6 | BJ138: A5 m7 | BK138: A5 m8 | BL138: A5 m9 | BM138: A5 m10 | BN138: A5 m11 | BO138: A5 m12
G139: MaxiCanone Iniziale | H139: =IF(H138=$H125,$H127*$H129,0) -> 0.1 | I139: 0 | J139: 0 | K139: 0 | L139: 0 | M139: 0 | N139: 0 | O139: 0 | P139: 0 | Q139: 0 | R139: 0 | S139: 0 | T139: 0 | U139: 0 | V139: 0 | W139: 0 | X139: 0 | Y139: 0 | Z139: 0 | AA139: 0 | AB139: 0 | AC139: 0 | AD139: 0 | AE139: 0 | AF139: 0 | AG139: 0 | AH139: 0 | AI139: 0 | AJ139: 0 | AK139: 0 | AL139: 0 | AM139: 0 | AN139: 0 | AO139: 0 | AP139: 0 | AQ139: 0 | AR139: =IF(AR138=$H125,$H127*$H129,0) -> 0 | AS139: 0 | AT139: 0 | AU139: 0 | AV139: 0 | AW139: 0 | AX139: =IF(AX138=$H125,$H127*$H129,0) -> 0 | AY139: 0 | AZ139: 0 | BA139: 0 | BB139: 0 | BC139: 0 | BD139: =IF(BD138=$H125,$H127*$H129,0) -> 0 | BE139: 0 | BF139: 0 | BG139: 0 | BH139: 0 | BI139: 0 | BJ139: 0 | BK139: 0 | BL139: 0 | BM139: 0 | BN139: 0 | BO139: =IF(BO138=$H125,$H127*$H129,0) -> 0
G140: Rata | I140: =+IF(I137>=$DB125,$H134,0)*IF(H144<1,0,1) -> 0 | J140: 0 | K140: 0 | L140: 0 | M140: 0 | N140: 0 | O140: 0 | P140: 0 | Q140: 0 | R140: 0 | S140: 0 | T140: 0 | U140: 0 | V140: 0 | W140: 0 | X140: 0 | Y140: 0 | Z140: 0 | AA140: 0 | AB140: 0 | AC140: 0 | AD140: 0 | AE140: 0 | AF140: 0 | AG140: 0 | AH140: 0 | AI140: 0 | AJ140: 0 | AK140: 0 | AL140: 0 | AM140: 0 | AN140: 0 | AO140: =+IF(AO137>=$DB125,$H134,0)*IF(AN144<1,0,1) -> 0 | AP140: 0 | AQ140: 0 | AR140: 0 | AS140: 0 | AT140: 0 | AU140: 0 | AV140: 0 | AW140: 0 | AX140: 0 | AY140: 0 | AZ140: 0 | BA140: 0 | BB140: 0 | BC140: 0 | BD140: 0 | BE140: 0 | BF140: 0 | BG140: 0 | BH140: 0 | BI140: 0 | BJ140: 0 | BK140: 0 | BL140: 0 | BM140: 0 | BN140: 0 | BO140: 0
G141: Quota Capitale Rata | I141: =I140-I143 -> 0 | J141: 0 | K141: 0 | L141: 0 | M141: 0 | N141: 0 | O141: 0 | P141: 0 | Q141: 0 | R141: 0 | S141: 0 | T141: 0 | U141: 0 | V141: 0 | W141: 0 | X141: 0 | Y141: 0 | Z141: 0 | AA141: 0 | AB141: 0 | AC141: 0 | AD141: 0 | AE141: 0 | AF141: 0 | AG141: 0 | AH141: 0 | AI141: 0 | AJ141: 0 | AK141: 0 | AL141: 0 | AM141: 0 | AN141: 0 | AO141: 0 | AP141: 0 | AQ141: 0 | AR141: =AR140-AR143 -> 0 | AS141: 0 | AT141: 0 | AU141: 0 | AV141: 0 | AW141: 0 | AX141: =AX140-AX143 -> 0 | AY141: 0 | AZ141: 0 | BA141: 0 | BB141: 0 | BC141: 0 | BD141: =BD140-BD143 -> 0 | BE141: 0 | BF141: 0 | BG141: 0 | BH141: 0 | BI141: 0 | BJ141: 0 | BK141: 0 | BL141: 0 | BM141: 0 | BN141: 0 | BO141: =BO140-BO143 -> 0
G142: Quota Capitale Cumulata | I142: =(I141+H142)*(IF(H144<1,0,1)) -> 0 | J142: 0 | K142: 0 | L142: 0 | M142: 0 | N142: 0 | O142: 0 | P142: 0 | Q142: 0 | R142: 0 | S142: 0 | T142: 0 | U142: 0 | V142: 0 | W142: =(W141+V142)*(IF(V144<1,0,1)) -> 0 | X142: =(X141+W142)*(IF(W144<1,0,1)) -> 0 | Y142: 0 | Z142: 0 | AA142: 0 | AB142: 0 | AC142: 0 | AD142: 0 | AE142: 0 | AF142: 0 | AG142: 0 | AH142: 0 | AI142: 0 | AJ142: 0 | AK142: 0 | AL142: 0 | AM142: 0 | AN142: 0 | AO142: 0 | AP142: 0 | AQ142: 0 | AR142: =(AR141+AQ142)*(IF(AQ144<1,0,1)) -> 0 | AS142: 0 | AT142: 0 | AU142: 0 | AV142: 0 | AW142: 0 | AX142: 0 | AY142: 0 | AZ142: 0 | BA142: 0 | BB142: 0 | BC142: 0 | BD142: =(BD141+BC142)*(IF(BC144<1,0,1)) -> 0 | BE142: 0 | BF142: 0 | BG142: 0 | BH142: 0 | BI142: 0 | BJ142: 0 | BK142: 0 | BL142: 0 | BM142: 0 | BN142: 0 | BO142: 0
G143: Oneri Finanziari Rata | I143: =IF(I140>0,H144*$H132,0) -> 0 | J143: =IF(J140>0,I144*$H$24,0) -> 0 | K143: 0 | L143: 0 | M143: 0 | N143: 0 | O143: 0 | P143: 0 | Q143: 0 | R143: 0 | S143: 0 | T143: 0 | U143: 0 | V143: 0 | W143: 0 | X143: 0 | Y143: 0 | Z143: 0 | AA143: 0 | AB143: 0 | AC143: 0 | AD143: 0 | AE143: 0 | AF143: 0 | AG143: 0 | AH143: 0 | AI143: 0 | AJ143: 0 | AK143: 0 | AL143: 0 | AM143: 0 | AN143: 0 | AO143: 0 | AP143: 0 | AQ143: 0 | AR143: =IF(AR140>0,AQ144*$H$24,0) -> 0 | AS143: 0 | AT143: 0 | AU143: 0 | AV143: 0 | AW143: 0 | AX143: 0 | AY143: 0 | AZ143: 0 | BA143: 0 | BB143: 0 | BC143: 0 | BD143: =IF(BD140>0,BC144*$H$24,0) -> 0 | BE143: 0 | BF143: 0 | BG143: 0 | BH143: 0 | BI143: 0 | BJ143: 0 | BK143: 0 | BL143: 0 | BM143: 0 | BN143: 0 | BO143: 0
G144: Debito Residuo | H144: =IF(I138=$H125,($H127-($H127*$H129)-($H127*$H128)),(($H127-($H127*$H129)-($H127*$H128))-H142)*IF(H138=H125,1,0)) -> 0.8 | I144: =IF(J138=$H125,($H127-($H127*$H129)-($H127*$H128)),(($H127-($H127*$H129)-($H127*$H128))-I142)*IF(H144<1,0,1)) -> 0 | J144: =IF(K138=$H125,($H127-($H127*$H129)-($H127*$H128)),(($H127-($H127*$H129)-($H127*$H128))-J142)*IF(I144<1,0,1)) -> 0 | K144: =IF(L138=$H125,($H127-($H127*$H129)-($H127*$H128)),(($H127-($H127*$H129)-($H127*$H128))-K142)*IF(J144<1,0,1)) -> 0 | L144: =IF(M138=$H125,($H127-($H127*$H129)-($H127*$H128)),(($H127-($H127*$H129)-($H127*$H128))-L142)*IF(K144<1,0,1)) -> 0 | M144: 0 | N144: 0 | O144: 0 | P144: 0 | Q144: 0 | R144: 0 | S144: 0 | T144: 0 | U144: 0 | V144: 0 | W144: 0 | X144: 0 | Y144: 0 | Z144: 0 | AA144: 0 | AB144: 0 | AC144: 0 | AD144: 0 | AE144: 0 | AF144: 0 | AG144: 0 | AH144: 0 | AI144: 0 | AJ144: 0 | AK144: 0 | AL144: 0 | AM144: 0 | AN144: 0 | AO144: 0 | AP144: 0 | AQ144: 0 | AR144: =IF(AS138=$H125,($H127-($H127*$H129)-($H127*$H128)),(($H127-($H127*$H129)-($H127*$H128))-AR142)*IF(AQ144<1,0,1)) -> 0 | AS144: 0 | AT144: 0 | AU144: 0 | AV144: 0 | AW144: 0 | AX144: 0 | AY144: 0 | AZ144: 0 | BA144: 0 | BB144: 0 | BC144: 0 | BD144: =IF(BE138=$H125,($H127-($H127*$H129)-($H127*$H128)),(($H127-($H127*$H129)-($H127*$H128))-BD142)*IF(BC144<1,0,1)) -> 0 | BE144: 0 | BF144: 0 | BG144: 0 | BH144: 0 | BI144: 0 | BJ144: 0 | BK144: 0 | BL144: 0 | BM144: 0 | BN144: 0 | BO144: 0
G145: Valore di riscatto | I145: =IF(I144<1,$H127*$H128,0)*IF(H144<1,0,1) -> 0 | J145: 0 | K145: 0 | L145: 0 | M145: 0 | N145: 0 | O145: 0 | P145: 0 | Q145: 0 | R145: 0 | S145: 0 | T145: 0 | U145: 0 | V145: 0 | W145: 0 | X145: 0 | Y145: 0 | Z145: 0 | AA145: 0 | AB145: 0 | AC145: 0 | AD145: 0 | AE145: =IF(AE144<1,$H$19*$H$20,0)*IF(AD144<1,0,1) -> 0 | AF145: 0 | AG145: 0 | AH145: 0 | AI145: 0 | AJ145: 0 | AK145: 0 | AL145: 0 | AM145: 0 | AN145: 0 | AO145: 0 | AP145: 0 | AQ145: 0 | AR145: =IF(AR144<1,$H$19*$H$20,0)*IF(AQ144<1,0,1) -> 0 | AS145: 0 | AT145: 0 | AU145: 0 | AV145: 0 | AW145: 0 | AX145: 0 | AY145: 0 | AZ145: 0 | BA145: 0 | BB145: 0 | BC145: 0 | BD145: =IF(BD144<1,$H$19*$H$20,0)*IF(BC144<1,0,1) -> 0 | BE145: 0 | BF145: 0 | BG145: 0 | BH145: 0 | BI145: 0 | BJ145: 0 | BK145: 0 | BL145: 0 | BM145: 0 | BN145: 0 | BO145: 0
G146: Totale Rata di Leasing | H146: =H139+H140+H145 -> 0.1 | I146: =I139+I140+I145 -> 0 | J146: =J139+J140+J145 -> 0 | K146: 0 | L146: 0 | M146: 0 | N146: 0 | O146: 0 | P146: 0 | Q146: 0 | R146: 0 | S146: 0 | T146: 0 | U146: 0 | V146: 0 | W146: 0 | X146: 0 | Y146: 0 | Z146: 0 | AA146: 0 | AB146: 0 | AC146: 0 | AD146: 0 | AE146: 0 | AF146: 0 | AG146: 0 | AH146: 0 | AI146: 0 | AJ146: 0 | AK146: 0 | AL146: 0 | AM146: 0 | AN146: 0 | AO146: 0 | AP146: 0 | AQ146: 0 | AR146: =AR139+AR140+AR145 -> 0 | AS146: 0 | AT146: 0 | AU146: 0 | AV146: 0 | AW146: 0 | AX146: =AX139+AX140+AX145 -> 0 | AY146: 0 | AZ146: 0 | BA146: 0 | BB146: 0 | BC146: 0 | BD146: =BD139+BD140+BD145 -> 0 | BE146: 0 | BF146: 0 | BG146: 0 | BH146: 0 | BI146: 0 | BJ146: 0 | BK146: 0 | BL146: 0 | BM146: 0 | BN146: 0 | BO146: =BO139+BO140+BO145 -> 0
E149: Leasing 6
F151: Parametri
G152: Data Stipula Contratto (mmm-aa) | H152: A1 m1 | DB152: =VLOOKUP($H152,configurazione!A67:B113,2,FALSE) -> 1
G153: Tasso di interesse annuale | H153: 0.05
G154: Valore del Bene
G155: Valore di Riscatto (% Valorre del Bene) | H155: 0.1
G156: MaxiCanone Iniziale (% Valore del Bene) | H156: 0.1
G157: Durata (numero rate totali) | H157: 12
F159: Tasso di interesse effettivo mensile | H159: =((1+H153)^(1/12))-1 -> 0.004074123784
F161: Rata mesile (quota capitale + oneri finanziari) | H161: =(H154-(H154*H155)-(H154*H156))/((1-(1+H159)^(-H157))/H159) -> 0
H163: =+SPm!I12 -> 2017-01-01 | I163: =+SPm!J12 -> 2017-02-28 | J163: =+SPm!K12 -> 2017-03-31 | K163: =+SPm!L12 -> 2017-04-30 | L163: =+SPm!M12 -> 2017-05-31 | M163: =+SPm!N12 -> 2017-06-30 | N163: =+SPm!O12 -> 2017-07-31 | O163: =+SPm!P12 -> 2017-08-31 | P163: =+SPm!Q12 -> 2017-09-30 | Q163: =+SPm!R12 -> 2017-10-31 | R163: =+SPm!S12 -> 2017-11-30 | S163: =+SPm!T12 -> 2017-12-31 | T163: =+SPm!U12 -> 2018-01-31 | U163: =+SPm!V12 -> 2018-02-28 | V163: =+SPm!W12 -> 2018-03-31 | W163: =+SPm!X12 -> 2018-04-30 | X163: =+SPm!Y12 -> 2018-05-31 | Y163: =+SPm!Z12 -> 2018-06-30 | Z163: =+SPm!AA12 -> 2018-07-31 | AA163: =+SPm!AB12 -> 2018-08-31 | AB163: =+SPm!AC12 -> 2018-09-30 | AC163: =+SPm!AD12 -> 2018-10-31 | AD163: =+SPm!AE12 -> 2018-11-30 | AE163: =+SPm!AF12 -> 2018-12-31 | AF163: =+SPm!AG12 -> 2019-01-31 | AG163: =+SPm!AH12 -> 2019-02-28 | AH163: =+SPm!AI12 -> 2019-03-31 | AI163: =+SPm!AJ12 -> 2019-04-30 | AJ163: =+SPm!AK12 -> 2019-05-31 | AK163: =+SPm!AL12 -> 2019-06-30 | AL163: =+SPm!AM12 -> 2019-07-31 | AM163: =+SPm!AN12 -> 2019-08-31 | AN163: =+SPm!AO12 -> 2019-09-30 | AO163: =+SPm!AP12 -> 2019-10-31 | AP163: =+SPm!AQ12 -> 2019-11-30 | AQ163: =+SPm!AR12 -> 2019-12-31 | AR163: =+SPm!AS12 -> 2020-01-31 | AS163: =+SPm!AT12 -> 2020-02-29 | AT163: =+SPm!AU12 -> 2020-03-31 | AU163: =+SPm!AV12 -> 2020-04-30 | AV163: =+SPm!AW12 -> 2020-05-31 | AW163: =+SPm!AX12 -> 2020-06-30 | AX163: =+SPm!AY12 -> 2020-07-31 | AY163: =+SPm!AZ12 -> 2020-08-31 | AZ163: =+SPm!BA12 -> 2020-09-30 | BA163: =+SPm!BB12 -> 2020-10-31 | BB163: =+SPm!BC12 -> 2020-11-30 | BC163: =+SPm!BD12 -> 2020-12-31 | BD163: =+SPm!BE12 -> 2021-01-31 | BE163: =+SPm!BF12 -> 2021-02-28 | BF163: =+SPm!BG12 -> 2021-03-31 | BG163: =+SPm!BH12 -> 2021-04-30 | BH163: =+SPm!BI12 -> 2021-05-31 | BI163: =+SPm!BJ12 -> 2021-06-30 | BJ163: =+SPm!BK12 -> 2021-07-31 | BK163: =+SPm!BL12 -> 2021-08-31 | BL163: =+SPm!BM12 -> 2021-09-30 | BM163: =+SPm!BN12 -> 2021-10-31 | BN163: =+SPm!BO12 -> 2021-11-30 | BO163: =+SPm!BP12 -> 2021-12-31
H164: =H29 -> 1 | I164: =I29 -> 2 | J164: 3 | K164: 4 | L164: 5 | M164: 6 | N164: 7 | O164: 8 | P164: 9 | Q164: 10 | R164: 11 | S164: 12 | T164: 13 | U164: 14 | V164: 15 | W164: 16 | X164: 17 | Y164: 18 | Z164: 19 | AA164: 20 | AB164: 21 | AC164: 22 | AD164: 23 | AE164: 24 | AF164: 25 | AG164: 26 | AH164: 27 | AI164: 28 | AJ164: 29 | AK164: 30 | AL164: 31 | AM164: 32 | AN164: 33 | AO164: 34 | AP164: 35 | AQ164: 36 | AR164: 37 | AS164: 38 | AT164: 39 | AU164: 40 | AV164: 41 | AW164: 42 | AX164: 43 | AY164: 44 | AZ164: 45 | BA164: 46 | BB164: 47 | BC164: 48 | BD164: 49 | BE164: 50 | BF164: 51 | BG164: 52 | BH164: 53 | BI164: 54 | BJ164: 55 | BK164: 56 | BL164: 57 | BM164: 58 | BN164: 59 | BO164: 60
F165: Costo Leasing | H165: =H30 -> A1 m1 | I165: =I30 -> A1 m2 | J165: A1 m3 | K165: A1 m4 | L165: A1 m5 | M165: A1 m6 | N165: A1 m7 | O165: A1 m8 | P165: A1 m9 | Q165: A1 m10 | R165: A1 m11 | S165: A1 m12 | T165: A2 m1 | U165: A2 m2 | V165: A2 m3 | W165: A2 m4 | X165: A2 m5 | Y165: A2 m6 | Z165: A2 m7 | AA165: A2 m8 | AB165: A2 m9 | AC165: A2 m10 | AD165: A2 m11 | AE165: A2 m12 | AF165: A3 m1 | AG165: A3 m2 | AH165: A3 m3 | AI165: A3 m4 | AJ165: A3 m5 | AK165: A3 m6 | AL165: A3 m7 | AM165: A3 m8 | AN165: A3 m9 | AO165: A3 m10 | AP165: A3 m11 | AQ165: A3 m12 | AR165: A4 m1 | AS165: A4 m2 | AT165: A4 m3 | AU165: A4 m4 | AV165: A4 m5 | AW165: A4 m6 | AX165: A4 m7 | AY165: A4 m8 | AZ165: A4 m9 | BA165: A4 m10 | BB165: A4 m11 | BC165: A4 m12 | BD165: A5 m1 | BE165: A5 m2 | BF165: A5 m3 | BG165: A5 m4 | BH165: A5 m5 | BI165: A5 m6 | BJ165: A5 m7 | BK165: A5 m8 | BL165: A5 m9 | BM165: A5 m10 | BN165: A5 m11 | BO165: A5 m12
G166: MaxiCanone Iniziale | H166: =IF(H165=$H152,$H154*$H156,0) -> 0 | I166: 0 | J166: 0 | K166: 0 | L166: 0 | M166: 0 | N166: 0 | O166: 0 | P166: 0 | Q166: 0 | R166: 0 | S166: 0 | T166: 0 | U166: 0 | V166: 0 | W166: 0 | X166: 0 | Y166: 0 | Z166: 0 | AA166: 0 | AB166: 0 | AC166: 0 | AD166: 0 | AE166: 0 | AF166: 0 | AG166: 0 | AH166: 0 | AI166: 0 | AJ166: 0 | AK166: 0 | AL166: 0 | AM166: 0 | AN166: 0 | AO166: 0 | AP166: 0 | AQ166: 0 | AR166: =IF(AR165=$H152,$H154*$H156,0) -> 0 | AS166: 0 | AT166: 0 | AU166: 0 | AV166: 0 | AW166: 0 | AX166: =IF(AX165=$H152,$H154*$H156,0) -> 0 | AY166: 0 | AZ166: 0 | BA166: 0 | BB166: 0 | BC166: 0 | BD166: =IF(BD165=$H152,$H154*$H156,0) -> 0 | BE166: 0 | BF166: 0 | BG166: 0 | BH166: 0 | BI166: 0 | BJ166: 0 | BK166: 0 | BL166: 0 | BM166: 0 | BN166: 0 | BO166: 0
G167: Rata | I167: =+IF(I164>=$DB152,$H161,0)*IF(H171<1,0,1) -> 0 | J167: 0 | K167: 0 | L167: 0 | M167: 0 | N167: 0 | O167: 0 | P167: 0 | Q167: 0 | R167: 0 | S167: 0 | T167: 0 | U167: 0 | V167: 0 | W167: 0 | X167: 0 | Y167: 0 | Z167: 0 | AA167: 0 | AB167: 0 | AC167: 0 | AD167: 0 | AE167: 0 | AF167: 0 | AG167: 0 | AH167: 0 | AI167: 0 | AJ167: 0 | AK167: 0 | AL167: 0 | AM167: 0 | AN167: 0 | AO167: =+IF(AO164>=$DB152,$H161,0)*IF(AN171<1,0,1) -> 0 | AP167: 0 | AQ167: 0 | AR167: 0 | AS167: 0 | AT167: 0 | AU167: 0 | AV167: 0 | AW167: 0 | AX167: 0 | AY167: 0 | AZ167: 0 | BA167: 0 | BB167: 0 | BC167: 0 | BD167: 0 | BE167: 0 | BF167: 0 | BG167: 0 | BH167: 0 | BI167: 0 | BJ167: 0 | BK167: 0 | BL167: 0 | BM167: 0 | BN167: 0 | BO167: 0
G168: Quota Capitale Rata | I168: =I167-I170 -> 0 | J168: 0 | K168: 0 | L168: 0 | M168: 0 | N168: 0 | O168: 0 | P168: 0 | Q168: 0 | R168: 0 | S168: 0 | T168: 0 | U168: 0 | V168: 0 | W168: 0 | X168: 0 | Y168: 0 | Z168: 0 | AA168: 0 | AB168: 0 | AC168: 0 | AD168: 0 | AE168: 0 | AF168: 0 | AG168: 0 | AH168: 0 | AI168: 0 | AJ168: 0 | AK168: 0 | AL168: 0 | AM168: 0 | AN168: 0 | AO168: 0 | AP168: 0 | AQ168: 0 | AR168: =AR167-AR170 -> 0 | AS168: 0 | AT168: 0 | AU168: 0 | AV168: 0 | AW168: 0 | AX168: =AX167-AX170 -> 0 | AY168: 0 | AZ168: 0 | BA168: 0 | BB168: 0 | BC168: 0 | BD168: =BD167-BD170 -> 0 | BE168: 0 | BF168: 0 | BG168: 0 | BH168: 0 | BI168: 0 | BJ168: 0 | BK168: 0 | BL168: 0 | BM168: 0 | BN168: 0 | BO168: 0
G169: Quota Capitale Cumulata | I169: =(I168+H169)*(IF(H171<1,0,1)) -> 0 | J169: 0 | K169: 0 | L169: 0 | M169: 0 | N169: 0 | O169: 0 | P169: 0 | Q169: 0 | R169: 0 | S169: 0 | T169: 0 | U169: 0 | V169: 0 | W169: =(W168+V169)*(IF(V171<1,0,1)) -> 0 | X169: =(X168+W169)*(IF(W171<1,0,1)) -> 0 | Y169: 0 | Z169: 0 | AA169: 0 | AB169: 0 | AC169: 0 | AD169: 0 | AE169: 0 | AF169: 0 | AG169: 0 | AH169: 0 | AI169: 0 | AJ169: 0 | AK169: 0 | AL169: 0 | AM169: 0 | AN169: 0 | AO169: 0 | AP169: 0 | AQ169: 0 | AR169: =(AR168+AQ169)*(IF(AQ171<1,0,1)) -> 0 | AS169: 0 | AT169: 0 | AU169: 0 | AV169: 0 | AW169: 0 | AX169: 0 | AY169: 0 | AZ169: 0 | BA169: 0 | BB169: 0 | BC169: 0 | BD169: =(BD168+BC169)*(IF(BC171<1,0,1)) -> 0 | BE169: 0 | BF169: 0 | BG169: 0 | BH169: 0 | BI169: 0 | BJ169: 0 | BK169: 0 | BL169: 0 | BM169: 0 | BN169: 0 | BO169: 0
G170: Oneri Finanziari Rata | I170: =IF(I167>0,H171*$H159,0) -> 0 | J170: =IF(J167>0,I171*$H$24,0) -> 0 | K170: 0 | L170: 0 | M170: 0 | N170: 0 | O170: 0 | P170: 0 | Q170: 0 | R170: 0 | S170: 0 | T170: 0 | U170: 0 | V170: 0 | W170: 0 | X170: 0 | Y170: 0 | Z170: 0 | AA170: 0 | AB170: 0 | AC170: 0 | AD170: 0 | AE170: 0 | AF170: 0 | AG170: 0 | AH170: 0 | AI170: 0 | AJ170: 0 | AK170: 0 | AL170: 0 | AM170: 0 | AN170: 0 | AO170: 0 | AP170: 0 | AQ170: 0 | AR170: =IF(AR167>0,AQ171*$H$24,0) -> 0 | AS170: 0 | AT170: 0 | AU170: 0 | AV170: 0 | AW170: 0 | AX170: 0 | AY170: 0 | AZ170: 0 | BA170: 0 | BB170: 0 | BC170: 0 | BD170: =IF(BD167>0,BC171*$H$24,0) -> 0 | BE170: 0 | BF170: 0 | BG170: 0 | BH170: 0 | BI170: 0 | BJ170: 0 | BK170: 0 | BL170: 0 | BM170: 0 | BN170: 0 | BO170: 0
G171: Debito Residuo | H171: =IF(I165=$H152,($H154-($H154*$H156)-($H154*$H155)),(($H154-($H154*$H156)-($H154*$H155))-H169)*IF(H165=H152,1,0)) -> 0 | I171: =IF(J165=$H152,($H154-($H154*$H156)-($H154*$H155)),(($H154-($H154*$H156)-($H154*$H155))-I169)*IF(H171<1,0,1)) -> 0 | J171: =IF(K165=$H152,($H154-($H154*$H156)-($H154*$H155)),(($H154-($H154*$H156)-($H154*$H155))-J169)*IF(I171<1,0,1)) -> 0 | K171: =IF(L165=$H152,($H154-($H154*$H156)-($H154*$H155)),(($H154-($H154*$H156)-($H154*$H155))-K169)*IF(J171<1,0,1)) -> 0 | L171: =IF(M165=$H152,($H154-($H154*$H156)-($H154*$H155)),(($H154-($H154*$H156)-($H154*$H155))-L169)*IF(K171<1,0,1)) -> 0 | M171: 0 | N171: 0 | O171: 0 | P171: 0 | Q171: 0 | R171: 0 | S171: 0 | T171: 0 | U171: 0 | V171: 0 | W171: 0 | X171: 0 | Y171: 0 | Z171: 0 | AA171: 0 | AB171: 0 | AC171: 0 | AD171: 0 | AE171: 0 | AF171: 0 | AG171: 0 | AH171: 0 | AI171: 0 | AJ171: 0 | AK171: 0 | AL171: 0 | AM171: 0 | AN171: 0 | AO171: 0 | AP171: 0 | AQ171: 0 | AR171: =IF(AS165=$H152,($H154-($H154*$H156)-($H154*$H155)),(($H154-($H154*$H156)-($H154*$H155))-AR169)*IF(AQ171<1,0,1)) -> 0 | AS171: 0 | AT171: 0 | AU171: 0 | AV171: 0 | AW171: 0 | AX171: 0 | AY171: 0 | AZ171: 0 | BA171: 0 | BB171: 0 | BC171: 0 | BD171: =IF(BE165=$H152,($H154-($H154*$H156)-($H154*$H155)),(($H154-($H154*$H156)-($H154*$H155))-BD169)*IF(BC171<1,0,1)) -> 0 | BE171: 0 | BF171: 0 | BG171: 0 | BH171: 0 | BI171: 0 | BJ171: 0 | BK171: 0 | BL171: 0 | BM171: 0 | BN171: 0 | BO171: 0
G172: Valore di riscatto | I172: =IF(I171<1,$H154*$H155,0)*IF(H171<1,0,1) -> 0 | J172: 0 | K172: 0 | L172: 0 | M172: 0 | N172: 0 | O172: 0 | P172: 0 | Q172: 0 | R172: 0 | S172: 0 | T172: 0 | U172: 0 | V172: 0 | W172: 0 | X172: 0 | Y172: 0 | Z172: 0 | AA172: 0 | AB172: 0 | AC172: 0 | AD172: 0 | AE172: =IF(AE171<1,$H$19*$H$20,0)*IF(AD171<1,0,1) -> 0 | AF172: 0 | AG172: 0 | AH172: 0 | AI172: 0 | AJ172: 0 | AK172: 0 | AL172: 0 | AM172: 0 | AN172: 0 | AO172: 0 | AP172: 0 | AQ172: 0 | AR172: =IF(AR171<1,$H$19*$H$20,0)*IF(AQ171<1,0,1) -> 0 | AS172: 0 | AT172: 0 | AU172: 0 | AV172: 0 | AW172: 0 | AX172: 0 | AY172: 0 | AZ172: 0 | BA172: 0 | BB172: 0 | BC172: 0 | BD172: =IF(BD171<1,$H$19*$H$20,0)*IF(BC171<1,0,1) -> 0 | BE172: 0 | BF172: 0 | BG172: 0 | BH172: 0 | BI172: 0 | BJ172: 0 | BK172: 0 | BL172: 0 | BM172: 0 | BN172: 0 | BO172: 0
G173: Totale Rata di Leasing | H173: =H166+H167+H172 -> 0 | I173: =I166+I167+I172 -> 0 | J173: =J166+J167+J172 -> 0 | K173: 0 | L173: 0 | M173: 0 | N173: 0 | O173: 0 | P173: 0 | Q173: 0 | R173: 0 | S173: 0 | T173: 0 | U173: 0 | V173: 0 | W173: 0 | X173: 0 | Y173: 0 | Z173: 0 | AA173: 0 | AB173: 0 | AC173: 0 | AD173: 0 | AE173: 0 | AF173: 0 | AG173: 0 | AH173: 0 | AI173: 0 | AJ173: 0 | AK173: 0 | AL173: 0 | AM173: 0 | AN173: 0 | AO173: 0 | AP173: 0 | AQ173: 0 | AR173: =AR166+AR167+AR172 -> 0 | AS173: 0 | AT173: 0 | AU173: 0 | AV173: 0 | AW173: 0 | AX173: =AX166+AX167+AX172 -> 0 | AY173: 0 | AZ173: 0 | BA173: 0 | BB173: 0 | BC173: 0 | BD173: =BD166+BD167+BD172 -> 0 | BE173: 0 | BF173: 0 | BG173: 0 | BH173: 0 | BI173: 0 | BJ173: 0 | BK173: 0 | BL173: 0 | BM173: 0 | BN173: 0 | BO173: 0
E176: Leasing 7
F178: Parametri
G179: Data Stipula Contratto (mmm-aa) | H179: A1 m1 | DB179: =VLOOKUP($H179,configurazione!A67:B113,2,FALSE) -> 1
G180: Tasso di interesse annuale | H180: 0.05
G181: Valore del Bene
G182: Valore di Riscatto (% Valorre del Bene) | H182: 0.1
G183: MaxiCanone Iniziale (% Valore del Bene) | H183: 0.1
G184: Durata (numero rate totali) | H184: 12
F186: Tasso di interesse effettivo mensile | H186: =((1+H180)^(1/12))-1 -> 0.004074123784
F188: Rata mesile (quota capitale + oneri finanziari) | H188: =(H181-(H181*H182)-(H181*H183))/((1-(1+H186)^(-H184))/H186) -> 0
H190: =+SPm!I12 -> 2017-01-01 | I190: =+SPm!J12 -> 2017-02-28 | J190: =+SPm!K12 -> 2017-03-31 | K190: =+SPm!L12 -> 2017-04-30 | L190: =+SPm!M12 -> 2017-05-31 | M190: =+SPm!N12 -> 2017-06-30 | N190: =+SPm!O12 -> 2017-07-31 | O190: =+SPm!P12 -> 2017-08-31 | P190: =+SPm!Q12 -> 2017-09-30 | Q190: =+SPm!R12 -> 2017-10-31 | R190: =+SPm!S12 -> 2017-11-30 | S190: =+SPm!T12 -> 2017-12-31 | T190: =+SPm!U12 -> 2018-01-31 | U190: =+SPm!V12 -> 2018-02-28 | V190: =+SPm!W12 -> 2018-03-31 | W190: =+SPm!X12 -> 2018-04-30 | X190: =+SPm!Y12 -> 2018-05-31 | Y190: =+SPm!Z12 -> 2018-06-30 | Z190: =+SPm!AA12 -> 2018-07-31 | AA190: =+SPm!AB12 -> 2018-08-31 | AB190: =+SPm!AC12 -> 2018-09-30 | AC190: =+SPm!AD12 -> 2018-10-31 | AD190: =+SPm!AE12 -> 2018-11-30 | AE190: =+SPm!AF12 -> 2018-12-31 | AF190: =+SPm!AG12 -> 2019-01-31 | AG190: =+SPm!AH12 -> 2019-02-28 | AH190: =+SPm!AI12 -> 2019-03-31 | AI190: =+SPm!AJ12 -> 2019-04-30 | AJ190: =+SPm!AK12 -> 2019-05-31 | AK190: =+SPm!AL12 -> 2019-06-30 | AL190: =+SPm!AM12 -> 2019-07-31 | AM190: =+SPm!AN12 -> 2019-08-31 | AN190: =+SPm!AO12 -> 2019-09-30 | AO190: =+SPm!AP12 -> 2019-10-31 | AP190: =+SPm!AQ12 -> 2019-11-30 | AQ190: =+SPm!AR12 -> 2019-12-31 | AR190: =+SPm!AS12 -> 2020-01-31 | AS190: =+SPm!AT12 -> 2020-02-29 | AT190: =+SPm!AU12 -> 2020-03-31 | AU190: =+SPm!AV12 -> 2020-04-30 | AV190: =+SPm!AW12 -> 2020-05-31 | AW190: =+SPm!AX12 -> 2020-06-30 | AX190: =+SPm!AY12 -> 2020-07-31 | AY190: =+SPm!AZ12 -> 2020-08-31 | AZ190: =+SPm!BA12 -> 2020-09-30 | BA190: =+SPm!BB12 -> 2020-10-31 | BB190: =+SPm!BC12 -> 2020-11-30 | BC190: =+SPm!BD12 -> 2020-12-31 | BD190: =+SPm!BE12 -> 2021-01-31 | BE190: =+SPm!BF12 -> 2021-02-28 | BF190: =+SPm!BG12 -> 2021-03-31 | BG190: =+SPm!BH12 -> 2021-04-30 | BH190: =+SPm!BI12 -> 2021-05-31 | BI190: =+SPm!BJ12 -> 2021-06-30 | BJ190: =+SPm!BK12 -> 2021-07-31 | BK190: =+SPm!BL12 -> 2021-08-31 | BL190: =+SPm!BM12 -> 2021-09-30 | BM190: =+SPm!BN12 -> 2021-10-31 | BN190: =+SPm!BO12 -> 2021-11-30 | BO190: =+SPm!BP12 -> 2021-12-31
H191: =H29 -> 1 | I191: =I29 -> 2 | J191: 3 | K191: 4 | L191: 5 | M191: 6 | N191: 7 | O191: 8 | P191: 9 | Q191: 10 | R191: 11 | S191: 12 | T191: 13 | U191: 14 | V191: 15 | W191: 16 | X191: 17 | Y191: 18 | Z191: 19 | AA191: 20 | AB191: 21 | AC191: 22 | AD191: 23 | AE191: 24 | AF191: 25 | AG191: 26 | AH191: 27 | AI191: 28 | AJ191: 29 | AK191: 30 | AL191: 31 | AM191: 32 | AN191: 33 | AO191: 34 | AP191: 35 | AQ191: 36 | AR191: 37 | AS191: 38 | AT191: 39 | AU191: 40 | AV191: 41 | AW191: 42 | AX191: 43 | AY191: 44 | AZ191: 45 | BA191: 46 | BB191: 47 | BC191: 48 | BD191: 49 | BE191: 50 | BF191: 51 | BG191: 52 | BH191: 53 | BI191: 54 | BJ191: 55 | BK191: 56 | BL191: 57 | BM191: 58 | BN191: 59 | BO191: 60
F192: Costo Leasing | H192: =H30 -> A1 m1 | I192: =I30 -> A1 m2 | J192: A1 m3 | K192: A1 m4 | L192: A1 m5 | M192: A1 m6 | N192: A1 m7 | O192: A1 m8 | P192: A1 m9 | Q192: A1 m10 | R192: A1 m11 | S192: A1 m12 | T192: A2 m1 | U192: A2 m2 | V192: A2 m3 | W192: A2 m4 | X192: A2 m5 | Y192: A2 m6 | Z192: A2 m7 | AA192: A2 m8 | AB192: A2 m9 | AC192: A2 m10 | AD192: A2 m11 | AE192: A2 m12 | AF192: A3 m1 | AG192: A3 m2 | AH192: A3 m3 | AI192: A3 m4 | AJ192: A3 m5 | AK192: A3 m6 | AL192: A3 m7 | AM192: A3 m8 | AN192: A3 m9 | AO192: A3 m10 | AP192: A3 m11 | AQ192: A3 m12 | AR192: A4 m1 | AS192: A4 m2 | AT192: A4 m3 | AU192: A4 m4 | AV192: A4 m5 | AW192: A4 m6 | AX192: A4 m7 | AY192: A4 m8 | AZ192: A4 m9 | BA192: A4 m10 | BB192: A4 m11 | BC192: A4 m12 | BD192: A5 m1 | BE192: A5 m2 | BF192: A5 m3 | BG192: A5 m4 | BH192: A5 m5 | BI192: A5 m6 | BJ192: A5 m7 | BK192: A5 m8 | BL192: A5 m9 | BM192: A5 m10 | BN192: A5 m11 | BO192: A5 m12
G193: MaxiCanone Iniziale | H193: =IF(H192=$H179,$H181*$H183,0) -> 0 | I193: 0 | J193: 0 | K193: 0 | L193: 0 | M193: 0 | N193: 0 | O193: 0 | P193: 0 | Q193: 0 | R193: 0 | S193: 0 | T193: 0 | U193: 0 | V193: 0 | W193: 0 | X193: 0 | Y193: 0 | Z193: 0 | AA193: 0 | AB193: 0 | AC193: 0 | AD193: 0 | AE193: 0 | AF193: 0 | AG193: 0 | AH193: 0 | AI193: 0 | AJ193: 0 | AK193: 0 | AL193: 0 | AM193: 0 | AN193: 0 | AO193: 0 | AP193: 0 | AQ193: 0 | AR193: =IF(AR192=$H179,$H181*$H183,0) -> 0 | AS193: 0 | AT193: 0 | AU193: 0 | AV193: 0 | AW193: 0 | AX193: =IF(AX192=$H179,$H181*$H183,0) -> 0 | AY193: 0 | AZ193: 0 | BA193: 0 | BB193: 0 | BC193: 0 | BD193: =IF(BD192=$H179,$H181*$H183,0) -> 0 | BE193: 0 | BF193: 0 | BG193: 0 | BH193: 0 | BI193: 0 | BJ193: 0 | BK193: 0 | BL193: 0 | BM193: 0 | BN193: 0 | BO193: 0
G194: Rata | I194: =+IF(I191>=$DB179,$H188,0)*IF(H198<1,0,1) -> 0 | J194: 0 | K194: 0 | L194: 0 | M194: 0 | N194: 0 | O194: 0 | P194: 0 | Q194: 0 | R194: 0 | S194: 0 | T194: 0 | U194: 0 | V194: 0 | W194: 0 | X194: 0 | Y194: 0 | Z194: 0 | AA194: 0 | AB194: 0 | AC194: 0 | AD194: 0 | AE194: 0 | AF194: 0 | AG194: 0 | AH194: 0 | AI194: 0 | AJ194: 0 | AK194: 0 | AL194: 0 | AM194: 0 | AN194: 0 | AO194: =+IF(AO191>=$DB179,$H188,0)*IF(AN198<1,0,1) -> 0 | AP194: 0 | AQ194: 0 | AR194: 0 | AS194: 0 | AT194: 0 | AU194: 0 | AV194: 0 | AW194: 0 | AX194: 0 | AY194: 0 | AZ194: 0 | BA194: 0 | BB194: 0 | BC194: 0 | BD194: 0 | BE194: 0 | BF194: 0 | BG194: 0 | BH194: 0 | BI194: 0 | BJ194: 0 | BK194: 0 | BL194: 0 | BM194: 0 | BN194: 0 | BO194: 0
G195: Quota Capitale Rata | I195: =I194-I197 -> 0 | J195: 0 | K195: 0 | L195: 0 | M195: 0 | N195: 0 | O195: 0 | P195: 0 | Q195: 0 | R195: 0 | S195: 0 | T195: 0 | U195: 0 | V195: 0 | W195: 0 | X195: 0 | Y195: 0 | Z195: 0 | AA195: 0 | AB195: 0 | AC195: 0 | AD195: 0 | AE195: 0 | AF195: 0 | AG195: 0 | AH195: 0 | AI195: 0 | AJ195: 0 | AK195: 0 | AL195: 0 | AM195: 0 | AN195: 0 | AO195: 0 | AP195: 0 | AQ195: 0 | AR195: =AR194-AR197 -> 0 | AS195: 0 | AT195: 0 | AU195: 0 | AV195: 0 | AW195: 0 | AX195: =AX194-AX197 -> 0 | AY195: 0 | AZ195: 0 | BA195: 0 | BB195: 0 | BC195: 0 | BD195: =BD194-BD197 -> 0 | BE195: 0 | BF195: 0 | BG195: 0 | BH195: 0 | BI195: 0 | BJ195: 0 | BK195: 0 | BL195: 0 | BM195: 0 | BN195: 0 | BO195: 0
G196: Quota Capitale Cumulata | I196: =(I195+H196)*(IF(H198<1,0,1)) -> 0 | J196: 0 | K196: 0 | L196: 0 | M196: 0 | N196: 0 | O196: 0 | P196: 0 | Q196: 0 | R196: 0 | S196: 0 | T196: 0 | U196: 0 | V196: 0 | W196: =(W195+V196)*(IF(V198<1,0,1)) -> 0 | X196: =(X195+W196)*(IF(W198<1,0,1)) -> 0 | Y196: 0 | Z196: 0 | AA196: 0 | AB196: 0 | AC196: 0 | AD196: 0 | AE196: 0 | AF196: 0 | AG196: 0 | AH196: 0 | AI196: 0 | AJ196: 0 | AK196: 0 | AL196: 0 | AM196: 0 | AN196: 0 | AO196: 0 | AP196: 0 | AQ196: 0 | AR196: =(AR195+AQ196)*(IF(AQ198<1,0,1)) -> 0 | AS196: 0 | AT196: 0 | AU196: 0 | AV196: 0 | AW196: 0 | AX196: 0 | AY196: 0 | AZ196: 0 | BA196: 0 | BB196: 0 | BC196: 0 | BD196: =(BD195+BC196)*(IF(BC198<1,0,1)) -> 0 | BE196: 0 | BF196: 0 | BG196: 0 | BH196: 0 | BI196: 0 | BJ196: 0 | BK196: 0 | BL196: 0 | BM196: 0 | BN196: 0 | BO196: 0
G197: Oneri Finanziari Rata | I197: =IF(I194>0,H198*$H186,0) -> 0 | J197: =IF(J194>0,I198*$H$24,0) -> 0 | K197: 0 | L197: 0 | M197: 0 | N197: 0 | O197: 0 | P197: 0 | Q197: 0 | R197: 0 | S197: 0 | T197: 0 | U197: 0 | V197: 0 | W197: 0 | X197: 0 | Y197: 0 | Z197: 0 | AA197: 0 | AB197: 0 | AC197: 0 | AD197: 0 | AE197: 0 | AF197: 0 | AG197: 0 | AH197: 0 | AI197: 0 | AJ197: 0 | AK197: 0 | AL197: 0 | AM197: 0 | AN197: 0 | AO197: 0 | AP197: 0 | AQ197: 0 | AR197: =IF(AR194>0,AQ198*$H$24,0) -> 0 | AS197: 0 | AT197: 0 | AU197: 0 | AV197: 0 | AW197: 0 | AX197: 0 | AY197: 0 | AZ197: 0 | BA197: 0 | BB197: 0 | BC197: 0 | BD197: =IF(BD194>0,BC198*$H$24,0) -> 0 | BE197: 0 | BF197: 0 | BG197: 0 | BH197: 0 | BI197: 0 | BJ197: 0 | BK197: 0 | BL197: 0 | BM197: 0 | BN197: 0 | BO197: 0
G198: Debito Residuo | H198: =IF(I192=$H179,($H181-($H181*$H183)-($H181*$H182)),(($H181-($H181*$H183)-($H181*$H182))-H196)*IF(H192=H179,1,0)) -> 0 | I198: =IF(J192=$H179,($H181-($H181*$H183)-($H181*$H182)),(($H181-($H181*$H183)-($H181*$H182))-I196)*IF(H198<1,0,1)) -> 0 | J198: =IF(K192=$H179,($H181-($H181*$H183)-($H181*$H182)),(($H181-($H181*$H183)-($H181*$H182))-J196)*IF(I198<1,0,1)) -> 0 | K198: =IF(L192=$H179,($H181-($H181*$H183)-($H181*$H182)),(($H181-($H181*$H183)-($H181*$H182))-K196)*IF(J198<1,0,1)) -> 0 | L198: =IF(M192=$H179,($H181-($H181*$H183)-($H181*$H182)),(($H181-($H181*$H183)-($H181*$H182))-L196)*IF(K198<1,0,1)) -> 0 | M198: 0 | N198: 0 | O198: 0 | P198: 0 | Q198: 0 | R198: 0 | S198: 0 | T198: 0 | U198: 0 | V198: 0 | W198: 0 | X198: 0 | Y198: 0 | Z198: 0 | AA198: 0 | AB198: 0 | AC198: 0 | AD198: 0 | AE198: 0 | AF198: 0 | AG198: 0 | AH198: 0 | AI198: 0 | AJ198: 0 | AK198: 0 | AL198: 0 | AM198: 0 | AN198: 0 | AO198: 0 | AP198: 0 | AQ198: 0 | AR198: =IF(AS192=$H179,($H181-($H181*$H183)-($H181*$H182)),(($H181-($H181*$H183)-($H181*$H182))-AR196)*IF(AQ198<1,0,1)) -> 0 | AS198: 0 | AT198: 0 | AU198: 0 | AV198: 0 | AW198: 0 | AX198: 0 | AY198: 0 | AZ198: 0 | BA198: 0 | BB198: 0 | BC198: 0 | BD198: =IF(BE192=$H179,($H181-($H181*$H183)-($H181*$H182)),(($H181-($H181*$H183)-($H181*$H182))-BD196)*IF(BC198<1,0,1)) -> 0 | BE198: 0 | BF198: 0 | BG198: 0 | BH198: 0 | BI198: 0 | BJ198: 0 | BK198: 0 | BL198: 0 | BM198: 0 | BN198: 0 | BO198: 0
G199: Valore di riscatto | I199: =IF(I198<1,$H181*$H182,0)*IF(H198<1,0,1) -> 0 | J199: 0 | K199: 0 | L199: 0 | M199: 0 | N199: 0 | O199: 0 | P199: 0 | Q199: 0 | R199: 0 | S199: 0 | T199: 0 | U199: 0 | V199: 0 | W199: 0 | X199: 0 | Y199: 0 | Z199: 0 | AA199: 0 | AB199: 0 | AC199: 0 | AD199: 0 | AE199: =IF(AE198<1,$H$19*$H$20,0)*IF(AD198<1,0,1) -> 0 | AF199: 0 | AG199: 0 | AH199: 0 | AI199: 0 | AJ199: 0 | AK199: 0 | AL199: 0 | AM199: 0 | AN199: 0 | AO199: 0 | AP199: 0 | AQ199: 0 | AR199: =IF(AR198<1,$H$19*$H$20,0)*IF(AQ198<1,0,1) -> 0 | AS199: 0 | AT199: 0 | AU199: 0 | AV199: 0 | AW199: 0 | AX199: 0 | AY199: 0 | AZ199: 0 | BA199: 0 | BB199: 0 | BC199: 0 | BD199: =IF(BD198<1,$H$19*$H$20,0)*IF(BC198<1,0,1) -> 0 | BE199: 0 | BF199: 0 | BG199: 0 | BH199: 0 | BI199: 0 | BJ199: 0 | BK199: 0 | BL199: 0 | BM199: 0 | BN199: 0 | BO199: 0
G200: Totale Rata di Leasing | H200: =H193+H194+H199 -> 0 | I200: =I193+I194+I199 -> 0 | J200: =J193+J194+J199 -> 0 | K200: 0 | L200: 0 | M200: 0 | N200: 0 | O200: 0 | P200: 0 | Q200: 0 | R200: 0 | S200: 0 | T200: 0 | U200: 0 | V200: 0 | W200: 0 | X200: 0 | Y200: 0 | Z200: 0 | AA200: 0 | AB200: 0 | AC200: 0 | AD200: 0 | AE200: 0 | AF200: 0 | AG200: 0 | AH200: 0 | AI200: 0 | AJ200: 0 | AK200: 0 | AL200: 0 | AM200: 0 | AN200: 0 | AO200: 0 | AP200: 0 | AQ200: 0 | AR200: =AR193+AR194+AR199 -> 0 | AS200: 0 | AT200: 0 | AU200: 0 | AV200: 0 | AW200: 0 | AX200: =AX193+AX194+AX199 -> 0 | AY200: 0 | AZ200: 0 | BA200: 0 | BB200: 0 | BC200: 0 | BD200: =BD193+BD194+BD199 -> 0 | BE200: 0 | BF200: 0 | BG200: 0 | BH200: 0 | BI200: 0 | BJ200: 0 | BK200: 0 | BL200: 0 | BM200: 0 | BN200: 0 | BO200: 0
E203: Leasing 8
F205: Parametri
G206: Data Stipula Contratto (mmm-aa) | H206: A1 m1 | DB206: =VLOOKUP($H206,configurazione!A67:B113,2,FALSE) -> 1
G207: Tasso di interesse annuale | H207: 0.05
G208: Valore del Bene
G209: Valore di Riscatto (% Valorre del Bene) | H209: 0.1
G210: MaxiCanone Iniziale (% Valore del Bene) | H210: 0.1
G211: Durata (numero rate totali) | H211: 12
F213: Tasso di interesse effettivo mensile | H213: =((1+H207)^(1/12))-1 -> 0.004074123784
F215: Rata mesile (quota capitale + oneri finanziari) | H215: =(H208-(H208*H209)-(H208*H210))/((1-(1+H213)^(-H211))/H213) -> 0
H217: =+SPm!I12 -> 2017-01-01 | I217: =+SPm!J12 -> 2017-02-28 | J217: =+SPm!K12 -> 2017-03-31 | K217: =+SPm!L12 -> 2017-04-30 | L217: =+SPm!M12 -> 2017-05-31 | M217: =+SPm!N12 -> 2017-06-30 | N217: =+SPm!O12 -> 2017-07-31 | O217: =+SPm!P12 -> 2017-08-31 | P217: =+SPm!Q12 -> 2017-09-30 | Q217: =+SPm!R12 -> 2017-10-31 | R217: =+SPm!S12 -> 2017-11-30 | S217: =+SPm!T12 -> 2017-12-31 | T217: =+SPm!U12 -> 2018-01-31 | U217: =+SPm!V12 -> 2018-02-28 | V217: =+SPm!W12 -> 2018-03-31 | W217: =+SPm!X12 -> 2018-04-30 | X217: =+SPm!Y12 -> 2018-05-31 | Y217: =+SPm!Z12 -> 2018-06-30 | Z217: =+SPm!AA12 -> 2018-07-31 | AA217: =+SPm!AB12 -> 2018-08-31 | AB217: =+SPm!AC12 -> 2018-09-30 | AC217: =+SPm!AD12 -> 2018-10-31 | AD217: =+SPm!AE12 -> 2018-11-30 | AE217: =+SPm!AF12 -> 2018-12-31 | AF217: =+SPm!AG12 -> 2019-01-31 | AG217: =+SPm!AH12 -> 2019-02-28 | AH217: =+SPm!AI12 -> 2019-03-31 | AI217: =+SPm!AJ12 -> 2019-04-30 | AJ217: =+SPm!AK12 -> 2019-05-31 | AK217: =+SPm!AL12 -> 2019-06-30 | AL217: =+SPm!AM12 -> 2019-07-31 | AM217: =+SPm!AN12 -> 2019-08-31 | AN217: =+SPm!AO12 -> 2019-09-30 | AO217: =+SPm!AP12 -> 2019-10-31 | AP217: =+SPm!AQ12 -> 2019-11-30 | AQ217: =+SPm!AR12 -> 2019-12-31 | AR217: =+SPm!AS12 -> 2020-01-31 | AS217: =+SPm!AT12 -> 2020-02-29 | AT217: =+SPm!AU12 -> 2020-03-31 | AU217: =+SPm!AV12 -> 2020-04-30 | AV217: =+SPm!AW12 -> 2020-05-31 | AW217: =+SPm!AX12 -> 2020-06-30 | AX217: =+SPm!AY12 -> 2020-07-31 | AY217: =+SPm!AZ12 -> 2020-08-31 | AZ217: =+SPm!BA12 -> 2020-09-30 | BA217: =+SPm!BB12 -> 2020-10-31 | BB217: =+SPm!BC12 -> 2020-11-30 | BC217: =+SPm!BD12 -> 2020-12-31 | BD217: =+SPm!BE12 -> 2021-01-31 | BE217: =+SPm!BF12 -> 2021-02-28 | BF217: =+SPm!BG12 -> 2021-03-31 | BG217: =+SPm!BH12 -> 2021-04-30 | BH217: =+SPm!BI12 -> 2021-05-31 | BI217: =+SPm!BJ12 -> 2021-06-30 | BJ217: =+SPm!BK12 -> 2021-07-31 | BK217: =+SPm!BL12 -> 2021-08-31 | BL217: =+SPm!BM12 -> 2021-09-30 | BM217: =+SPm!BN12 -> 2021-10-31 | BN217: =+SPm!BO12 -> 2021-11-30 | BO217: =+SPm!BP12 -> 2021-12-31
H218: =H29 -> 1 | I218: =I29 -> 2 | J218: 3 | K218: 4 | L218: 5 | M218: 6 | N218: 7 | O218: 8 | P218: 9 | Q218: 10 | R218: 11 | S218: 12 | T218: 13 | U218: 14 | V218: 15 | W218: 16 | X218: 17 | Y218: 18 | Z218: 19 | AA218: 20 | AB218: 21 | AC218: 22 | AD218: 23 | AE218: 24 | AF218: 25 | AG218: 26 | AH218: 27 | AI218: 28 | AJ218: 29 | AK218: 30 | AL218: 31 | AM218: 32 | AN218: 33 | AO218: 34 | AP218: 35 | AQ218: 36 | AR218: 37 | AS218: 38 | AT218: 39 | AU218: 40 | AV218: 41 | AW218: 42 | AX218: 43 | AY218: 44 | AZ218: 45 | BA218: 46 | BB218: 47 | BC218: 48 | BD218: 49 | BE218: 50 | BF218: 51 | BG218: 52 | BH218: 53 | BI218: 54 | BJ218: 55 | BK218: 56 | BL218: 57 | BM218: 58 | BN218: 59 | BO218: 60
F219: Costo Leasing | H219: =H30 -> A1 m1 | I219: =I30 -> A1 m2 | J219: A1 m3 | K219: A1 m4 | L219: A1 m5 | M219: A1 m6 | N219: A1 m7 | O219: A1 m8 | P219: A1 m9 | Q219: A1 m10 | R219: A1 m11 | S219: A1 m12 | T219: A2 m1 | U219: A2 m2 | V219: A2 m3 | W219: A2 m4 | X219: A2 m5 | Y219: A2 m6 | Z219: A2 m7 | AA219: A2 m8 | AB219: A2 m9 | AC219: A2 m10 | AD219: A2 m11 | AE219: A2 m12 | AF219: A3 m1 | AG219: A3 m2 | AH219: A3 m3 | AI219: A3 m4 | AJ219: A3 m5 | AK219: A3 m6 | AL219: A3 m7 | AM219: A3 m8 | AN219: A3 m9 | AO219: A3 m10 | AP219: A3 m11 | AQ219: A3 m12 | AR219: A4 m1 | AS219: A4 m2 | AT219: A4 m3 | AU219: A4 m4 | AV219: A4 m5 | AW219: A4 m6 | AX219: A4 m7 | AY219: A4 m8 | AZ219: A4 m9 | BA219: A4 m10 | BB219: A4 m11 | BC219: A4 m12 | BD219: A5 m1 | BE219: A5 m2 | BF219: A5 m3 | BG219: A5 m4 | BH219: A5 m5 | BI219: A5 m6 | BJ219: A5 m7 | BK219: A5 m8 | BL219: A5 m9 | BM219: A5 m10 | BN219: A5 m11 | BO219: A5 m12
G220: MaxiCanone Iniziale | H220: =IF(H219=$H206,$H208*$H210,0) -> 0 | I220: 0 | J220: 0 | K220: 0 | L220: 0 | M220: 0 | N220: 0 | O220: 0 | P220: 0 | Q220: 0 | R220: 0 | S220: 0 | T220: 0 | U220: 0 | V220: 0 | W220: 0 | X220: 0 | Y220: 0 | Z220: 0 | AA220: 0 | AB220: 0 | AC220: 0 | AD220: 0 | AE220: 0 | AF220: 0 | AG220: 0 | AH220: 0 | AI220: 0 | AJ220: 0 | AK220: 0 | AL220: 0 | AM220: 0 | AN220: 0 | AO220: 0 | AP220: 0 | AQ220: 0 | AR220: =IF(AR219=$H206,$H208*$H210,0) -> 0 | AS220: 0 | AT220: 0 | AU220: 0 | AV220: 0 | AW220: 0 | AX220: =IF(AX219=$H206,$H208*$H210,0) -> 0 | AY220: 0 | AZ220: 0 | BA220: 0 | BB220: 0 | BC220: 0 | BD220: =IF(BD219=$H206,$H208*$H210,0) -> 0 | BE220: 0 | BF220: 0 | BG220: 0 | BH220: 0 | BI220: 0 | BJ220: 0 | BK220: 0 | BL220: 0 | BM220: 0 | BN220: 0 | BO220: 0
G221: Rata | I221: =+IF(I218>=$DB206,$H215,0)*IF(H225<1,0,1) -> 0 | J221: 0 | K221: 0 | L221: 0 | M221: 0 | N221: 0 | O221: 0 | P221: 0 | Q221: 0 | R221: 0 | S221: 0 | T221: 0 | U221: 0 | V221: 0 | W221: 0 | X221: 0 | Y221: 0 | Z221: 0 | AA221: 0 | AB221: 0 | AC221: 0 | AD221: 0 | AE221: 0 | AF221: 0 | AG221: 0 | AH221: 0 | AI221: 0 | AJ221: 0 | AK221: 0 | AL221: 0 | AM221: 0 | AN221: 0 | AO221: =+IF(AO218>=$DB206,$H215,0)*IF(AN225<1,0,1) -> 0 | AP221: 0 | AQ221: 0 | AR221: 0 | AS221: 0 | AT221: 0 | AU221: 0 | AV221: 0 | AW221: 0 | AX221: 0 | AY221: 0 | AZ221: 0 | BA221: 0 | BB221: 0 | BC221: 0 | BD221: 0 | BE221: 0 | BF221: 0 | BG221: 0 | BH221: 0 | BI221: 0 | BJ221: 0 | BK221: 0 | BL221: 0 | BM221: 0 | BN221: 0 | BO221: 0
G222: Quota Capitale Rata | I222: =I221-I224 -> 0 | J222: 0 | K222: 0 | L222: 0 | M222: 0 | N222: 0 | O222: 0 | P222: 0 | Q222: 0 | R222: 0 | S222: 0 | T222: 0 | U222: 0 | V222: 0 | W222: 0 | X222: 0 | Y222: 0 | Z222: 0 | AA222: 0 | AB222: 0 | AC222: 0 | AD222: 0 | AE222: 0 | AF222: 0 | AG222: 0 | AH222: 0 | AI222: 0 | AJ222: 0 | AK222: 0 | AL222: 0 | AM222: 0 | AN222: 0 | AO222: 0 | AP222: 0 | AQ222: 0 | AR222: =AR221-AR224 -> 0 | AS222: 0 | AT222: 0 | AU222: 0 | AV222: 0 | AW222: 0 | AX222: =AX221-AX224 -> 0 | AY222: 0 | AZ222: 0 | BA222: 0 | BB222: 0 | BC222: 0 | BD222: =BD221-BD224 -> 0 | BE222: 0 | BF222: 0 | BG222: 0 | BH222: 0 | BI222: 0 | BJ222: 0 | BK222: 0 | BL222: 0 | BM222: 0 | BN222: 0 | BO222: 0
G223: Quota Capitale Cumulata | I223: =(I222+H223)*(IF(H225<1,0,1)) -> 0 | J223: 0 | K223: 0 | L223: 0 | M223: 0 | N223: 0 | O223: 0 | P223: 0 | Q223: 0 | R223: 0 | S223: 0 | T223: 0 | U223: 0 | V223: 0 | W223: =(W222+V223)*(IF(V225<1,0,1)) -> 0 | X223: =(X222+W223)*(IF(W225<1,0,1)) -> 0 | Y223: 0 | Z223: 0 | AA223: 0 | AB223: 0 | AC223: 0 | AD223: 0 | AE223: 0 | AF223: 0 | AG223: 0 | AH223: 0 | AI223: 0 | AJ223: 0 | AK223: 0 | AL223: 0 | AM223: 0 | AN223: 0 | AO223: 0 | AP223: 0 | AQ223: 0 | AR223: =(AR222+AQ223)*(IF(AQ225<1,0,1)) -> 0 | AS223: 0 | AT223: 0 | AU223: 0 | AV223: 0 | AW223: 0 | AX223: 0 | AY223: 0 | AZ223: 0 | BA223: 0 | BB223: 0 | BC223: 0 | BD223: =(BD222+BC223)*(IF(BC225<1,0,1)) -> 0 | BE223: 0 | BF223: 0 | BG223: 0 | BH223: 0 | BI223: 0 | BJ223: 0 | BK223: 0 | BL223: 0 | BM223: 0 | BN223: 0 | BO223: 0
G224: Oneri Finanziari Rata | I224: =IF(I221>0,H225*$H213,0) -> 0 | J224: =IF(J221>0,I225*$H$24,0) -> 0 | K224: 0 | L224: 0 | M224: 0 | N224: 0 | O224: 0 | P224: 0 | Q224: 0 | R224: 0 | S224: 0 | T224: 0 | U224: 0 | V224: 0 | W224: 0 | X224: 0 | Y224: 0 | Z224: 0 | AA224: 0 | AB224: 0 | AC224: 0 | AD224: 0 | AE224: 0 | AF224: 0 | AG224: 0 | AH224: 0 | AI224: 0 | AJ224: 0 | AK224: 0 | AL224: 0 | AM224: 0 | AN224: 0 | AO224: 0 | AP224: 0 | AQ224: 0 | AR224: =IF(AR221>0,AQ225*$H$24,0) -> 0 | AS224: 0 | AT224: 0 | AU224: 0 | AV224: 0 | AW224: 0 | AX224: 0 | AY224: 0 | AZ224: 0 | BA224: 0 | BB224: 0 | BC224: 0 | BD224: =IF(BD221>0,BC225*$H$24,0) -> 0 | BE224: 0 | BF224: 0 | BG224: 0 | BH224: 0 | BI224: 0 | BJ224: 0 | BK224: 0 | BL224: 0 | BM224: 0 | BN224: 0 | BO224: 0
G225: Debito Residuo | H225: =IF(I219=$H206,($H208-($H208*$H210)-($H208*$H209)),(($H208-($H208*$H210)-($H208*$H209))-H223)*IF(H219=H206,1,0)) -> 0 | I225: =IF(J219=$H206,($H208-($H208*$H210)-($H208*$H209)),(($H208-($H208*$H210)-($H208*$H209))-I223)*IF(H225<1,0,1)) -> 0 | J225: =IF(K219=$H206,($H208-($H208*$H210)-($H208*$H209)),(($H208-($H208*$H210)-($H208*$H209))-J223)*IF(I225<1,0,1)) -> 0 | K225: =IF(L219=$H206,($H208-($H208*$H210)-($H208*$H209)),(($H208-($H208*$H210)-($H208*$H209))-K223)*IF(J225<1,0,1)) -> 0 | L225: =IF(M219=$H206,($H208-($H208*$H210)-($H208*$H209)),(($H208-($H208*$H210)-($H208*$H209))-L223)*IF(K225<1,0,1)) -> 0 | M225: 0 | N225: 0 | O225: 0 | P225: 0 | Q225: 0 | R225: 0 | S225: 0 | T225: 0 | U225: 0 | V225: 0 | W225: 0 | X225: 0 | Y225: 0 | Z225: 0 | AA225: 0 | AB225: 0 | AC225: 0 | AD225: 0 | AE225: 0 | AF225: 0 | AG225: 0 | AH225: 0 | AI225: 0 | AJ225: 0 | AK225: 0 | AL225: 0 | AM225: 0 | AN225: 0 | AO225: 0 | AP225: 0 | AQ225: 0 | AR225: =IF(AS219=$H206,($H208-($H208*$H210)-($H208*$H209)),(($H208-($H208*$H210)-($H208*$H209))-AR223)*IF(AQ225<1,0,1)) -> 0 | AS225: 0 | AT225: 0 | AU225: 0 | AV225: 0 | AW225: 0 | AX225: 0 | AY225: 0 | AZ225: 0 | BA225: 0 | BB225: 0 | BC225: 0 | BD225: =IF(BE219=$H206,($H208-($H208*$H210)-($H208*$H209)),(($H208-($H208*$H210)-($H208*$H209))-BD223)*IF(BC225<1,0,1)) -> 0 | BE225: 0 | BF225: 0 | BG225: 0 | BH225: 0 | BI225: 0 | BJ225: 0 | BK225: 0 | BL225: 0 | BM225: 0 | BN225: 0 | BO225: 0
G226: Valore di riscatto | I226: =IF(I225<1,$H208*$H209,0)*IF(H225<1,0,1) -> 0 | J226: 0 | K226: 0 | L226: 0 | M226: 0 | N226: 0 | O226: 0 | P226: 0 | Q226: 0 | R226: 0 | S226: 0 | T226: 0 | U226: 0 | V226: 0 | W226: 0 | X226: 0 | Y226: 0 | Z226: 0 | AA226: 0 | AB226: 0 | AC226: 0 | AD226: 0 | AE226: =IF(AE225<1,$H$19*$H$20,0)*IF(AD225<1,0,1) -> 0 | AF226: 0 | AG226: 0 | AH226: 0 | AI226: 0 | AJ226: 0 | AK226: 0 | AL226: 0 | AM226: 0 | AN226: 0 | AO226: 0 | AP226: 0 | AQ226: 0 | AR226: =IF(AR225<1,$H$19*$H$20,0)*IF(AQ225<1,0,1) -> 0 | AS226: 0 | AT226: 0 | AU226: 0 | AV226: 0 | AW226: 0 | AX226: 0 | AY226: 0 | AZ226: 0 | BA226: 0 | BB226: 0 | BC226: 0 | BD226: =IF(BD225<1,$H$19*$H$20,0)*IF(BC225<1,0,1) -> 0 | BE226: 0 | BF226: 0 | BG226: 0 | BH226: 0 | BI226: 0 | BJ226: 0 | BK226: 0 | BL226: 0 | BM226: 0 | BN226: 0 | BO226: 0
G227: Totale Rata di Leasing | H227: =H220+H221+H226 -> 0 | I227: =I220+I221+I226 -> 0 | J227: =J220+J221+J226 -> 0 | K227: 0 | L227: 0 | M227: 0 | N227: 0 | O227: 0 | P227: 0 | Q227: 0 | R227: 0 | S227: 0 | T227: 0 | U227: 0 | V227: 0 | W227: 0 | X227: 0 | Y227: 0 | Z227: 0 | AA227: 0 | AB227: 0 | AC227: 0 | AD227: 0 | AE227: 0 | AF227: 0 | AG227: 0 | AH227: 0 | AI227: 0 | AJ227: 0 | AK227: 0 | AL227: 0 | AM227: 0 | AN227: 0 | AO227: 0 | AP227: 0 | AQ227: 0 | AR227: =AR220+AR221+AR226 -> 0 | AS227: 0 | AT227: 0 | AU227: 0 | AV227: 0 | AW227: 0 | AX227: =AX220+AX221+AX226 -> 0 | AY227: 0 | AZ227: 0 | BA227: 0 | BB227: 0 | BC227: 0 | BD227: =BD220+BD221+BD226 -> 0 | BE227: 0 | BF227: 0 | BG227: 0 | BH227: 0 | BI227: 0 | BJ227: 0 | BK227: 0 | BL227: 0 | BM227: 0 | BN227: 0 | BO227: 0
E230: Leasing 9
F232: Parametri
G233: Data Stipula Contratto (mmm-aa) | H233: A1 m1 | DB233: =VLOOKUP($H233,configurazione!A67:B113,2,FALSE) -> 1
G234: Tasso di interesse annuale | H234: 0.05
G235: Valore del Bene
G236: Valore di Riscatto (% Valorre del Bene) | H236: 0.1
G237: MaxiCanone Iniziale (% Valore del Bene) | H237: 0.1
G238: Durata (numero rate totali) | H238: 12
F240: Tasso di interesse effettivo mensile | H240: =((1+H234)^(1/12))-1 -> 0.004074123784
F242: Rata mesile (quota capitale + oneri finanziari) | H242: =(H235-(H235*H236)-(H235*H237))/((1-(1+H240)^(-H238))/H240) -> 0
H244: =+SPm!I12 -> 2017-01-01 | I244: =+SPm!J12 -> 2017-02-28 | J244: =+SPm!K12 -> 2017-03-31 | K244: =+SPm!L12 -> 2017-04-30 | L244: =+SPm!M12 -> 2017-05-31 | M244: =+SPm!N12 -> 2017-06-30 | N244: =+SPm!O12 -> 2017-07-31 | O244: =+SPm!P12 -> 2017-08-31 | P244: =+SPm!Q12 -> 2017-09-30 | Q244: =+SPm!R12 -> 2017-10-31 | R244: =+SPm!S12 -> 2017-11-30 | S244: =+SPm!T12 -> 2017-12-31 | T244: =+SPm!U12 -> 2018-01-31 | U244: =+SPm!V12 -> 2018-02-28 | V244: =+SPm!W12 -> 2018-03-31 | W244: =+SPm!X12 -> 2018-04-30 | X244: =+SPm!Y12 -> 2018-05-31 | Y244: =+SPm!Z12 -> 2018-06-30 | Z244: =+SPm!AA12 -> 2018-07-31 | AA244: =+SPm!AB12 -> 2018-08-31 | AB244: =+SPm!AC12 -> 2018-09-30 | AC244: =+SPm!AD12 -> 2018-10-31 | AD244: =+SPm!AE12 -> 2018-11-30 | AE244: =+SPm!AF12 -> 2018-12-31 | AF244: =+SPm!AG12 -> 2019-01-31 | AG244: =+SPm!AH12 -> 2019-02-28 | AH244: =+SPm!AI12 -> 2019-03-31 | AI244: =+SPm!AJ12 -> 2019-04-30 | AJ244: =+SPm!AK12 -> 2019-05-31 | AK244: =+SPm!AL12 -> 2019-06-30 | AL244: =+SPm!AM12 -> 2019-07-31 | AM244: =+SPm!AN12 -> 2019-08-31 | AN244: =+SPm!AO12 -> 2019-09-30 | AO244: =+SPm!AP12 -> 2019-10-31 | AP244: =+SPm!AQ12 -> 2019-11-30 | AQ244: =+SPm!AR12 -> 2019-12-31 | AR244: =+SPm!AS12 -> 2020-01-31 | AS244: =+SPm!AT12 -> 2020-02-29 | AT244: =+SPm!AU12 -> 2020-03-31 | AU244: =+SPm!AV12 -> 2020-04-30 | AV244: =+SPm!AW12 -> 2020-05-31 | AW244: =+SPm!AX12 -> 2020-06-30 | AX244: =+SPm!AY12 -> 2020-07-31 | AY244: =+SPm!AZ12 -> 2020-08-31 | AZ244: =+SPm!BA12 -> 2020-09-30 | BA244: =+SPm!BB12 -> 2020-10-31 | BB244: =+SPm!BC12 -> 2020-11-30 | BC244: =+SPm!BD12 -> 2020-12-31 | BD244: =+SPm!BE12 -> 2021-01-31 | BE244: =+SPm!BF12 -> 2021-02-28 | BF244: =+SPm!BG12 -> 2021-03-31 | BG244: =+SPm!BH12 -> 2021-04-30 | BH244: =+SPm!BI12 -> 2021-05-31 | BI244: =+SPm!BJ12 -> 2021-06-30 | BJ244: =+SPm!BK12 -> 2021-07-31 | BK244: =+SPm!BL12 -> 2021-08-31 | BL244: =+SPm!BM12 -> 2021-09-30 | BM244: =+SPm!BN12 -> 2021-10-31 | BN244: =+SPm!BO12 -> 2021-11-30 | BO244: =+SPm!BP12 -> 2021-12-31
H245: =H29 -> 1 | I245: =I29 -> 2 | J245: 3 | K245: 4 | L245: 5 | M245: 6 | N245: 7 | O245: 8 | P245: 9 | Q245: 10 | R245: 11 | S245: 12 | T245: 13 | U245: 14 | V245: 15 | W245: 16 | X245: 17 | Y245: 18 | Z245: 19 | AA245: 20 | AB245: 21 | AC245: 22 | AD245: 23 | AE245: 24 | AF245: 25 | AG245: 26 | AH245: 27 | AI245: 28 | AJ245: 29 | AK245: 30 | AL245: 31 | AM245: 32 | AN245: 33 | AO245: 34 | AP245: 35 | AQ245: 36 | AR245: 37 | AS245: 38 | AT245: 39 | AU245: 40 | AV245: 41 | AW245: 42 | AX245: 43 | AY245: 44 | AZ245: 45 | BA245: 46 | BB245: 47 | BC245: 48 | BD245: 49 | BE245: 50 | BF245: 51 | BG245: 52 | BH245: 53 | BI245: 54 | BJ245: 55 | BK245: 56 | BL245: 57 | BM245: 58 | BN245: 59 | BO245: 60
F246: Costo Leasing | H246: =H30 -> A1 m1 | I246: =I30 -> A1 m2 | J246: A1 m3 | K246: A1 m4 | L246: A1 m5 | M246: A1 m6 | N246: A1 m7 | O246: A1 m8 | P246: A1 m9 | Q246: A1 m10 | R246: A1 m11 | S246: A1 m12 | T246: A2 m1 | U246: A2 m2 | V246: A2 m3 | W246: A2 m4 | X246: A2 m5 | Y246: A2 m6 | Z246: A2 m7 | AA246: A2 m8 | AB246: A2 m9 | AC246: A2 m10 | AD246: A2 m11 | AE246: A2 m12 | AF246: A3 m1 | AG246: A3 m2 | AH246: A3 m3 | AI246: A3 m4 | AJ246: A3 m5 | AK246: A3 m6 | AL246: A3 m7 | AM246: A3 m8 | AN246: A3 m9 | AO246: A3 m10 | AP246: A3 m11 | AQ246: A3 m12 | AR246: A4 m1 | AS246: A4 m2 | AT246: A4 m3 | AU246: A4 m4 | AV246: A4 m5 | AW246: A4 m6 | AX246: A4 m7 | AY246: A4 m8 | AZ246: A4 m9 | BA246: A4 m10 | BB246: A4 m11 | BC246: A4 m12 | BD246: A5 m1 | BE246: A5 m2 | BF246: A5 m3 | BG246: A5 m4 | BH246: A5 m5 | BI246: A5 m6 | BJ246: A5 m7 | BK246: A5 m8 | BL246: A5 m9 | BM246: A5 m10 | BN246: A5 m11 | BO246: A5 m12
G247: MaxiCanone Iniziale | H247: =IF(H246=$H233,$H235*$H237,0) -> 0 | I247: 0 | J247: 0 | K247: 0 | L247: 0 | M247: 0 | N247: 0 | O247: 0 | P247: 0 | Q247: 0 | R247: 0 | S247: 0 | T247: 0 | U247: 0 | V247: 0 | W247: 0 | X247: 0 | Y247: 0 | Z247: 0 | AA247: 0 | AB247: 0 | AC247: 0 | AD247: 0 | AE247: 0 | AF247: 0 | AG247: 0 | AH247: 0 | AI247: 0 | AJ247: 0 | AK247: 0 | AL247: 0 | AM247: 0 | AN247: 0 | AO247: 0 | AP247: 0 | AQ247: 0 | AR247: =IF(AR246=$H233,$H235*$H237,0) -> 0 | AS247: 0 | AT247: 0 | AU247: 0 | AV247: 0 | AW247: 0 | AX247: =IF(AX246=$H233,$H235*$H237,0) -> 0 | AY247: 0 | AZ247: 0 | BA247: 0 | BB247: 0 | BC247: 0 | BD247: =IF(BD246=$H233,$H235*$H237,0) -> 0 | BE247: 0 | BF247: 0 | BG247: 0 | BH247: 0 | BI247: 0 | BJ247: 0 | BK247: 0 | BL247: 0 | BM247: 0 | BN247: 0 | BO247: 0
G248: Rata | I248: =+IF(I245>=$DB233,$H242,0)*IF(H252<1,0,1) -> 0 | J248: 0 | K248: 0 | L248: 0 | M248: 0 | N248: 0 | O248: 0 | P248: 0 | Q248: 0 | R248: 0 | S248: 0 | T248: 0 | U248: 0 | V248: 0 | W248: 0 | X248: 0 | Y248: 0 | Z248: 0 | AA248: 0 | AB248: 0 | AC248: 0 | AD248: 0 | AE248: 0 | AF248: 0 | AG248: 0 | AH248: 0 | AI248: 0 | AJ248: 0 | AK248: 0 | AL248: 0 | AM248: 0 | AN248: 0 | AO248: =+IF(AO245>=$DB233,$H242,0)*IF(AN252<1,0,1) -> 0 | AP248: 0 | AQ248: 0 | AR248: 0 | AS248: 0 | AT248: 0 | AU248: 0 | AV248: 0 | AW248: 0 | AX248: 0 | AY248: 0 | AZ248: 0 | BA248: 0 | BB248: 0 | BC248: 0 | BD248: 0 | BE248: 0 | BF248: 0 | BG248: 0 | BH248: 0 | BI248: 0 | BJ248: 0 | BK248: 0 | BL248: 0 | BM248: 0 | BN248: 0 | BO248: 0
G249: Quota Capitale Rata | I249: =I248-I251 -> 0 | J249: 0 | K249: 0 | L249: 0 | M249: 0 | N249: 0 | O249: 0 | P249: 0 | Q249: 0 | R249: 0 | S249: 0 | T249: 0 | U249: 0 | V249: 0 | W249: 0 | X249: 0 | Y249: 0 | Z249: 0 | AA249: 0 | AB249: 0 | AC249: 0 | AD249: 0 | AE249: 0 | AF249: 0 | AG249: 0 | AH249: 0 | AI249: 0 | AJ249: 0 | AK249: 0 | AL249: 0 | AM249: 0 | AN249: 0 | AO249: 0 | AP249: 0 | AQ249: 0 | AR249: =AR248-AR251 -> 0 | AS249: 0 | AT249: 0 | AU249: 0 | AV249: 0 | AW249: 0 | AX249: =AX248-AX251 -> 0 | AY249: 0 | AZ249: 0 | BA249: 0 | BB249: 0 | BC249: 0 | BD249: =BD248-BD251 -> 0 | BE249: 0 | BF249: 0 | BG249: 0 | BH249: 0 | BI249: 0 | BJ249: 0 | BK249: 0 | BL249: 0 | BM249: 0 | BN249: 0 | BO249: 0
G250: Quota Capitale Cumulata | I250: =(I249+H250)*(IF(H252<1,0,1)) -> 0 | J250: 0 | K250: 0 | L250: 0 | M250: 0 | N250: 0 | O250: 0 | P250: 0 | Q250: 0 | R250: 0 | S250: 0 | T250: 0 | U250: 0 | V250: 0 | W250: =(W249+V250)*(IF(V252<1,0,1)) -> 0 | X250: =(X249+W250)*(IF(W252<1,0,1)) -> 0 | Y250: 0 | Z250: 0 | AA250: 0 | AB250: 0 | AC250: 0 | AD250: 0 | AE250: 0 | AF250: 0 | AG250: 0 | AH250: 0 | AI250: 0 | AJ250: 0 | AK250: 0 | AL250: 0 | AM250: 0 | AN250: 0 | AO250: 0 | AP250: 0 | AQ250: 0 | AR250: =(AR249+AQ250)*(IF(AQ252<1,0,1)) -> 0 | AS250: 0 | AT250: 0 | AU250: 0 | AV250: 0 | AW250: 0 | AX250: 0 | AY250: 0 | AZ250: 0 | BA250: 0 | BB250: 0 | BC250: 0 | BD250: =(BD249+BC250)*(IF(BC252<1,0,1)) -> 0 | BE250: 0 | BF250: 0 | BG250: 0 | BH250: 0 | BI250: 0 | BJ250: 0 | BK250: 0 | BL250: 0 | BM250: 0 | BN250: 0 | BO250: 0
G251: Oneri Finanziari Rata | I251: =IF(I248>0,H252*$H240,0) -> 0 | J251: =IF(J248>0,I252*$H$24,0) -> 0 | K251: 0 | L251: 0 | M251: 0 | N251: 0 | O251: 0 | P251: 0 | Q251: 0 | R251: 0 | S251: 0 | T251: 0 | U251: 0 | V251: 0 | W251: 0 | X251: 0 | Y251: 0 | Z251: 0 | AA251: 0 | AB251: 0 | AC251: 0 | AD251: 0 | AE251: 0 | AF251: 0 | AG251: 0 | AH251: 0 | AI251: 0 | AJ251: 0 | AK251: 0 | AL251: 0 | AM251: 0 | AN251: 0 | AO251: 0 | AP251: 0 | AQ251: 0 | AR251: =IF(AR248>0,AQ252*$H$24,0) -> 0 | AS251: 0 | AT251: 0 | AU251: 0 | AV251: 0 | AW251: 0 | AX251: 0 | AY251: 0 | AZ251: 0 | BA251: 0 | BB251: 0 | BC251: 0 | BD251: =IF(BD248>0,BC252*$H$24,0) -> 0 | BE251: 0 | BF251: 0 | BG251: 0 | BH251: 0 | BI251: 0 | BJ251: 0 | BK251: 0 | BL251: 0 | BM251: 0 | BN251: 0 | BO251: 0
G252: Debito Residuo | H252: =IF(I246=$H233,($H235-($H235*$H237)-($H235*$H236)),(($H235-($H235*$H237)-($H235*$H236))-H250)*IF(H246=H233,1,0)) -> 0 | I252: =IF(J246=$H233,($H235-($H235*$H237)-($H235*$H236)),(($H235-($H235*$H237)-($H235*$H236))-I250)*IF(H252<1,0,1)) -> 0 | J252: =IF(K246=$H233,($H235-($H235*$H237)-($H235*$H236)),(($H235-($H235*$H237)-($H235*$H236))-J250)*IF(I252<1,0,1)) -> 0 | K252: =IF(L246=$H233,($H235-($H235*$H237)-($H235*$H236)),(($H235-($H235*$H237)-($H235*$H236))-K250)*IF(J252<1,0,1)) -> 0 | L252: =IF(M246=$H233,($H235-($H235*$H237)-($H235*$H236)),(($H235-($H235*$H237)-($H235*$H236))-L250)*IF(K252<1,0,1)) -> 0 | M252: 0 | N252: 0 | O252: 0 | P252: 0 | Q252: 0 | R252: 0 | S252: 0 | T252: 0 | U252: 0 | V252: 0 | W252: 0 | X252: 0 | Y252: 0 | Z252: 0 | AA252: 0 | AB252: 0 | AC252: 0 | AD252: 0 | AE252: 0 | AF252: 0 | AG252: 0 | AH252: 0 | AI252: 0 | AJ252: 0 | AK252: 0 | AL252: 0 | AM252: 0 | AN252: 0 | AO252: 0 | AP252: 0 | AQ252: 0 | AR252: =IF(AS246=$H233,($H235-($H235*$H237)-($H235*$H236)),(($H235-($H235*$H237)-($H235*$H236))-AR250)*IF(AQ252<1,0,1)) -> 0 | AS252: 0 | AT252: 0 | AU252: 0 | AV252: 0 | AW252: 0 | AX252: 0 | AY252: 0 | AZ252: 0 | BA252: 0 | BB252: 0 | BC252: 0 | BD252: =IF(BE246=$H233,($H235-($H235*$H237)-($H235*$H236)),(($H235-($H235*$H237)-($H235*$H236))-BD250)*IF(BC252<1,0,1)) -> 0 | BE252: 0 | BF252: 0 | BG252: 0 | BH252: 0 | BI252: 0 | BJ252: 0 | BK252: 0 | BL252: 0 | BM252: 0 | BN252: 0 | BO252: 0
G253: Valore di riscatto | I253: =IF(I252<1,$H235*$H236,0)*IF(H252<1,0,1) -> 0 | J253: 0 | K253: 0 | L253: 0 | M253: 0 | N253: 0 | O253: 0 | P253: 0 | Q253: 0 | R253: 0 | S253: 0 | T253: 0 | U253: 0 | V253: 0 | W253: 0 | X253: 0 | Y253: 0 | Z253: 0 | AA253: 0 | AB253: 0 | AC253: 0 | AD253: 0 | AE253: =IF(AE252<1,$H$19*$H$20,0)*IF(AD252<1,0,1) -> 0 | AF253: 0 | AG253: 0 | AH253: 0 | AI253: 0 | AJ253: 0 | AK253: 0 | AL253: 0 | AM253: 0 | AN253: 0 | AO253: 0 | AP253: 0 | AQ253: 0 | AR253: =IF(AR252<1,$H$19*$H$20,0)*IF(AQ252<1,0,1) -> 0 | AS253: 0 | AT253: 0 | AU253: 0 | AV253: 0 | AW253: 0 | AX253: 0 | AY253: 0 | AZ253: 0 | BA253: 0 | BB253: 0 | BC253: 0 | BD253: =IF(BD252<1,$H$19*$H$20,0)*IF(BC252<1,0,1) -> 0 | BE253: 0 | BF253: 0 | BG253: 0 | BH253: 0 | BI253: 0 | BJ253: 0 | BK253: 0 | BL253: 0 | BM253: 0 | BN253: 0 | BO253: 0
G254: Totale Rata di Leasing | H254: =H247+H248+H253 -> 0 | I254: =I247+I248+I253 -> 0 | J254: =J247+J248+J253 -> 0 | K254: 0 | L254: 0 | M254: 0 | N254: 0 | O254: 0 | P254: 0 | Q254: 0 | R254: 0 | S254: 0 | T254: 0 | U254: 0 | V254: 0 | W254: 0 | X254: 0 | Y254: 0 | Z254: 0 | AA254: 0 | AB254: 0 | AC254: 0 | AD254: 0 | AE254: 0 | AF254: 0 | AG254: 0 | AH254: 0 | AI254: 0 | AJ254: 0 | AK254: 0 | AL254: 0 | AM254: 0 | AN254: 0 | AO254: 0 | AP254: 0 | AQ254: 0 | AR254: =AR247+AR248+AR253 -> 0 | AS254: 0 | AT254: 0 | AU254: 0 | AV254: 0 | AW254: 0 | AX254: =AX247+AX248+AX253 -> 0 | AY254: 0 | AZ254: 0 | BA254: 0 | BB254: 0 | BC254: 0 | BD254: =BD247+BD248+BD253 -> 0 | BE254: 0 | BF254: 0 | BG254: 0 | BH254: 0 | BI254: 0 | BJ254: 0 | BK254: 0 | BL254: 0 | BM254: 0 | BN254: 0 | BO254: 0
E257: Leasing 10
F259: Parametri
G260: Data Stipula Contratto (mmm-aa) | H260: A1 m1 | DB260: =VLOOKUP($H260,configurazione!A67:B113,2,FALSE) -> 1
G261: Tasso di interesse annuale | H261: 0.05
G262: Valore del Bene
G263: Valore di Riscatto (% Valorre del Bene) | H263: 0.1
G264: MaxiCanone Iniziale (% Valore del Bene) | H264: 0.1
G265: Durata (numero rate totali) | H265: 12
... 93 more rows

Sheet Capitale
D9: Capitale
F11: =+SPm!I12 -> 2017-01-01 | G11: =+SPm!J12 -> 2017-02-28 | H11: =+SPm!K12 -> 2017-03-31 | I11: =+SPm!L12 -> 2017-04-30 | J11: =+SPm!M12 -> 2017-05-31 | K11: =+SPm!N12 -> 2017-06-30 | L11: =+SPm!O12 -> 2017-07-31 | M11: =+SPm!P12 -> 2017-08-31 | N11: =+SPm!Q12 -> 2017-09-30 | O11: =+SPm!R12 -> 2017-10-31 | P11: =+SPm!S12 -> 2017-11-30 | Q11: =+SPm!T12 -> 2017-12-31 | R11: =+SPm!U12 -> 2018-01-31 | S11: =+SPm!V12 -> 2018-02-28 | T11: =+SPm!W12 -> 2018-03-31 | U11: =+SPm!X12 -> 2018-04-30 | V11: =+SPm!Y12 -> 2018-05-31 | W11: =+SPm!Z12 -> 2018-06-30 | X11: =+SPm!AA12 -> 2018-07-31 | Y11: =+SPm!AB12 -> 2018-08-31 | Z11: =+SPm!AC12 -> 2018-09-30 | AA11: =+SPm!AD12 -> 2018-10-31 | AB11: =+SPm!AE12 -> 2018-11-30 | AC11: =+SPm!AF12 -> 2018-12-31 | AD11: =+SPm!AG12 -> 2019-01-31 | AE11: =+SPm!AH12 -> 2019-02-28 | AF11: =+SPm!AI12 -> 2019-03-31 | AG11: =+SPm!AJ12 -> 2019-04-30 | AH11: =+SPm!AK12 -> 2019-05-31 | AI11: =+SPm!AL12 -> 2019-06-30 | AJ11: =+SPm!AM12 -> 2019-07-31 | AK11: =+SPm!AN12 -> 2019-08-31 | AL11: =+SPm!AO12 -> 2019-09-30 | AM11: =+SPm!AP12 -> 2019-10-31 | AN11: =+SPm!AQ12 -> 2019-11-30 | AO11: =+SPm!AR12 -> 2019-12-31 | AP11: =+SPm!AS12 -> 2020-01-31 | AQ11: =+SPm!AT12 -> 2020-02-29 | AR11: =+SPm!AU12 -> 2020-03-31 | AS11: =+SPm!AV12 -> 2020-04-30 | AT11: =+SPm!AW12 -> 2020-05-31 | AU11: =+SPm!AX12 -> 2020-06-30 | AV11: =+SPm!AY12 -> 2020-07-31 | AW11: =+SPm!AZ12 -> 2020-08-31 | AX11: =+SPm!BA12 -> 2020-09-30 | AY11: =+SPm!BB12 -> 2020-10-31 | AZ11: =+SPm!BC12 -> 2020-11-30 | BA11: =+SPm!BD12 -> 2020-12-31 | BB11: =+SPm!BE12 -> 2021-01-31 | BC11: =+SPm!BF12 -> 2021-02-28 | BD11: =+SPm!BG12 -> 2021-03-31 | BE11: =+SPm!BH12 -> 2021-04-30 | BF11: =+SPm!BI12 -> 2021-05-31 | BG11: =+SPm!BJ12 -> 2021-06-30 | BH11: =+SPm!BK12 -> 2021-07-31 | BI11: =+SPm!BL12 -> 2021-08-31 | BJ11: =+SPm!BM12 -> 2021-09-30 | BK11: =+SPm!BN12 -> 2021-10-31 | BL11: =+SPm!BO12 -> 2021-11-30 | BM11: =+SPm!BP12 -> 2021-12-31
H12: 30000

Sheet Distribuzione Utile
D9: Distribuzione Utile
G11: =+CEm!BQ11 -> 2017 | H11: =+CEm!BR11 -> 2018 | I11: =+CEm!BS11 -> 2019 | J11: =+CEm!BT11 -> 2020 | K11: =+CEm!BU11 -> 2021
F13: Utile (Euro) | G13: =+CEm!BQ99 -> -24271.65319 | H13: =+CEm!BR99 -> -32824.31759 | I13: =+CEm!BS99 -> 24809.98236 | J13: =+CEm!BT99 -> 45357.7024 | K13: =+CEm!BU99 -> 45630.91044
F15: % Distribuzione | G15: 0.1 | H15: 1 | I15: 1 | J15: 0.1 | K15: 0
F17: Utile Distribuito (Euro) | G17: =+IF(G13<0,0,G15*G13) -> 0 | H17: =+IF(H13<0,0,H15*H13) -> 0 | I17: =+IF(I13<0,0,I15*I13) -> 24809.98236 | J17: =+IF(J13<0,0,J15*J13) -> 4535.77024 | K17: =+IF(K13<0,0,K15*K13) -> 0

Sheet Elaborati ->

Sheet E_Vendite
D9: Elaborati Vendite
E11: Fatturato
G13: Aliquota iva | H13: gg dilazione | I13: =+SPm!I12 -> 2017-01-01 | J13: =+SPm!J12 -> 2017-02-28 | K13: =+SPm!K12 -> 2017-03-31 | L13: =+SPm!L12 -> 2017-04-30 | M13: =+SPm!M12 -> 2017-05-31 | N13: =+SPm!N12 -> 2017-06-30 | O13: =+SPm!O12 -> 2017-07-31 | P13: =+SPm!P12 -> 2017-08-31 | Q13: =+SPm!Q12 -> 2017-09-30 | R13: =+SPm!R12 -> 2017-10-31 | S13: =+SPm!S12 -> 2017-11-30 | T13: =+SPm!T12 -> 2017-12-31 | U13: =+SPm!U12 -> 2018-01-31 | V13: =+SPm!V12 -> 2018-02-28 | W13: =+SPm!W12 -> 2018-03-31 | X13: =+SPm!X12 -> 2018-04-30 | Y13: =+SPm!Y12 -> 2018-05-31 | Z13: =+SPm!Z12 -> 2018-06-30 | AA13: =+SPm!AA12 -> 2018-07-31 | AB13: =+SPm!AB12 -> 2018-08-31 | AC13: =+SPm!AC12 -> 2018-09-30 | AD13: =+SPm!AD12 -> 2018-10-31 | AE13: =+SPm!AE12 -> 2018-11-30 | AF13: =+SPm!AF12 -> 2018-12-31 | AG13: =+SPm!AG12 -> 2019-01-31 | AH13: =+SPm!AH12 -> 2019-02-28 | AI13: =+SPm!AI12 -> 2019-03-31 | AJ13: =+SPm!AJ12 -> 2019-04-30 | AK13: =+SPm!AK12 -> 2019-05-31 | AL13: =+SPm!AL12 -> 2019-06-30 | AM13: =+SPm!AM12 -> 2019-07-31 | AN13: =+SPm!AN12 -> 2019-08-31 | AO13: =+SPm!AO12 -> 2019-09-30 | AP13: =+SPm!AP12 -> 2019-10-31 | AQ13: =+SPm!AQ12 -> 2019-11-30 | AR13: =+SPm!AR12 -> 2019-12-31 | AS13: =+SPm!AS12 -> 2020-01-31 | AT13: =+SPm!AT12 -> 2020-02-29 | AU13: =+SPm!AU12 -> 2020-03-31 | AV13: =+SPm!AV12 -> 2020-04-30 | AW13: =+SPm!AW12 -> 2020-05-31 | AX13: =+SPm!AX12 -> 2020-06-30 | AY13: =+SPm!AY12 -> 2020-07-31 | AZ13: =+SPm!AZ12 -> 2020-08-31 | BA13: =+SPm!BA12 -> 2020-09-30 | BB13: =+SPm!BB12 -> 2020-10-31 | BC13: =+SPm!BC12 -> 2020-11-30 | BD13: =+SPm!BD12 -> 2020-12-31 | BE13: =+SPm!BE12 -> 2021-01-31 | BF13: =+SPm!BF12 -> 2021-02-28 | BG13: =+SPm!BG12 -> 2021-03-31 | BH13: =+SPm!BH12 -> 2021-04-30 | BI13: =+SPm!BI12 -> 2021-05-31 | BJ13: =+SPm!BJ12 -> 2021-06-30 | BK13: =+SPm!BK12 -> 2021-07-31 | BL13: =+SPm!BL12 -> 2021-08-31 | BM13: =+SPm!BM12 -> 2021-09-30 | BN13: =+SPm!BN12 -> 2021-10-31 | BO13: =+SPm!BO12 -> 2021-11-30 | BP13: =+SPm!BP12 -> 2021-12-31 | BS13: =+YEAR(T13) -> 2017 | BT13: =+YEAR(AF13) -> 2018 | BU13: =+YEAR(AR13) -> 2019 | BV13: =+YEAR(BD13) -> 2020 | BW13: =+YEAR(BO13) -> 2021
F14: =+IF('Budget Vendite'!F13=0,"",'Budget Vendite'!F13) -> Linea 1 | G14: =+'Budget Vendite'!H13 -> 0.22 | H14: ='Budget Vendite'!J13 -> 0 | I14: =+'Budget Vendite'!L13*'Budget Vendite'!L46 -> 1000 | J14: =+'Budget Vendite'!M13*'Budget Vendite'!M46 -> 1000 | K14: =+'Budget Vendite'!N13*'Budget Vendite'!N46 -> 1000 | L14: =+'Budget Vendite'!O13*'Budget Vendite'!O46 -> 1000 | M14: =+'Budget Vendite'!P13*'Budget Vendite'!P46 -> 1000 | N14: =+'Budget Vendite'!Q13*'Budget Vendite'!Q46 -> 1000 | O14: =+'Budget Vendite'!R13*'Budget Vendite'!R46 -> 1000 | P14: =+'Budget Vendite'!S13*'Budget Vendite'!S46 -> 1000 | Q14: =+'Budget Vendite'!T13*'Budget Vendite'!T46 -> 1000 | R14: =+'Budget Vendite'!U13*'Budget Vendite'!U46 -> 1000 | S14: =+'Budget Vendite'!V13*'Budget Vendite'!V46 -> 1000 | T14: =+'Budget Vendite'!W13*'Budget Vendite'!W46 -> 1000 | U14: =+'Budget Vendite'!X13*'Budget Vendite'!X46 -> 1000 | V14: =+'Budget Vendite'!Y13*'Budget Vendite'!Y46 -> 1000 | W14: =+'Budget Vendite'!Z13*'Budget Vendite'!Z46 -> 1000 | X14: =+'Budget Vendite'!AA13*'Budget Vendite'!AA46 -> 1000 | Y14: =+'Budget Vendite'!AB13*'Budget Vendite'!AB46 -> 1000 | Z14: =+'Budget Vendite'!AC13*'Budget Vendite'!AC46 -> 1000 | AA14: =+'Budget Vendite'!AD13*'Budget Vendite'!AD46 -> 1000 | AB14: =+'Budget Vendite'!AE13*'Budget Vendite'!AE46 -> 1000 | AC14: =+'Budget Vendite'!AF13*'Budget Vendite'!AF46 -> 1000 | AD14: =+'Budget Vendite'!AG13*'Budget Vendite'!AG46 -> 1000 | AE14: =+'Budget Vendite'!AH13*'Budget Vendite'!AH46 -> 1000 | AF14: =+'Budget Vendite'!AI13*'Budget Vendite'!AI46 -> 1000 | AG14: =+'Budget Vendite'!AJ13*'Budget Vendite'!AJ46 -> 1000 | AH14: =+'Budget Vendite'!AK13*'Budget Vendite'!AK46 -> 1000 | AI14: =+'Budget Vendite'!AL13*'Budget Vendite'!AL46 -> 1000 | AJ14: =+'Budget Vendite'!AM13*'Budget Vendite'!AM46 -> 1000 | AK14: =+'Budget Vendite'!AN13*'Budget Vendite'!AN46 -> 1000 | AL14: =+'Budget Vendite'!AO13*'Budget Vendite'!AO46 -> 1000 | AM14: =+'Budget Vendite'!AP13*'Budget Vendite'!AP46 -> 1000 | AN14: =+'Budget Vendite'!AQ13*'Budget Vendite'!AQ46 -> 1000 | AO14: =+'Budget Vendite'!AR13*'Budget Vendite'!AR46 -> 1000 | AP14: =+'Budget Vendite'!AS13*'Budget Vendite'!AS46 -> 1000 | AQ14: =+'Budget Vendite'!AT13*'Budget Vendite'!AT46 -> 1000 | AR14: =+'Budget Vendite'!AU13*'Budget Vendite'!AU46 -> 1000 | AS14: =+'Budget Vendite'!AV13*'Budget Vendite'!AV46 -> 1000 | AT14: =+'Budget Vendite'!AW13*'Budget Vendite'!AW46 -> 1000 | AU14: =+'Budget Vendite'!AX13*'Budget Vendite'!AX46 -> 1000 | AV14: =+'Budget Vendite'!AY13*'Budget Vendite'!AY46 -> 1000 | AW14: =+'Budget Vendite'!AZ13*'Budget Vendite'!AZ46 -> 1000 | AX14: =+'Budget Vendite'!BA13*'Budget Vendite'!BA46 -> 1000 | AY14: =+'Budget Vendite'!BB13*'Budget Vendite'!BB46 -> 1000 | AZ14: =+'Budget Vendite'!BC13*'Budget Vendite'!BC46 -> 1000 | BA14: =+'Budget Vendite'!BD13*'Budget Vendite'!BD46 -> 1000 | BB14: =+'Budget Vendite'!BE13*'Budget Vendite'!BE46 -> 1000 | BC14: =+'Budget Vendite'!BF13*'Budget Vendite'!BF46 -> 1000 | BD14: =+'Budget Vendite'!BG13*'Budget Vendite'!BG46 -> 1000 | BE14: =+'Budget Vendite'!BH13*'Budget Vendite'!BH46 -> 1000 | BF14: =+'Budget Vendite'!BI13*'Budget Vendite'!BI46 -> 1000 | BG14: =+'Budget Vendite'!BJ13*'Budget Vendite'!BJ46 -> 1000 | BH14: =+'Budget Vendite'!BK13*'Budget Vendite'!BK46 -> 1000 | BI14: =+'Budget Vendite'!BL13*'Budget Vendite'!BL46 -> 1000 | BJ14: =+'Budget Vendite'!BM13*'Budget Vendite'!BM46 -> 1000 | BK14: =+'Budget Vendite'!BN13*'Budget Vendite'!BN46 -> 1000 | BL14: =+'Budget Vendite'!BO13*'Budget Vendite'!BO46 -> 1000 | BM14: =+'Budget Vendite'!BP13*'Budget Vendite'!BP46 -> 1000 | BN14: =+'Budget Vendite'!BQ13*'Budget Vendite'!BQ46 -> 1000 | BO14: =+'Budget Vendite'!BR13*'Budget Vendite'!BR46 -> 1000 | BP14: =+'Budget Vendite'!BS13*'Budget Vendite'!BS46 -> 1000 | BS14: =+SUM(I14:T14) -> 12000 | BT14: =+SUM(U14:AF14) -> 12000 | BU14: =+SUM(AG14:AR14) -> 12000 | BV14: =+SUM(AS14:BD14) -> 12000 | BW14: =+SUM(BE14:BP14) -> 12000
F15: =+IF('Budget Vendite'!F14=0,"",'Budget Vendite'!F14) -> Linea 2 | G15: =+'Budget Vendite'!H14 -> 0.22 | H15: ='Budget Vendite'!J14 -> 0 | I15: =+'Budget Vendite'!L14*'Budget Vendite'!L47 -> 4000 | J15: =+'Budget Vendite'!M14*'Budget Vendite'!M47 -> 4000 | K15: =+'Budget Vendite'!N14*'Budget Vendite'!N47 -> 4000 | L15: =+'Budget Vendite'!O14*'Budget Vendite'!O47 -> 4000 | M15: =+'Budget Vendite'!P14*'Budget Vendite'!P47 -> 4000 | N15: =+'Budget Vendite'!Q14*'Budget Vendite'!Q47 -> 4000 | O15: =+'Budget Vendite'!R14*'Budget Vendite'!R47 -> 4000 | P15: =+'Budget Vendite'!S14*'Budget Vendite'!S47 -> 4000 | Q15: =+'Budget Vendite'!T14*'Budget Vendite'!T47 -> 4000 | R15: =+'Budget Vendite'!U14*'Budget Vendite'!U47 -> 4000 | S15: =+'Budget Vendite'!V14*'Budget Vendite'!V47 -> 4000 | T15: =+'Budget Vendite'!W14*'Budget Vendite'!W47 -> 4000 | U15: =+'Budget Vendite'!X14*'Budget Vendite'!X47 -> 4000 | V15: =+'Budget Vendite'!Y14*'Budget Vendite'!Y47 -> 4000 | W15: =+'Budget Vendite'!Z14*'Budget Vendite'!Z47 -> 4000 | X15: =+'Budget Vendite'!AA14*'Budget Vendite'!AA47 -> 4000 | Y15: =+'Budget Vendite'!AB14*'Budget Vendite'!AB47 -> 4000 | Z15: =+'Budget Vendite'!AC14*'Budget Vendite'!AC47 -> 4000 | AA15: =+'Budget Vendite'!AD14*'Budget Vendite'!AD47 -> 4000 | AB15: =+'Budget Vendite'!AE14*'Budget Vendite'!AE47 -> 4000 | AC15: =+'Budget Vendite'!AF14*'Budget Vendite'!AF47 -> 4000 | AD15: =+'Budget Vendite'!AG14*'Budget Vendite'!AG47 -> 4000 | AE15: =+'Budget Vendite'!AH14*'Budget Vendite'!AH47 -> 4000 | AF15: =+'Budget Vendite'!AI14*'Budget Vendite'!AI47 -> 4000 | AG15: =+'Budget Vendite'!AJ14*'Budget Vendite'!AJ47 -> 4000 | AH15: =+'Budget Vendite'!AK14*'Budget Vendite'!AK47 -> 4000 | AI15: =+'Budget Vendite'!AL14*'Budget Vendite'!AL47 -> 4000 | AJ15: =+'Budget Vendite'!AM14*'Budget Vendite'!AM47 -> 4000 | AK15: =+'Budget Vendite'!AN14*'Budget Vendite'!AN47 -> 4000 | AL15: =+'Budget Vendite'!AO14*'Budget Vendite'!AO47 -> 4000 | AM15: =+'Budget Vendite'!AP14*'Budget Vendite'!AP47 -> 4000 | AN15: =+'Budget Vendite'!AQ14*'Budget Vendite'!AQ47 -> 4000 | AO15: =+'Budget Vendite'!AR14*'Budget Vendite'!AR47 -> 4000 | AP15: =+'Budget Vendite'!AS14*'Budget Vendite'!AS47 -> 4000 | AQ15: =+'Budget Vendite'!AT14*'Budget Vendite'!AT47 -> 4000 | AR15: =+'Budget Vendite'!AU14*'Budget Vendite'!AU47 -> 4000 | AS15: =+'Budget Vendite'!AV14*'Budget Vendite'!AV47 -> 4000 | AT15: =+'Budget Vendite'!AW14*'Budget Vendite'!AW47 -> 4000 | AU15: =+'Budget Vendite'!AX14*'Budget Vendite'!AX47 -> 4000 | AV15: =+'Budget Vendite'!AY14*'Budget Vendite'!AY47 -> 4000 | AW15: =+'Budget Vendite'!AZ14*'Budget Vendite'!AZ47 -> 4000 | AX15: =+'Budget Vendite'!BA14*'Budget Vendite'!BA47 -> 4000 | AY15: =+'Budget Vendite'!BB14*'Budget Vendite'!BB47 -> 4000 | AZ15: =+'Budget Vendite'!BC14*'Budget Vendite'!BC47 -> 4000 | BA15: =+'Budget Vendite'!BD14*'Budget Vendite'!BD47 -> 4000 | BB15: =+'Budget Vendite'!BE14*'Budget Vendite'!BE47 -> 4000 | BC15: =+'Budget Vendite'!BF14*'Budget Vendite'!BF47 -> 4000 | BD15: =+'Budget Vendite'!BG14*'Budget Vendite'!BG47 -> 4000 | BE15: =+'Budget Vendite'!BH14*'Budget Vendite'!BH47 -> 4000 | BF15: =+'Budget Vendite'!BI14*'Budget Vendite'!BI47 -> 4000 | BG15: =+'Budget Vendite'!BJ14*'Budget Vendite'!BJ47 -> 4000 | BH15: =+'Budget Vendite'!BK14*'Budget Vendite'!BK47 -> 4000 | BI15: =+'Budget Vendite'!BL14*'Budget Vendite'!BL47 -> 4000 | BJ15: =+'Budget Vendite'!BM14*'Budget Vendite'!BM47 -> 4000 | BK15: =+'Budget Vendite'!BN14*'Budget Vendite'!BN47 -> 4000 | BL15: =+'Budget Vendite'!BO14*'Budget Vendite'!BO47 -> 4000 | BM15: =+'Budget Vendite'!BP14*'Budget Vendite'!BP47 -> 4000 | BN15: =+'Budget Vendite'!BQ14*'Budget Vendite'!BQ47 -> 4000 | BO15: =+'Budget Vendite'!BR14*'Budget Vendite'!BR47 -> 4000 | BP15: =+'Budget Vendite'!BS14*'Budget Vendite'!BS47 -> 4000 | BS15: =+SUM(I15:T15) -> 48000 | BT15: =+SUM(U15:AF15) -> 48000 | BU15: =+SUM(AG15:AR15) -> 48000 | BV15: =+SUM(AS15:BD15) -> 48000 | BW15: =+SUM(BE15:BP15) -> 48000
F16: =+IF('Budget Vendite'!F15=0,"",'Budget Vendite'!F15) -> Linea 3 | G16: =+'Budget Vendite'!H15 -> 0.22 | H16: ='Budget Vendite'!J15 -> 0 | I16: =+'Budget Vendite'!L15*'Budget Vendite'!L48 -> 1500 | J16: =+'Budget Vendite'!M15*'Budget Vendite'!M48 -> 1500 | K16: =+'Budget Vendite'!N15*'Budget Vendite'!N48 -> 1500 | L16: =+'Budget Vendite'!O15*'Budget Vendite'!O48 -> 1500 | M16: =+'Budget Vendite'!P15*'Budget Vendite'!P48 -> 1500 | N16: =+'Budget Vendite'!Q15*'Budget Vendite'!Q48 -> 1500 | O16: =+'Budget Vendite'!R15*'Budget Vendite'!R48 -> 1500 | P16: =+'Budget Vendite'!S15*'Budget Vendite'!S48 -> 1500 | Q16: =+'Budget Vendite'!T15*'Budget Vendite'!T48 -> 1500 | R16: =+'Budget Vendite'!U15*'Budget Vendite'!U48 -> 1500 | S16: =+'Budget Vendite'!V15*'Budget Vendite'!V48 -> 1500 | T16: =+'Budget Vendite'!W15*'Budget Vendite'!W48 -> 1500 | U16: =+'Budget Vendite'!X15*'Budget Vendite'!X48 -> 1500 | V16: =+'Budget Vendite'!Y15*'Budget Vendite'!Y48 -> 1500 | W16: =+'Budget Vendite'!Z15*'Budget Vendite'!Z48 -> 1500 | X16: =+'Budget Vendite'!AA15*'Budget Vendite'!AA48 -> 1500 | Y16: =+'Budget Vendite'!AB15*'Budget Vendite'!AB48 -> 1500 | Z16: =+'Budget Vendite'!AC15*'Budget Vendite'!AC48 -> 1500 | AA16: =+'Budget Vendite'!AD15*'Budget Vendite'!AD48 -> 1500 | AB16: =+'Budget Vendite'!AE15*'Budget Vendite'!AE48 -> 1500 | AC16: =+'Budget Vendite'!AF15*'Budget Vendite'!AF48 -> 1500 | AD16: =+'Budget Vendite'!AG15*'Budget Vendite'!AG48 -> 1500 | AE16: =+'Budget Vendite'!AH15*'Budget Vendite'!AH48 -> 1500 | AF16: =+'Budget Vendite'!AI15*'Budget Vendite'!AI48 -> 1500 | AG16: =+'Budget Vendite'!AJ15*'Budget Vendite'!AJ48 -> 1500 | AH16: =+'Budget Vendite'!AK15*'Budget Vendite'!AK48 -> 1500 | AI16: =+'Budget Vendite'!AL15*'Budget Vendite'!AL48 -> 1500 | AJ16: =+'Budget Vendite'!AM15*'Budget Vendite'!AM48 -> 1500 | AK16: =+'Budget Vendite'!AN15*'Budget Vendite'!AN48 -> 1500 | AL16: =+'Budget Vendite'!AO15*'Budget Vendite'!AO48 -> 1500 | AM16: =+'Budget Vendite'!AP15*'Budget Vendite'!AP48 -> 1500 | AN16: =+'Budget Vendite'!AQ15*'Budget Vendite'!AQ48 -> 1500 | AO16: =+'Budget Vendite'!AR15*'Budget Vendite'!AR48 -> 1500 | AP16: =+'Budget Vendite'!AS15*'Budget Vendite'!AS48 -> 1500 | AQ16: =+'Budget Vendite'!AT15*'Budget Vendite'!AT48 -> 1500 | AR16: =+'Budget Vendite'!AU15*'Budget Vendite'!AU48 -> 1500 | AS16: =+'Budget Vendite'!AV15*'Budget Vendite'!AV48 -> 1500 | AT16: =+'Budget Vendite'!AW15*'Budget Vendite'!AW48 -> 1500 | AU16: =+'Budget Vendite'!AX15*'Budget Vendite'!AX48 -> 1500 | AV16: =+'Budget Vendite'!AY15*'Budget Vendite'!AY48 -> 1500 | AW16: =+'Budget Vendite'!AZ15*'Budget Vendite'!AZ48 -> 1500 | AX16: =+'Budget Vendite'!BA15*'Budget Vendite'!BA48 -> 1500 | AY16: =+'Budget Vendite'!BB15*'Budget Vendite'!BB48 -> 1500 | AZ16: =+'Budget Vendite'!BC15*'Budget Vendite'!BC48 -> 1500 | BA16: =+'Budget Vendite'!BD15*'Budget Vendite'!BD48 -> 1500 | BB16: =+'Budget Vendite'!BE15*'Budget Vendite'!BE48 -> 1500 | BC16: =+'Budget Vendite'!BF15*'Budget Vendite'!BF48 -> 1500 | BD16: =+'Budget Vendite'!BG15*'Budget Vendite'!BG48 -> 1500 | BE16: =+'Budget Vendite'!BH15*'Budget Vendite'!BH48 -> 1500 | BF16: =+'Budget Vendite'!BI15*'Budget Vendite'!BI48 -> 1500 | BG16: =+'Budget Vendite'!BJ15*'Budget Vendite'!BJ48 -> 1500 | BH16: =+'Budget Vendite'!BK15*'Budget Vendite'!BK48 -> 1500 | BI16: =+'Budget Vendite'!BL15*'Budget Vendite'!BL48 -> 1500 | BJ16: =+'Budget Vendite'!BM15*'Budget Vendite'!BM48 -> 1500 | BK16: =+'Budget Vendite'!BN15*'Budget Vendite'!BN48 -> 1500 | BL16: =+'Budget Vendite'!BO15*'Budget Vendite'!BO48 -> 1500 | BM16: =+'Budget Vendite'!BP15*'Budget Vendite'!BP48 -> 1500 | BN16: =+'Budget Vendite'!BQ15*'Budget Vendite'!BQ48 -> 1500 | BO16: =+'Budget Vendite'!BR15*'Budget Vendite'!BR48 -> 1500 | BP16: =+'Budget Vendite'!BS15*'Budget Vendite'!BS48 -> 1500 | BS16: =+SUM(I16:T16) -> 18000 | BT16: =+SUM(U16:AF16) -> 18000 | BU16: =+SUM(AG16:AR16) -> 18000 | BV16: =+SUM(AS16:BD16) -> 18000 | BW16: =+SUM(BE16:BP16) -> 18000
F17: =+IF('Budget Vendite'!F16=0,"",'Budget Vendite'!F16) -> Linea 4 | G17: =+'Budget Vendite'!H16 -> 0.22 | H17: ='Budget Vendite'!J16 -> 0 | I17: =+'Budget Vendite'!L16*'Budget Vendite'!L49 -> 12000 | J17: =+'Budget Vendite'!M16*'Budget Vendite'!M49 -> 12000 | K17: =+'Budget Vendite'!N16*'Budget Vendite'!N49 -> 12000 | L17: =+'Budget Vendite'!O16*'Budget Vendite'!O49 -> 12000 | M17: =+'Budget Vendite'!P16*'Budget Vendite'!P49 -> 12000 | N17: =+'Budget Vendite'!Q16*'Budget Vendite'!Q49 -> 12000 | O17: =+'Budget Vendite'!R16*'Budget Vendite'!R49 -> 12000 | P17: =+'Budget Vendite'!S16*'Budget Vendite'!S49 -> 12000 | Q17: =+'Budget Vendite'!T16*'Budget Vendite'!T49 -> 12000 | R17: =+'Budget Vendite'!U16*'Budget Vendite'!U49 -> 12000 | S17: =+'Budget Vendite'!V16*'Budget Vendite'!V49 -> 12000 | T17: =+'Budget Vendite'!W16*'Budget Vendite'!W49 -> 12000 | U17: =+'Budget Vendite'!X16*'Budget Vendite'!X49 -> 12000 | V17: =+'Budget Vendite'!Y16*'Budget Vendite'!Y49 -> 12000 | W17: =+'Budget Vendite'!Z16*'Budget Vendite'!Z49 -> 12000 | X17: =+'Budget Vendite'!AA16*'Budget Vendite'!AA49 -> 12000 | Y17: =+'Budget Vendite'!AB16*'Budget Vendite'!AB49 -> 12000 | Z17: =+'Budget Vendite'!AC16*'Budget Vendite'!AC49 -> 12000 | AA17: =+'Budget Vendite'!AD16*'Budget Vendite'!AD49 -> 12000 | AB17: =+'Budget Vendite'!AE16*'Budget Vendite'!AE49 -> 12000 | AC17: =+'Budget Vendite'!AF16*'Budget Vendite'!AF49 -> 12000 | AD17: =+'Budget Vendite'!AG16*'Budget Vendite'!AG49 -> 12000 | AE17: =+'Budget Vendite'!AH16*'Budget Vendite'!AH49 -> 12000 | AF17: =+'Budget Vendite'!AI16*'Budget Vendite'!AI49 -> 12000 | AG17: =+'Budget Vendite'!AJ16*'Budget Vendite'!AJ49 -> 12000 | AH17: =+'Budget Vendite'!AK16*'Budget Vendite'!AK49 -> 12000 | AI17: =+'Budget Vendite'!AL16*'Budget Vendite'!AL49 -> 12000 | AJ17: =+'Budget Vendite'!AM16*'Budget Vendite'!AM49 -> 12000 | AK17: =+'Budget Vendite'!AN16*'Budget Vendite'!AN49 -> 12000 | AL17: =+'Budget Vendite'!AO16*'Budget Vendite'!AO49 -> 12000 | AM17: =+'Budget Vendite'!AP16*'Budget Vendite'!AP49 -> 12000 | AN17: =+'Budget Vendite'!AQ16*'Budget Vendite'!AQ49 -> 12000 | AO17: =+'Budget Vendite'!AR16*'Budget Vendite'!AR49 -> 12000 | AP17: =+'Budget Vendite'!AS16*'Budget Vendite'!AS49 -> 12000 | AQ17: =+'Budget Vendite'!AT16*'Budget Vendite'!AT49 -> 12000 | AR17: =+'Budget Vendite'!AU16*'Budget Vendite'!AU49 -> 12000 | AS17: =+'Budget Vendite'!AV16*'Budget Vendite'!AV49 -> 12000 | AT17: =+'Budget Vendite'!AW16*'Budget Vendite'!AW49 -> 12000 | AU17: =+'Budget Vendite'!AX16*'Budget Vendite'!AX49 -> 12000 | AV17: =+'Budget Vendite'!AY16*'Budget Vendite'!AY49 -> 12000 | AW17: =+'Budget Vendite'!AZ16*'Budget Vendite'!AZ49 -> 12000 | AX17: =+'Budget Vendite'!BA16*'Budget Vendite'!BA49 -> 12000 | AY17: =+'Budget Vendite'!BB16*'Budget Vendite'!BB49 -> 12000 | AZ17: =+'Budget Vendite'!BC16*'Budget Vendite'!BC49 -> 12000 | BA17: =+'Budget Vendite'!BD16*'Budget Vendite'!BD49 -> 12000 | BB17: =+'Budget Vendite'!BE16*'Budget Vendite'!BE49 -> 12000 | BC17: =+'Budget Vendite'!BF16*'Budget Vendite'!BF49 -> 12000 | BD17: =+'Budget Vendite'!BG16*'Budget Vendite'!BG49 -> 12000 | BE17: =+'Budget Vendite'!BH16*'Budget Vendite'!BH49 -> 12000 | BF17: =+'Budget Vendite'!BI16*'Budget Vendite'!BI49 -> 12000 | BG17: =+'Budget Vendite'!BJ16*'Budget Vendite'!BJ49 -> 12000 | BH17: =+'Budget Vendite'!BK16*'Budget Vendite'!BK49 -> 12000 | BI17: =+'Budget Vendite'!BL16*'Budget Vendite'!BL49 -> 12000 | BJ17: =+'Budget Vendite'!BM16*'Budget Vendite'!BM49 -> 12000 | BK17: =+'Budget Vendite'!BN16*'Budget Vendite'!BN49 -> 12000 | BL17: =+'Budget Vendite'!BO16*'Budget Vendite'!BO49 -> 12000 | BM17: =+'Budget Vendite'!BP16*'Budget Vendite'!BP49 -> 12000 | BN17: =+'Budget Vendite'!BQ16*'Budget Vendite'!BQ49 -> 12000 | BO17: =+'Budget Vendite'!BR16*'Budget Vendite'!BR49 -> 12000 | BP17: =+'Budget Vendite'!BS16*'Budget Vendite'!BS49 -> 12000 | BS17: =+SUM(I17:T17) -> 144000 | BT17: =+SUM(U17:AF17) -> 144000 | BU17: =+SUM(AG17:AR17) -> 144000 | BV17: =+SUM(AS17:BD17) -> 144000 | BW17: =+SUM(BE17:BP17) -> 144000
F18: =+IF('Budget Vendite'!F17=0,"",'Budget Vendite'!F17) -> Linea 5 | G18: =+'Budget Vendite'!H17 -> 0.22 | H18: ='Budget Vendite'!J17 -> 0 | I18: =+'Budget Vendite'!L17*'Budget Vendite'!L50 -> 0 | J18: =+'Budget Vendite'!M17*'Budget Vendite'!M50 -> 0 | K18: =+'Budget Vendite'!N17*'Budget Vendite'!N50 -> 0 | L18: =+'Budget Vendite'!O17*'Budget Vendite'!O50 -> 0 | M18: =+'Budget Vendite'!P17*'Budget Vendite'!P50 -> 0 | N18: =+'Budget Vendite'!Q17*'Budget Vendite'!Q50 -> 0 | O18: =+'Budget Vendite'!R17*'Budget Vendite'!R50 -> 0 | P18: =+'Budget Vendite'!S17*'Budget Vendite'!S50 -> 0 | Q18: =+'Budget Vendite'!T17*'Budget Vendite'!T50 -> 0 | R18: =+'Budget Vendite'!U17*'Budget Vendite'!U50 -> 0 | S18: =+'Budget Vendite'!V17*'Budget Vendite'!V50 -> 0 | T18: =+'Budget Vendite'!W17*'Budget Vendite'!W50 -> 0 | U18: =+'Budget Vendite'!X17*'Budget Vendite'!X50 -> 0 | V18: =+'Budget Vendite'!Y17*'Budget Vendite'!Y50 -> 0 | W18: =+'Budget Vendite'!Z17*'Budget Vendite'!Z50 -> 0 | X18: =+'Budget Vendite'!AA17*'Budget Vendite'!AA50 -> 0 | Y18: =+'Budget Vendite'!AB17*'Budget Vendite'!AB50 -> 0 | Z18: =+'Budget Vendite'!AC17*'Budget Vendite'!AC50 -> 0 | AA18: =+'Budget Vendite'!AD17*'Budget Vendite'!AD50 -> 0 | AB18: =+'Budget Vendite'!AE17*'Budget Vendite'!AE50 -> 0 | AC18: =+'Budget Vendite'!AF17*'Budget Vendite'!AF50 -> 0 | AD18: =+'Budget Vendite'!AG17*'Budget Vendite'!AG50 -> 0 | AE18: =+'Budget Vendite'!AH17*'Budget Vendite'!AH50 -> 0 | AF18: =+'Budget Vendite'!AI17*'Budget Vendite'!AI50 -> 0 | AG18: =+'Budget Vendite'!AJ17*'Budget Vendite'!AJ50 -> 0 | AH18: =+'Budget Vendite'!AK17*'Budget Vendite'!AK50 -> 0 | AI18: =+'Budget Vendite'!AL17*'Budget Vendite'!AL50 -> 0 | AJ18: =+'Budget Vendite'!AM17*'Budget Vendite'!AM50 -> 0 | AK18: =+'Budget Vendite'!AN17*'Budget Vendite'!AN50 -> 0 | AL18: =+'Budget Vendite'!AO17*'Budget Vendite'!AO50 -> 0 | AM18: =+'Budget Vendite'!AP17*'Budget Vendite'!AP50 -> 0 | AN18: =+'Budget Vendite'!AQ17*'Budget Vendite'!AQ50 -> 0 | AO18: =+'Budget Vendite'!AR17*'Budget Vendite'!AR50 -> 0 | AP18: =+'Budget Vendite'!AS17*'Budget Vendite'!AS50 -> 0 | AQ18: =+'Budget Vendite'!AT17*'Budget Vendite'!AT50 -> 0 | AR18: =+'Budget Vendite'!AU17*'Budget Vendite'!AU50 -> 0 | AS18: =+'Budget Vendite'!AV17*'Budget Vendite'!AV50 -> 0 | AT18: =+'Budget Vendite'!AW17*'Budget Vendite'!AW50 -> 0 | AU18: =+'Budget Vendite'!AX17*'Budget Vendite'!AX50 -> 0 | AV18: =+'Budget Vendite'!AY17*'Budget Vendite'!AY50 -> 0 | AW18: =+'Budget Vendite'!AZ17*'Budget Vendite'!AZ50 -> 0 | AX18: =+'Budget Vendite'!BA17*'Budget Vendite'!BA50 -> 0 | AY18: =+'Budget Vendite'!BB17*'Budget Vendite'!BB50 -> 0 | AZ18: =+'Budget Vendite'!BC17*'Budget Vendite'!BC50 -> 0 | BA18: =+'Budget Vendite'!BD17*'Budget Vendite'!BD50 -> 0 | BB18: =+'Budget Vendite'!BE17*'Budget Vendite'!BE50 -> 0 | BC18: =+'Budget Vendite'!BF17*'Budget Vendite'!BF50 -> 0 | BD18: =+'Budget Vendite'!BG17*'Budget Vendite'!BG50 -> 0 | BE18: =+'Budget Vendite'!BH17*'Budget Vendite'!BH50 -> 0 | BF18: =+'Budget Vendite'!BI17*'Budget Vendite'!BI50 -> 0 | BG18: =+'Budget Vendite'!BJ17*'Budget Vendite'!BJ50 -> 0 | BH18: =+'Budget Vendite'!BK17*'Budget Vendite'!BK50 -> 0 | BI18: =+'Budget Vendite'!BL17*'Budget Vendite'!BL50 -> 0 | BJ18: =+'Budget Vendite'!BM17*'Budget Vendite'!BM50 -> 0 | BK18: =+'Budget Vendite'!BN17*'Budget Vendite'!BN50 -> 0 | BL18: =+'Budget Vendite'!BO17*'Budget Vendite'!BO50 -> 0 | BM18: =+'Budget Vendite'!BP17*'Budget Vendite'!BP50 -> 0 | BN18: =+'Budget Vendite'!BQ17*'Budget Vendite'!BQ50 -> 0 | BO18: =+'Budget Vendite'!BR17*'Budget Vendite'!BR50 -> 0 | BP18: =+'Budget Vendite'!BS17*'Budget Vendite'!BS50 -> 0 | BS18: 0 | BT18: 0 | BU18: 0 | BV18: 0 | BW18: 0
F19: =+IF('Budget Vendite'!F18=0,"",'Budget Vendite'!F18) -> Linea 6 | G19: =+'Budget Vendite'!H18 -> 0.22 | H19: ='Budget Vendite'!J18 -> 0 | I19: =+'Budget Vendite'!L18*'Budget Vendite'!L51 -> 0 | J19: =+'Budget Vendite'!M18*'Budget Vendite'!M51 -> 0 | K19: =+'Budget Vendite'!N18*'Budget Vendite'!N51 -> 0 | L19: =+'Budget Vendite'!O18*'Budget Vendite'!O51 -> 0 | M19: =+'Budget Vendite'!P18*'Budget Vendite'!P51 -> 0 | N19: =+'Budget Vendite'!Q18*'Budget Vendite'!Q51 -> 0 | O19: =+'Budget Vendite'!R18*'Budget Vendite'!R51 -> 0 | P19: =+'Budget Vendite'!S18*'Budget Vendite'!S51 -> 0 | Q19: =+'Budget Vendite'!T18*'Budget Vendite'!T51 -> 0 | R19: =+'Budget Vendite'!U18*'Budget Vendite'!U51 -> 0 | S19: =+'Budget Vendite'!V18*'Budget Vendite'!V51 -> 0 | T19: =+'Budget Vendite'!W18*'Budget Vendite'!W51 -> 0 | U19: =+'Budget Vendite'!X18*'Budget Vendite'!X51 -> 0 | V19: =+'Budget Vendite'!Y18*'Budget Vendite'!Y51 -> 0 | W19: =+'Budget Vendite'!Z18*'Budget Vendite'!Z51 -> 0 | X19: =+'Budget Vendite'!AA18*'Budget Vendite'!AA51 -> 0 | Y19: =+'Budget Vendite'!AB18*'Budget Vendite'!AB51 -> 0 | Z19: =+'Budget Vendite'!AC18*'Budget Vendite'!AC51 -> 0 | AA19: =+'Budget Vendite'!AD18*'Budget Vendite'!AD51 -> 0 | AB19: =+'Budget Vendite'!AE18*'Budget Vendite'!AE51 -> 0 | AC19: =+'Budget Vendite'!AF18*'Budget Vendite'!AF51 -> 0 | AD19: =+'Budget Vendite'!AG18*'Budget Vendite'!AG51 -> 0 | AE19: =+'Budget Vendite'!AH18*'Budget Vendite'!AH51 -> 0 | AF19: =+'Budget Vendite'!AI18*'Budget Vendite'!AI51 -> 0 | AG19: =+'Budget Vendite'!AJ18*'Budget Vendite'!AJ51 -> 0 | AH19: =+'Budget Vendite'!AK18*'Budget Vendite'!AK51 -> 0 | AI19: =+'Budget Vendite'!AL18*'Budget Vendite'!AL51 -> 0 | AJ19: =+'Budget Vendite'!AM18*'Budget Vendite'!AM51 -> 0 | AK19: =+'Budget Vendite'!AN18*'Budget Vendite'!AN51 -> 0 | AL19: =+'Budget Vendite'!AO18*'Budget Vendite'!AO51 -> 0 | AM19: =+'Budget Vendite'!AP18*'Budget Vendite'!AP51 -> 0 | AN19: =+'Budget Vendite'!AQ18*'Budget Vendite'!AQ51 -> 0 | AO19: =+'Budget Vendite'!AR18*'Budget Vendite'!AR51 -> 0 | AP19: =+'Budget Vendite'!AS18*'Budget Vendite'!AS51 -> 0 | AQ19: =+'Budget Vendite'!AT18*'Budget Vendite'!AT51 -> 0 | AR19: =+'Budget Vendite'!AU18*'Budget Vendite'!AU51 -> 0 | AS19: =+'Budget Vendite'!AV18*'Budget Vendite'!AV51 -> 0 | AT19: =+'Budget Vendite'!AW18*'Budget Vendite'!AW51 -> 0 | AU19: =+'Budget Vendite'!AX18*'Budget Vendite'!AX51 -> 0 | AV19: =+'Budget Vendite'!AY18*'Budget Vendite'!AY51 -> 0 | AW19: =+'Budget Vendite'!AZ18*'Budget Vendite'!AZ51 -> 0 | AX19: =+'Budget Vendite'!BA18*'Budget Vendite'!BA51 -> 0 | AY19: =+'Budget Vendite'!BB18*'Budget Vendite'!BB51 -> 0 | AZ19: =+'Budget Vendite'!BC18*'Budget Vendite'!BC51 -> 0 | BA19: =+'Budget Vendite'!BD18*'Budget Vendite'!BD51 -> 0 | BB19: =+'Budget Vendite'!BE18*'Budget Vendite'!BE51 -> 0 | BC19: =+'Budget Vendite'!BF18*'Budget Vendite'!BF51 -> 0 | BD19: =+'Budget Vendite'!BG18*'Budget Vendite'!BG51 -> 0 | BE19: =+'Budget Vendite'!BH18*'Budget Vendite'!BH51 -> 0 | BF19: =+'Budget Vendite'!BI18*'Budget Vendite'!BI51 -> 0 | BG19: =+'Budget Vendite'!BJ18*'Budget Vendite'!BJ51 -> 0 | BH19: =+'Budget Vendite'!BK18*'Budget Vendite'!BK51 -> 0 | BI19: =+'Budget Vendite'!BL18*'Budget Vendite'!BL51 -> 0 | BJ19: =+'Budget Vendite'!BM18*'Budget Vendite'!BM51 -> 0 | BK19: =+'Budget Vendite'!BN18*'Budget Vendite'!BN51 -> 0 | BL19: =+'Budget Vendite'!BO18*'Budget Vendite'!BO51 -> 0 | BM19: =+'Budget Vendite'!BP18*'Budget Vendite'!BP51 -> 0 | BN19: =+'Budget Vendite'!BQ18*'Budget Vendite'!BQ51 -> 0 | BO19: =+'Budget Vendite'!BR18*'Budget Vendite'!BR51 -> 0 | BP19: =+'Budget Vendite'!BS18*'Budget Vendite'!BS51 -> 0 | BS19: 0 | BT19: 0 | BU19: 0 | BV19: 0 | BW19: 0
F20: =+IF('Budget Vendite'!F19=0,"",'Budget Vendite'!F19) -> Linea 7 | G20: =+'Budget Vendite'!H19 -> 0.22 | H20: ='Budget Vendite'!J19 -> 0 | I20: =+'Budget Vendite'!L19*'Budget Vendite'!L52 -> 0 | J20: =+'Budget Vendite'!M19*'Budget Vendite'!M52 -> 0 | K20: =+'Budget Vendite'!N19*'Budget Vendite'!N52 -> 0 | L20: =+'Budget Vendite'!O19*'Budget Vendite'!O52 -> 0 | M20: =+'Budget Vendite'!P19*'Budget Vendite'!P52 -> 0 | N20: =+'Budget Vendite'!Q19*'Budget Vendite'!Q52 -> 0 | O20: =+'Budget Vendite'!R19*'Budget Vendite'!R52 -> 0 | P20: =+'Budget Vendite'!S19*'Budget Vendite'!S52 -> 0 | Q20: =+'Budget Vendite'!T19*'Budget Vendite'!T52 -> 0 | R20: =+'Budget Vendite'!U19*'Budget Vendite'!U52 -> 0 | S20: =+'Budget Vendite'!V19*'Budget Vendite'!V52 -> 0 | T20: =+'Budget Vendite'!W19*'Budget Vendite'!W52 -> 0 | U20: =+'Budget Vendite'!X19*'Budget Vendite'!X52 -> 0 | V20: =+'Budget Vendite'!Y19*'Budget Vendite'!Y52 -> 0 | W20: =+'Budget Vendite'!Z19*'Budget Vendite'!Z52 -> 0 | X20: =+'Budget Vendite'!AA19*'Budget Vendite'!AA52 -> 0 | Y20: =+'Budget Vendite'!AB19*'Budget Vendite'!AB52 -> 0 | Z20: =+'Budget Vendite'!AC19*'Budget Vendite'!AC52 -> 0 | AA20: =+'Budget Vendite'!AD19*'Budget Vendite'!AD52 -> 0 | AB20: =+'Budget Vendite'!AE19*'Budget Vendite'!AE52 -> 0 | AC20: =+'Budget Vendite'!AF19*'Budget Vendite'!AF52 -> 0 | AD20: =+'Budget Vendite'!AG19*'Budget Vendite'!AG52 -> 0 | AE20: =+'Budget Vendite'!AH19*'Budget Vendite'!AH52 -> 0 | AF20: =+'Budget Vendite'!AI19*'Budget Vendite'!AI52 -> 0 | AG20: =+'Budget Vendite'!AJ19*'Budget Vendite'!AJ52 -> 0 | AH20: =+'Budget Vendite'!AK19*'Budget Vendite'!AK52 -> 0 | AI20: =+'Budget Vendite'!AL19*'Budget Vendite'!AL52 -> 0 | AJ20: =+'Budget Vendite'!AM19*'Budget Vendite'!AM52 -> 0 | AK20: =+'Budget Vendite'!AN19*'Budget Vendite'!AN52 -> 0 | AL20: =+'Budget Vendite'!AO19*'Budget Vendite'!AO52 -> 0 | AM20: =+'Budget Vendite'!AP19*'Budget Vendite'!AP52 -> 0 | AN20: =+'Budget Vendite'!AQ19*'Budget Vendite'!AQ52 -> 0 | AO20: =+'Budget Vendite'!AR19*'Budget Vendite'!AR52 -> 0 | AP20: =+'Budget Vendite'!AS19*'Budget Vendite'!AS52 -> 0 | AQ20: =+'Budget Vendite'!AT19*'Budget Vendite'!AT52 -> 0 | AR20: =+'Budget Vendite'!AU19*'Budget Vendite'!AU52 -> 0 | AS20: =+'Budget Vendite'!AV19*'Budget Vendite'!AV52 -> 0 | AT20: =+'Budget Vendite'!AW19*'Budget Vendite'!AW52 -> 0 | AU20: =+'Budget Vendite'!AX19*'Budget Vendite'!AX52 -> 0 | AV20: =+'Budget Vendite'!AY19*'Budget Vendite'!AY52 -> 0 | AW20: =+'Budget Vendite'!AZ19*'Budget Vendite'!AZ52 -> 0 | AX20: =+'Budget Vendite'!BA19*'Budget Vendite'!BA52 -> 0 | AY20: =+'Budget Vendite'!BB19*'Budget Vendite'!BB52 -> 0 | AZ20: =+'Budget Vendite'!BC19*'Budget Vendite'!BC52 -> 0 | BA20: =+'Budget Vendite'!BD19*'Budget Vendite'!BD52 -> 0 | BB20: =+'Budget Vendite'!BE19*'Budget Vendite'!BE52 -> 0 | BC20: =+'Budget Vendite'!BF19*'Budget Vendite'!BF52 -> 0 | BD20: =+'Budget Vendite'!BG19*'Budget Vendite'!BG52 -> 0 | BE20: =+'Budget Vendite'!BH19*'Budget Vendite'!BH52 -> 0 | BF20: =+'Budget Vendite'!BI19*'Budget Vendite'!BI52 -> 0 | BG20: =+'Budget Vendite'!BJ19*'Budget Vendite'!BJ52 -> 0 | BH20: =+'Budget Vendite'!BK19*'Budget Vendite'!BK52 -> 0 | BI20: =+'Budget Vendite'!BL19*'Budget Vendite'!BL52 -> 0 | BJ20: =+'Budget Vendite'!BM19*'Budget Vendite'!BM52 -> 0 | BK20: =+'Budget Vendite'!BN19*'Budget Vendite'!BN52 -> 0 | BL20: =+'Budget Vendite'!BO19*'Budget Vendite'!BO52 -> 0 | BM20: =+'Budget Vendite'!BP19*'Budget Vendite'!BP52 -> 0 | BN20: =+'Budget Vendite'!BQ19*'Budget Vendite'!BQ52 -> 0 | BO20: =+'Budget Vendite'!BR19*'Budget Vendite'!BR52 -> 0 | BP20: =+'Budget Vendite'!BS19*'Budget Vendite'!BS52 -> 0 | BS20: 0 | BT20: 0 | BU20: 0 | BV20: 0 | BW20: 0
F21: =+IF('Budget Vendite'!F20=0,"",'Budget Vendite'!F20) -> Linea 8 | G21: =+'Budget Vendite'!H20 -> 0.22 | H21: ='Budget Vendite'!J20 -> 0 | I21: =+'Budget Vendite'!L20*'Budget Vendite'!L53 -> 0 | J21: =+'Budget Vendite'!M20*'Budget Vendite'!M53 -> 0 | K21: =+'Budget Vendite'!N20*'Budget Vendite'!N53 -> 0 | L21: =+'Budget Vendite'!O20*'Budget Vendite'!O53 -> 0 | M21: =+'Budget Vendite'!P20*'Budget Vendite'!P53 -> 0 | N21: =+'Budget Vendite'!Q20*'Budget Vendite'!Q53 -> 0 | O21: =+'Budget Vendite'!R20*'Budget Vendite'!R53 -> 0 | P21: =+'Budget Vendite'!S20*'Budget Vendite'!S53 -> 0 | Q21: =+'Budget Vendite'!T20*'Budget Vendite'!T53 -> 0 | R21: =+'Budget Vendite'!U20*'Budget Vendite'!U53 -> 0 | S21: =+'Budget Vendite'!V20*'Budget Vendite'!V53 -> 0 | T21: =+'Budget Vendite'!W20*'Budget Vendite'!W53 -> 0 | U21: =+'Budget Vendite'!X20*'Budget Vendite'!X53 -> 0 | V21: =+'Budget Vendite'!Y20*'Budget Vendite'!Y53 -> 0 | W21: =+'Budget Vendite'!Z20*'Budget Vendite'!Z53 -> 0 | X21: =+'Budget Vendite'!AA20*'Budget Vendite'!AA53 -> 0 | Y21: =+'Budget Vendite'!AB20*'Budget Vendite'!AB53 -> 0 | Z21: =+'Budget Vendite'!AC20*'Budget Vendite'!AC53 -> 0 | AA21: =+'Budget Vendite'!AD20*'Budget Vendite'!AD53 -> 0 | AB21: =+'Budget Vendite'!AE20*'Budget Vendite'!AE53 -> 0 | AC21: =+'Budget Vendite'!AF20*'Budget Vendite'!AF53 -> 0 | AD21: =+'Budget Vendite'!AG20*'Budget Vendite'!AG53 -> 0 | AE21: =+'Budget Vendite'!AH20*'Budget Vendite'!AH53 -> 0 | AF21: =+'Budget Vendite'!AI20*'Budget Vendite'!AI53 -> 0 | AG21: =+'Budget Vendite'!AJ20*'Budget Vendite'!AJ53 -> 0 | AH21: =+'Budget Vendite'!AK20*'Budget Vendite'!AK53 -> 0 | AI21: =+'Budget Vendite'!AL20*'Budget Vendite'!AL53 -> 0 | AJ21: =+'Budget Vendite'!AM20*'Budget Vendite'!AM53 -> 0 | AK21: =+'Budget Vendite'!AN20*'Budget Vendite'!AN53 -> 0 | AL21: =+'Budget Vendite'!AO20*'Budget Vendite'!AO53 -> 0 | AM21: =+'Budget Vendite'!AP20*'Budget Vendite'!AP53 -> 0 | AN21: =+'Budget Vendite'!AQ20*'Budget Vendite'!AQ53 -> 0 | AO21: =+'Budget Vendite'!AR20*'Budget Vendite'!AR53 -> 0 | AP21: =+'Budget Vendite'!AS20*'Budget Vendite'!AS53 -> 0 | AQ21: =+'Budget Vendite'!AT20*'Budget Vendite'!AT53 -> 0 | AR21: =+'Budget Vendite'!AU20*'Budget Vendite'!AU53 -> 0 | AS21: =+'Budget Vendite'!AV20*'Budget Vendite'!AV53 -> 0 | AT21: =+'Budget Vendite'!AW20*'Budget Vendite'!AW53 -> 0 | AU21: =+'Budget Vendite'!AX20*'Budget Vendite'!AX53 -> 0 | AV21: =+'Budget Vendite'!AY20*'Budget Vendite'!AY53 -> 0 | AW21: =+'Budget Vendite'!AZ20*'Budget Vendite'!AZ53 -> 0 | AX21: =+'Budget Vendite'!BA20*'Budget Vendite'!BA53 -> 0 | AY21: =+'Budget Vendite'!BB20*'Budget Vendite'!BB53 -> 0 | AZ21: =+'Budget Vendite'!BC20*'Budget Vendite'!BC53 -> 0 | BA21: =+'Budget Vendite'!BD20*'Budget Vendite'!BD53 -> 0 | BB21: =+'Budget Vendite'!BE20*'Budget Vendite'!BE53 -> 0 | BC21: =+'Budget Vendite'!BF20*'Budget Vendite'!BF53 -> 0 | BD21: =+'Budget Vendite'!BG20*'Budget Vendite'!BG53 -> 0 | BE21: =+'Budget Vendite'!BH20*'Budget Vendite'!BH53 -> 0 | BF21: =+'Budget Vendite'!BI20*'Budget Vendite'!BI53 -> 0 | BG21: =+'Budget Vendite'!BJ20*'Budget Vendite'!BJ53 -> 0 | BH21: =+'Budget Vendite'!BK20*'Budget Vendite'!BK53 -> 0 | BI21: =+'Budget Vendite'!BL20*'Budget Vendite'!BL53 -> 0 | BJ21: =+'Budget Vendite'!BM20*'Budget Vendite'!BM53 -> 0 | BK21: =+'Budget Vendite'!BN20*'Budget Vendite'!BN53 -> 0 | BL21: =+'Budget Vendite'!BO20*'Budget Vendite'!BO53 -> 0 | BM21: =+'Budget Vendite'!BP20*'Budget Vendite'!BP53 -> 0 | BN21: =+'Budget Vendite'!BQ20*'Budget Vendite'!BQ53 -> 0 | BO21: =+'Budget Vendite'!BR20*'Budget Vendite'!BR53 -> 0 | BP21: =+'Budget Vendite'!BS20*'Budget Vendite'!BS53 -> 0 | BS21: 0 | BT21: 0 | BU21: 0 | BV21: 0 | BW21: 0
F22: =+IF('Budget Vendite'!F21=0,"",'Budget Vendite'!F21) -> Linea 9 | G22: =+'Budget Vendite'!H21 -> 0.22 | H22: ='Budget Vendite'!J21 -> 0 | I22: =+'Budget Vendite'!L21*'Budget Vendite'!L54 -> 0 | J22: =+'Budget Vendite'!M21*'Budget Vendite'!M54 -> 0 | K22: =+'Budget Vendite'!N21*'Budget Vendite'!N54 -> 0 | L22: =+'Budget Vendite'!O21*'Budget Vendite'!O54 -> 0 | M22: =+'Budget Vendite'!P21*'Budget Vendite'!P54 -> 0 | N22: =+'Budget Vendite'!Q21*'Budget Vendite'!Q54 -> 0 | O22: =+'Budget Vendite'!R21*'Budget Vendite'!R54 -> 0 | P22: =+'Budget Vendite'!S21*'Budget Vendite'!S54 -> 0 | Q22: =+'Budget Vendite'!T21*'Budget Vendite'!T54 -> 0 | R22: =+'Budget Vendite'!U21*'Budget Vendite'!U54 -> 0 | S22: =+'Budget Vendite'!V21*'Budget Vendite'!V54 -> 0 | T22: =+'Budget Vendite'!W21*'Budget Vendite'!W54 -> 0 | U22: =+'Budget Vendite'!X21*'Budget Vendite'!X54 -> 0 | V22: =+'Budget Vendite'!Y21*'Budget Vendite'!Y54 -> 0 | W22: =+'Budget Vendite'!Z21*'Budget Vendite'!Z54 -> 0 | X22: =+'Budget Vendite'!AA21*'Budget Vendite'!AA54 -> 0 | Y22: =+'Budget Vendite'!AB21*'Budget Vendite'!AB54 -> 0 | Z22: =+'Budget Vendite'!AC21*'Budget Vendite'!AC54 -> 0 | AA22: =+'Budget Vendite'!AD21*'Budget Vendite'!AD54 -> 0 | AB22: =+'Budget Vendite'!AE21*'Budget Vendite'!AE54 -> 0 | AC22: =+'Budget Vendite'!AF21*'Budget Vendite'!AF54 -> 0 | AD22: =+'Budget Vendite'!AG21*'Budget Vendite'!AG54 -> 0 | AE22: =+'Budget Vendite'!AH21*'Budget Vendite'!AH54 -> 0 | AF22: =+'Budget Vendite'!AI21*'Budget Vendite'!AI54 -> 0 | AG22: =+'Budget Vendite'!AJ21*'Budget Vendite'!AJ54 -> 0 | AH22: =+'Budget Vendite'!AK21*'Budget Vendite'!AK54 -> 0 | AI22: =+'Budget Vendite'!AL21*'Budget Vendite'!AL54 -> 0 | AJ22: =+'Budget Vendite'!AM21*'Budget Vendite'!AM54 -> 0 | AK22: =+'Budget Vendite'!AN21*'Budget Vendite'!AN54 -> 0 | AL22: =+'Budget Vendite'!AO21*'Budget Vendite'!AO54 -> 0 | AM22: =+'Budget Vendite'!AP21*'Budget Vendite'!AP54 -> 0 | AN22: =+'Budget Vendite'!AQ21*'Budget Vendite'!AQ54 -> 0 | AO22: =+'Budget Vendite'!AR21*'Budget Vendite'!AR54 -> 0 | AP22: =+'Budget Vendite'!AS21*'Budget Vendite'!AS54 -> 0 | AQ22: =+'Budget Vendite'!AT21*'Budget Vendite'!AT54 -> 0 | AR22: =+'Budget Vendite'!AU21*'Budget Vendite'!AU54 -> 0 | AS22: =+'Budget Vendite'!AV21*'Budget Vendite'!AV54 -> 0 | AT22: =+'Budget Vendite'!AW21*'Budget Vendite'!AW54 -> 0 | AU22: =+'Budget Vendite'!AX21*'Budget Vendite'!AX54 -> 0 | AV22: =+'Budget Vendite'!AY21*'Budget Vendite'!AY54 -> 0 | AW22: =+'Budget Vendite'!AZ21*'Budget Vendite'!AZ54 -> 0 | AX22: =+'Budget Vendite'!BA21*'Budget Vendite'!BA54 -> 0 | AY22: =+'Budget Vendite'!BB21*'Budget Vendite'!BB54 -> 0 | AZ22: =+'Budget Vendite'!BC21*'Budget Vendite'!BC54 -> 0 | BA22: =+'Budget Vendite'!BD21*'Budget Vendite'!BD54 -> 0 | BB22: =+'Budget Vendite'!BE21*'Budget Vendite'!BE54 -> 0 | BC22: =+'Budget Vendite'!BF21*'Budget Vendite'!BF54 -> 0 | BD22: =+'Budget Vendite'!BG21*'Budget Vendite'!BG54 -> 0 | BE22: =+'Budget Vendite'!BH21*'Budget Vendite'!BH54 -> 0 | BF22: =+'Budget Vendite'!BI21*'Budget Vendite'!BI54 -> 0 | BG22: =+'Budget Vendite'!BJ21*'Budget Vendite'!BJ54 -> 0 | BH22: =+'Budget Vendite'!BK21*'Budget Vendite'!BK54 -> 0 | BI22: =+'Budget Vendite'!BL21*'Budget Vendite'!BL54 -> 0 | BJ22: =+'Budget Vendite'!BM21*'Budget Vendite'!BM54 -> 0 | BK22: =+'Budget Vendite'!BN21*'Budget Vendite'!BN54 -> 0 | BL22: =+'Budget Vendite'!BO21*'Budget Vendite'!BO54 -> 0 | BM22: =+'Budget Vendite'!BP21*'Budget Vendite'!BP54 -> 0 | BN22: =+'Budget Vendite'!BQ21*'Budget Vendite'!BQ54 -> 0 | BO22: =+'Budget Vendite'!BR21*'Budget Vendite'!BR54 -> 0 | BP22: =+'Budget Vendite'!BS21*'Budget Vendite'!BS54 -> 0 | BS22: 0 | BT22: 0 | BU22: 0 | BV22: 0 | BW22: 0
